Workbook

Sheet Survivalexp vitmix RAW Feb 2018
A1: Survival experiment | L1: Averages/Stdev Technical replicates
A2: Subject: | C2: Anaerobic survival after aerobic inoculation of recombinant strains | L2: Averages/stdev Biological replicates
C3: DeBont+ 6g/l Gluconic Acid - vitamin mix - Kanamycin
A4: Inoculation date | C4: 07-02-2018
A5: Inoculation OD600 | C5: 0.1 | D5: BW25113 2213F -
A6: Inoculated | D6: Blank | E6: 2213F - | G6: 2213F A | I6: 2213F APR
E7: p+0 | F7: p+3 | G7: p+0 | H7: p+3 | I7: p+0 | K7: p+3
A8: T0 | B8: 2017-10-30
A9: Sample | B9: Dilution: | D9: 10^0 | I9: AVERAGE | J9: STDEV | K9: 10^-1 | P9: AVERAGE | Q9: STDEV | R9: 10^-2 | W9: AVERAGE | X9: STDEV | Y9: 10^-3 | AD9: AVERAGE | AE9: STDEV | AF9: 10^-4 | AK9: AVERAGE | AL9: STDEV | AM9: 10^-5 | AR9: AVERAGE | AS9: STDEV | AT9: 10^-6 | AY9: AVERAGE | AZ9: STDEV | BA9: 10^-7 | BF9: AVERAGE | BG9: STDEV
A10: Blank | B10: 1 | D10: 0 | E10: 0 | F10: 0 | G10: 0 | H10: 0 | I10: =AVERAGE(D10:H10) -> 0 | J10: =STDEV(D10:H10) -> 0 | K10: 0 | L10: 0 | M10: 0 | N10: 0 | O10: 0 | P10: =AVERAGE(K10:O10) -> 0 | Q10: =STDEV(K10:O10) -> 0 | R10: 0 | S10: 0 | T10: 0 | U10: 0 | V10: 0 | W10: =AVERAGE(R10:V10) -> 0 | X10: =STDEV(R10:V10) -> 0 | Y10: 0 | Z10: 0 | AA10: 0 | AB10: 0 | AC10: 0 | AD10: =AVERAGE(Y10:AC10) -> 0 | AE10: =STDEV(Y10:AC10) -> 0 | AF10: 0 | AG10: 0 | AH10: 0 | AI10: 0 | AJ10: 0 | AK10: =AVERAGE(AF10:AJ10) -> 0 | AL10: =STDEV(AF10:AJ10) -> 0 | AM10: 0 | AN10: 0 | AO10: 0 | AP10: 0 | AQ10: 0 | AR10: =AVERAGE(AM10:AQ10) -> 0 | AS10: =STDEV(AM10:AQ10) -> 0 | AT10: 0 | AU10: 0 | AV10: 0 | AW10: 0 | AX10: 0 | AY10: =AVERAGE(AT10:AX10) -> 0 | AZ10: =STDEV(AT10:AX10) -> 0 | BA10: 0 | BB10: 0 | BC10: 0 | BD10: 0 | BE10: 0 | BF10: =AVERAGE(BA10:BE10) -> 0 | BG10: =STDEV(BA10:BE10) -> 0
B11: 2 | D11: 0 | E11: 0 | F11: 0 | G11: 0 | H11: 0 | I11: =AVERAGE(D11:H11) -> 0 | J11: =STDEV(D11:H11) -> 0 | K11: 0 | L11: 0 | M11: 0 | N11: 0 | O11: 0 | P11: =AVERAGE(K11:O11) -> 0 | Q11: =STDEV(K11:O11) -> 0 | R11: 0 | S11: 0 | T11: 0 | U11: 0 | V11: 0 | W11: =AVERAGE(R11:V11) -> 0 | X11: =STDEV(R11:V11) -> 0 | Y11: 0 | Z11: 0 | AA11: 0 | AB11: 0 | AC11: 0 | AD11: =AVERAGE(Y11:AC11) -> 0 | AE11: =STDEV(Y11:AC11) -> 0 | AF11: 0 | AG11: 0 | AH11: 0 | AI11: 0 | AJ11: 0 | AK11: =AVERAGE(AF11:AJ11) -> 0 | AL11: =STDEV(AF11:AJ11) -> 0 | AM11: 0 | AN11: 0 | AO11: 0 | AP11: 0 | AQ11: 0 | AR11: =AVERAGE(AM11:AQ11) -> 0 | AS11: =STDEV(AM11:AQ11) -> 0 | AT11: 0 | AU11: 0 | AV11: 0 | AW11: 0 | AX11: 0 | AY11: =AVERAGE(AT11:AX11) -> 0 | AZ11: =STDEV(AT11:AX11) -> 0 | BA11: 0 | BB11: 0 | BC11: 0 | BD11: 0 | BE11: 0 | BF11: =AVERAGE(BA11:BE11) -> 0 | BG11: =STDEV(BA11:BE11) -> 0
B12: 3 | D12: 0 | E12: 0 | F12: 0 | G12: 0 | H12: 0 | I12: =AVERAGE(D12:H12) -> 0 | J12: =STDEV(D12:H12) -> 0 | K12: 0 | L12: 0 | M12: 0 | N12: 0 | O12: 0 | P12: =AVERAGE(K12:O12) -> 0 | Q12: =STDEV(K12:O12) -> 0 | R12: 0 | S12: 0 | T12: 0 | U12: 0 | V12: 0 | W12: =AVERAGE(R12:V12) -> 0 | X12: =STDEV(R12:V12) -> 0 | Y12: 0 | Z12: 0 | AA12: 0 | AB12: 0 | AC12: 0 | AD12: =AVERAGE(Y12:AC12) -> 0 | AE12: =STDEV(Y12:AC12) -> 0 | AF12: 0 | AG12: 0 | AH12: 0 | AI12: 0 | AJ12: 0 | AK12: =AVERAGE(AF12:AJ12) -> 0 | AL12: =STDEV(AF12:AJ12) -> 0 | AM12: 0 | AN12: 0 | AO12: 0 | AP12: 0 | AQ12: 0 | AR12: =AVERAGE(AM12:AQ12) -> 0 | AS12: =STDEV(AM12:AQ12) -> 0 | AT12: 0 | AU12: 0 | AV12: 0 | AW12: 0 | AX12: 0 | AY12: =AVERAGE(AT12:AX12) -> 0 | AZ12: =STDEV(AT12:AX12) -> 0 | BA12: 0 | BB12: 0 | BC12: 0 | BD12: 0 | BE12: 0 | BF12: =AVERAGE(BA12:BE12) -> 0 | BG12: =STDEV(BA12:BE12) -> 0
I13: =AVERAGE(I10:I12) -> 0 | P13: =AVERAGE(P10:P12) -> 0 | W13: =AVERAGE(W10:W12) -> 0 | AD13: =AVERAGE(AD10:AD12) -> 0 | AK13: =AVERAGE(AK10:AK12) -> 0 | AR13: =AVERAGE(AR10:AR12) -> 0 | AY13: =AVERAGE(AY10:AY12) -> 0 | BF13: =AVERAGE(BF10:BF12) -> 0
I14: =SUM(J10:J12) -> 0 | P14: =SUM(Q10:Q12) -> 0 | W14: =SUM(X10:X12) -> 0 | AD14: =SUM(AE10:AE12) -> 0 | AK14: =SUM(AL10:AL12) -> 0 | AR14: =SUM(AS10:AS12) -> 0 | AY14: =SUM(AZ10:AZ12) -> 0 | BF14: =SUM(BG10:BG12) -> 0
A15: BW25113 - | B15: 1 | D15: NA | E15: NA | F15: NA | G15: NA | H15: NA | I15: =AVERAGE(D15:H15) ->  | J15: =STDEV(D15:H15) ->  | K15: NA | L15: NA | M15: NA | N15: NA | O15: NA | P15: =AVERAGE(K15:O15) ->  | Q15: =STDEV(K15:O15) ->  | R15: NA | S15: NA | T15: NA | U15: NA | V15: NA | W15: =AVERAGE(R15:V15) ->  | X15: =STDEV(R15:V15) ->  | Y15: NA | Z15: NA | AA15: NA | AB15: NA | AC15: NA | AD15: =AVERAGE(Y15:AC15) ->  | AE15: =STDEV(Y15:AC15) ->  | AF15: NA | AG15: NA | AH15: NA | AI15: NA | AJ15: NA | AK15: =AVERAGE(AF15:AJ15) ->  | AL15: =STDEV(AF15:AJ15) ->  | AM15: 38 | AN15: 37 | AO15: 32 | AP15: 40 | AQ15: 35 | AR15: =AVERAGE(AM15:AQ15) -> 36 | AS15: =STDEV(AM15:AQ15) -> 3 | AT15: 6 | AU15: 4 | AV15: 3 | AW15: 5 | AX15: 4 | AY15: =AVERAGE(AT15:AX15) -> 4 | AZ15: =STDEV(AT15:AX15) -> 1 | BA15: 0 | BB15: 0 | BC15: 0 | BD15: 1 | BE15: 1 | BF15: =AVERAGE(BA15:BE15) -> 0 | BG15: =STDEV(BA15:BE15) -> 1
A16: pS2213 - | B16: 2 | D16: NA | E16: NA | F16: NA | G16: NA | H16: NA | I16: =AVERAGE(D16:H16) ->  | J16: =STDEV(D16:H16) ->  | K16: NA | L16: NA | M16: NA | N16: NA | O16: NA | P16: =AVERAGE(K16:O16) ->  | Q16: =STDEV(K16:O16) ->  | R16: NA | S16: NA | T16: NA | U16: NA | V16: NA | W16: =AVERAGE(R16:V16) ->  | X16: =STDEV(R16:V16) ->  | Y16: NA | Z16: NA | AA16: NA | AB16: NA | AC16: NA | AD16: =AVERAGE(Y16:AC16) ->  | AE16: =STDEV(Y16:AC16) ->  | AF16: NA | AG16: NA | AH16: NA | AI16: NA | AJ16: NA | AK16: =AVERAGE(AF16:AJ16) ->  | AL16: =STDEV(AF16:AJ16) ->  | AM16: 46 | AN16: 37 | AO16: 37 | AP16: 36 | AQ16: 32 | AR16: =AVERAGE(AM16:AQ16) -> 38 | AS16: =STDEV(AM16:AQ16) -> 5 | AT16: 8 | AU16: 3 | AV16: 2 | AW16: 5 | AX16: 9 | AY16: =AVERAGE(AT16:AX16) -> 5 | AZ16: =STDEV(AT16:AX16) -> 3 | BA16: 0 | BB16: 1 | BC16: 1 | BD16: 1 | BE16: 0 | BF16: =AVERAGE(BA16:BE16) -> 1 | BG16: =STDEV(BA16:BE16) -> 1
B17: 3 | D17: NA | E17: NA | F17: NA | G17: NA | H17: NA | I17: =AVERAGE(D17:H17) ->  | J17: =STDEV(D17:H17) ->  | K17: NA | L17: NA | M17: NA | N17: NA | O17: NA | P17: =AVERAGE(K17:O17) ->  | Q17: =STDEV(K17:O17) ->  | R17: NA | S17: NA | T17: NA | U17: NA | V17: NA | W17: =AVERAGE(R17:V17) ->  | X17: =STDEV(R17:V17) ->  | Y17: NA | Z17: NA | AA17: NA | AB17: NA | AC17: NA | AD17: =AVERAGE(Y17:AC17) ->  | AE17: =STDEV(Y17:AC17) ->  | AF17: NA | AG17: NA | AH17: NA | AI17: NA | AJ17: NA | AK17: =AVERAGE(AF17:AJ17) ->  | AL17: =STDEV(AF17:AJ17) ->  | AM17: 44 | AN17: 50 | AO17: 49 | AP17: 46 | AQ17: 33 | AR17: =AVERAGE(AM17:AQ17) -> 44 | AS17: =STDEV(AM17:AQ17) -> 7 | AT17: 6 | AU17: 8 | AV17: 4 | AW17: 4 | AX17: 4 | AY17: =AVERAGE(AT17:AX17) -> 5 | AZ17: =STDEV(AT17:AX17) -> 2 | BA17: 0 | BB17: 1 | BC17: 1 | BD17: 0 | BE17: 0 | BF17: =AVERAGE(BA17:BE17) -> 0 | BG17: =STDEV(BA17:BE17) -> 1
A18: average | I18: =AVERAGE(I15:I17) ->  | P18: =AVERAGE(P15:P17) ->  | W18: =AVERAGE(W15:W17) ->  | AD18: =AVERAGE(AD15:AD17) ->  | AK18: =AVERAGE(AK15:AK17) ->  | AR18: =AVERAGE(AR15:AR17) -> 39 | AY18: =AVERAGE(AY15:AY17) -> 5 | BF18: =AVERAGE(BF15:BF17) -> 0
A19: stdev | I19: =SUM(J15:J17) ->  | P19: =SUM(Q15:Q17) ->  | W19: =SUM(X15:X17) ->  | AD19: =SUM(AE15:AE17) ->  | AK19: =SUM(AL15:AL17) ->  | AR19: =SUM(AS15:AS17) -> 15 | AY19: =SUM(AZ15:AZ17) -> 6 | BF19: =SUM(BG15:BG17) -> 2
A20: pS2213 - | B20: 1 | D20: NA | E20: NA | F20: NA | G20: NA | H20: NA | I20: =AVERAGE(D20:H20) ->  | J20: =STDEV(D20:H20) ->  | K20: NA | L20: NA | M20: NA | N20: NA | O20: NA | P20: =AVERAGE(K20:O20) ->  | Q20: =STDEV(K20:O20) ->  | R20: NA | S20: NA | T20: NA | U20: NA | V20: NA | W20: =AVERAGE(R20:V20) ->  | X20: =STDEV(R20:V20) ->  | Y20: NA | Z20: NA | AA20: NA | AB20: NA | AC20: NA | AD20: =AVERAGE(Y20:AC20) ->  | AE20: =STDEV(Y20:AC20) ->  | AF20: NA | AG20: NA | AH20: NA | AI20: NA | AJ20: NA | AK20: =AVERAGE(AF20:AJ20) ->  | AL20: =STDEV(AF20:AJ20) ->  | AM20: 58 | AN20: 62 | AO20: 61 | AP20: 64 | AQ20: 57 | AR20: =AVERAGE(AM20:AQ20) -> 60.4 | AS20: =STDEV(AM20:AQ20) -> 2.880972058 | AT20: 7 | AU20: 8 | AV20: 7 | AW20: 3 | AX20: 9 | AY20: =AVERAGE(AT20:AX20) -> 6.8 | AZ20: =STDEV(AT20:AX20) -> 2.28035085 | BA20: 0 | BB20: 0 | BC20: 0 | BD20: 2 | BE20: 0 | BF20: =AVERAGE(BA20:BE20) -> 0.4 | BG20: =STDEV(BA20:BE20) -> 0.894427191
A21: p+0 | B21: 2 | D21: NA | E21: NA | F21: NA | G21: NA | H21: NA | I21: =AVERAGE(D21:H21) ->  | J21: =STDEV(D21:H21) ->  | K21: NA | L21: NA | M21: NA | N21: NA | O21: NA | P21: =AVERAGE(K21:O21) ->  | Q21: =STDEV(K21:O21) ->  | R21: NA | S21: NA | T21: NA | U21: NA | V21: NA | W21: =AVERAGE(R21:V21) ->  | X21: =STDEV(R21:V21) ->  | Y21: NA | Z21: NA | AA21: NA | AB21: NA | AC21: NA | AD21: =AVERAGE(Y21:AC21) ->  | AE21: =STDEV(Y21:AC21) ->  | AF21: NA | AG21: NA | AH21: NA | AI21: NA | AJ21: NA | AK21: =AVERAGE(AF21:AJ21) ->  | AL21: =STDEV(AF21:AJ21) ->  | AM21: 76 | AN21: 66 | AO21: 60 | AP21: 69 | AQ21: 61 | AR21: =AVERAGE(AM21:AQ21) -> 66.4 | AS21: =STDEV(AM21:AQ21) -> 6.503845017 | AT21: 7 | AU21: 6 | AV21: 10 | AW21: 7 | AX21: 10 | AY21: =AVERAGE(AT21:AX21) -> 8 | AZ21: =STDEV(AT21:AX21) -> 1.870828693 | BA21: 1 | BB21: 1 | BC21: 0 | BD21: 0 | BE21: 2 | BF21: =AVERAGE(BA21:BE21) -> 0.8 | BG21: =STDEV(BA21:BE21) -> 0.8366600265
B22: 3 | D22: NA | E22: NA | F22: NA | G22: NA | H22: NA | I22: =AVERAGE(D22:H22) ->  | J22: =STDEV(D22:H22) ->  | K22: NA | L22: NA | M22: NA | N22: NA | O22: NA | P22: =AVERAGE(K22:O22) ->  | Q22: =STDEV(K22:O22) ->  | R22: NA | S22: NA | T22: NA | U22: NA | V22: NA | W22: =AVERAGE(R22:V22) ->  | X22: =STDEV(R22:V22) ->  | Y22: NA | Z22: NA | AA22: NA | AB22: NA | AC22: NA | AD22: =AVERAGE(Y22:AC22) ->  | AE22: =STDEV(Y22:AC22) ->  | AF22: NA | AG22: NA | AH22: NA | AI22: NA | AJ22: NA | AK22: =AVERAGE(AF22:AJ22) ->  | AL22: =STDEV(AF22:AJ22) ->  | AM22: 51 | AN22: 45 | AO22: 46 | AP22: 52 | AQ22: 45 | AR22: =AVERAGE(AM22:AQ22) -> 48 | AS22: =STDEV(AM22:AQ22) -> 3 | AT22: 3 | AU22: 4 | AV22: 5 | AW22: 4 | AX22: 8 | AY22: =AVERAGE(AT22:AX22) -> 5 | AZ22: =STDEV(AT22:AX22) -> 2 | BA22: 0 | BB22: 1 | BC22: 0 | BD22: 0 | BE22: 1 | BF22: =AVERAGE(BA22:BE22) -> 0 | BG22: =STDEV(BA22:BE22) -> 1
A23: average | I23: =AVERAGE(I20:I22) ->  | P23: =AVERAGE(P20:P22) ->  | W23: =AVERAGE(W20:W22) ->  | AD23: =AVERAGE(AD20:AD22) ->  | AK23: =AVERAGE(AK20:AK22) ->  | AR23: =AVERAGE(AR20:AR22) -> 58 | AY23: =AVERAGE(AY20:AY22) -> 7 | BF23: =AVERAGE(BF20:BF22) -> 1
A24: stdev | I24: =SUM(J20:J22) ->  | P24: =SUM(Q20:Q22) ->  | W24: =SUM(X20:X22) ->  | AD24: =SUM(AE20:AE22) ->  | AK24: =SUM(AL20:AL22) ->  | AR24: =SUM(AS20:AS22) -> 13 | AY24: =SUM(AZ20:AZ22) -> 6 | BF24: =SUM(BG20:BG22) -> 2
A25: pS2213 A | B25: 1 | D25: NA | E25: NA | F25: NA | G25: NA | H25: NA | I25: =AVERAGE(D25:H25) ->  | J25: =STDEV(D25:H25) ->  | K25: NA | L25: NA | M25: NA | N25: NA | O25: NA | P25: =AVERAGE(K25:O25) ->  | Q25: =STDEV(K25:O25) ->  | R25: NA | S25: NA | T25: NA | U25: NA | V25: NA | W25: =AVERAGE(R25:V25) ->  | X25: =STDEV(R25:V25) ->  | Y25: NA | Z25: NA | AA25: NA | AB25: NA | AC25: NA | AD25: =AVERAGE(Y25:AC25) ->  | AE25: =STDEV(Y25:AC25) ->  | AF25: NA | AG25: NA | AH25: NA | AI25: NA | AJ25: NA | AK25: =AVERAGE(AF25:AJ25) ->  | AL25: =STDEV(AF25:AJ25) ->  | AM25: 32 | AN25: 38 | AO25: 42 | AP25: 43 | AQ25: 40 | AR25: =AVERAGE(AM25:AQ25) -> 39 | AS25: =STDEV(AM25:AQ25) -> 4.358898944 | AT25: 4 | AU25: 6 | AV25: 3 | AW25: 3 | AX25: 1 | AY25: =AVERAGE(AT25:AX25) -> 3.4 | AZ25: =STDEV(AT25:AX25) -> 1.816590212 | BA25: 0 | BB25: 0 | BC25: 1 | BD25: 0 | BE25: 0 | BF25: =AVERAGE(BA25:BE25) -> 0.2 | BG25: =STDEV(BA25:BE25) -> 0.4472135955
A26: p+0 | B26: 2 | D26: NA | E26: NA | F26: NA | G26: NA | H26: NA | I26: =AVERAGE(D26:H26) ->  | J26: =STDEV(D26:H26) ->  | K26: NA | L26: NA | M26: NA | N26: NA | O26: NA | P26: =AVERAGE(K26:O26) ->  | Q26: =STDEV(K26:O26) ->  | R26: NA | S26: NA | T26: NA | U26: NA | V26: NA | W26: =AVERAGE(R26:V26) ->  | X26: =STDEV(R26:V26) ->  | Y26: NA | Z26: NA | AA26: NA | AB26: NA | AC26: NA | AD26: =AVERAGE(Y26:AC26) ->  | AE26: =STDEV(Y26:AC26) ->  | AF26: NA | AG26: NA | AH26: NA | AI26: NA | AJ26: NA | AK26: =AVERAGE(AF26:AJ26) ->  | AL26: =STDEV(AF26:AJ26) ->  | AM26: 40 | AN26: 49 | AO26: 39 | AP26: 55 | AQ26: 45 | AR26: =AVERAGE(AM26:AQ26) -> 45.6 | AS26: =STDEV(AM26:AQ26) -> 6.618156843 | AT26: 7 | AU26: 6 | AV26: 5 | AW26: 4 | AX26: 4 | AY26: =AVERAGE(AT26:AX26) -> 5.2 | AZ26: =STDEV(AT26:AX26) -> 1.303840481 | BA26: 0 | BB26: 0 | BC26: 0 | BD26: 0 | BE26: 0 | BF26: =AVERAGE(BA26:BE26) -> 0 | BG26: =STDEV(BA26:BE26) -> 0
B27: 3 | D27: NA | E27: NA | F27: NA | G27: NA | H27: NA | I27: =AVERAGE(D27:H27) ->  | J27: =STDEV(D27:H27) ->  | K27: NA | L27: NA | M27: NA | N27: NA | O27: NA | P27: =AVERAGE(K27:O27) ->  | Q27: =STDEV(K27:O27) ->  | R27: NA | S27: NA | T27: NA | U27: NA | V27: NA | W27: =AVERAGE(R27:V27) ->  | X27: =STDEV(R27:V27) ->  | Y27: NA | Z27: NA | AA27: NA | AB27: NA | AC27: NA | AD27: =AVERAGE(Y27:AC27) ->  | AE27: =STDEV(Y27:AC27) ->  | AF27: NA | AG27: NA | AH27: NA | AI27: NA | AJ27: NA | AK27: =AVERAGE(AF27:AJ27) ->  | AL27: =STDEV(AF27:AJ27) ->  | AM27: 45 | AN27: 54 | AO27: 48 | AP27: 47 | AQ27: 50 | AR27: =AVERAGE(AM27:AQ27) -> 49 | AS27: =STDEV(AM27:AQ27) -> 3 | AT27: 5 | AU27: 8 | AV27: 5 | AW27: 3 | AX27: 6 | AY27: =AVERAGE(AT27:AX27) -> 5 | AZ27: =STDEV(AT27:AX27) -> 2 | BA27: 0 | BB27: 0 | BC27: 0 | BD27: 2 | BE27: 1 | BF27: =AVERAGE(BA27:BE27) -> 1 | BG27: =STDEV(BA27:BE27) -> 1
A28: average | I28: =AVERAGE(I25:I27) ->  | P28: =AVERAGE(P25:P27) ->  | W28: =AVERAGE(W25:W27) ->  | AD28: =AVERAGE(AD25:AD27) ->  | AK28: =AVERAGE(AK25:AK27) ->  | AR28: =AVERAGE(AR25:AR27) -> 44 | AY28: =AVERAGE(AY25:AY27) -> 5 | BF28: =AVERAGE(BF25:BF27) -> 0
A29: stdev | I29: =SUM(J25:J27) ->  | P29: =SUM(Q25:Q27) ->  | W29: =SUM(X25:X27) ->  | AD29: =SUM(AE25:AE27) ->  | AK29: =SUM(AL25:AL27) ->  | AR29: =SUM(AS25:AS27) -> 14 | AY29: =SUM(AZ25:AZ27) -> 5 | BF29: =SUM(BG25:BG27) -> 1
A30: p+3 | B30: 1 | D30: NA | E30: NA | F30: NA | G30: NA | H30: NA | I30: =AVERAGE(D30:H30) ->  | J30: =STDEV(D30:H30) ->  | K30: NA | L30: NA | M30: NA | N30: NA | O30: NA | P30: =AVERAGE(K30:O30) ->  | Q30: =STDEV(K30:O30) ->  | R30: NA | S30: NA | T30: NA | U30: NA | V30: NA | W30: =AVERAGE(R30:V30) ->  | X30: =STDEV(R30:V30) ->  | Y30: NA | Z30: NA | AA30: NA | AB30: NA | AC30: NA | AD30: =AVERAGE(Y30:AC30) ->  | AE30: =STDEV(Y30:AC30) ->  | AF30: NA | AG30: NA | AH30: NA | AI30: NA | AJ30: NA | AK30: =AVERAGE(AF30:AJ30) ->  | AL30: =STDEV(AF30:AJ30) ->  | AM30: 53 | AN30: 55 | AO30: 61 | AP30: 55 | AQ30: 54 | AR30: =AVERAGE(AM30:AQ30) -> 56 | AS30: =STDEV(AM30:AQ30) -> 3 | AT30: 6 | AU30: 8 | AV30: 10 | AW30: 3 | AX30: 10 | AY30: =AVERAGE(AT30:AX30) -> 7 | AZ30: =STDEV(AT30:AX30) -> 3 | BA30: 0 | BB30: 1 | BC30: 2 | BD30: 1 | BE30: 0 | BF30: =AVERAGE(BA30:BE30) -> 1 | BG30: =STDEV(BA30:BE30) -> 1
B31: 2 | D31: NA | E31: NA | F31: NA | G31: NA | H31: NA | I31: =AVERAGE(D31:H31) ->  | J31: =STDEV(D31:H31) ->  | K31: NA | L31: NA | M31: NA | N31: NA | O31: NA | P31: =AVERAGE(K31:O31) ->  | Q31: =STDEV(K31:O31) ->  | R31: NA | S31: NA | T31: NA | U31: NA | V31: NA | W31: =AVERAGE(R31:V31) ->  | X31: =STDEV(R31:V31) ->  | Y31: NA | Z31: NA | AA31: NA | AB31: NA | AC31: NA | AD31: =AVERAGE(Y31:AC31) ->  | AE31: =STDEV(Y31:AC31) ->  | AF31: NA | AG31: NA | AH31: NA | AI31: NA | AJ31: NA | AK31: =AVERAGE(AF31:AJ31) ->  | AL31: =STDEV(AF31:AJ31) ->  | AM31: 40 | AN31: 39 | AO31: 32 | AP31: 51 | AQ31: 41 | AR31: =AVERAGE(AM31:AQ31) -> 41 | AS31: =STDEV(AM31:AQ31) -> 7 | AT31: 2 | AU31: 5 | AV31: 2 | AW31: 5 | AX31: 7 | AY31: =AVERAGE(AT31:AX31) -> 4 | AZ31: =STDEV(AT31:AX31) -> 2 | BA31: 0 | BB31: 1 | BC31: 0 | BD31: 0 | BE31: 1 | BF31: =AVERAGE(BA31:BE31) -> 0 | BG31: =STDEV(BA31:BE31) -> 1
B32: 3 | D32: NA | E32: NA | F32: NA | G32: NA | H32: NA | I32: =AVERAGE(D32:H32) ->  | J32: =STDEV(D32:H32) ->  | K32: NA | L32: NA | M32: NA | N32: NA | O32: NA | P32: =AVERAGE(K32:O32) ->  | Q32: =STDEV(K32:O32) ->  | R32: NA | S32: NA | T32: NA | U32: NA | V32: NA | W32: =AVERAGE(R32:V32) ->  | X32: =STDEV(R32:V32) ->  | Y32: NA | Z32: NA | AA32: NA | AB32: NA | AC32: NA | AD32: =AVERAGE(Y32:AC32) ->  | AE32: =STDEV(Y32:AC32) ->  | AF32: NA | AG32: NA | AH32: NA | AI32: NA | AJ32: NA | AK32: =AVERAGE(AF32:AJ32) ->  | AL32: =STDEV(AF32:AJ32) ->  | AM32: 41 | AN32: 45 | AO32: 53 | AP32: 36 | AQ32: 40 | AR32: =AVERAGE(AM32:AQ32) -> 43 | AS32: =STDEV(AM32:AQ32) -> 6 | AT32: 4 | AU32: 7 | AV32: 7 | AW32: 6 | AX32: 2 | AY32: =AVERAGE(AT32:AX32) -> 5 | AZ32: =STDEV(AT32:AX32) -> 2 | BA32: 0 | BB32: 0 | BC32: 0 | BD32: 0 | BE32: 0 | BF32: =AVERAGE(BA32:BE32) -> 0 | BG32: =STDEV(BA32:BE32) -> 0
A33: average | I33: =AVERAGE(I30:I32) ->  | P33: =AVERAGE(P30:P32) ->  | W33: =AVERAGE(W30:W32) ->  | AD33: =AVERAGE(AD30:AD32) ->  | AK33: =AVERAGE(AK30:AK32) ->  | AR33: =AVERAGE(AR30:AR32) -> 46 | AY33: =AVERAGE(AY30:AY32) -> 6 | BF33: =AVERAGE(BF30:BF32) -> 0
A34: stdev | I34: =SUM(J30:J32) ->  | P34: =SUM(Q30:Q32) ->  | W34: =SUM(X30:X32) ->  | AD34: =SUM(AE30:AE32) ->  | AK34: =SUM(AL30:AL32) ->  | AR34: =SUM(AS30:AS32) -> 16 | AY34: =SUM(AZ30:AZ32) -> 7 | BF34: =SUM(BG30:BG32) -> 1
A35: pS2213 APR | B35: 1 | D35: NA | E35: NA | F35: NA | G35: NA | H35: NA | I35: =AVERAGE(D35:H35) ->  | J35: =STDEV(D35:H35) ->  | K35: NA | L35: NA | M35: NA | N35: NA | O35: NA | P35: =AVERAGE(K35:O35) ->  | Q35: =STDEV(K35:O35) ->  | R35: NA | S35: NA | T35: NA | U35: NA | V35: NA | W35: =AVERAGE(R35:V35) ->  | X35: =STDEV(R35:V35) ->  | Y35: NA | Z35: NA | AA35: NA | AB35: NA | AC35: NA | AD35: =AVERAGE(Y35:AC35) ->  | AE35: =STDEV(Y35:AC35) ->  | AF35: NA | AG35: NA | AH35: NA | AI35: NA | AJ35: NA | AK35: =AVERAGE(AF35:AJ35) ->  | AL35: =STDEV(AF35:AJ35) ->  | AM35: 55 | AN35: 51 | AO35: 63 | AP35: 63 | AQ35: 53 | AR35: =AVERAGE(AM35:AQ35) -> 57 | AS35: =STDEV(AM35:AQ35) -> 5.656854249 | AT35: 4 | AU35: 11 | AV35: 5 | AW35: 6 | AX35: 6 | AY35: =AVERAGE(AT35:AX35) -> 6.4 | AZ35: =STDEV(AT35:AX35) -> 2.701851217 | BA35: 1 | BB35: 2 | BC35: 0 | BD35: 0 | BE35: 0 | BF35: =AVERAGE(BA35:BE35) -> 0.6 | BG35: =STDEV(BA35:BE35) -> 0.894427191
A36: p+0 | B36: 2 | D36: NA | E36: NA | F36: NA | G36: NA | H36: NA | I36: =AVERAGE(D36:H36) ->  | J36: =STDEV(D36:H36) ->  | K36: NA | L36: NA | M36: NA | N36: NA | O36: NA | P36: =AVERAGE(K36:O36) ->  | Q36: =STDEV(K36:O36) ->  | R36: NA | S36: NA | T36: NA | U36: NA | V36: NA | W36: =AVERAGE(R36:V36) ->  | X36: =STDEV(R36:V36) ->  | Y36: NA | Z36: NA | AA36: NA | AB36: NA | AC36: NA | AD36: =AVERAGE(Y36:AC36) ->  | AE36: =STDEV(Y36:AC36) ->  | AF36: NA | AG36: NA | AH36: NA | AI36: NA | AJ36: NA | AK36: =AVERAGE(AF36:AJ36) ->  | AL36: =STDEV(AF36:AJ36) ->  | AM36: 48 | AN36: 55 | AO36: 49 | AP36: 53 | AQ36: 44 | AR36: =AVERAGE(AM36:AQ36) -> 49.8 | AS36: =STDEV(AM36:AQ36) -> 4.324349662 | AT36: 11 | AU36: 4 | AV36: 8 | AW36: 4 | AX36: 7 | AY36: =AVERAGE(AT36:AX36) -> 6.8 | AZ36: =STDEV(AT36:AX36) -> 2.949576241 | BA36: 0 | BB36: 1 | BC36: 0 | BD36: 0 | BE36: 1 | BF36: =AVERAGE(BA36:BE36) -> 0.4 | BG36: =STDEV(BA36:BE36) -> 0.5477225575
B37: 3 | D37: NA | E37: NA | F37: NA | G37: NA | H37: NA | I37: =AVERAGE(D37:H37) ->  | J37: =STDEV(D37:H37) ->  | K37: NA | L37: NA | M37: NA | N37: NA | O37: NA | P37: =AVERAGE(K37:O37) ->  | Q37: =STDEV(K37:O37) ->  | R37: NA | S37: NA | T37: NA | U37: NA | V37: NA | W37: =AVERAGE(R37:V37) ->  | X37: =STDEV(R37:V37) ->  | Y37: NA | Z37: NA | AA37: NA | AB37: NA | AC37: NA | AD37: =AVERAGE(Y37:AC37) ->  | AE37: =STDEV(Y37:AC37) ->  | AF37: NA | AG37: NA | AH37: NA | AI37: NA | AJ37: NA | AK37: =AVERAGE(AF37:AJ37) ->  | AL37: =STDEV(AF37:AJ37) ->  | AM37: 55 | AN37: 42 | AO37: 53 | AP37: 46 | AQ37: 39 | AR37: =AVERAGE(AM37:AQ37) -> 47 | AS37: =STDEV(AM37:AQ37) -> 7 | AT37: 10 | AU37: 4 | AV37: 3 | AW37: 4 | AX37: 4 | AY37: =AVERAGE(AT37:AX37) -> 5 | AZ37: =STDEV(AT37:AX37) -> 3 | BA37: 2 | BB37: 0 | BC37: 0 | BD37: 0 | BE37: 1 | BF37: =AVERAGE(BA37:BE37) -> 1 | BG37: =STDEV(BA37:BE37) -> 1
A38: average | I38: =AVERAGE(I35:I37) ->  | P38: =AVERAGE(P35:P37) ->  | W38: =AVERAGE(W35:W37) ->  | AD38: =AVERAGE(AD35:AD37) ->  | AK38: =AVERAGE(AK35:AK37) ->  | AR38: =AVERAGE(AR35:AR37) -> 51 | AY38: =AVERAGE(AY35:AY37) -> 6 | BF38: =AVERAGE(BF35:BF37) -> 1
A39: stdev | I39: =SUM(J35:J37) ->  | P39: =SUM(Q35:Q37) ->  | W39: =SUM(X35:X37) ->  | AD39: =SUM(AE35:AE37) ->  | AK39: =SUM(AL35:AL37) ->  | AR39: =SUM(AS35:AS37) -> 17 | AY39: =SUM(AZ35:AZ37) -> 8 | BF39: =SUM(BG35:BG37) -> 2
A40: p+3 | B40: 1 | D40: NA | E40: NA | F40: NA | G40: NA | H40: NA | I40: =AVERAGE(D40:H40) ->  | J40: =STDEV(D40:H40) ->  | K40: NA | L40: NA | M40: NA | N40: NA | O40: NA | P40: =AVERAGE(K40:O40) ->  | Q40: =STDEV(K40:O40) ->  | R40: NA | S40: NA | T40: NA | U40: NA | V40: NA | W40: =AVERAGE(R40:V40) ->  | X40: =STDEV(R40:V40) ->  | Y40: NA | Z40: NA | AA40: NA | AB40: NA | AC40: NA | AD40: =AVERAGE(Y40:AC40) ->  | AE40: =STDEV(Y40:AC40) ->  | AF40: NA | AG40: NA | AH40: NA | AI40: NA | AJ40: NA | AK40: =AVERAGE(AF40:AJ40) ->  | AL40: =STDEV(AF40:AJ40) ->  | AM40: 87 | AN40: 79 | AO40: 70 | AP40: 59 | AQ40: 81 | AR40: =AVERAGE(AM40:AQ40) -> 75 | AS40: =STDEV(AM40:AQ40) -> 11 | AT40: 10 | AU40: 15 | AV40: 11 | AW40: 9 | AX40: 17 | AY40: =AVERAGE(AT40:AX40) -> 12 | AZ40: =STDEV(AT40:AX40) -> 3 | BA40: 1 | BB40: 2 | BC40: 0 | BD40: 3 | BE40: 4 | BF40: =AVERAGE(BA40:BE40) -> 2 | BG40: =STDEV(BA40:BE40) -> 2
B41: 2 | D41: NA | E41: NA | F41: NA | G41: NA | H41: NA | I41: =AVERAGE(D41:H41) ->  | J41: =STDEV(D41:H41) ->  | K41: NA | L41: NA | M41: NA | N41: NA | O41: NA | P41: =AVERAGE(K41:O41) ->  | Q41: =STDEV(K41:O41) ->  | R41: NA | S41: NA | T41: NA | U41: NA | V41: NA | W41: =AVERAGE(R41:V41) ->  | X41: =STDEV(R41:V41) ->  | Y41: NA | Z41: NA | AA41: NA | AB41: NA | AC41: NA | AD41: =AVERAGE(Y41:AC41) ->  | AE41: =STDEV(Y41:AC41) ->  | AF41: NA | AG41: NA | AH41: NA | AI41: NA | AJ41: NA | AK41: =AVERAGE(AF41:AJ41) ->  | AL41: =STDEV(AF41:AJ41) ->  | AM41: 58 | AN41: 47 | AO41: 48 | AP41: 48 | AQ41: 54 | AR41: =AVERAGE(AM41:AQ41) -> 51 | AS41: =STDEV(AM41:AQ41) -> 5 | AT41: 10 | AU41: 6 | AV41: 9 | AW41: 5 | AX41: 7 | AY41: =AVERAGE(AT41:AX41) -> 7 | AZ41: =STDEV(AT41:AX41) -> 2 | BA41: 0 | BB41: 0 | BC41: 1 | BD41: 0 | BE41: 0 | BF41: =AVERAGE(BA41:BE41) -> 0 | BG41: =STDEV(BA41:BE41) -> 0
B42: 3 | D42: NA | E42: NA | F42: NA | G42: NA | H42: NA | I42: =AVERAGE(D42:H42) ->  | J42: =STDEV(D42:H42) ->  | K42: NA | L42: NA | M42: NA | N42: NA | O42: NA | P42: =AVERAGE(K42:O42) ->  | Q42: =STDEV(K42:O42) ->  | R42: NA | S42: NA | T42: NA | U42: NA | V42: NA | W42: =AVERAGE(R42:V42) ->  | X42: =STDEV(R42:V42) ->  | Y42: NA | Z42: NA | AA42: NA | AB42: NA | AC42: NA | AD42: =AVERAGE(Y42:AC42) ->  | AE42: =STDEV(Y42:AC42) ->  | AF42: NA | AG42: NA | AH42: NA | AI42: NA | AJ42: NA | AK42: =AVERAGE(AF42:AJ42) ->  | AL42: =STDEV(AF42:AJ42) ->  | AM42: 82 | AN42: 70 | AO42: 56 | AP42: 69 | AQ42: 58 | AR42: =AVERAGE(AM42:AQ42) -> 67 | AS42: =STDEV(AM42:AQ42) -> 10 | AT42: 5 | AU42: 6 | AV42: 12 | AW42: 7 | AX42: 8 | AY42: =AVERAGE(AT42:AX42) -> 8 | AZ42: =STDEV(AT42:AX42) -> 3 | BA42: 2 | BB42: 1 | BC42: 1 | BD42: 1 | BE42: 1 | BF42: =AVERAGE(BA42:BE42) -> 1 | BG42: =STDEV(BA42:BE42) -> 0
A43: average | I43: =AVERAGE(I40:I42) ->  | P43: =AVERAGE(P40:P42) ->  | W43: =AVERAGE(W40:W42) ->  | AD43: =AVERAGE(AD40:AD42) ->  | AK43: =AVERAGE(AK40:AK42) ->  | AR43: =AVERAGE(AR40:AR42) -> 64 | AY43: =AVERAGE(AY40:AY42) -> 9 | BF43: =AVERAGE(BF40:BF42) -> 1
A44: stdev | I44: =SUM(J40:J42) ->  | P44: =SUM(Q40:Q42) ->  | W44: =SUM(X40:X42) ->  | AD44: =SUM(AE40:AE42) ->  | AK44: =SUM(AL40:AL42) ->  | AR44: =SUM(AS40:AS42) -> 26 | AY44: =SUM(AZ40:AZ42) -> 8 | BF44: =SUM(BG40:BG42) -> 2
A47: T4 | B47: 2018-02-12
A48: Sample | B48: Dilution: | D48: 10^0 | I48: AVERAGE | J48: STDEV | K48: 10^-1 | P48: AVERAGE | Q48: STDEV | R48: 10^-2 | W48: AVERAGE | X48: STDEV | Y48: 10^-3 | AD48: AVERAGE | AE48: STDEV | AF48: 10^-4 | AK48: AVERAGE | AL48: STDEV | AM48: 10^-5 | AR48: AVERAGE | AS48: STDEV | AT48: 10^-6 | AY48: AVERAGE | AZ48: STDEV | BA48: 10^-7 | BF48: AVERAGE | BG48: STDEV
A49: Blank | B49: 1 | D49: 0 | E49: 0 | F49: 0 | G49: 0 | H49: 0 | I49: =AVERAGE(D49:H49) -> 0 | J49: =STDEV(D49:H49) -> 0 | K49: 0 | L49: 0 | M49: 0 | N49: 0 | O49: 0 | P49: =AVERAGE(K49:O49) -> 0 | Q49: =STDEV(K49:O49) -> 0 | R49: 0 | S49: 0 | T49: 0 | U49: 0 | V49: 0 | W49: =AVERAGE(R49:V49) -> 0 | X49: =STDEV(R49:V49) -> 0 | Y49: 0 | Z49: 0 | AA49: 0 | AB49: 0 | AC49: 0 | AD49: =AVERAGE(Y49:AC49) -> 0 | AE49: =STDEV(Y49:AC49) -> 0 | AF49: 0 | AG49: 0 | AH49: 0 | AI49: 0 | AJ49: 0 | AK49: =AVERAGE(AF49:AJ49) -> 0 | AL49: =STDEV(AF49:AJ49) -> 0 | AM49: 0 | AN49: 0 | AO49: 0 | AP49: 0 | AQ49: 0 | AR49: =AVERAGE(AM49:AQ49) -> 0 | AS49: =STDEV(AM49:AQ49) -> 0 | AT49: 0 | AU49: 0 | AV49: 0 | AW49: 0 | AX49: 0 | AY49: =AVERAGE(AT49:AX49) -> 0 | AZ49: =STDEV(AT49:AX49) -> 0 | BA49: 0 | BB49: 0 | BC49: 0 | BD49: 0 | BE49: 0 | BF49: =AVERAGE(BA49:BE49) -> 0 | BG49: =STDEV(BA49:BE49) -> 0
B50: 2 | D50: 0 | E50: 0 | F50: 0 | G50: 0 | H50: 0 | I50: =AVERAGE(D50:H50) -> 0 | J50: =STDEV(D50:H50) -> 0 | K50: 0 | L50: 0 | M50: 0 | N50: 0 | O50: 0 | P50: =AVERAGE(K50:O50) -> 0 | Q50: =STDEV(K50:O50) -> 0 | R50: 0 | S50: 0 | T50: 0 | U50: 0 | V50: 0 | W50: =AVERAGE(R50:V50) -> 0 | X50: =STDEV(R50:V50) -> 0 | Y50: 0 | Z50: 0 | AA50: 0 | AB50: 0 | AC50: 0 | AD50: =AVERAGE(Y50:AC50) -> 0 | AE50: =STDEV(Y50:AC50) -> 0 | AF50: 0 | AG50: 0 | AH50: 0 | AI50: 0 | AJ50: 0 | AK50: =AVERAGE(AF50:AJ50) -> 0 | AL50: =STDEV(AF50:AJ50) -> 0 | AM50: 0 | AN50: 0 | AO50: 0 | AP50: 0 | AQ50: 0 | AR50: =AVERAGE(AM50:AQ50) -> 0 | AS50: =STDEV(AM50:AQ50) -> 0 | AT50: 0 | AU50: 0 | AV50: 0 | AW50: 0 | AX50: 0 | AY50: =AVERAGE(AT50:AX50) -> 0 | AZ50: =STDEV(AT50:AX50) -> 0 | BA50: 0 | BB50: 0 | BC50: 0 | BD50: 0 | BE50: 0 | BF50: =AVERAGE(BA50:BE50) -> 0 | BG50: =STDEV(BA50:BE50) -> 0
B51: 3 | D51: 0 | E51: 0 | F51: 0 | G51: 0 | H51: 0 | I51: =AVERAGE(D51:H51) -> 0 | J51: =STDEV(D51:H51) -> 0 | K51: 0 | L51: 0 | M51: 0 | N51: 0 | O51: 0 | P51: =AVERAGE(K51:O51) -> 0 | Q51: =STDEV(K51:O51) -> 0 | R51: 0 | S51: 0 | T51: 0 | U51: 0 | V51: 0 | W51: =AVERAGE(R51:V51) -> 0 | X51: =STDEV(R51:V51) -> 0 | Y51: 0 | Z51: 0 | AA51: 0 | AB51: 0 | AC51: 0 | AD51: =AVERAGE(Y51:AC51) -> 0 | AE51: =STDEV(Y51:AC51) -> 0 | AF51: 0 | AG51: 0 | AH51: 0 | AI51: 0 | AJ51: 0 | AK51: =AVERAGE(AF51:AJ51) -> 0 | AL51: =STDEV(AF51:AJ51) -> 0 | AM51: 0 | AN51: 0 | AO51: 0 | AP51: 0 | AQ51: 0 | AR51: =AVERAGE(AM51:AQ51) -> 0 | AS51: =STDEV(AM51:AQ51) -> 0 | AT51: 0 | AU51: 0 | AV51: 0 | AW51: 0 | AX51: 0 | AY51: =AVERAGE(AT51:AX51) -> 0 | AZ51: =STDEV(AT51:AX51) -> 0 | BA51: 0 | BB51: 0 | BC51: 0 | BD51: 0 | BE51: 0 | BF51: =AVERAGE(BA51:BE51) -> 0 | BG51: =STDEV(BA51:BE51) -> 0
I52: =AVERAGE(I49:I51) -> 0 | P52: =AVERAGE(P49:P51) -> 0 | W52: =AVERAGE(W49:W51) -> 0 | AD52: =AVERAGE(AD49:AD51) -> 0 | AK52: =AVERAGE(AK49:AK51) -> 0 | AR52: =AVERAGE(AR49:AR51) -> 0 | AY52: =AVERAGE(AY49:AY51) -> 0 | BF52: =AVERAGE(BF49:BF51) -> 0
I53: =SUM(J49:J51) -> 0 | P53: =SUM(Q49:Q51) -> 0 | W53: =SUM(X49:X51) -> 0 | AD53: =SUM(AE49:AE51) -> 0 | AK53: =SUM(AL49:AL51) -> 0 | AR53: =SUM(AS49:AS51) -> 0 | AY53: =SUM(AZ49:AZ51) -> 0 | BF53: =SUM(BG49:BG51) -> 0
A54: BW25113 - | B54: 1 | D54: NA | E54: NA | F54: NA | G54: NA | H54: NA | I54: =AVERAGE(D54:H54) ->  | J54: =STDEV(D54:H54) ->  | K54: NA | L54: NA | M54: NA | N54: NA | O54: NA | P54: =AVERAGE(K54:O54) ->  | Q54: =STDEV(K54:O54) ->  | R54: NA | S54: NA | T54: NA | U54: NA | V54: NA | W54: =AVERAGE(R54:V54) ->  | X54: =STDEV(R54:V54) ->  | Y54: NA | Z54: NA | AA54: NA | AB54: NA | AC54: NA | AD54: =AVERAGE(Y54:AC54) ->  | AE54: =STDEV(Y54:AC54) ->  | AF54: NA | AG54: NA | AH54: NA | AI54: NA | AJ54: NA | AK54: =AVERAGE(AF54:AJ54) ->  | AL54: =STDEV(AF54:AJ54) ->  | AM54: NA | AN54: NA | AO54: NA | AP54: NA | AQ54: NA | AR54: =AVERAGE(AM54:AQ54) ->  | AS54: =STDEV(AM54:AQ54) ->  | AT54: 72 | AU54: 64 | AV54: 65 | AW54: 66 | AX54: 39 | AY54: =AVERAGE(AT54:AX54) -> 61 | AZ54: =STDEV(AT54:AX54) -> 13 | BA54: 18 | BB54: 15 | BC54: 16 | BD54: 16 | BE54: 10 | BF54: =AVERAGE(BA54:BE54) -> 15 | BG54: =STDEV(BA54:BE54) -> 3
A55: pS2213 - | B55: 2 | D55: NA | E55: NA | F55: NA | G55: NA | H55: NA | I55: =AVERAGE(D55:H55) ->  | J55: =STDEV(D55:H55) ->  | K55: NA | L55: NA | M55: NA | N55: NA | O55: NA | P55: =AVERAGE(K55:O55) ->  | Q55: =STDEV(K55:O55) ->  | R55: NA | S55: NA | T55: NA | U55: NA | V55: NA | W55: =AVERAGE(R55:V55) ->  | X55: =STDEV(R55:V55) ->  | Y55: NA | Z55: NA | AA55: NA | AB55: NA | AC55: NA | AD55: =AVERAGE(Y55:AC55) ->  | AE55: =STDEV(Y55:AC55) ->  | AF55: NA | AG55: NA | AH55: NA | AI55: NA | AJ55: NA | AK55: =AVERAGE(AF55:AJ55) ->  | AL55: =STDEV(AF55:AJ55) ->  | AM55: 90 | AN55: 82 | AO55: 90 | AP55: 86 | AQ55: 88 | AR55: =AVERAGE(AM55:AQ55) -> 87 | AS55: =STDEV(AM55:AQ55) -> 3 | AT55: 13 | AU55: 21 | AV55: 19 | AW55: 9 | AX55: 11 | AY55: =AVERAGE(AT55:AX55) -> 15 | AZ55: =STDEV(AT55:AX55) -> 5 | BA55: 3 | BB55: 3 | BC55: 2 | BD55: 1 | BE55: 3 | BF55: =AVERAGE(BA55:BE55) -> 2 | BG55: =STDEV(BA55:BE55) -> 1
B56: 3 | D56: NA | E56: NA | F56: NA | G56: NA | H56: NA | I56: =AVERAGE(D56:H56) ->  | J56: =STDEV(D56:H56) ->  | K56: NA | L56: NA | M56: NA | N56: NA | O56: NA | P56: =AVERAGE(K56:O56) ->  | Q56: =STDEV(K56:O56) ->  | R56: NA | S56: NA | T56: NA | U56: NA | V56: NA | W56: =AVERAGE(R56:V56) ->  | X56: =STDEV(R56:V56) ->  | Y56: NA | Z56: NA | AA56: NA | AB56: NA | AC56: NA | AD56: =AVERAGE(Y56:AC56) ->  | AE56: =STDEV(Y56:AC56) ->  | AF56: NA | AG56: NA | AH56: NA | AI56: NA | AJ56: NA | AK56: =AVERAGE(AF56:AJ56) ->  | AL56: =STDEV(AF56:AJ56) ->  | AM56: 112 | AN56: 96 | AO56: 108 | AP56: 95 | AQ56: 99 | AR56: =AVERAGE(AM56:AQ56) -> 102 | AS56: =STDEV(AM56:AQ56) -> 8 | AT56: 14 | AU56: 17 | AV56: 18 | AW56: 12 | AX56: 14 | AY56: =AVERAGE(AT56:AX56) -> 15 | AZ56: =STDEV(AT56:AX56) -> 2 | BA56: 3 | BB56: 4 | BC56: 4 | BD56: 6 | BE56: 5 | BF56: =AVERAGE(BA56:BE56) -> 4 | BG56: =STDEV(BA56:BE56) -> 1
A57: average | I57: =AVERAGE(I54:I56) ->  | P57: =AVERAGE(P54:P56) ->  | W57: =AVERAGE(W54:W56) ->  | AD57: =AVERAGE(AD54:AD56) ->  | AK57: =AVERAGE(AK54:AK56) ->  | AR57: =AVERAGE(AR54:AR56) ->  | AY57: =AVERAGE(AY54:AY56) -> 30 | BF57: =AVERAGE(BF54:BF56) -> 7
A58: stdev | I58: =SUM(J54:J56) ->  | P58: =SUM(Q54:Q56) ->  | W58: =SUM(X54:X56) ->  | AD58: =SUM(AE54:AE56) ->  | AK58: =SUM(AL54:AL56) ->  | AR58: =SUM(AS54:AS56) ->  | AY58: =SUM(AZ54:AZ56) -> 20 | BF58: =SUM(BG54:BG56) -> 5
A59: pS2213 - | B59: 1 | D59: NA | E59: NA | F59: NA | G59: NA | H59: NA | I59: =AVERAGE(D59:H59) ->  | J59: =STDEV(D59:H59) ->  | K59: NA | L59: NA | M59: NA | N59: NA | O59: NA | P59: =AVERAGE(K59:O59) ->  | Q59: =STDEV(K59:O59) ->  | R59: NA | S59: NA | T59: NA | U59: NA | V59: NA | W59: =AVERAGE(R59:V59) ->  | X59: =STDEV(R59:V59) ->  | Y59: 120 | Z59: 119 | AA59: 99 | AB59: 117 | AC59: 106 | AD59: =AVERAGE(Y59:AC59) -> 112.2 | AE59: =STDEV(Y59:AC59) -> 9.257429449 | AF59: 17 | AG59: 13 | AH59: 14 | AI59: 12 | AJ59: 16 | AK59: =AVERAGE(AF59:AJ59) -> 14.4 | AL59: =STDEV(AF59:AJ59) -> 2.073644135 | AM59: 1 | AN59: 0 | AO59: 2 | AP59: 2 | AQ59: 1 | AR59: =AVERAGE(AM59:AQ59) -> 1.2 | AS59: =STDEV(AM59:AQ59) -> 0.8366600265 | AT59: 0 | AU59: 0 | AV59: 0 | AW59: 0 | AX59: 0 | AY59: =AVERAGE(AT59:AX59) -> 0 | AZ59: =STDEV(AT59:AX59) -> 0 | BA59: 0 | BB59: 0 | BC59: 0 | BD59: 0 | BE59: 0 | BF59: =AVERAGE(BA59:BE59) -> 0 | BG59: =STDEV(BA59:BE59) -> 0
A60: p+0 | B60: 2 | D60: NA | E60: NA | F60: NA | G60: NA | H60: NA | I60: =AVERAGE(D60:H60) ->  | J60: =STDEV(D60:H60) ->  | K60: NA | L60: NA | M60: NA | N60: NA | O60: NA | P60: =AVERAGE(K60:O60) ->  | Q60: =STDEV(K60:O60) ->  | R60: NA | S60: NA | T60: NA | U60: NA | V60: NA | W60: =AVERAGE(R60:V60) ->  | X60: =STDEV(R60:V60) ->  | Y60: 91 | Z60: 79 | AA60: 79 | AB60: 102 | AC60: 82 | AD60: =AVERAGE(Y60:AC60) -> 86.6 | AE60: =STDEV(Y60:AC60) -> 9.914635646 | AF60: 7 | AG60: 6 | AH60: 4 | AI60: 16 | AJ60: 3 | AK60: =AVERAGE(AF60:AJ60) -> 7.2 | AL60: =STDEV(AF60:AJ60) -> 5.167204273 | AM60: 2 | AN60: 1 | AO60: 0 | AP60: 0 | AQ60: 1 | AR60: =AVERAGE(AM60:AQ60) -> 0.8 | AS60: =STDEV(AM60:AQ60) -> 0.8366600265 | AT60: 0 | AU60: 0 | AV60: 0 | AW60: 0 | AX60: 0 | AY60: =AVERAGE(AT60:AX60) -> 0 | AZ60: =STDEV(AT60:AX60) -> 0 | BA60: 0 | BB60: 0 | BC60: 0 | BD60: 0 | BE60: 0 | BF60: =AVERAGE(BA60:BE60) -> 0 | BG60: =STDEV(BA60:BE60) -> 0
B61: 3 | D61: NA | E61: NA | F61: NA | G61: NA | H61: NA | I61: =AVERAGE(D61:H61) ->  | J61: =STDEV(D61:H61) ->  | K61: NA | L61: NA | M61: NA | N61: NA | O61: NA | P61: =AVERAGE(K61:O61) ->  | Q61: =STDEV(K61:O61) ->  | R61: NA | S61: NA | T61: NA | U61: NA | V61: NA | W61: =AVERAGE(R61:V61) ->  | X61: =STDEV(R61:V61) ->  | Y61: 101 | Z61: 100 | AA61: 109 | AB61: 100 | AC61: 111 | AD61: =AVERAGE(Y61:AC61) -> 104 | AE61: =STDEV(Y61:AC61) -> 5 | AF61: 6 | AG61: 19 | AH61: 11 | AI61: 8 | AJ61: 7 | AK61: =AVERAGE(AF61:AJ61) -> 10 | AL61: =STDEV(AF61:AJ61) -> 5 | AM61: 0 | AN61: 2 | AO61: 2 | AP61: 1 | AQ61: 2 | AR61: =AVERAGE(AM61:AQ61) -> 1 | AS61: =STDEV(AM61:AQ61) -> 1 | AT61: 0 | AU61: 0 | AV61: 0 | AW61: 0 | AX61: 0 | AY61: =AVERAGE(AT61:AX61) -> 0 | AZ61: =STDEV(AT61:AX61) -> 0 | BA61: 0 | BB61: 0 | BC61: 0 | BD61: 0 | BE61: 0 | BF61: =AVERAGE(BA61:BE61) -> 0 | BG61: =STDEV(BA61:BE61) -> 0
A62: average | I62: =AVERAGE(I59:I61) ->  | P62: =AVERAGE(P59:P61) ->  | W62: =AVERAGE(W59:W61) ->  | AD62: =AVERAGE(AD59:AD61) -> 101 | AK62: =AVERAGE(AK59:AK61) -> 11 | AR62: =AVERAGE(AR59:AR61) -> 1 | AY62: =AVERAGE(AY59:AY61) -> 0 | BF62: =AVERAGE(BF59:BF61) -> 0
A63: stdev | I63: =SUM(J59:J61) ->  | P63: =SUM(Q59:Q61) ->  | W63: =SUM(X59:X61) ->  | AD63: =SUM(AE59:AE61) -> 25 | AK63: =SUM(AL59:AL61) -> 13 | AR63: =SUM(AS59:AS61) -> 3 | AY63: =SUM(AZ59:AZ61) -> 0 | BF63: =SUM(BG59:BG61) -> 0
A64: pS2213 A | B64: 1 | D64: NA | E64: NA | F64: NA | G64: NA | H64: NA | I64: =AVERAGE(D64:H64) ->  | J64: =STDEV(D64:H64) ->  | K64: NA | L64: NA | M64: NA | N64: NA | O64: NA | P64: =AVERAGE(K64:O64) ->  | Q64: =STDEV(K64:O64) ->  | R64: NA | S64: NA | T64: NA | U64: NA | V64: NA | W64: =AVERAGE(R64:V64) ->  | X64: =STDEV(R64:V64) ->  | Y64: 61 | Z64: 58 | AA64: 67 | AB64: 68 | AC64: 59 | AD64: =AVERAGE(Y64:AC64) -> 62.6 | AE64: =STDEV(Y64:AC64) -> 4.615192304 | AF64: 8 | AG64: 8 | AH64: 3 | AI64: 13 | AJ64: 5 | AK64: =AVERAGE(AF64:AJ64) -> 7.4 | AL64: =STDEV(AF64:AJ64) -> 3.78153408 | AM64: 0 | AN64: 0 | AO64: 1 | AP64: 1 | AQ64: 0 | AR64: =AVERAGE(AM64:AQ64) -> 0.4 | AS64: =STDEV(AM64:AQ64) -> 0.5477225575 | AT64: 0 | AU64: 0 | AV64: 1 | AW64: 0 | AX64: 0 | AY64: =AVERAGE(AT64:AX64) -> 0.2 | AZ64: =STDEV(AT64:AX64) -> 0.4472135955 | BA64: 0 | BB64: 0 | BC64: 0 | BD64: 0 | BE64: 0 | BF64: =AVERAGE(BA64:BE64) -> 0 | BG64: =STDEV(BA64:BE64) -> 0
A65: p+0 | B65: 2 | D65: NA | E65: NA | F65: NA | G65: NA | H65: NA | I65: =AVERAGE(D65:H65) ->  | J65: =STDEV(D65:H65) ->  | K65: NA | L65: NA | M65: NA | N65: NA | O65: NA | P65: =AVERAGE(K65:O65) ->  | Q65: =STDEV(K65:O65) ->  | R65: 119 | S65: 113 | T65: 104 | U65: 111 | V65: 110 | W65: =AVERAGE(R65:V65) -> 111.4 | X65: =STDEV(R65:V65) -> 5.412947441 | Y65: 18 | Z65: 13 | AA65: 22 | AB65: 18 | AC65: 9 | AD65: =AVERAGE(Y65:AC65) -> 16 | AE65: =STDEV(Y65:AC65) -> 5.049752469 | AF65: 0 | AG65: 0 | AH65: 0 | AI65: 0 | AJ65: 0 | AK65: =AVERAGE(AF65:AJ65) -> 0 | AL65: =STDEV(AF65:AJ65) -> 0 | AM65: 0 | AN65: 0 | AO65: 0 | AP65: 0 | AQ65: 1 | AR65: =AVERAGE(AM65:AQ65) -> 0.2 | AS65: =STDEV(AM65:AQ65) -> 0.4472135955 | AT65: 0 | AU65: 0 | AV65: 0 | AW65: 0 | AX65: 0 | AY65: =AVERAGE(AT65:AX65) -> 0 | AZ65: =STDEV(AT65:AX65) -> 0 | BA65: 0 | BB65: 0 | BC65: 0 | BD65: 0 | BE65: 0 | BF65: =AVERAGE(BA65:BE65) -> 0 | BG65: =STDEV(BA65:BE65) -> 0
B66: 3 | D66: NA | E66: NA | F66: NA | G66: NA | H66: NA | I66: =AVERAGE(D66:H66) ->  | J66: =STDEV(D66:H66) ->  | K66: NA | L66: NA | M66: NA | N66: NA | O66: NA | P66: =AVERAGE(K66:O66) ->  | Q66: =STDEV(K66:O66) ->  | R66: NA | S66: NA | T66: NA | U66: NA | V66: NA | W66: =AVERAGE(R66:V66) ->  | X66: =STDEV(R66:V66) ->  | Y66: 78 | Z66: 72 | AA66: 70 | AB66: 78 | AC66: 62 | AD66: =AVERAGE(Y66:AC66) -> 72 | AE66: =STDEV(Y66:AC66) -> 7 | AF66: 5 | AG66: 2 | AH66: 4 | AI66: 5 | AJ66: 5 | AK66: =AVERAGE(AF66:AJ66) -> 4 | AL66: =STDEV(AF66:AJ66) -> 1 | AM66: 0 | AN66: 0 | AO66: 0 | AP66: 1 | AQ66: 1 | AR66: =AVERAGE(AM66:AQ66) -> 0 | AS66: =STDEV(AM66:AQ66) -> 1 | AT66: 0 | AU66: 1 | AV66: 0 | AW66: 0 | AX66: 0 | AY66: =AVERAGE(AT66:AX66) -> 0 | AZ66: =STDEV(AT66:AX66) -> 0 | BA66: 0 | BB66: 0 | BC66: 0 | BD66: 0 | BE66: 0 | BF66: =AVERAGE(BA66:BE66) -> 0 | BG66: =STDEV(BA66:BE66) -> 0
A67: average | I67: =AVERAGE(I64:I66) ->  | P67: =AVERAGE(P64:P66) ->  | W67: =AVERAGE(W64:W66) ->  | AD67: =AVERAGE(AD64:AD66) -> 50 | AK67: =AVERAGE(AK64:AK66) -> 4 | AR67: =AVERAGE(AR64:AR66) -> 0 | AY67: =AVERAGE(AY64:AY66) -> 0 | BF67: =AVERAGE(BF64:BF66) -> 0
A68: stdev | I68: =SUM(J64:J66) ->  | P68: =SUM(Q64:Q66) ->  | W68: =SUM(X64:X66) ->  | AD68: =SUM(AE64:AE66) -> 16 | AK68: =SUM(AL64:AL66) -> 5 | AR68: =SUM(AS64:AS66) -> 2 | AY68: =SUM(AZ64:AZ66) -> 1 | BF68: =SUM(BG64:BG66) -> 0
A69: p+3 | B69: 1 | D69: NA | E69: NA | F69: NA | G69: NA | H69: NA | I69: =AVERAGE(D69:H69) ->  | J69: =STDEV(D69:H69) ->  | K69: NA | L69: NA | M69: NA | N69: NA | O69: NA | P69: =AVERAGE(K69:O69) ->  | Q69: =STDEV(K69:O69) ->  | R69: 36 | S69: 45 | T69: 32 | U69: 38 | V69: 34 | W69: =AVERAGE(R69:V69) -> 37 | X69: =STDEV(R69:V69) -> 5 | Y69: 1 | Z69: 6 | AA69: 4 | AB69: 3 | AC69: 3 | AD69: =AVERAGE(Y69:AC69) -> 3 | AE69: =STDEV(Y69:AC69) -> 2 | AF69: 0 | AG69: 0 | AH69: 0 | AI69: 0 | AJ69: 1 | AK69: =AVERAGE(AF69:AJ69) -> 0 | AL69: =STDEV(AF69:AJ69) -> 0 | AM69: 0 | AN69: 0 | AO69: 0 | AP69: 0 | AQ69: 1 | AR69: =AVERAGE(AM69:AQ69) -> 0 | AS69: =STDEV(AM69:AQ69) -> 0 | AT69: 0 | AU69: 0 | AV69: 0 | AW69: 0 | AX69: 0 | AY69: =AVERAGE(AT69:AX69) -> 0 | AZ69: =STDEV(AT69:AX69) -> 0 | BA69: 0 | BB69: 0 | BC69: 0 | BD69: 0 | BE69: 0 | BF69: =AVERAGE(BA69:BE69) -> 0 | BG69: =STDEV(BA69:BE69) -> 0
B70: 2 | D70: NA | E70: NA | F70: NA | G70: NA | H70: NA | I70: =AVERAGE(D70:H70) ->  | J70: =STDEV(D70:H70) ->  | K70: NA | L70: NA | M70: NA | N70: NA | O70: NA | P70: =AVERAGE(K70:O70) ->  | Q70: =STDEV(K70:O70) ->  | R70: NA | S70: NA | T70: NA | U70: NA | V70: NA | W70: =AVERAGE(R70:V70) ->  | X70: =STDEV(R70:V70) ->  | Y70: 69 | Z70: 70 | AA70: 61 | AB70: 67 | AC70: 77 | AD70: =AVERAGE(Y70:AC70) -> 69 | AE70: =STDEV(Y70:AC70) -> 6 | AF70: 7 | AG70: 9 | AH70: 10 | AI70: 6 | AJ70: 8 | AK70: =AVERAGE(AF70:AJ70) -> 8 | AL70: =STDEV(AF70:AJ70) -> 2 | AM70: 2 | AN70: 0 | AO70: 0 | AP70: 3 | AQ70: 1 | AR70: =AVERAGE(AM70:AQ70) -> 1 | AS70: =STDEV(AM70:AQ70) -> 1 | AT70: 0 | AU70: 0 | AV70: 0 | AW70: 0 | AX70: 0 | AY70: =AVERAGE(AT70:AX70) -> 0 | AZ70: =STDEV(AT70:AX70) -> 0 | BA70: 0 | BB70: 0 | BC70: 0 | BD70: 0 | BE70: 0 | BF70: =AVERAGE(BA70:BE70) -> 0 | BG70: =STDEV(BA70:BE70) -> 0
B71: 3 | D71: NA | E71: NA | F71: NA | G71: NA | H71: NA | I71: =AVERAGE(D71:H71) ->  | J71: =STDEV(D71:H71) ->  | K71: NA | L71: NA | M71: NA | N71: NA | O71: NA | P71: =AVERAGE(K71:O71) ->  | Q71: =STDEV(K71:O71) ->  | R71: NA | S71: NA | T71: NA | U71: NA | V71: NA | W71: =AVERAGE(R71:V71) ->  | X71: =STDEV(R71:V71) ->  | Y71: 49 | Z71: 49 | AA71: 48 | AB71: 49 | AC71: 45 | AD71: =AVERAGE(Y71:AC71) -> 48 | AE71: =STDEV(Y71:AC71) -> 2 | AF71: 4 | AG71: 6 | AH71: 8 | AI71: 4 | AJ71: 2 | AK71: =AVERAGE(AF71:AJ71) -> 5 | AL71: =STDEV(AF71:AJ71) -> 2 | AM71: 0 | AN71: 2 | AO71: 0 | AP71: 1 | AQ71: 0 | AR71: =AVERAGE(AM71:AQ71) -> 1 | AS71: =STDEV(AM71:AQ71) -> 1 | AT71: 0 | AU71: 0 | AV71: 0 | AW71: 0 | AX71: 0 | AY71: =AVERAGE(AT71:AX71) -> 0 | AZ71: =STDEV(AT71:AX71) -> 0 | BA71: 0 | BB71: 0 | BC71: 0 | BD71: 0 | BE71: 0 | BF71: =AVERAGE(BA71:BE71) -> 0 | BG71: =STDEV(BA71:BE71) -> 0
A72: average | I72: =AVERAGE(I69:I71) ->  | P72: =AVERAGE(P69:P71) ->  | W72: =AVERAGE(W69:W71) ->  | AD72: =AVERAGE(AD69:AD71) -> 40 | AK72: =AVERAGE(AK69:AK71) -> 4 | AR72: =AVERAGE(AR69:AR71) -> 1 | AY72: =AVERAGE(AY69:AY71) -> 0 | BF72: =AVERAGE(BF69:BF71) -> 0
A73: stdev | I73: =SUM(J69:J71) ->  | P73: =SUM(Q69:Q71) ->  | W73: =SUM(X69:X71) ->  | AD73: =SUM(AE69:AE71) -> 9 | AK73: =SUM(AL69:AL71) -> 4 | AR73: =SUM(AS69:AS71) -> 3 | AY73: =SUM(AZ69:AZ71) -> 0 | BF73: =SUM(BG69:BG71) -> 0
A74: pS2213 APR | B74: 1 | D74: NA | E74: NA | F74: NA | G74: NA | H74: NA | I74: =AVERAGE(D74:H74) ->  | J74: =STDEV(D74:H74) ->  | K74: NA | L74: NA | M74: NA | N74: NA | O74: NA | P74: =AVERAGE(K74:O74) ->  | Q74: =STDEV(K74:O74) ->  | R74: NA | S74: NA | T74: NA | U74: NA | V74: NA | W74: =AVERAGE(R74:V74) ->  | X74: =STDEV(R74:V74) ->  | Y74: NA | Z74: NA | AA74: NA | AB74: NA | AC74: NA | AD74: =AVERAGE(Y74:AC74) ->  | AE74: =STDEV(Y74:AC74) ->  | AF74: 29 | AG74: 31 | AH74: 26 | AI74: 20 | AJ74: 17 | AK74: =AVERAGE(AF74:AJ74) -> 24.6 | AL74: =STDEV(AF74:AJ74) -> 5.941380311 | AM74: 2 | AN74: 6 | AO74: 4 | AP74: 2 | AQ74: 1 | AR74: =AVERAGE(AM74:AQ74) -> 3 | AS74: =STDEV(AM74:AQ74) -> 2 | AT74: 0 | AU74: 1 | AV74: 1 | AW74: 0 | AX74: 0 | AY74: =AVERAGE(AT74:AX74) -> 0.4 | AZ74: =STDEV(AT74:AX74) -> 0.5477225575 | BA74: 0 | BB74: 0 | BC74: 0 | BD74: 0 | BE74: 0 | BF74: =AVERAGE(BA74:BE74) -> 0 | BG74: =STDEV(BA74:BE74) -> 0
A75: p+0 | B75: 2 | D75: NA | E75: NA | F75: NA | G75: NA | H75: NA | I75: =AVERAGE(D75:H75) ->  | J75: =STDEV(D75:H75) ->  | K75: NA | L75: NA | M75: NA | N75: NA | O75: NA | P75: =AVERAGE(K75:O75) ->  | Q75: =STDEV(K75:O75) ->  | R75: NA | S75: NA | T75: NA | U75: NA | V75: NA | W75: =AVERAGE(R75:V75) ->  | X75: =STDEV(R75:V75) ->  | Y75: NA | Z75: NA | AA75: NA | AB75: NA | AC75: NA | AD75: =AVERAGE(Y75:AC75) ->  | AE75: =STDEV(Y75:AC75) ->  | AF75: 75 | AG75: 80 | AH75: 69 | AI75: 85 | AJ75: 64 | AK75: =AVERAGE(AF75:AJ75) -> 74.6 | AL75: =STDEV(AF75:AJ75) -> 8.384509527 | AM75: 6 | AN75: 8 | AO75: 10 | AP75: 7 | AQ75: 8 | AR75: =AVERAGE(AM75:AQ75) -> 7.8 | AS75: =STDEV(AM75:AQ75) -> 1.483239697 | AT75: 0 | AU75: 0 | AV75: 0 | AW75: 1 | AX75: 2 | AY75: =AVERAGE(AT75:AX75) -> 0.6 | AZ75: =STDEV(AT75:AX75) -> 0.894427191 | BA75: 1 | BB75: 0 | BC75: 0 | BD75: 1 | BE75: 0 | BF75: =AVERAGE(BA75:BE75) -> 0.4 | BG75: =STDEV(BA75:BE75) -> 0.5477225575
B76: 3 | D76: NA | E76: NA | F76: NA | G76: NA | H76: NA | I76: =AVERAGE(D76:H76) ->  | J76: =STDEV(D76:H76) ->  | K76: NA | L76: NA | M76: NA | N76: NA | O76: NA | P76: =AVERAGE(K76:O76) ->  | Q76: =STDEV(K76:O76) ->  | R76: NA | S76: NA | T76: NA | U76: NA | V76: NA | W76: =AVERAGE(R76:V76) ->  | X76: =STDEV(R76:V76) ->  | Y76: NA | Z76: NA | AA76: NA | AB76: NA | AC76: NA | AD76: =AVERAGE(Y76:AC76) ->  | AE76: =STDEV(Y76:AC76) ->  | AF76: 24 | AG76: 38 | AH76: 25 | AI76: 24 | AJ76: 30 | AK76: =AVERAGE(AF76:AJ76) -> 28 | AL76: =STDEV(AF76:AJ76) -> 6 | AM76: 2 | AN76: 4 | AO76: 3 | AP76: 5 | AQ76: 5 | AR76: =AVERAGE(AM76:AQ76) -> 4 | AS76: =STDEV(AM76:AQ76) -> 1 | AT76: 0 | AU76: 0 | AV76: 0 | AW76: 0 | AX76: 2 | AY76: =AVERAGE(AT76:AX76) -> 0 | AZ76: =STDEV(AT76:AX76) -> 1 | BA76: 0 | BB76: 0 | BC76: 0 | BD76: 0 | BE76: 0 | BF76: =AVERAGE(BA76:BE76) -> 0 | BG76: =STDEV(BA76:BE76) -> 0
A77: average | I77: =AVERAGE(I74:I76) ->  | P77: =AVERAGE(P74:P76) ->  | W77: =AVERAGE(W74:W76) ->  | AD77: =AVERAGE(AD74:AD76) ->  | AK77: =AVERAGE(AK74:AK76) -> 42 | AR77: =AVERAGE(AR74:AR76) -> 5 | AY77: =AVERAGE(AY74:AY76) -> 0 | BF77: =AVERAGE(BF74:BF76) -> 0
A78: stdev | I78: =SUM(J74:J76) ->  | P78: =SUM(Q74:Q76) ->  | W78: =SUM(X74:X76) ->  | AD78: =SUM(AE74:AE76) ->  | AK78: =SUM(AL74:AL76) -> 20 | AR78: =SUM(AS74:AS76) -> 5 | AY78: =SUM(AZ74:AZ76) -> 2 | BF78: =SUM(BG74:BG76) -> 1
A79: p+3 | B79: 1 | D79: NA | E79: NA | F79: NA | G79: NA | H79: NA | I79: =AVERAGE(D79:H79) ->  | J79: =STDEV(D79:H79) ->  | K79: NA | L79: NA | M79: NA | N79: NA | O79: NA | P79: =AVERAGE(K79:O79) ->  | Q79: =STDEV(K79:O79) ->  | R79: 97 | S79: 98 | T79: 88 | U79: 70 | V79: 110 | W79: =AVERAGE(R79:V79) -> 93 | X79: =STDEV(R79:V79) -> 15 | Y79: 8 | Z79: 8 | AA79: 13 | AB79: 11 | AC79: 10 | AD79: =AVERAGE(Y79:AC79) -> 10 | AE79: =STDEV(Y79:AC79) -> 2 | AF79: 0 | AG79: 0 | AH79: 0 | AI79: 1 | AJ79: 0 | AK79: =AVERAGE(AF79:AJ79) -> 0 | AL79: =STDEV(AF79:AJ79) -> 0 | AM79: 0 | AN79: 0 | AO79: 0 | AP79: 0 | AQ79: 0 | AR79: =AVERAGE(AM79:AQ79) -> 0 | AS79: =STDEV(AM79:AQ79) -> 0 | AT79: 0 | AU79: 0 | AV79: 0 | AW79: 0 | AX79: 0 | AY79: =AVERAGE(AT79:AX79) -> 0 | AZ79: =STDEV(AT79:AX79) -> 0 | BA79: 0 | BB79: 0 | BC79: 0 | BD79: 0 | BE79: 0 | BF79: =AVERAGE(BA79:BE79) -> 0 | BG79: =STDEV(BA79:BE79) -> 0
B80: 2 | D80: NA | E80: NA | F80: NA | G80: NA | H80: NA | I80: =AVERAGE(D80:H80) ->  | J80: =STDEV(D80:H80) ->  | K80: NA | L80: NA | M80: NA | N80: NA | O80: NA | P80: =AVERAGE(K80:O80) ->  | Q80: =STDEV(K80:O80) ->  | R80: NA | S80: NA | T80: NA | U80: NA | V80: NA | W80: =AVERAGE(R80:V80) ->  | X80: =STDEV(R80:V80) ->  | Y80: 16 | Z80: 13 | AA80: 2 | AB80: 14 | AC80: 7 | AD80: =AVERAGE(Y80:AC80) -> 10 | AE80: =STDEV(Y80:AC80) -> 6 | AF80: 1 | AG80: 1 | AH80: 2 | AI80: 4 | AJ80: 1 | AK80: =AVERAGE(AF80:AJ80) -> 2 | AL80: =STDEV(AF80:AJ80) -> 1 | AM80: 0 | AN80: 0 | AO80: 0 | AP80: 0 | AQ80: 0 | AR80: =AVERAGE(AM80:AQ80) -> 0 | AS80: =STDEV(AM80:AQ80) -> 0 | AT80: 0 | AU80: 0 | AV80: 0 | AW80: 0 | AX80: 0 | AY80: =AVERAGE(AT80:AX80) -> 0 | AZ80: =STDEV(AT80:AX80) -> 0 | BA80: 0 | BB80: 0 | BC80: 0 | BD80: 0 | BE80: 0 | BF80: =AVERAGE(BA80:BE80) -> 0 | BG80: =STDEV(BA80:BE80) -> 0
B81: 3 | D81: NA | E81: NA | F81: NA | G81: NA | H81: NA | I81: =AVERAGE(D81:H81) ->  | J81: =STDEV(D81:H81) ->  | K81: NA | L81: NA | M81: NA | N81: NA | O81: NA | P81: =AVERAGE(K81:O81) ->  | Q81: =STDEV(K81:O81) ->  | R81: NA | S81: NA | T81: NA | U81: NA | V81: NA | W81: =AVERAGE(R81:V81) ->  | X81: =STDEV(R81:V81) ->  | Y81: 52 | Z81: 21 | AA81: 66 | AB81: 63 | AC81: 47 | AD81: =AVERAGE(Y81:AC81) -> 50 | AE81: =STDEV(Y81:AC81) -> 18 | AF81: 8 | AG81: 8 | AH81: 8 | AI81: 9 | AJ81: 4 | AK81: =AVERAGE(AF81:AJ81) -> 7 | AL81: =STDEV(AF81:AJ81) -> 2 | AM81: 1 | AN81: 0 | AO81: 0 | AP81: 1 | AQ81: 2 | AR81: =AVERAGE(AM81:AQ81) -> 1 | AS81: =STDEV(AM81:AQ81) -> 1 | AT81: 0 | AU81: 0 | AV81: 0 | AW81: 0 | AX81: 0 | AY81: =AVERAGE(AT81:AX81) -> 0 | AZ81: =STDEV(AT81:AX81) -> 0 | BA81: 0 | BB81: 0 | BC81: 0 | BD81: 0 | BE81: 0 | BF81: =AVERAGE(BA81:BE81) -> 0 | BG81: =STDEV(BA81:BE81) -> 0
A82: average | I82: =AVERAGE(I79:I81) ->  | P82: =AVERAGE(P79:P81) ->  | W82: =AVERAGE(W79:W81) ->  | AD82: =AVERAGE(AD79:AD81) -> 23 | AK82: =AVERAGE(AK79:AK81) -> 3 | AR82: =AVERAGE(AR79:AR81) -> 0 | AY82: =AVERAGE(AY79:AY81) -> 0 | BF82: =AVERAGE(BF79:BF81) -> 0
A83: stdev | I83: =SUM(J79:J81) ->  | P83: =SUM(Q79:Q81) ->  | W83: =SUM(X79:X81) ->  | AD83: =SUM(AE79:AE81) -> 26 | AK83: =SUM(AL79:AL81) -> 4 | AR83: =SUM(AS79:AS81) -> 1 | AY83: =SUM(AZ79:AZ81) -> 0 | BF83: =SUM(BG79:BG81) -> 0
B85: accidentally diluted the first step of 200µl with 90µl saline solution. Therefor, all values were multiplied by 1.8182 to approximate the original number. | C85: 1.8182 | N85: =200/110 -> 1.818181818
A86: T7 | B86: 2018-02-15
A87: Sample | B87: Dilution: | D87: 10^0 | I87: AVERAGE | J87: STDEV | K87: 10^-1 | P87: AVERAGE | Q87: STDEV | R87: 10^-2 | W87: AVERAGE | X87: STDEV | Y87: 10^-3 | AD87: AVERAGE | AE87: STDEV | AF87: 10^-4 | AK87: AVERAGE | AL87: STDEV | AM87: 10^-5 | AR87: AVERAGE | AS87: STDEV | AT87: 10^-6 | AY87: AVERAGE | AZ87: STDEV | BA87: 10^-7 | BF87: AVERAGE | BG87: STDEV
A88: Blank | B88: 1 | D88: =0*$C$85 -> 0 | E88: 0 | F88: 0 | G88: 0 | H88: 0 | I88: =AVERAGE(D88:H88) -> 0 | J88: =STDEV(D88:H88) -> 0 | K88: =0*$C$85 -> 0 | L88: 0 | M88: 0 | N88: 0 | O88: 0 | P88: =AVERAGE(K88:O88) -> 0 | Q88: =STDEV(K88:O88) -> 0 | R88: =0*$C$85 -> 0 | S88: 0 | T88: 0 | U88: 0 | V88: 0 | W88: =AVERAGE(R88:V88) -> 0 | X88: =STDEV(R88:V88) -> 0 | Y88: =0*$C$85 -> 0 | Z88: 0 | AA88: 0 | AB88: 0 | AC88: 0 | AD88: =AVERAGE(Y88:AC88) -> 0 | AE88: =STDEV(Y88:AC88) -> 0 | AF88: =0*$C$85 -> 0 | AG88: 0 | AH88: 0 | AI88: 0 | AJ88: 0 | AK88: =AVERAGE(AF88:AJ88) -> 0 | AL88: =STDEV(AF88:AJ88) -> 0 | AM88: 0 | AN88: 0 | AO88: 0 | AP88: 0 | AQ88: 0 | AR88: =AVERAGE(AM88:AQ88) -> 0 | AS88: =STDEV(AM88:AQ88) -> 0 | AT88: 0 | AU88: 0 | AV88: 0 | AW88: 0 | AX88: 0 | AY88: =AVERAGE(AT88:AX88) -> 0 | AZ88: =STDEV(AT88:AX88) -> 0 | BA88: =0*$C$85 -> 0 | BB88: 0 | BC88: 0 | BD88: 0 | BE88: 0 | BF88: =AVERAGE(BA88:BE88) -> 0 | BG88: =STDEV(BA88:BE88) -> 0
B89: 2 | D89: 0 | E89: 0 | F89: 0 | G89: 0 | H89: 0 | I89: =AVERAGE(D89:H89) -> 0 | J89: =STDEV(D89:H89) -> 0 | K89: 0 | L89: 0 | M89: 0 | N89: 0 | O89: 0 | P89: =AVERAGE(K89:O89) -> 0 | Q89: =STDEV(K89:O89) -> 0 | R89: 0 | S89: 0 | T89: 0 | U89: 0 | V89: 0 | W89: =AVERAGE(R89:V89) -> 0 | X89: =STDEV(R89:V89) -> 0 | Y89: 0 | Z89: 0 | AA89: 0 | AB89: 0 | AC89: 0 | AD89: =AVERAGE(Y89:AC89) -> 0 | AE89: =STDEV(Y89:AC89) -> 0 | AF89: 0 | AG89: 0 | AH89: 0 | AI89: 0 | AJ89: 0 | AK89: =AVERAGE(AF89:AJ89) -> 0 | AL89: =STDEV(AF89:AJ89) -> 0 | AM89: 0 | AN89: 0 | AO89: 0 | AP89: 0 | AQ89: 0 | AR89: =AVERAGE(AM89:AQ89) -> 0 | AS89: =STDEV(AM89:AQ89) -> 0 | AT89: 0 | AU89: 0 | AV89: 0 | AW89: 0 | AX89: 0 | AY89: =AVERAGE(AT89:AX89) -> 0 | AZ89: =STDEV(AT89:AX89) -> 0 | BA89: 0 | BB89: 0 | BC89: 0 | BD89: 0 | BE89: 0 | BF89: =AVERAGE(BA89:BE89) -> 0 | BG89: =STDEV(BA89:BE89) -> 0
B90: 3 | D90: 0 | E90: 0 | F90: 0 | G90: 0 | H90: 0 | I90: =AVERAGE(D90:H90) -> 0 | J90: =STDEV(D90:H90) -> 0 | K90: 0 | L90: 0 | M90: 0 | N90: 0 | O90: 0 | P90: =AVERAGE(K90:O90) -> 0 | Q90: =STDEV(K90:O90) -> 0 | R90: 0 | S90: 0 | T90: 0 | U90: 0 | V90: 0 | W90: =AVERAGE(R90:V90) -> 0 | X90: =STDEV(R90:V90) -> 0 | Y90: 0 | Z90: 0 | AA90: 0 | AB90: 0 | AC90: 0 | AD90: =AVERAGE(Y90:AC90) -> 0 | AE90: =STDEV(Y90:AC90) -> 0 | AF90: 0 | AG90: 0 | AH90: 0 | AI90: 0 | AJ90: 0 | AK90: =AVERAGE(AF90:AJ90) -> 0 | AL90: =STDEV(AF90:AJ90) -> 0 | AM90: 0 | AN90: 0 | AO90: 0 | AP90: 0 | AQ90: 0 | AR90: =AVERAGE(AM90:AQ90) -> 0 | AS90: =STDEV(AM90:AQ90) -> 0 | AT90: 0 | AU90: 0 | AV90: 0 | AW90: 0 | AX90: 0 | AY90: =AVERAGE(AT90:AX90) -> 0 | AZ90: =STDEV(AT90:AX90) -> 0 | BA90: 0 | BB90: 0 | BC90: 0 | BD90: 0 | BE90: 0 | BF90: =AVERAGE(BA90:BE90) -> 0 | BG90: =STDEV(BA90:BE90) -> 0
I91: =AVERAGE(I88:I90) -> 0 | P91: =AVERAGE(P88:P90) -> 0 | W91: =AVERAGE(W88:W90) -> 0 | AD91: =AVERAGE(AD88:AD90) -> 0 | AK91: =AVERAGE(AK88:AK90) -> 0 | AR91: =AVERAGE(AR88:AR90) -> 0 | AY91: =AVERAGE(AY88:AY90) -> 0 | BF91: =AVERAGE(BF88:BF90) -> 0
I92: =SUM(J88:J90) -> 0 | P92: =SUM(Q88:Q90) -> 0 | W92: =SUM(X88:X90) -> 0 | AD92: =SUM(AE88:AE90) -> 0 | AK92: =SUM(AL88:AL90) -> 0 | AR92: =SUM(AS88:AS90) -> 0 | AY92: =SUM(AZ88:AZ90) -> 0 | BF92: =SUM(BG88:BG90) -> 0
A93: BW25113 - | B93: 1 | D93: NA | E93: NA | F93: NA | G93: NA | H93: NA | I93: =AVERAGE(D93:H93) ->  | J93: =STDEV(D93:H93) ->  | K93: NA | L93: NA | M93: NA | N93: NA | O93: NA | P93: =AVERAGE(K93:O93) ->  | Q93: =STDEV(K93:O93) ->  | R93: NA | S93: NA | T93: NA | U93: NA | V93: NA | W93: =AVERAGE(R93:V93) ->  | X93: =STDEV(R93:V93) ->  | Y93: NA | Z93: NA | AA93: NA | AB93: NA | AC93: NA | AD93: =AVERAGE(Y93:AC93) ->  | AE93: =STDEV(Y93:AC93) ->  | AF93: 201 | AG93: 189 | AH93: 210 | AI93: 187 | AJ93: 185 | AK93: =AVERAGE(AF93:AJ93) -> 194 | AL93: =STDEV(AF93:AJ93) -> 11 | AM93: 36 | AN93: 26 | AO93: 28 | AP93: 31 | AQ93: 30 | AR93: =AVERAGE(AM93:AQ93) -> 30 | AS93: =STDEV(AM93:AQ93) -> 4 | AT93: 2 | AU93: 3 | AV93: 1 | AW93: 3 | AX93: 4 | AY93: =AVERAGE(AT93:AX93) -> 3 | AZ93: =STDEV(AT93:AX93) -> 1 | BA93: =0*$C$85 -> 0 | BB93: 0 | BC93: 0 | BD93: 0 | BE93: 0 | BF93: =AVERAGE(BA93:BE93) -> 0 | BG93: =STDEV(BA93:BE93) -> 0
A94: pS2213 - | B94: 2 | D94: NA | E94: NA | F94: NA | G94: NA | H94: NA | I94: =AVERAGE(D94:H94) ->  | J94: =STDEV(D94:H94) ->  | K94: NA | L94: NA | M94: NA | N94: NA | O94: NA | P94: =AVERAGE(K94:O94) ->  | Q94: =STDEV(K94:O94) ->  | R94: NA | S94: NA | T94: NA | U94: NA | V94: NA | W94: =AVERAGE(R94:V94) ->  | X94: =STDEV(R94:V94) ->  | Y94: NA | Z94: NA | AA94: NA | AB94: NA | AC94: NA | AD94: =AVERAGE(Y94:AC94) ->  | AE94: =STDEV(Y94:AC94) ->  | AF94: 124 | AG94: 174 | AH94: 180 | AI94: 169 | AJ94: 174 | AK94: =AVERAGE(AF94:AJ94) -> 164 | AL94: =STDEV(AF94:AJ94) -> 23 | AM94: 40 | AN94: 30 | AO94: 32 | AP94: 24 | AQ94: 21 | AR94: =AVERAGE(AM94:AQ94) -> 29 | AS94: =STDEV(AM94:AQ94) -> 7 | AT94: 1 | AU94: 2 | AV94: 6 | AW94: 0 | AX94: 2 | AY94: =AVERAGE(AT94:AX94) -> 2 | AZ94: =STDEV(AT94:AX94) -> 2 | BA94: 0 | BB94: 0 | BC94: 0 | BD94: 0 | BE94: 0 | BF94: =AVERAGE(BA94:BE94) -> 0 | BG94: =STDEV(BA94:BE94) -> 0
B95: 3 | D95: NA | E95: NA | F95: NA | G95: NA | H95: NA | I95: =AVERAGE(D95:H95) ->  | J95: =STDEV(D95:H95) ->  | K95: NA | L95: NA | M95: NA | N95: NA | O95: NA | P95: =AVERAGE(K95:O95) ->  | Q95: =STDEV(K95:O95) ->  | R95: NA | S95: NA | T95: NA | U95: NA | V95: NA | W95: =AVERAGE(R95:V95) ->  | X95: =STDEV(R95:V95) ->  | Y95: NA | Z95: NA | AA95: NA | AB95: NA | AC95: NA | AD95: =AVERAGE(Y95:AC95) ->  | AE95: =STDEV(Y95:AC95) ->  | AF95: NA | AG95: NA | AH95: NA | AI95: NA | AJ95: NA | AK95: =AVERAGE(AF95:AJ95) ->  | AL95: =STDEV(AF95:AJ95) ->  | AM95: 134 | AN95: NA | AO95: NA | AP95: NA | AQ95: NA | AR95: =AVERAGE(AM95:AQ95) -> 134 | AS95: =STDEV(AM95:AQ95) ->  | AT95: 1 | AU95: 5 | AV95: 0 | AW95: 1 | AX95: 5 | AY95: =AVERAGE(AT95:AX95) -> 2 | AZ95: =STDEV(AT95:AX95) -> 2 | BA95: 0 | BB95: 0 | BC95: 0 | BD95: 0 | BE95: 0 | BF95: =AVERAGE(BA95:BE95) -> 0 | BG95: =STDEV(BA95:BE95) -> 0
A96: average | I96: =AVERAGE(I93:I95) ->  | P96: =AVERAGE(P93:P95) ->  | W96: =AVERAGE(W93:W95) ->  | AD96: =AVERAGE(AD93:AD95) ->  | AK96: =AVERAGE(AK93:AK95) ->  | AR96: =AVERAGE(AR93:AR95) -> 65 | AY96: =AVERAGE(AY93:AY95) -> 2 | BF96: =AVERAGE(BF93:BF95) -> 0
A97: stdev | I97: =SUM(J93:J95) ->  | P97: =SUM(Q93:Q95) ->  | W97: =SUM(X93:X95) ->  | AD97: =SUM(AE93:AE95) ->  | AK97: =SUM(AL93:AL95) ->  | AR97: =SUM(AS93:AS95) ->  | AY97: =SUM(AZ93:AZ95) -> 6 | BF97: =SUM(BG93:BG95) -> 0
A98: pS2213 - | B98: 1 | D98: NA | E98: NA | F98: NA | G98: NA | H98: NA | I98: =AVERAGE(D98:H98) ->  | J98: =STDEV(D98:H98) ->  | K98: =28*C85 -> 50.9096 | L98: =23*C85 -> 41.8186 | M98: =31*C85 -> 56.3642 | N98: =32*C85 -> 58.1824 | O98: =29*C85 -> 52.7278 | P98: =AVERAGE(K98:O98) -> 52.00052 | Q98: =STDEV(K98:O98) -> 6.376673918 | R98: =2*C85 -> 3.6364 | S98: =4*C85 -> 7.2728 | T98: =4*C85 -> 7.2728 | U98: =0*C85 -> 0 | V98: =2*C85 -> 3.6364 | W98: =AVERAGE(R98:V98) -> 4.36368 | X98: =STDEV(R98:V98) -> 3.04243052 | Y98: =0*C85 -> 0 | Z98: =0*C85 -> 0 | AA98: =0*C85 -> 0 | AB98: =0*C85 -> 0 | AC98: =1*C85 -> 1.8182 | AD98: =AVERAGE(Y98:AC98) -> 0.36364 | AE98: =STDEV(Y98:AC98) -> 0.8131237593 | AF98: =0*$C$85 -> 0 | AG98: 0 | AH98: 0 | AI98: 0 | AJ98: 0 | AK98: =AVERAGE(AF98:AJ98) -> 0 | AL98: =STDEV(AF98:AJ98) -> 0 | AM98: =0*$C$85 -> 0 | AN98: 0 | AO98: 0 | AP98: 0 | AQ98: 0 | AR98: =AVERAGE(AM98:AQ98) -> 0 | AS98: =STDEV(AM98:AQ98) -> 0 | AT98: =0*$C$85 -> 0 | AU98: 0 | AV98: 0 | AW98: 0 | AX98: 0 | AY98: =AVERAGE(AT98:AX98) -> 0 | AZ98: =STDEV(AT98:AX98) -> 0 | BA98: =0*$C$85 -> 0 | BB98: 0 | BC98: 0 | BD98: 0 | BE98: 0 | BF98: =AVERAGE(BA98:BE98) -> 0 | BG98: =STDEV(BA98:BE98) -> 0
A99: p+0 | B99: 2 | D99: NA | E99: NA | F99: NA | G99: NA | H99: NA | I99: =AVERAGE(D99:H99) ->  | J99: =STDEV(D99:H99) ->  | K99: =114*C85 -> 207.2748 | L99: =121*C85 -> 220.0022 | M99: =129*C85 -> 234.5478 | N99: =125*C85 -> 227.275 | O99: =120*C85 -> 218.184 | P99: =AVERAGE(K99:O99) -> 221.45676 | Q99: =STDEV(K99:O99) -> 10.23696656 | R99: =15*C85 -> 27.273 | S99: =22*C85 -> 40.0004 | T99: =24*C85 -> 43.6368 | U99: =19*C85 -> 34.5458 | V99: =22*C85 -> 40.0004 | W99: =AVERAGE(R99:V99) -> 37.09128 | X99: =STDEV(R99:V99) -> 6.376673918 | Y99: =1*C85 -> 1.8182 | Z99: =1*C85 -> 1.8182 | AA99: =4*C85 -> 7.2728 | AB99: =1*C85 -> 1.8182 | AC99: =4*C85 -> 7.2728 | AD99: =AVERAGE(Y99:AC99) -> 4.00004 | AE99: =STDEV(Y99:AC99) -> 2.987607462 | AF99: 0 | AG99: 0 | AH99: 0 | AI99: 0 | AJ99: 0 | AK99: =AVERAGE(AF99:AJ99) -> 0 | AL99: =STDEV(AF99:AJ99) -> 0 | AM99: 0 | AN99: 0 | AO99: 0 | AP99: 0 | AQ99: 0 | AR99: =AVERAGE(AM99:AQ99) -> 0 | AS99: =STDEV(AM99:AQ99) -> 0 | AT99: 0 | AU99: 0 | AV99: 0 | AW99: 0 | AX99: 0 | AY99: =AVERAGE(AT99:AX99) -> 0 | AZ99: =STDEV(AT99:AX99) -> 0 | BA99: 0 | BB99: 0 | BC99: 0 | BD99: 0 | BE99: 0 | BF99: =AVERAGE(BA99:BE99) -> 0 | BG99: =STDEV(BA99:BE99) -> 0
B100: 3 | D100: NA | E100: NA | F100: NA | G100: NA | H100: NA | I100: =AVERAGE(D100:H100) ->  | J100: =STDEV(D100:H100) ->  | K100: =57*C85 -> 104 | L100: =54*C85 -> 98 | M100: =33*C85 -> 60 | N100: =55*C85 -> 100 | O100: =46*C85 -> 84 | P100: =AVERAGE(K100:O100) -> 89 | Q100: =STDEV(K100:O100) -> 18 | R100: =11*C85 -> 20 | S100: =11*C85 -> 20 | T100: =14*C85 -> 25 | U100: =18*C85 -> 33 | V100: =13*C85 -> 24 | W100: =AVERAGE(R100:V100) -> 24 | X100: =STDEV(R100:V100) -> 5 | Y100: =0*C85 -> 0 | Z100: =3*C85 -> 5 | AA100: =3*C85 -> 5 | AB100: =2*C85 -> 4 | AC100: =2*C85 -> 4 | AD100: =AVERAGE(Y100:AC100) -> 4 | AE100: =STDEV(Y100:AC100) -> 2 | AF100: 0 | AG100: 0 | AH100: 0 | AI100: 0 | AJ100: 0 | AK100: =AVERAGE(AF100:AJ100) -> 0 | AL100: =STDEV(AF100:AJ100) -> 0 | AM100: 0 | AN100: 0 | AO100: 0 | AP100: 0 | AQ100: 0 | AR100: =AVERAGE(AM100:AQ100) -> 0 | AS100: =STDEV(AM100:AQ100) -> 0 | AT100: 0 | AU100: 0 | AV100: 0 | AW100: 0 | AX100: 0 | AY100: =AVERAGE(AT100:AX100) -> 0 | AZ100: =STDEV(AT100:AX100) -> 0 | BA100: 0 | BB100: 0 | BC100: 0 | BD100: 0 | BE100: 0 | BF100: =AVERAGE(BA100:BE100) -> 0 | BG100: =STDEV(BA100:BE100) -> 0
A101: average | I101: =AVERAGE(I98:I100) ->  | P101: =AVERAGE(P98:P100) -> 121 | W101: =AVERAGE(W98:W100) -> 22 | AD101: =AVERAGE(AD98:AD100) -> 3 | AK101: =AVERAGE(AK98:AK100) -> 0 | AR101: =AVERAGE(AR98:AR100) -> 0 | AY101: =AVERAGE(AY98:AY100) -> 0 | BF101: =AVERAGE(BF98:BF100) -> 0
A102: stdev | I102: =SUM(J98:J100) ->  | P102: =SUM(Q98:Q100) -> 35 | W102: =SUM(X98:X100) -> 15 | AD102: =SUM(AE98:AE100) -> 6 | AK102: =SUM(AL98:AL100) -> 0 | AR102: =SUM(AS98:AS100) -> 0 | AY102: =SUM(AZ98:AZ100) -> 0 | BF102: =SUM(BG98:BG100) -> 0
A103: pS2213 A | B103: 1 | D103: NA | E103: NA | F103: NA | G103: NA | H103: NA | I103: =AVERAGE(D103:H103) ->  | J103: =STDEV(D103:H103) ->  | K103: =38*C85 -> 69.0916 | L103: =43*C85 -> 78.1826 | M103: =41*C85 -> 74.5462 | N103: =43*C85 -> 78.1826 | O103: =29*C85 -> 52.7278 | P103: =AVERAGE(K103:O103) -> 70.54616 | Q103: =STDEV(K103:O103) -> 10.63297289 | R103: =3*C85 -> 5.4546 | S103: =4*C85 -> 7.2728 | T103: =3*C85 -> 5.4546 | U103: =8*C85 -> 14.5456 | V103: =3*C85 -> 5.4546 | W103: =AVERAGE(R103:V103) -> 7.63644 | X103: =STDEV(R103:V103) -> 3.94176367 | Y103: =1*C85 -> 1.8182 | Z103: =0*C85 -> 0 | AA103: =0*C85 -> 0 | AB103: =1*C85 -> 1.8182 | AC103: =0*C85 -> 0 | AD103: =AVERAGE(Y103:AC103) -> 0.72728 | AE103: =STDEV(Y103:AC103) -> 0.9958691541 | AF103: =0*$C$85 -> 0 | AG103: 0 | AH103: 0 | AI103: 0 | AJ103: 0 | AK103: =AVERAGE(AF103:AJ103) -> 0 | AL103: =STDEV(AF103:AJ103) -> 0 | AM103: =0*$C$85 -> 0 | AN103: 0 | AO103: 0 | AP103: 0 | AQ103: 0 | AR103: =AVERAGE(AM103:AQ103) -> 0 | AS103: =STDEV(AM103:AQ103) -> 0 | AT103: =0*$C$85 -> 0 | AU103: 0 | AV103: 0 | AW103: 0 | AX103: 0 | AY103: =AVERAGE(AT103:AX103) -> 0 | AZ103: =STDEV(AT103:AX103) -> 0 | BA103: =0*$C$85 -> 0 | BB103: 0 | BC103: 0 | BD103: 0 | BE103: 0 | BF103: =AVERAGE(BA103:BE103) -> 0 | BG103: =STDEV(BA103:BE103) -> 0
A104: p+0 | B104: 2 | D104: NA | E104: NA | F104: NA | G104: NA | H104: NA | I104: =AVERAGE(D104:H104) ->  | J104: =STDEV(D104:H104) ->  | K104: =41*C85 -> 74.5462 | L104: =41*C85 -> 74.5462 | M104: =35*C85 -> 63.637 | N104: =43*C85 -> 78.1826 | O104: =42*C85 -> 76.3644 | P104: =AVERAGE(K104:O104) -> 73.45528 | Q104: =STDEV(K104:O104) -> 5.691866315 | R104: =6*C85 -> 10.9092 | S104: =3*C85 -> 5.4546 | T104: =6*C85 -> 10.9092 | U104: =4*C85 -> 7.2728 | V104: =4*C85 -> 7.2728 | W104: =AVERAGE(R104:V104) -> 8.36372 | X104: =STDEV(R104:V104) -> 2.439371278 | Y104: =1*C85 -> 1.8182 | Z104: =1*C85 -> 1.8182 | AA104: =0*C85 -> 0 | AB104: =0*C85 -> 0 | AC104: =0*C85 -> 0 | AD104: =AVERAGE(Y104:AC104) -> 0.72728 | AE104: =STDEV(Y104:AC104) -> 0.9958691541 | AF104: 0 | AG104: 0 | AH104: 0 | AI104: 0 | AJ104: 0 | AK104: =AVERAGE(AF104:AJ104) -> 0 | AL104: =STDEV(AF104:AJ104) -> 0 | AM104: 0 | AN104: 0 | AO104: 0 | AP104: 0 | AQ104: 0 | AR104: =AVERAGE(AM104:AQ104) -> 0 | AS104: =STDEV(AM104:AQ104) -> 0 | AT104: 0 | AU104: 0 | AV104: 0 | AW104: 0 | AX104: 0 | AY104: =AVERAGE(AT104:AX104) -> 0 | AZ104: =STDEV(AT104:AX104) -> 0 | BA104: 0 | BB104: 0 | BC104: 0 | BD104: 0 | BE104: 0 | BF104: =AVERAGE(BA104:BE104) -> 0 | BG104: =STDEV(BA104:BE104) -> 0
B105: 3 | D105: NA | E105: NA | F105: NA | G105: NA | H105: NA | I105: =AVERAGE(D105:H105) ->  | J105: =STDEV(D105:H105) ->  | K105: =104*C85 -> 189 | L105: =86*C85 -> 156 | M105: =97*C85 -> 176 | N105: =85*C85 -> 155 | O105: =86*C85 -> 156 | P105: =AVERAGE(K105:O105) -> 167 | Q105: =STDEV(K105:O105) -> 15 | R105: =12*C85 -> 22 | S105: =12*C85 -> 22 | T105: =13*C85 -> 24 | U105: =9*C85 -> 16 | V105: =14*C85 -> 25 | W105: =AVERAGE(R105:V105) -> 22 | X105: =STDEV(R105:V105) -> 3 | Y105: =0*C85 -> 0 | Z105: =2*C85 -> 4 | AA105: =0*C85 -> 0 | AB105: =1*C85 -> 2 | AC105: =1*C85 -> 2 | AD105: =AVERAGE(Y105:AC105) -> 1 | AE105: =STDEV(Y105:AC105) -> 2 | AF105: 0 | AG105: 0 | AH105: 0 | AI105: 0 | AJ105: 0 | AK105: =AVERAGE(AF105:AJ105) -> 0 | AL105: =STDEV(AF105:AJ105) -> 0 | AM105: 0 | AN105: 0 | AO105: 0 | AP105: 0 | AQ105: 0 | AR105: =AVERAGE(AM105:AQ105) -> 0 | AS105: =STDEV(AM105:AQ105) -> 0 | AT105: 0 | AU105: 0 | AV105: 0 | AW105: 0 | AX105: 0 | AY105: =AVERAGE(AT105:AX105) -> 0 | AZ105: =STDEV(AT105:AX105) -> 0 | BA105: 0 | BB105: 0 | BC105: 0 | BD105: 0 | BE105: 0 | BF105: =AVERAGE(BA105:BE105) -> 0 | BG105: =STDEV(BA105:BE105) -> 0
A106: average | I106: =AVERAGE(I103:I105) ->  | P106: =AVERAGE(P103:P105) -> 104 | W106: =AVERAGE(W103:W105) -> 13 | AD106: =AVERAGE(AD103:AD105) -> 1 | AK106: =AVERAGE(AK103:AK105) -> 0 | AR106: =AVERAGE(AR103:AR105) -> 0 | AY106: =AVERAGE(AY103:AY105) -> 0 | BF106: =AVERAGE(BF103:BF105) -> 0
A107: stdev | I107: =SUM(J103:J105) ->  | P107: =SUM(Q103:Q105) -> 32 | W107: =SUM(X103:X105) -> 10 | AD107: =SUM(AE103:AE105) -> 4 | AK107: =SUM(AL103:AL105) -> 0 | AR107: =SUM(AS103:AS105) -> 0 | AY107: =SUM(AZ103:AZ105) -> 0 | BF107: =SUM(BG103:BG105) -> 0
A108: p+3 | B108: 1 | D108: =114*C85 -> 207 | E108: =117*C85 -> 213 | F108: =110*C85 -> 200 | G108: =123*C85 -> 224 | H108: =124*C85 -> 225 | I108: =AVERAGE(D108:H108) -> 214 | J108: =STDEV(D108:H108) -> 11 | K108: =16*C85 -> 29 | L108: =15*C85 -> 27 | M108: =14*C85 -> 25 | N108: =11*C85 -> 20 | O108: =17*C85 -> 31 | P108: =AVERAGE(K108:O108) -> 27 | Q108: =STDEV(K108:O108) -> 4 | R108: =2*C85 -> 4 | S108: =0*C85 -> 0 | T108: =1*C85 -> 2 | U108: =1*C85 -> 2 | V108: =1*C85 -> 2 | W108: =AVERAGE(R108:V108) -> 2 | X108: =STDEV(R108:V108) -> 1 | Y108: =0*C85 -> 0 | Z108: =1*C85 -> 2 | AA108: =0*C85 -> 0 | AB108: =0*C85 -> 0 | AC108: =0*C85 -> 0 | AD108: =AVERAGE(Y108:AC108) -> 0 | AE108: =STDEV(Y108:AC108) -> 1 | AF108: =0*$C$85 -> 0 | AG108: 0 | AH108: 0 | AI108: 0 | AJ108: 0 | AK108: =AVERAGE(AF108:AJ108) -> 0 | AL108: =STDEV(AF108:AJ108) -> 0 | AM108: =0*$C$85 -> 0 | AN108: 0 | AO108: 0 | AP108: 0 | AQ108: 0 | AR108: =AVERAGE(AM108:AQ108) -> 0 | AS108: =STDEV(AM108:AQ108) -> 0 | AT108: =0*$C$85 -> 0 | AU108: 0 | AV108: 0 | AW108: 0 | AX108: 0 | AY108: =AVERAGE(AT108:AX108) -> 0 | AZ108: =STDEV(AT108:AX108) -> 0 | BA108: =0*$C$85 -> 0 | BB108: 0 | BC108: 0 | BD108: 0 | BE108: 0 | BF108: =AVERAGE(BA108:BE108) -> 0 | BG108: =STDEV(BA108:BE108) -> 0
B109: 2 | D109: NA | E109: NA | F109: NA | G109: NA | H109: NA | I109: =AVERAGE(D109:H109) ->  | J109: =STDEV(D109:H109) ->  | K109: =47*C85 -> 85 | L109: =54*C85 -> 98 | M109: =36*C85 -> 65 | N109: =45*C85 -> 82 | O109: =39*C85 -> 71 | P109: =AVERAGE(K109:O109) -> 80 | Q109: =STDEV(K109:O109) -> 13 | R109: =3*C85 -> 5 | S109: =7*C85 -> 13 | T109: =2*C85 -> 4 | U109: =1*C85 -> 2 | V109: =6*C85 -> 11 | W109: =AVERAGE(R109:V109) -> 7 | X109: =STDEV(R109:V109) -> 5 | Y109: =3*C85 -> 5 | Z109: =0*C85 -> 0 | AA109: =0*C85 -> 0 | AB109: =1*C85 -> 2 | AC109: =1*C85 -> 2 | AD109: =AVERAGE(Y109:AC109) -> 2 | AE109: =STDEV(Y109:AC109) -> 2 | AF109: 0 | AG109: 0 | AH109: 0 | AI109: 0 | AJ109: 0 | AK109: =AVERAGE(AF109:AJ109) -> 0 | AL109: =STDEV(AF109:AJ109) -> 0 | AM109: 0 | AN109: 0 | AO109: 0 | AP109: 0 | AQ109: 0 | AR109: =AVERAGE(AM109:AQ109) -> 0 | AS109: =STDEV(AM109:AQ109) -> 0 | AT109: 0 | AU109: 0 | AV109: 0 | AW109: 0 | AX109: 0 | AY109: =AVERAGE(AT109:AX109) -> 0 | AZ109: =STDEV(AT109:AX109) -> 0 | BA109: 0 | BB109: 0 | BC109: 0 | BD109: 0 | BE109: 0 | BF109: =AVERAGE(BA109:BE109) -> 0 | BG109: =STDEV(BA109:BE109) -> 0
B110: 3 | D110: NA | E110: NA | F110: NA | G110: NA | H110: NA | I110: =AVERAGE(D110:H110) ->  | J110: =STDEV(D110:H110) ->  | K110: =43*C85 -> 78 | L110: =57*C85 -> 104 | M110: =40*C85 -> 73 | N110: =52*C85 -> 95 | O110: =53*C85 -> 96 | P110: =AVERAGE(K110:O110) -> 89 | Q110: =STDEV(K110:O110) -> 13 | R110: =3*C85 -> 5 | S110: =5*C85 -> 9 | T110: =4*C85 -> 7 | U110: =6*C85 -> 11 | V110: =3*C85 -> 5 | W110: =AVERAGE(R110:V110) -> 8 | X110: =STDEV(R110:V110) -> 2 | Y110: =1*C85 -> 2 | Z110: =0*C85 -> 0 | AA110: =0*C85 -> 0 | AB110: =1*C85 -> 2 | AC110: =0*C85 -> 0 | AD110: =AVERAGE(Y110:AC110) -> 1 | AE110: =STDEV(Y110:AC110) -> 1 | AF110: 0 | AG110: 0 | AH110: 0 | AI110: 0 | AJ110: 0 | AK110: =AVERAGE(AF110:AJ110) -> 0 | AL110: =STDEV(AF110:AJ110) -> 0 | AM110: 0 | AN110: 0 | AO110: 0 | AP110: 0 | AQ110: 0 | AR110: =AVERAGE(AM110:AQ110) -> 0 | AS110: =STDEV(AM110:AQ110) -> 0 | AT110: 0 | AU110: 0 | AV110: 0 | AW110: 0 | AX110: 0 | AY110: =AVERAGE(AT110:AX110) -> 0 | AZ110: =STDEV(AT110:AX110) -> 0 | BA110: 0 | BB110: 0 | BC110: 0 | BD110: 0 | BE110: 0 | BF110: =AVERAGE(BA110:BE110) -> 0 | BG110: =STDEV(BA110:BE110) -> 0
A111: average | I111: =AVERAGE(I108:I110) ->  | P111: =AVERAGE(P108:P110) -> 65 | W111: =AVERAGE(W108:W110) -> 5 | AD111: =AVERAGE(AD108:AD110) -> 1 | AK111: =AVERAGE(AK108:AK110) -> 0 | AR111: =AVERAGE(AR108:AR110) -> 0 | AY111: =AVERAGE(AY108:AY110) -> 0 | BF111: =AVERAGE(BF108:BF110) -> 0
A112: stdev | I112: =SUM(J108:J110) ->  | P112: =SUM(Q108:Q110) -> 30 | W112: =SUM(X108:X110) -> 8 | AD112: =SUM(AE108:AE110) -> 4 | AK112: =SUM(AL108:AL110) -> 0 | AR112: =SUM(AS108:AS110) -> 0 | AY112: =SUM(AZ108:AZ110) -> 0 | BF112: =SUM(BG108:BG110) -> 0
A113: pS2213 APR | B113: 1 | D113: NA | E113: NA | F113: NA | G113: NA | H113: NA | I113: =AVERAGE(D113:H113) ->  | J113: =STDEV(D113:H113) ->  | K113: =88*C85 -> 160.0016 | L113: =59*C85 -> 107.2738 | M113: =63*C85 -> 114.5466 | N113: =73*C85 -> 132.7286 | O113: =75*C85 -> 136.365 | P113: =AVERAGE(K113:O113) -> 130.18312 | Q113: =STDEV(K113:O113) -> 20.63476774 | R113: =13*C85 -> 23.6366 | S113: =16*C85 -> 29.0912 | T113: =15*C85 -> 27.273 | U113: =7*C85 -> 12.7274 | V113: =7*C85 -> 12.7274 | W113: =AVERAGE(R113:V113) -> 21.09112 | X113: =STDEV(R113:V113) -> 7.883527339 | Y113: =0*C85 -> 0 | Z113: =1*C85 -> 1.8182 | AA113: =0*C85 -> 0 | AB113: =1*C85 -> 1.8182 | AC113: =0*C85 -> 0 | AD113: =AVERAGE(Y113:AC113) -> 0.72728 | AE113: =STDEV(Y113:AC113) -> 0.9958691541 | AF113: =0*$C$85 -> 0 | AG113: 0 | AH113: 0 | AI113: 0 | AJ113: 0 | AK113: =AVERAGE(AF113:AJ113) -> 0 | AL113: =STDEV(AF113:AJ113) -> 0 | AM113: =0*$C$85 -> 0 | AN113: 0 | AO113: 0 | AP113: 0 | AQ113: 0 | AR113: =AVERAGE(AM113:AQ113) -> 0 | AS113: =STDEV(AM113:AQ113) -> 0 | AT113: =0*$C$85 -> 0 | AU113: 0 | AV113: 0 | AW113: 0 | AX113: 0 | AY113: =AVERAGE(AT113:AX113) -> 0 | AZ113: =STDEV(AT113:AX113) -> 0 | BA113: =0*$C$85 -> 0 | BB113: 0 | BC113: 0 | BD113: 0 | BE113: 0 | BF113: =AVERAGE(BA113:BE113) -> 0 | BG113: =STDEV(BA113:BE113) -> 0
A114: p+0 | B114: 2 | D114: NA | E114: NA | F114: NA | G114: NA | H114: NA | I114: =AVERAGE(D114:H114) ->  | J114: =STDEV(D114:H114) ->  | K114: NA | L114: NA | M114: NA | N114: NA | O114: NA | P114: =AVERAGE(K114:O114) ->  | Q114: =STDEV(K114:O114) ->  | R114: =29*C85 -> 52.7278 | S114: =28*C85 -> 50.9096 | T114: =27*C85 -> 49.0914 | U114: =29*C85 -> 52.7278 | V114: =25*C85 -> 45.455 | W114: =AVERAGE(R114:V114) -> 50.18232 | X114: =STDEV(R114:V114) -> 3.04243052 | Y114: =1*C85 -> 1.8182 | Z114: =2*C85 -> 3.6364 | AA114: =5*C85 -> 9.091 | AB114: =1*C85 -> 1.8182 | AC114: =7*C85 -> 12.7274 | AD114: =AVERAGE(Y114:AC114) -> 5.81824 | AE114: =STDEV(Y114:AC114) -> 4.878742556 | AF114: 0 | AG114: 0 | AH114: 0 | AI114: 0 | AJ114: 0 | AK114: =AVERAGE(AF114:AJ114) -> 0 | AL114: =STDEV(AF114:AJ114) -> 0 | AM114: 0 | AN114: 0 | AO114: 0 | AP114: 0 | AQ114: 0 | AR114: =AVERAGE(AM114:AQ114) -> 0 | AS114: =STDEV(AM114:AQ114) -> 0 | AT114: 0 | AU114: 0 | AV114: 0 | AW114: 0 | AX114: 0 | AY114: =AVERAGE(AT114:AX114) -> 0 | AZ114: =STDEV(AT114:AX114) -> 0 | BA114: 0 | BB114: 0 | BC114: 0 | BD114: 0 | BE114: 0 | BF114: =AVERAGE(BA114:BE114) -> 0 | BG114: =STDEV(BA114:BE114) -> 0
B115: 3 | D115: NA | E115: NA | F115: NA | G115: NA | H115: NA | I115: =AVERAGE(D115:H115) ->  | J115: =STDEV(D115:H115) ->  | K115: =51*C85 -> 93 | L115: =33*C85 -> 60 | M115: =42*C85 -> 76 | N115: =42*C85 -> 76 | O115: =46*C85 -> 84 | P115: =AVERAGE(K115:O115) -> 78 | Q115: =STDEV(K115:O115) -> 12 | R115: =4*C85 -> 7 | S115: =4*C85 -> 7 | T115: =2*C85 -> 4 | U115: =3*C85 -> 5 | V115: =3*C85 -> 5 | W115: =AVERAGE(R115:V115) -> 6 | X115: =STDEV(R115:V115) -> 2 | Y115: =0*C85 -> 0 | Z115: =1*C85 -> 2 | AA115: =0*C85 -> 0 | AB115: =0*C85 -> 0 | AC115: =0*C85 -> 0 | AD115: =AVERAGE(Y115:AC115) -> 0 | AE115: =STDEV(Y115:AC115) -> 1 | AF115: 0 | AG115: 0 | AH115: 0 | AI115: 0 | AJ115: 0 | AK115: =AVERAGE(AF115:AJ115) -> 0 | AL115: =STDEV(AF115:AJ115) -> 0 | AM115: 0 | AN115: 0 | AO115: 0 | AP115: 0 | AQ115: 0 | AR115: =AVERAGE(AM115:AQ115) -> 0 | AS115: =STDEV(AM115:AQ115) -> 0 | AT115: 0 | AU115: 0 | AV115: 0 | AW115: 0 | AX115: 0 | AY115: =AVERAGE(AT115:AX115) -> 0 | AZ115: =STDEV(AT115:AX115) -> 0 | BA115: 0 | BB115: 0 | BC115: 0 | BD115: 0 | BE115: 0 | BF115: =AVERAGE(BA115:BE115) -> 0 | BG115: =STDEV(BA115:BE115) -> 0
A116: average | I116: =AVERAGE(I113:I115) ->  | P116: =AVERAGE(P113:P115) ->  | W116: =AVERAGE(W113:W115) -> 26 | AD116: =AVERAGE(AD113:AD115) -> 2 | AK116: =AVERAGE(AK113:AK115) -> 0 | AR116: =AVERAGE(AR113:AR115) -> 0 | AY116: =AVERAGE(AY113:AY115) -> 0 | BF116: =AVERAGE(BF113:BF115) -> 0
A117: stdev | I117: =SUM(J113:J115) ->  | P117: =SUM(Q113:Q115) ->  | W117: =SUM(X113:X115) -> 12 | AD117: =SUM(AE113:AE115) -> 7 | AK117: =SUM(AL113:AL115) -> 0 | AR117: =SUM(AS113:AS115) -> 0 | AY117: =SUM(AZ113:AZ115) -> 0 | BF117: =SUM(BG113:BG115) -> 0
A118: p+3 | B118: 1 | D118: NA | E118: NA | F118: NA | G118: NA | H118: NA | I118: =AVERAGE(D118:H118) ->  | J118: =STDEV(D118:H118) ->  | K118: =113*C85 -> 205 | L118: =97*C85 -> 176 | M118: =115*C85 -> 209 | N118: =111*C85 -> 202 | O118: =119*C85 -> 216 | P118: =AVERAGE(K118:O118) -> 202 | Q118: =STDEV(K118:O118) -> 15 | R118: =18*C85 -> 33 | S118: =19*C85 -> 35 | T118: =18*C85 -> 33 | U118: =18*C85 -> 33 | V118: =15*C85 -> 27 | W118: =AVERAGE(R118:V118) -> 32 | X118: =STDEV(R118:V118) -> 3 | Y118: =1*C85 -> 2 | Z118: =1*C85 -> 2 | AA118: =2*C85 -> 4 | AB118: =0*C85 -> 0 | AC118: =1*C85 -> 2 | AD118: =AVERAGE(Y118:AC118) -> 2 | AE118: =STDEV(Y118:AC118) -> 1 | AF118: =0*$C$85 -> 0 | AG118: 0 | AH118: 0 | AI118: 0 | AJ118: 0 | AK118: =AVERAGE(AF118:AJ118) -> 0 | AL118: =STDEV(AF118:AJ118) -> 0 | AM118: =0*$C$85 -> 0 | AN118: 0 | AO118: 0 | AP118: 0 | AQ118: 0 | AR118: =AVERAGE(AM118:AQ118) -> 0 | AS118: =STDEV(AM118:AQ118) -> 0 | AT118: =0*$C$85 -> 0 | AU118: 0 | AV118: 0 | AW118: 0 | AX118: 0 | AY118: =AVERAGE(AT118:AX118) -> 0 | AZ118: =STDEV(AT118:AX118) -> 0 | BA118: =0*$C$85 -> 0 | BB118: 0 | BC118: 0 | BD118: 0 | BE118: 0 | BF118: =AVERAGE(BA118:BE118) -> 0 | BG118: =STDEV(BA118:BE118) -> 0
B119: 2 | D119: NA | E119: NA | F119: NA | G119: NA | H119: NA | I119: =AVERAGE(D119:H119) ->  | J119: =STDEV(D119:H119) ->  | K119: NA | L119: NA | M119: NA | N119: NA | O119: NA | P119: =AVERAGE(K119:O119) ->  | Q119: =STDEV(K119:O119) ->  | R119: =42*C85 -> 76 | S119: =37*C85 -> 67 | T119: =38*C85 -> 69 | U119: =43*C85 -> 78 | V119: =33*C85 -> 60 | W119: =AVERAGE(R119:V119) -> 70 | X119: =STDEV(R119:V119) -> 7 | Y119: =3*C85 -> 5 | Z119: =2*C85 -> 4 | AA119: =2*C85 -> 4 | AB119: =1*C85 -> 2 | AC119: =4*C85 -> 7 | AD119: =AVERAGE(Y119:AC119) -> 4 | AE119: =STDEV(Y119:AC119) -> 2 | AF119: 0 | AG119: 0 | AH119: 0 | AI119: 0 | AJ119: 0 | AK119: =AVERAGE(AF119:AJ119) -> 0 | AL119: =STDEV(AF119:AJ119) -> 0 | AM119: 0 | AN119: 0 | AO119: 0 | AP119: 0 | AQ119: 0 | AR119: =AVERAGE(AM119:AQ119) -> 0 | AS119: =STDEV(AM119:AQ119) -> 0 | AT119: 0 | AU119: 0 | AV119: 0 | AW119: 0 | AX119: 0 | AY119: =AVERAGE(AT119:AX119) -> 0 | AZ119: =STDEV(AT119:AX119) -> 0 | BA119: 0 | BB119: 0 | BC119: 0 | BD119: 0 | BE119: 0 | BF119: =AVERAGE(BA119:BE119) -> 0 | BG119: =STDEV(BA119:BE119) -> 0
B120: 3 | D120: NA | E120: NA | F120: NA | G120: NA | H120: NA | I120: =AVERAGE(D120:H120) ->  | J120: =STDEV(D120:H120) ->  | K120: =125*C85 -> 227 | L120: =113*C85 -> 205 | M120: =102*C85 -> 185 | N120: =97*C85 -> 176 | O120: =101*C85 -> 184 | P120: =AVERAGE(K120:O120) -> 196 | Q120: =STDEV(K120:O120) -> 21 | R120: =17*C85 -> 31 | S120: =11*C85 -> 20 | T120: =18*C85 -> 33 | U120: =19*C85 -> 35 | V120: =21*C85 -> 38 | W120: =AVERAGE(R120:V120) -> 31 | X120: =STDEV(R120:V120) -> 7 | Y120: =1*C85 -> 2 | Z120: =0*C85 -> 0 | AA120: =5*C85 -> 9 | AB120: =2*C85 -> 4 | AC120: =2*C85 -> 4 | AD120: =AVERAGE(Y120:AC120) -> 4 | AE120: =STDEV(Y120:AC120) -> 3 | AF120: 0 | AG120: 0 | AH120: 0 | AI120: 0 | AJ120: 0 | AK120: =AVERAGE(AF120:AJ120) -> 0 | AL120: =STDEV(AF120:AJ120) -> 0 | AM120: 0 | AN120: 0 | AO120: 0 | AP120: 0 | AQ120: 0 | AR120: =AVERAGE(AM120:AQ120) -> 0 | AS120: =STDEV(AM120:AQ120) -> 0 | AT120: 0 | AU120: 0 | AV120: 0 | AW120: 0 | AX120: 0 | AY120: =AVERAGE(AT120:AX120) -> 0 | AZ120: =STDEV(AT120:AX120) -> 0 | BA120: 0 | BB120: 0 | BC120: 0 | BD120: 0 | BE120: 0 | BF120: =AVERAGE(BA120:BE120) -> 0 | BG120: =STDEV(BA120:BE120) -> 0
A121: average | I121: =AVERAGE(I118:I120) ->  | P121: =AVERAGE(P118:P120) ->  | W121: =AVERAGE(W118:W120) -> 44 | AD121: =AVERAGE(AD118:AD120) -> 3 | AK121: =AVERAGE(AK118:AK120) -> 0 | AR121: =AVERAGE(AR118:AR120) -> 0 | AY121: =AVERAGE(AY118:AY120) -> 0 | BF121: =AVERAGE(BF118:BF120) -> 0
A122: stdev | I122: =SUM(J118:J120) ->  | P122: =SUM(Q118:Q120) ->  | W122: =SUM(X118:X120) -> 17 | AD122: =SUM(AE118:AE120) -> 7 | AK122: =SUM(AL118:AL120) -> 0 | AR122: =SUM(AS118:AS120) -> 0 | AY122: =SUM(AZ118:AZ120) -> 0 | BF122: =SUM(BG118:BG120) -> 0
A125: T11 | B125: 2018-02-19
A126: Sample | B126: Dilution: | D126: 10^0 | I126: AVERAGE | J126: STDEV | K126: 10^-1 | P126: AVERAGE | Q126: STDEV | R126: 10^-2 | W126: AVERAGE | X126: STDEV | Y126: 10^-3 | AD126: AVERAGE | AE126: STDEV | AF126: 10^-4 | AK126: AVERAGE | AL126: STDEV | AM126: 10^-5 | AR126: AVERAGE | AS126: STDEV | AT126: 10^-6 | AY126: AVERAGE | AZ126: STDEV | BA126: 10^-7 | BF126: AVERAGE | BG126: STDEV
A127: Blank | B127: 1 | D127: 0 | E127: 0 | F127: 0 | G127: 0 | H127: 0 | I127: =AVERAGE(D127:H127) -> 0 | J127: =STDEV(D127:H127) -> 0 | K127: 0 | L127: 0 | M127: 0 | N127: 0 | O127: 0 | P127: =AVERAGE(K127:O127) -> 0 | Q127: =STDEV(K127:O127) -> 0 | R127: 0 | S127: 0 | T127: 0 | U127: 0 | V127: 0 | W127: =AVERAGE(R127:V127) -> 0 | X127: =STDEV(R127:V127) -> 0 | Y127: 0 | Z127: 0 | AA127: 0 | AB127: 0 | AC127: 0 | AD127: =AVERAGE(Y127:AC127) -> 0 | AE127: =STDEV(Y127:AC127) -> 0 | AF127: 0 | AG127: 0 | AH127: 0 | AI127: 0 | AJ127: 0 | AK127: =AVERAGE(AF127:AJ127) -> 0 | AL127: =STDEV(AF127:AJ127) -> 0 | AM127: 0 | AN127: 0 | AO127: 0 | AP127: 0 | AQ127: 0 | AR127: =AVERAGE(AM127:AQ127) -> 0 | AS127: =STDEV(AM127:AQ127) -> 0 | AT127: 0 | AU127: 0 | AV127: 0 | AW127: 0 | AX127: 0 | AY127: =AVERAGE(AT127:AX127) -> 0 | AZ127: =STDEV(AT127:AX127) -> 0 | BA127: 0 | BB127: 0 | BC127: 0 | BD127: 0 | BE127: 0 | BF127: =AVERAGE(BA127:BE127) -> 0 | BG127: =STDEV(BA127:BE127) -> 0
B128: 2 | D128: 0 | E128: 0 | F128: 0 | G128: 0 | H128: 0 | I128: =AVERAGE(D128:H128) -> 0 | J128: =STDEV(D128:H128) -> 0 | K128: 0 | L128: 0 | M128: 0 | N128: 0 | O128: 0 | P128: =AVERAGE(K128:O128) -> 0 | Q128: =STDEV(K128:O128) -> 0 | R128: 0 | S128: 0 | T128: 0 | U128: 0 | V128: 0 | W128: =AVERAGE(R128:V128) -> 0 | X128: =STDEV(R128:V128) -> 0 | Y128: 0 | Z128: 0 | AA128: 0 | AB128: 0 | AC128: 0 | AD128: =AVERAGE(Y128:AC128) -> 0 | AE128: =STDEV(Y128:AC128) -> 0 | AF128: 0 | AG128: 0 | AH128: 0 | AI128: 0 | AJ128: 0 | AK128: =AVERAGE(AF128:AJ128) -> 0 | AL128: =STDEV(AF128:AJ128) -> 0 | AM128: 0 | AN128: 0 | AO128: 0 | AP128: 0 | AQ128: 0 | AR128: =AVERAGE(AM128:AQ128) -> 0 | AS128: =STDEV(AM128:AQ128) -> 0 | AT128: 0 | AU128: 0 | AV128: 0 | AW128: 0 | AX128: 0 | AY128: =AVERAGE(AT128:AX128) -> 0 | AZ128: =STDEV(AT128:AX128) -> 0 | BA128: 0 | BB128: 0 | BC128: 0 | BD128: 0 | BE128: 0 | BF128: =AVERAGE(BA128:BE128) -> 0 | BG128: =STDEV(BA128:BE128) -> 0
B129: 3 | D129: 0 | E129: 0 | F129: 0 | G129: 0 | H129: 0 | I129: =AVERAGE(D129:H129) -> 0 | J129: =STDEV(D129:H129) -> 0 | K129: 0 | L129: 0 | M129: 0 | N129: 0 | O129: 0 | P129: =AVERAGE(K129:O129) -> 0 | Q129: =STDEV(K129:O129) -> 0 | R129: 0 | S129: 0 | T129: 0 | U129: 0 | V129: 0 | W129: =AVERAGE(R129:V129) -> 0 | X129: =STDEV(R129:V129) -> 0 | Y129: 0 | Z129: 0 | AA129: 0 | AB129: 0 | AC129: 0 | AD129: =AVERAGE(Y129:AC129) -> 0 | AE129: =STDEV(Y129:AC129) -> 0 | AF129: 0 | AG129: 0 | AH129: 0 | AI129: 0 | AJ129: 0 | AK129: =AVERAGE(AF129:AJ129) -> 0 | AL129: =STDEV(AF129:AJ129) -> 0 | AM129: 0 | AN129: 0 | AO129: 0 | AP129: 0 | AQ129: 0 | AR129: =AVERAGE(AM129:AQ129) -> 0 | AS129: =STDEV(AM129:AQ129) -> 0 | AT129: 0 | AU129: 0 | AV129: 0 | AW129: 0 | AX129: 0 | AY129: =AVERAGE(AT129:AX129) -> 0 | AZ129: =STDEV(AT129:AX129) -> 0 | BA129: 0 | BB129: 0 | BC129: 0 | BD129: 0 | BE129: 0 | BF129: =AVERAGE(BA129:BE129) -> 0 | BG129: =STDEV(BA129:BE129) -> 0
I130: =AVERAGE(I127:I129) -> 0 | P130: =AVERAGE(P127:P129) -> 0 | W130: =AVERAGE(W127:W129) -> 0 | AD130: =AVERAGE(AD127:AD129) -> 0 | AK130: =AVERAGE(AK127:AK129) -> 0 | AR130: =AVERAGE(AR127:AR129) -> 0 | AY130: =AVERAGE(AY127:AY129) -> 0 | BF130: =AVERAGE(BF127:BF129) -> 0
I131: =SUM(J127:J129) -> 0 | P131: =SUM(Q127:Q129) -> 0 | W131: =SUM(X127:X129) -> 0 | AD131: =SUM(AE127:AE129) -> 0 | AK131: =SUM(AL127:AL129) -> 0 | AR131: =SUM(AS127:AS129) -> 0 | AY131: =SUM(AZ127:AZ129) -> 0 | BF131: =SUM(BG127:BG129) -> 0
A132: BW25113 - | B132: 1 | D132: NA | E132: NA | F132: NA | G132: NA | H132: NA | I132: =AVERAGE(D132:H132) ->  | J132: =STDEV(D132:H132) ->  | K132: NA | L132: NA | M132: NA | N132: NA | O132: NA | P132: =AVERAGE(K132:O132) ->  | Q132: =STDEV(K132:O132) ->  | R132: NA | S132: NA | T132: NA | U132: NA | V132: NA | W132: =AVERAGE(R132:V132) ->  | X132: =STDEV(R132:V132) ->  | Y132: NA | Z132: NA | AA132: NA | AB132: NA | AC132: NA | AD132: =AVERAGE(Y132:AC132) ->  | AE132: =STDEV(Y132:AC132) ->  | AF132: 228 | AG132: 209 | AH132: 232 | AI132: 229 | AJ132: 219 | AK132: =AVERAGE(AF132:AJ132) -> 223 | AL132: =STDEV(AF132:AJ132) -> 9 | AM132: 31 | AN132: 40 | AO132: 36 | AP132: 33 | AQ132: 22 | AR132: =AVERAGE(AM132:AQ132) -> 32 | AS132: =STDEV(AM132:AQ132) -> 7 | AT132: 4 | AU132: 4 | AV132: 3 | AW132: 3 | AX132: 1 | AY132: =AVERAGE(AT132:AX132) -> 3 | AZ132: =STDEV(AT132:AX132) -> 1 | BA132: 1 | BB132: 0 | BC132: 1 | BD132: 1 | BE132: 0 | BF132: =AVERAGE(BA132:BE132) -> 1 | BG132: =STDEV(BA132:BE132) -> 1
A133: pS2213 - | B133: 2 | D133: NA | E133: NA | F133: NA | G133: NA | H133: NA | I133: =AVERAGE(D133:H133) ->  | J133: =STDEV(D133:H133) ->  | K133: NA | L133: NA | M133: NA | N133: NA | O133: NA | P133: =AVERAGE(K133:O133) ->  | Q133: =STDEV(K133:O133) ->  | R133: NA | S133: NA | T133: NA | U133: NA | V133: NA | W133: =AVERAGE(R133:V133) ->  | X133: =STDEV(R133:V133) ->  | Y133: NA | Z133: NA | AA133: NA | AB133: NA | AC133: NA | AD133: =AVERAGE(Y133:AC133) ->  | AE133: =STDEV(Y133:AC133) ->  | AF133: 219 | AG133: 205 | AH133: 219 | AI133: 221 | AJ133: 211 | AK133: =AVERAGE(AF133:AJ133) -> 215 | AL133: =STDEV(AF133:AJ133) -> 7 | AM133: 33 | AN133: 35 | AO133: 31 | AP133: 35 | AQ133: 36 | AR133: =AVERAGE(AM133:AQ133) -> 34 | AS133: =STDEV(AM133:AQ133) -> 2 | AT133: 6 | AU133: 1 | AV133: 1 | AW133: 7 | AX133: 3 | AY133: =AVERAGE(AT133:AX133) -> 4 | AZ133: =STDEV(AT133:AX133) -> 3 | BA133: 0 | BB133: 0 | BC133: 0 | BD133: 0 | BE133: 0 | BF133: =AVERAGE(BA133:BE133) -> 0 | BG133: =STDEV(BA133:BE133) -> 0
B134: 3 | D134: NA | E134: NA | F134: NA | G134: NA | H134: NA | I134: =AVERAGE(D134:H134) ->  | J134: =STDEV(D134:H134) ->  | K134: NA | L134: NA | M134: NA | N134: NA | O134: NA | P134: =AVERAGE(K134:O134) ->  | Q134: =STDEV(K134:O134) ->  | R134: NA | S134: NA | T134: NA | U134: NA | V134: NA | W134: =AVERAGE(R134:V134) ->  | X134: =STDEV(R134:V134) ->  | Y134: NA | Z134: NA | AA134: NA | AB134: NA | AC134: NA | AD134: =AVERAGE(Y134:AC134) ->  | AE134: =STDEV(Y134:AC134) ->  | AF134: 209 | AG134: 229 | AH134: 216 | AI134: 228 | AJ134: 217 | AK134: =AVERAGE(AF134:AJ134) -> 220 | AL134: =STDEV(AF134:AJ134) -> 9 | AM134: 33 | AN134: 26 | AO134: 31 | AP134: 30 | AQ134: 36 | AR134: =AVERAGE(AM134:AQ134) -> 31 | AS134: =STDEV(AM134:AQ134) -> 4 | AT134: 2 | AU134: 4 | AV134: 6 | AW134: 2 | AX134: 4 | AY134: =AVERAGE(AT134:AX134) -> 4 | AZ134: =STDEV(AT134:AX134) -> 2 | BA134: 0 | BB134: 0 | BC134: 1 | BD134: 0 | BE134: 0 | BF134: =AVERAGE(BA134:BE134) -> 0 | BG134: =STDEV(BA134:BE134) -> 0
A135: average | I135: =AVERAGE(I132:I134) ->  | P135: =AVERAGE(P132:P134) ->  | W135: =AVERAGE(W132:W134) ->  | AD135: =AVERAGE(AD132:AD134) ->  | AK135: =AVERAGE(AK132:AK134) -> 219 | AR135: =AVERAGE(AR132:AR134) -> 33 | AY135: =AVERAGE(AY132:AY134) -> 3 | BF135: =AVERAGE(BF132:BF134) -> 0
A136: stdev | I136: =SUM(J132:J134) ->  | P136: =SUM(Q132:Q134) ->  | W136: =SUM(X132:X134) ->  | AD136: =SUM(AE132:AE134) ->  | AK136: =SUM(AL132:AL134) -> 25 | AR136: =SUM(AS132:AS134) -> 12 | AY136: =SUM(AZ132:AZ134) -> 6 | BF136: =SUM(BG132:BG134) -> 1
A137: pS2213 - | B137: 1 | D137: 101 | E137: 92 | F137: 86 | G137: 96 | H137: 84 | I137: =AVERAGE(D137:H137) -> 91.8 | J137: =STDEV(D137:H137) -> 7.014271167 | K137: 3 | L137: 6 | M137: 4 | N137: 3 | O137: 6 | P137: =AVERAGE(K137:O137) -> 4.4 | Q137: =STDEV(K137:O137) -> 1.516575089 | R137: 0 | S137: 1 | T137: 1 | U137: 1 | V137: 1 | W137: =AVERAGE(R137:V137) -> 0.8 | X137: =STDEV(R137:V137) -> 0.4472135955 | Y137: 1 | Z137: 0 | AA137: 5 | AB137: 1 | AC137: 2 | AD137: =AVERAGE(Y137:AC137) -> 1.8 | AE137: =STDEV(Y137:AC137) -> 1.923538406 | AF137: 0 | AG137: 0 | AH137: 0 | AI137: 0 | AJ137: 0 | AK137: =AVERAGE(AF137:AJ137) -> 0 | AL137: =STDEV(AF137:AJ137) -> 0 | AM137: 0 | AN137: 0 | AO137: 0 | AP137: 0 | AQ137: 0 | AR137: =AVERAGE(AM137:AQ137) -> 0 | AS137: =STDEV(AM137:AQ137) -> 0 | AT137: 0 | AU137: 0 | AV137: 0 | AW137: 0 | AX137: 0 | AY137: =AVERAGE(AT137:AX137) -> 0 | AZ137: =STDEV(AT137:AX137) -> 0 | BA137: 0 | BB137: 0 | BC137: 0 | BD137: 0 | BE137: 0 | BF137: =AVERAGE(BA137:BE137) -> 0 | BG137: =STDEV(BA137:BE137) -> 0
A138: p+0 | B138: 2 | D138: NA | E138: NA | F138: NA | G138: NA | H138: NA | I138: =AVERAGE(D138:H138) ->  | J138: =STDEV(D138:H138) ->  | K138: 53 | L138: 57 | M138: 65 | N138: 45 | O138: 62 | P138: =AVERAGE(K138:O138) -> 56.4 | Q138: =STDEV(K138:O138) -> 7.861297603 | R138: 8 | S138: 6 | T138: 7 | U138: 5 | V138: 6 | W138: =AVERAGE(R138:V138) -> 6.4 | X138: =STDEV(R138:V138) -> 1.140175425 | Y138: 0 | Z138: 0 | AA138: 0 | AB138: 0 | AC138: 1 | AD138: =AVERAGE(Y138:AC138) -> 0.2 | AE138: =STDEV(Y138:AC138) -> 0.4472135955 | AF138: 0 | AG138: 0 | AH138: 0 | AI138: 0 | AJ138: 0 | AK138: =AVERAGE(AF138:AJ138) -> 0 | AL138: =STDEV(AF138:AJ138) -> 0 | AM138: 0 | AN138: 0 | AO138: 0 | AP138: 0 | AQ138: 0 | AR138: =AVERAGE(AM138:AQ138) -> 0 | AS138: =STDEV(AM138:AQ138) -> 0 | AT138: 0 | AU138: 0 | AV138: 0 | AW138: 0 | AX138: 0 | AY138: =AVERAGE(AT138:AX138) -> 0 | AZ138: =STDEV(AT138:AX138) -> 0 | BA138: 0 | BB138: 0 | BC138: 0 | BD138: 0 | BE138: 0 | BF138: =AVERAGE(BA138:BE138) -> 0 | BG138: =STDEV(BA138:BE138) -> 0
B139: 3 | D139: 77 | E139: 141 | F139: 117 | G139: 117 | H139: 122 | I139: =AVERAGE(D139:H139) -> 115 | J139: =STDEV(D139:H139) -> 23 | K139: 20 | L139: 18 | M139: 16 | N139: 15 | O139: 21 | P139: =AVERAGE(K139:O139) -> 18 | Q139: =STDEV(K139:O139) -> 3 | R139: 23 | S139: 22 | T139: 28 | U139: 22 | V139: 26 | W139: =AVERAGE(R139:V139) -> 24 | X139: =STDEV(R139:V139) -> 3 | Y139: 1 | Z139: 4 | AA139: 0 | AB139: 1 | AC139: 3 | AD139: =AVERAGE(Y139:AC139) -> 2 | AE139: =STDEV(Y139:AC139) -> 2 | AF139: 0 | AG139: 0 | AH139: 0 | AI139: 0 | AJ139: 1 | AK139: =AVERAGE(AF139:AJ139) -> 0 | AL139: =STDEV(AF139:AJ139) -> 0 | AM139: 0 | AN139: 0 | AO139: 0 | AP139: 0 | AQ139: 0 | AR139: =AVERAGE(AM139:AQ139) -> 0 | AS139: =STDEV(AM139:AQ139) -> 0 | AT139: 0 | AU139: 0 | AV139: 0 | AW139: 0 | AX139: 0 | AY139: =AVERAGE(AT139:AX139) -> 0 | AZ139: =STDEV(AT139:AX139) -> 0 | BA139: 0 | BB139: 0 | BC139: 0 | BD139: 0 | BE139: 0 | BF139: =AVERAGE(BA139:BE139) -> 0 | BG139: =STDEV(BA139:BE139) -> 0
A140: average | I140: =AVERAGE(I137:I139) ->  | P140: =AVERAGE(P137:P139) -> 26 | W140: =AVERAGE(W137:W139) -> 10 | AD140: =AVERAGE(AD137:AD139) -> 1 | AK140: =AVERAGE(AK137:AK139) -> 0 | AR140: =AVERAGE(AR137:AR139) -> 0 | AY140: =AVERAGE(AY137:AY139) -> 0 | BF140: =AVERAGE(BF137:BF139) -> 0
A141: stdev | I141: =SUM(J137:J139) ->  | P141: =SUM(Q137:Q139) -> 12 | W141: =SUM(X137:X139) -> 4 | AD141: =SUM(AE137:AE139) -> 4 | AK141: =SUM(AL137:AL139) -> 0 | AR141: =SUM(AS137:AS139) -> 0 | AY141: =SUM(AZ137:AZ139) -> 0 | BF141: =SUM(BG137:BG139) -> 0
A142: pS2213 A | B142: 1 | D142: 159 | E142: 143 | F142: 162 | G142: 168 | H142: 167 | I142: =AVERAGE(D142:H142) -> 159.8 | J142: =STDEV(D142:H142) -> 10.08464179 | K142: 17 | L142: 10 | M142: 16 | N142: 17 | O142: 12 | P142: =AVERAGE(K142:O142) -> 14.4 | Q142: =STDEV(K142:O142) -> 3.209361307 | R142: 3 | S142: 2 | T142: 0 | U142: 3 | V142: 1 | W142: =AVERAGE(R142:V142) -> 1.8 | X142: =STDEV(R142:V142) -> 1.303840481 | Y142: 2 | Z142: 0 | AA142: 0 | AB142: 0 | AC142: 0 | AD142: =AVERAGE(Y142:AC142) -> 0.4 | AE142: =STDEV(Y142:AC142) -> 0.894427191 | AF142: 0 | AG142: 0 | AH142: 0 | AI142: 0 | AJ142: 0 | AK142: =AVERAGE(AF142:AJ142) -> 0 | AL142: =STDEV(AF142:AJ142) -> 0 | AM142: 0 | AN142: 0 | AO142: 0 | AP142: 0 | AQ142: 0 | AR142: =AVERAGE(AM142:AQ142) -> 0 | AS142: =STDEV(AM142:AQ142) -> 0 | AT142: 0 | AU142: 0 | AV142: 0 | AW142: 0 | AX142: 0 | AY142: =AVERAGE(AT142:AX142) -> 0 | AZ142: =STDEV(AT142:AX142) -> 0 | BA142: 0 | BB142: 0 | BC142: 0 | BD142: 0 | BE142: 0 | BF142: =AVERAGE(BA142:BE142) -> 0 | BG142: =STDEV(BA142:BE142) -> 0
A143: p+0 | B143: 2 | D143: NA | E143: NA | F143: NA | G143: NA | H143: NA | I143: =AVERAGE(D143:H143) ->  | J143: =STDEV(D143:H143) ->  | K143: 58 | L143: 55 | M143: 63 | N143: 66 | O143: 71 | P143: =AVERAGE(K143:O143) -> 62.6 | Q143: =STDEV(K143:O143) -> 6.348228099 | R143: 8 | S143: 5 | T143: 11 | U143: 7 | V143: 10 | W143: =AVERAGE(R143:V143) -> 8.2 | X143: =STDEV(R143:V143) -> 2.387467277 | Y143: 0 | Z143: 0 | AA143: 1 | AB143: 0 | AC143: 1 | AD143: =AVERAGE(Y143:AC143) -> 0.4 | AE143: =STDEV(Y143:AC143) -> 0.5477225575 | AF143: 0 | AG143: 0 | AH143: 0 | AI143: 0 | AJ143: 0 | AK143: =AVERAGE(AF143:AJ143) -> 0 | AL143: =STDEV(AF143:AJ143) -> 0 | AM143: 0 | AN143: 0 | AO143: 0 | AP143: 0 | AQ143: 0 | AR143: =AVERAGE(AM143:AQ143) -> 0 | AS143: =STDEV(AM143:AQ143) -> 0 | AT143: 0 | AU143: 0 | AV143: 0 | AW143: 0 | AX143: 0 | AY143: =AVERAGE(AT143:AX143) -> 0 | AZ143: =STDEV(AT143:AX143) -> 0 | BA143: 0 | BB143: 0 | BC143: 0 | BD143: 0 | BE143: 0 | BF143: =AVERAGE(BA143:BE143) -> 0 | BG143: =STDEV(BA143:BE143) -> 0
B144: 3 | D144: NA | E144: NA | F144: NA | G144: NA | H144: NA | I144: =AVERAGE(D144:H144) ->  | J144: =STDEV(D144:H144) ->  | K144: 52 | L144: 64 | M144: 66 | N144: 47 | O144: 55 | P144: =AVERAGE(K144:O144) -> 57 | Q144: =STDEV(K144:O144) -> 8 | R144: 10 | S144: 7 | T144: 4 | U144: 11 | V144: 7 | W144: =AVERAGE(R144:V144) -> 8 | X144: =STDEV(R144:V144) -> 3 | Y144: 0 | Z144: 1 | AA144: 0 | AB144: 0 | AC144: 1 | AD144: =AVERAGE(Y144:AC144) -> 0 | AE144: =STDEV(Y144:AC144) -> 1 | AF144: 1 | AG144: 0 | AH144: 0 | AI144: 0 | AJ144: 0 | AK144: =AVERAGE(AF144:AJ144) -> 0 | AL144: =STDEV(AF144:AJ144) -> 0 | AM144: 0 | AN144: 0 | AO144: 0 | AP144: 0 | AQ144: 0 | AR144: =AVERAGE(AM144:AQ144) -> 0 | AS144: =STDEV(AM144:AQ144) -> 0 | AT144: 0 | AU144: 0 | AV144: 0 | AW144: 0 | AX144: 0 | AY144: =AVERAGE(AT144:AX144) -> 0 | AZ144: =STDEV(AT144:AX144) -> 0 | BA144: 0 | BB144: 0 | BC144: 0 | BD144: 0 | BE144: 0 | BF144: =AVERAGE(BA144:BE144) -> 0 | BG144: =STDEV(BA144:BE144) -> 0
A145: average | I145: =AVERAGE(I142:I144) ->  | P145: =AVERAGE(P142:P144) -> 45 | W145: =AVERAGE(W142:W144) -> 6 | AD145: =AVERAGE(AD142:AD144) -> 0 | AK145: =AVERAGE(AK142:AK144) -> 0 | AR145: =AVERAGE(AR142:AR144) -> 0 | AY145: =AVERAGE(AY142:AY144) -> 0 | BF145: =AVERAGE(BF142:BF144) -> 0
A146: stdev | I146: =SUM(J142:J144) ->  | P146: =SUM(Q142:Q144) -> 18 | W146: =SUM(X142:X144) -> 6 | AD146: =SUM(AE142:AE144) -> 2 | AK146: =SUM(AL142:AL144) -> 0 | AR146: =SUM(AS142:AS144) -> 0 | AY146: =SUM(AZ142:AZ144) -> 0 | BF146: =SUM(BG142:BG144) -> 0
A147: p+3 | B147: 1 | D147: 38 | E147: 36 | F147: 34 | G147: 45 | H147: 66 | I147: =AVERAGE(D147:H147) -> 44 | J147: =STDEV(D147:H147) -> 13 | K147: 14 | L147: 9 | M147: 7 | N147: 7 | O147: 10 | P147: =AVERAGE(K147:O147) -> 9 | Q147: =STDEV(K147:O147) -> 3 | R147: 1 | S147: 2 | T147: 2 | U147: 5 | V147: 1 | W147: =AVERAGE(R147:V147) -> 2 | X147: =STDEV(R147:V147) -> 2 | Y147: 0 | Z147: 0 | AA147: 0 | AB147: 1 | AC147: 0 | AD147: =AVERAGE(Y147:AC147) -> 0 | AE147: =STDEV(Y147:AC147) -> 0 | AF147: 0 | AG147: 1 | AH147: 0 | AI147: 0 | AJ147: 0 | AK147: =AVERAGE(AF147:AJ147) -> 0 | AL147: =STDEV(AF147:AJ147) -> 0 | AM147: 0 | AN147: 0 | AO147: 0 | AP147: 0 | AQ147: 0 | AR147: =AVERAGE(AM147:AQ147) -> 0 | AS147: =STDEV(AM147:AQ147) -> 0 | AT147: 0 | AU147: 0 | AV147: 0 | AW147: 0 | AX147: 0 | AY147: =AVERAGE(AT147:AX147) -> 0 | AZ147: =STDEV(AT147:AX147) -> 0 | BA147: 0 | BB147: 0 | BC147: 0 | BD147: 0 | BE147: 0 | BF147: =AVERAGE(BA147:BE147) -> 0 | BG147: =STDEV(BA147:BE147) -> 0
B148: 2 | D148: NA | E148: NA | F148: NA | G148: NA | H148: NA | I148: =AVERAGE(D148:H148) ->  | J148: =STDEV(D148:H148) ->  | K148: 44 | L148: 55 | M148: 51 | N148: 36 | O148: 27 | P148: =AVERAGE(K148:O148) -> 43 | Q148: =STDEV(K148:O148) -> 11 | R148: 6 | S148: 4 | T148: 8 | U148: 3 | V148: 4 | W148: =AVERAGE(R148:V148) -> 5 | X148: =STDEV(R148:V148) -> 2 | Y148: 0 | Z148: 0 | AA148: 1 | AB148: 0 | AC148: 1 | AD148: =AVERAGE(Y148:AC148) -> 0 | AE148: =STDEV(Y148:AC148) -> 1 | AF148: 0 | AG148: 0 | AH148: 0 | AI148: 0 | AJ148: 0 | AK148: =AVERAGE(AF148:AJ148) -> 0 | AL148: =STDEV(AF148:AJ148) -> 0 | AM148: 0 | AN148: 0 | AO148: 0 | AP148: 0 | AQ148: 0 | AR148: =AVERAGE(AM148:AQ148) -> 0 | AS148: =STDEV(AM148:AQ148) -> 0 | AT148: 0 | AU148: 0 | AV148: 0 | AW148: 0 | AX148: 0 | AY148: =AVERAGE(AT148:AX148) -> 0 | AZ148: =STDEV(AT148:AX148) -> 0 | BA148: 0 | BB148: 0 | BC148: 0 | BD148: 0 | BE148: 0 | BF148: =AVERAGE(BA148:BE148) -> 0 | BG148: =STDEV(BA148:BE148) -> 0
B149: 3 | D149: NA | E149: NA | F149: NA | G149: NA | H149: NA | I149: =AVERAGE(D149:H149) ->  | J149: =STDEV(D149:H149) ->  | K149: 59 | L149: 35 | M149: 45 | N149: 54 | O149: 55 | P149: =AVERAGE(K149:O149) -> 50 | Q149: =STDEV(K149:O149) -> 10 | R149: 8 | S149: 4 | T149: 7 | U149: 4 | V149: 11 | W149: =AVERAGE(R149:V149) -> 7 | X149: =STDEV(R149:V149) -> 3 | Y149: 1 | Z149: 2 | AA149: 0 | AB149: 0 | AC149: 1 | AD149: =AVERAGE(Y149:AC149) -> 1 | AE149: =STDEV(Y149:AC149) -> 1 | AF149: 0 | AG149: 0 | AH149: 0 | AI149: 0 | AJ149: 0 | AK149: =AVERAGE(AF149:AJ149) -> 0 | AL149: =STDEV(AF149:AJ149) -> 0 | AM149: 0 | AN149: 0 | AO149: 0 | AP149: 0 | AQ149: 0 | AR149: =AVERAGE(AM149:AQ149) -> 0 | AS149: =STDEV(AM149:AQ149) -> 0 | AT149: 0 | AU149: 0 | AV149: 0 | AW149: 0 | AX149: 0 | AY149: =AVERAGE(AT149:AX149) -> 0 | AZ149: =STDEV(AT149:AX149) -> 0 | BA149: 0 | BB149: 0 | BC149: 0 | BD149: 0 | BE149: 0 | BF149: =AVERAGE(BA149:BE149) -> 0 | BG149: =STDEV(BA149:BE149) -> 0
A150: average | I150: =AVERAGE(I147:I149) ->  | P150: =AVERAGE(P147:P149) -> 34 | W150: =AVERAGE(W147:W149) -> 5 | AD150: =AVERAGE(AD147:AD149) -> 0 | AK150: =AVERAGE(AK147:AK149) -> 0 | AR150: =AVERAGE(AR147:AR149) -> 0 | AY150: =AVERAGE(AY147:AY149) -> 0 | BF150: =AVERAGE(BF147:BF149) -> 0
A151: stdev | I151: =SUM(J147:J149) ->  | P151: =SUM(Q147:Q149) -> 24 | W151: =SUM(X147:X149) -> 7 | AD151: =SUM(AE147:AE149) -> 2 | AK151: =SUM(AL147:AL149) -> 0 | AR151: =SUM(AS147:AS149) -> 0 | AY151: =SUM(AZ147:AZ149) -> 0 | BF151: =SUM(BG147:BG149) -> 0
A152: pS2213 APR | B152: 1 | D152: NA | E152: 174 | F152: 170 | G152: 113 | H152: 123 | I152: =AVERAGE(D152:H152) -> 145 | J152: =STDEV(D152:H152) -> 31.48544637 | K152: 35 | L152: 38 | M152: 29 | N152: 31 | O152: 36 | P152: =AVERAGE(K152:O152) -> 33.8 | Q152: =STDEV(K152:O152) -> 3.701351105 | R152: 6 | S152: 6 | T152: 3 | U152: 7 | V152: 7 | W152: =AVERAGE(R152:V152) -> 5.8 | X152: =STDEV(R152:V152) -> 1.643167673 | Y152: 0 | Z152: 0 | AA152: 0 | AB152: 2 | AC152: 0 | AD152: =AVERAGE(Y152:AC152) -> 0.4 | AE152: =STDEV(Y152:AC152) -> 0.894427191 | AF152: 0 | AG152: 0 | AH152: 0 | AI152: 0 | AJ152: 0 | AK152: =AVERAGE(AF152:AJ152) -> 0 | AL152: =STDEV(AF152:AJ152) -> 0 | AM152: 0 | AN152: 0 | AO152: 0 | AP152: 0 | AQ152: 0 | AR152: =AVERAGE(AM152:AQ152) -> 0 | AS152: =STDEV(AM152:AQ152) -> 0 | AT152: 0 | AU152: 0 | AV152: 0 | AW152: 0 | AX152: 0 | AY152: =AVERAGE(AT152:AX152) -> 0 | AZ152: =STDEV(AT152:AX152) -> 0 | BA152: 0 | BB152: 0 | BC152: 0 | BD152: 0 | BE152: 0 | BF152: =AVERAGE(BA152:BE152) -> 0 | BG152: =STDEV(BA152:BE152) -> 0
A153: p+0 | B153: 2 | D153: NA | E153: NA | F153: NA | G153: NA | H153: NA | I153: =AVERAGE(D153:H153) ->  | J153: =STDEV(D153:H153) ->  | K153: 111 | L153: 115 | M153: 133 | N153: 119 | O153: 119 | P153: =AVERAGE(K153:O153) -> 119.4 | Q153: =STDEV(K153:O153) -> 8.294576541 | R153: 13 | S153: 22 | T153: 18 | U153: 6 | V153: 20 | W153: =AVERAGE(R153:V153) -> 15.8 | X153: =STDEV(R153:V153) -> 6.418722614 | Y153: 3 | Z153: 0 | AA153: 0 | AB153: 0 | AC153: 2 | AD153: =AVERAGE(Y153:AC153) -> 1 | AE153: =STDEV(Y153:AC153) -> 1.414213562 | AF153: 0 | AG153: 0 | AH153: 0 | AI153: 0 | AJ153: 0 | AK153: =AVERAGE(AF153:AJ153) -> 0 | AL153: =STDEV(AF153:AJ153) -> 0 | AM153: 0 | AN153: 0 | AO153: 0 | AP153: 0 | AQ153: 0 | AR153: =AVERAGE(AM153:AQ153) -> 0 | AS153: =STDEV(AM153:AQ153) -> 0 | AT153: 0 | AU153: 0 | AV153: 0 | AW153: 0 | AX153: 0 | AY153: =AVERAGE(AT153:AX153) -> 0 | AZ153: =STDEV(AT153:AX153) -> 0 | BA153: 0 | BB153: 0 | BC153: 0 | BD153: 0 | BE153: 0 | BF153: =AVERAGE(BA153:BE153) -> 0 | BG153: =STDEV(BA153:BE153) -> 0
B154: 3 | D154: 100 | E154: 94 | F154: 104 | G154: 95 | H154: 111 | I154: =AVERAGE(D154:H154) -> 101 | J154: =STDEV(D154:H154) -> 7 | K154: 14 | L154: 13 | M154: 12 | N154: 18 | O154: 12 | P154: =AVERAGE(K154:O154) -> 14 | Q154: =STDEV(K154:O154) -> 2 | R154: 1 | S154: 1 | T154: 1 | U154: 1 | V154: 0 | W154: =AVERAGE(R154:V154) -> 1 | X154: =STDEV(R154:V154) -> 0 | Y154: 0 | Z154: 0 | AA154: 0 | AB154: 0 | AC154: 0 | AD154: =AVERAGE(Y154:AC154) -> 0 | AE154: =STDEV(Y154:AC154) -> 0 | AF154: 0 | AG154: 0 | AH154: 0 | AI154: 0 | AJ154: 0 | AK154: =AVERAGE(AF154:AJ154) -> 0 | AL154: =STDEV(AF154:AJ154) -> 0 | AM154: 0 | AN154: 0 | AO154: 0 | AP154: 0 | AQ154: 0 | AR154: =AVERAGE(AM154:AQ154) -> 0 | AS154: =STDEV(AM154:AQ154) -> 0 | AT154: 0 | AU154: 0 | AV154: 0 | AW154: 0 | AX154: 0 | AY154: =AVERAGE(AT154:AX154) -> 0 | AZ154: =STDEV(AT154:AX154) -> 0 | BA154: 0 | BB154: 0 | BC154: 0 | BD154: 0 | BE154: 0 | BF154: =AVERAGE(BA154:BE154) -> 0 | BG154: =STDEV(BA154:BE154) -> 0
A155: average | I155: =AVERAGE(I152:I154) ->  | P155: =AVERAGE(P152:P154) -> 56 | W155: =AVERAGE(W152:W154) -> 7 | AD155: =AVERAGE(AD152:AD154) -> 0 | AK155: =AVERAGE(AK152:AK154) -> 0 | AR155: =AVERAGE(AR152:AR154) -> 0 | AY155: =AVERAGE(AY152:AY154) -> 0 | BF155: =AVERAGE(BF152:BF154) -> 0
A156: stdev | I156: =SUM(J152:J154) ->  | P156: =SUM(Q152:Q154) -> 14 | W156: =SUM(X152:X154) -> 9 | AD156: =SUM(AE152:AE154) -> 2 | AK156: =SUM(AL152:AL154) -> 0 | AR156: =SUM(AS152:AS154) -> 0 | AY156: =SUM(AZ152:AZ154) -> 0 | BF156: =SUM(BG152:BG154) -> 0
A157: p+3 | B157: 1 | D157: NA | E157: NA | F157: NA | G157: NA | H157: NA | I157: =AVERAGE(D157:H157) ->  | J157: =STDEV(D157:H157) ->  | K157: 38 | L157: 35 | M157: 40 | N157: 46 | O157: 32 | P157: =AVERAGE(K157:O157) -> 38 | Q157: =STDEV(K157:O157) -> 5 | R157: 10 | S157: 1 | T157: 7 | U157: 3 | V157: 10 | W157: =AVERAGE(R157:V157) -> 6 | X157: =STDEV(R157:V157) -> 4 | Y157: 1 | Z157: 2 | AA157: 0 | AB157: 0 | AC157: 0 | AD157: =AVERAGE(Y157:AC157) -> 1 | AE157: =STDEV(Y157:AC157) -> 1 | AF157: 0 | AG157: 0 | AH157: 0 | AI157: 0 | AJ157: 0 | AK157: =AVERAGE(AF157:AJ157) -> 0 | AL157: =STDEV(AF157:AJ157) -> 0 | AM157: 0 | AN157: 0 | AO157: 0 | AP157: 0 | AQ157: 0 | AR157: =AVERAGE(AM157:AQ157) -> 0 | AS157: =STDEV(AM157:AQ157) -> 0 | AT157: 0 | AU157: 0 | AV157: 0 | AW157: 0 | AX157: 0 | AY157: =AVERAGE(AT157:AX157) -> 0 | AZ157: =STDEV(AT157:AX157) -> 0 | BA157: 0 | BB157: 0 | BC157: 0 | BD157: 0 | BE157: 0 | BF157: =AVERAGE(BA157:BE157) -> 0 | BG157: =STDEV(BA157:BE157) -> 0
B158: 2 | D158: NA | E158: NA | F158: NA | G158: NA | H158: NA | I158: =AVERAGE(D158:H158) ->  | J158: =STDEV(D158:H158) ->  | K158: 125 | L158: 129 | M158: 141 | N158: 121 | O158: 136 | P158: =AVERAGE(K158:O158) -> 130 | Q158: =STDEV(K158:O158) -> 8 | R158: 9 | S158: 16 | T158: 17 | U158: 22 | V158: 19 | W158: =AVERAGE(R158:V158) -> 17 | X158: =STDEV(R158:V158) -> 5 | Y158: 0 | Z158: 1 | AA158: 0 | AB158: 0 | AC158: 2 | AD158: =AVERAGE(Y158:AC158) -> 1 | AE158: =STDEV(Y158:AC158) -> 1 | AF158: 0 | AG158: 0 | AH158: 0 | AI158: 0 | AJ158: 0 | AK158: =AVERAGE(AF158:AJ158) -> 0 | AL158: =STDEV(AF158:AJ158) -> 0 | AM158: 0 | AN158: 0 | AO158: 0 | AP158: 0 | AQ158: 0 | AR158: =AVERAGE(AM158:AQ158) -> 0 | AS158: =STDEV(AM158:AQ158) -> 0 | AT158: 0 | AU158: 0 | AV158: 0 | AW158: 0 | AX158: 0 | AY158: =AVERAGE(AT158:AX158) -> 0 | AZ158: =STDEV(AT158:AX158) -> 0 | BA158: 0 | BB158: 0 | BC158: 0 | BD158: 0 | BE158: 0 | BF158: =AVERAGE(BA158:BE158) -> 0 | BG158: =STDEV(BA158:BE158) -> 0
B159: 3 | D159: NA | E159: NA | F159: NA | G159: NA | H159: NA | I159: =AVERAGE(D159:H159) ->  | J159: =STDEV(D159:H159) ->  | K159: 74 | L159: 72 | M159: 81 | N159: 66 | O159: 62 | P159: =AVERAGE(K159:O159) -> 71 | Q159: =STDEV(K159:O159) -> 7 | R159: 12 | S159: 11 | T159: 10 | U159: 11 | V159: 8 | W159: =AVERAGE(R159:V159) -> 10 | X159: =STDEV(R159:V159) -> 2 | Y159: 0 | Z159: 1 | AA159: 1 | AB159: 1 | AC159: 1 | AD159: =AVERAGE(Y159:AC159) -> 1 | AE159: =STDEV(Y159:AC159) -> 0 | AF159: 0 | AG159: 0 | AH159: 0 | AI159: 0 | AJ159: 0 | AK159: =AVERAGE(AF159:AJ159) -> 0 | AL159: =STDEV(AF159:AJ159) -> 0 | AM159: 0 | AN159: 0 | AO159: 0 | AP159: 0 | AQ159: 0 | AR159: =AVERAGE(AM159:AQ159) -> 0 | AS159: =STDEV(AM159:AQ159) -> 0 | AT159: 0 | AU159: 0 | AV159: 0 | AW159: 0 | AX159: 0 | AY159: =AVERAGE(AT159:AX159) -> 0 | AZ159: =STDEV(AT159:AX159) -> 0 | BA159: 0 | BB159: 0 | BC159: 0 | BD159: 0 | BE159: 0 | BF159: =AVERAGE(BA159:BE159) -> 0 | BG159: =STDEV(BA159:BE159) -> 0
A160: average | I160: =AVERAGE(I157:I159) ->  | P160: =AVERAGE(P157:P159) -> 80 | W160: =AVERAGE(W157:W159) -> 11 | AD160: =AVERAGE(AD157:AD159) -> 1 | AK160: =AVERAGE(AK157:AK159) -> 0 | AR160: =AVERAGE(AR157:AR159) -> 0 | AY160: =AVERAGE(AY157:AY159) -> 0 | BF160: =AVERAGE(BF157:BF159) -> 0
A161: stdev | I161: =SUM(J157:J159) ->  | P161: =SUM(Q157:Q159) -> 21 | W161: =SUM(X157:X159) -> 10 | AD161: =SUM(AE157:AE159) -> 2 | AK161: =SUM(AL157:AL159) -> 0 | AR161: =SUM(AS157:AS159) -> 0 | AY161: =SUM(AZ157:AZ159) -> 0 | BF161: =SUM(BG157:BG159) -> 0
A164: T14 | B164: 2018-02-22
A165: Sample | B165: Dilution: | D165: 10^0 | I165: AVERAGE | J165: STDEV | K165: 10^-1 | P165: AVERAGE | Q165: STDEV | R165: 10^-2 | W165: AVERAGE | X165: STDEV | Y165: 10^-3 | AD165: AVERAGE | AE165: STDEV | AF165: 10^-4 | AK165: AVERAGE | AL165: STDEV | AM165: 10^-5 | AR165: AVERAGE | AS165: STDEV | AT165: 10^-6 | AY165: AVERAGE | AZ165: STDEV | BA165: 10^-7 | BF165: AVERAGE | BG165: STDEV
A166: Blank | B166: 1 | D166: 0 | E166: 0 | F166: 0 | G166: 0 | H166: 0 | I166: =AVERAGE(D166:H166) -> 0 | J166: =STDEV(D166:H166) -> 0 | K166: 0 | L166: 0 | M166: 0 | N166: 0 | O166: 0 | P166: =AVERAGE(K166:O166) -> 0 | Q166: =STDEV(K166:O166) -> 0 | R166: 0 | S166: 0 | T166: 0 | U166: 0 | V166: 0 | W166: =AVERAGE(R166:V166) -> 0 | X166: =STDEV(R166:V166) -> 0 | Y166: 0 | Z166: 0 | AA166: 0 | AB166: 0 | AC166: 0 | AD166: =AVERAGE(Y166:AC166) -> 0 | AE166: =STDEV(Y166:AC166) -> 0 | AF166: 0 | AG166: 0 | AH166: 0 | AI166: 0 | AJ166: 0 | AK166: =AVERAGE(AF166:AJ166) -> 0 | AL166: =STDEV(AF166:AJ166) -> 0 | AM166: 0 | AN166: 0 | AO166: 0 | AP166: 0 | AQ166: 0 | AR166: =AVERAGE(AM166:AQ166) -> 0 | AS166: =STDEV(AM166:AQ166) -> 0 | AT166: 0 | AU166: 0 | AV166: 0 | AW166: 0 | AX166: 0 | AY166: =AVERAGE(AT166:AX166) -> 0 | AZ166: =STDEV(AT166:AX166) -> 0 | BA166: 0 | BB166: 0 | BC166: 0 | BD166: 0 | BE166: 0 | BF166: =AVERAGE(BA166:BE166) -> 0 | BG166: =STDEV(BA166:BE166) -> 0
B167: 2 | D167: 0 | E167: 0 | F167: 0 | G167: 0 | H167: 0 | I167: =AVERAGE(D167:H167) -> 0 | J167: =STDEV(D167:H167) -> 0 | K167: 0 | L167: 0 | M167: 0 | N167: 0 | O167: 0 | P167: =AVERAGE(K167:O167) -> 0 | Q167: =STDEV(K167:O167) -> 0 | R167: 0 | S167: 0 | T167: 0 | U167: 0 | V167: 0 | W167: =AVERAGE(R167:V167) -> 0 | X167: =STDEV(R167:V167) -> 0 | Y167: 0 | Z167: 0 | AA167: 0 | AB167: 0 | AC167: 0 | AD167: =AVERAGE(Y167:AC167) -> 0 | AE167: =STDEV(Y167:AC167) -> 0 | AF167: 0 | AG167: 0 | AH167: 0 | AI167: 0 | AJ167: 0 | AK167: =AVERAGE(AF167:AJ167) -> 0 | AL167: =STDEV(AF167:AJ167) -> 0 | AM167: 0 | AN167: 0 | AO167: 0 | AP167: 0 | AQ167: 0 | AR167: =AVERAGE(AM167:AQ167) -> 0 | AS167: =STDEV(AM167:AQ167) -> 0 | AT167: 0 | AU167: 0 | AV167: 0 | AW167: 0 | AX167: 0 | AY167: =AVERAGE(AT167:AX167) -> 0 | AZ167: =STDEV(AT167:AX167) -> 0 | BA167: 0 | BB167: 0 | BC167: 0 | BD167: 0 | BE167: 0 | BF167: =AVERAGE(BA167:BE167) -> 0 | BG167: =STDEV(BA167:BE167) -> 0
B168: 3 | D168: 0 | E168: 0 | F168: 0 | G168: 0 | H168: 0 | I168: =AVERAGE(D168:H168) -> 0 | J168: =STDEV(D168:H168) -> 0 | K168: 0 | L168: 0 | M168: 0 | N168: 0 | O168: 0 | P168: =AVERAGE(K168:O168) -> 0 | Q168: =STDEV(K168:O168) -> 0 | R168: 0 | S168: 0 | T168: 0 | U168: 0 | V168: 0 | W168: =AVERAGE(R168:V168) -> 0 | X168: =STDEV(R168:V168) -> 0 | Y168: 0 | Z168: 0 | AA168: 0 | AB168: 0 | AC168: 0 | AD168: =AVERAGE(Y168:AC168) -> 0 | AE168: =STDEV(Y168:AC168) -> 0 | AF168: 0 | AG168: 0 | AH168: 0 | AI168: 0 | AJ168: 0 | AK168: =AVERAGE(AF168:AJ168) -> 0 | AL168: =STDEV(AF168:AJ168) -> 0 | AM168: 0 | AN168: 0 | AO168: 0 | AP168: 0 | AQ168: 0 | AR168: =AVERAGE(AM168:AQ168) -> 0 | AS168: =STDEV(AM168:AQ168) -> 0 | AT168: 0 | AU168: 0 | AV168: 0 | AW168: 0 | AX168: 0 | AY168: =AVERAGE(AT168:AX168) -> 0 | AZ168: =STDEV(AT168:AX168) -> 0 | BA168: 0 | BB168: 0 | BC168: 0 | BD168: 0 | BE168: 0 | BF168: =AVERAGE(BA168:BE168) -> 0 | BG168: =STDEV(BA168:BE168) -> 0
I169: =AVERAGE(I166:I168) -> 0 | P169: =AVERAGE(P166:P168) -> 0 | W169: =AVERAGE(W166:W168) -> 0 | AD169: =AVERAGE(AD166:AD168) -> 0 | AK169: =AVERAGE(AK166:AK168) -> 0 | AR169: =AVERAGE(AR166:AR168) -> 0 | AY169: =AVERAGE(AY166:AY168) -> 0 | BF169: =AVERAGE(BF166:BF168) -> 0
I170: =SUM(J166:J168) -> 0 | P170: =SUM(Q166:Q168) -> 0 | W170: =SUM(X166:X168) -> 0 | AD170: =SUM(AE166:AE168) -> 0 | AK170: =SUM(AL166:AL168) -> 0 | AR170: =SUM(AS166:AS168) -> 0 | AY170: =SUM(AZ166:AZ168) -> 0 | BF170: =SUM(BG166:BG168) -> 0
A171: BW25113 - | B171: 1 | D171: NA | E171: NA | F171: NA | G171: NA | H171: NA | I171: =AVERAGE(D171:H171) ->  | J171: =STDEV(D171:H171) ->  | K171: NA | L171: NA | M171: NA | N171: NA | O171: NA | P171: =AVERAGE(K171:O171) ->  | Q171: =STDEV(K171:O171) ->  | R171: NA | S171: NA | T171: NA | U171: NA | V171: NA | W171: =AVERAGE(R171:V171) ->  | X171: =STDEV(R171:V171) ->  | Y171: NA | Z171: NA | AA171: NA | AB171: NA | AC171: NA | AD171: =AVERAGE(Y171:AC171) ->  | AE171: =STDEV(Y171:AC171) ->  | AF171: 227 | AG171: 184 | AH171: 221 | AI171: 212 | AJ171: 196 | AK171: =AVERAGE(AF171:AJ171) -> 208 | AL171: =STDEV(AF171:AJ171) -> 18 | AM171: 37 | AN171: 43 | AO171: 33 | AP171: 35 | AQ171: 34 | AR171: =AVERAGE(AM171:AQ171) -> 36 | AS171: =STDEV(AM171:AQ171) -> 4 | AT171: 5 | AU171: 1 | AV171: 2 | AW171: 1 | AX171: 3 | AY171: =AVERAGE(AT171:AX171) -> 2 | AZ171: =STDEV(AT171:AX171) -> 2 | BA171: 0 | BB171: 1 | BC171: 1 | BD171: 0 | BE171: 0 | BF171: =AVERAGE(BA171:BE171) -> 0 | BG171: =STDEV(BA171:BE171) -> 1
A172: pS2213 - | B172: 2 | D172: NA | E172: NA | F172: NA | G172: NA | H172: NA | I172: =AVERAGE(D172:H172) ->  | J172: =STDEV(D172:H172) ->  | K172: NA | L172: NA | M172: NA | N172: NA | O172: NA | P172: =AVERAGE(K172:O172) ->  | Q172: =STDEV(K172:O172) ->  | R172: NA | S172: NA | T172: NA | U172: NA | V172: NA | W172: =AVERAGE(R172:V172) ->  | X172: =STDEV(R172:V172) ->  | Y172: NA | Z172: NA | AA172: NA | AB172: NA | AC172: NA | AD172: =AVERAGE(Y172:AC172) ->  | AE172: =STDEV(Y172:AC172) ->  | AF172: 224 | AG172: 205 | AH172: 203 | AI172: 203 | AJ172: 207 | AK172: =AVERAGE(AF172:AJ172) -> 208 | AL172: =STDEV(AF172:AJ172) -> 9 | AM172: 46 | AN172: 39 | AO172: 30 | AP172: 30 | AQ172: 42 | AR172: =AVERAGE(AM172:AQ172) -> 37 | AS172: =STDEV(AM172:AQ172) -> 7 | AT172: 7 | AU172: 6 | AV172: 5 | AW172: 2 | AX172: 4 | AY172: =AVERAGE(AT172:AX172) -> 5 | AZ172: =STDEV(AT172:AX172) -> 2 | BA172: 2 | BB172: 0 | BC172: 0 | BD172: 0 | BE172: 0 | BF172: =AVERAGE(BA172:BE172) -> 0 | BG172: =STDEV(BA172:BE172) -> 1
B173: 3 | D173: NA | E173: NA | F173: NA | G173: NA | H173: NA | I173: =AVERAGE(D173:H173) ->  | J173: =STDEV(D173:H173) ->  | K173: NA | L173: NA | M173: NA | N173: NA | O173: NA | P173: =AVERAGE(K173:O173) ->  | Q173: =STDEV(K173:O173) ->  | R173: NA | S173: NA | T173: NA | U173: NA | V173: NA | W173: =AVERAGE(R173:V173) ->  | X173: =STDEV(R173:V173) ->  | Y173: NA | Z173: NA | AA173: NA | AB173: NA | AC173: NA | AD173: =AVERAGE(Y173:AC173) ->  | AE173: =STDEV(Y173:AC173) ->  | AF173: NA | AG173: NA | AH173: NA | AI173: NA | AJ173: NA | AK173: =AVERAGE(AF173:AJ173) ->  | AL173: =STDEV(AF173:AJ173) ->  | AM173: 37 | AN173: 36 | AO173: 28 | AP173: 48 | AQ173: 32 | AR173: =AVERAGE(AM173:AQ173) -> 36 | AS173: =STDEV(AM173:AQ173) -> 7 | AT173: 5 | AU173: 5 | AV173: 2 | AW173: 6 | AX173: 6 | AY173: =AVERAGE(AT173:AX173) -> 5 | AZ173: =STDEV(AT173:AX173) -> 2 | BA173: 0 | BB173: 0 | BC173: 1 | BD173: 1 | BE173: 0 | BF173: =AVERAGE(BA173:BE173) -> 0 | BG173: =STDEV(BA173:BE173) -> 1
A174: average | I174: =AVERAGE(I171:I173) ->  | P174: =AVERAGE(P171:P173) ->  | W174: =AVERAGE(W171:W173) ->  | AD174: =AVERAGE(AD171:AD173) ->  | AK174: =AVERAGE(AK171:AK173) ->  | AR174: =AVERAGE(AR171:AR173) -> 37 | AY174: =AVERAGE(AY171:AY173) -> 4 | BF174: =AVERAGE(BF171:BF173) -> 0
A175: stdev | I175: =SUM(J171:J173) ->  | P175: =SUM(Q171:Q173) ->  | W175: =SUM(X171:X173) ->  | AD175: =SUM(AE171:AE173) ->  | AK175: =SUM(AL171:AL173) ->  | AR175: =SUM(AS171:AS173) -> 19 | AY175: =SUM(AZ171:AZ173) -> 5 | BF175: =SUM(BG171:BG173) -> 2
A176: pS2213 - | B176: 1 | D176: 34 | E176: 34 | F176: 44 | G176: 41 | H176: 32 | I176: =AVERAGE(D176:H176) -> 37 | J176: =STDEV(D176:H176) -> 5.196152423 | K176: 2 | L176: 5 | M176: 6 | N176: 4 | O176: 3 | P176: =AVERAGE(K176:O176) -> 4 | Q176: =STDEV(K176:O176) -> 1.58113883 | R176: 0 | S176: 0 | T176: 1 | U176: 0 | V176: 1 | W176: =AVERAGE(R176:V176) -> 0.4 | X176: =STDEV(R176:V176) -> 0.5477225575 | Y176: 0 | Z176: 0 | AA176: 0 | AB176: 0 | AC176: 0 | AD176: =AVERAGE(Y176:AC176) -> 0 | AE176: =STDEV(Y176:AC176) -> 0 | AF176: 0 | AG176: 0 | AH176: 0 | AI176: 0 | AJ176: 0 | AK176: =AVERAGE(AF176:AJ176) -> 0 | AL176: =STDEV(AF176:AJ176) -> 0 | AM176: 0 | AN176: 0 | AO176: 0 | AP176: 0 | AQ176: 0 | AR176: =AVERAGE(AM176:AQ176) -> 0 | AS176: =STDEV(AM176:AQ176) -> 0 | AT176: 0 | AU176: 0 | AV176: 0 | AW176: 0 | AX176: 0 | AY176: =AVERAGE(AT176:AX176) -> 0 | AZ176: =STDEV(AT176:AX176) -> 0 | BA176: 0 | BB176: 0 | BC176: 0 | BD176: 0 | BE176: 0 | BF176: =AVERAGE(BA176:BE176) -> 0 | BG176: =STDEV(BA176:BE176) -> 0
A177: p+0 | B177: 2 | D177: NA | E177: NA | F177: NA | G177: NA | H177: NA | I177: =AVERAGE(D177:H177) ->  | J177: =STDEV(D177:H177) ->  | K177: 47 | L177: 44 | M177: 40 | N177: 50 | O177: 54 | P177: =AVERAGE(K177:O177) -> 47 | Q177: =STDEV(K177:O177) -> 5.385164807 | R177: 7 | S177: 3 | T177: 9 | U177: 7 | V177: 8 | W177: =AVERAGE(R177:V177) -> 6.8 | X177: =STDEV(R177:V177) -> 2.28035085 | Y177: 2 | Z177: 1 | AA177: 0 | AB177: 0 | AC177: 1 | AD177: =AVERAGE(Y177:AC177) -> 0.8 | AE177: =STDEV(Y177:AC177) -> 0.8366600265 | AF177: 0 | AG177: 0 | AH177: 0 | AI177: 0 | AJ177: 0 | AK177: =AVERAGE(AF177:AJ177) -> 0 | AL177: =STDEV(AF177:AJ177) -> 0 | AM177: 0 | AN177: 0 | AO177: 0 | AP177: 0 | AQ177: 0 | AR177: =AVERAGE(AM177:AQ177) -> 0 | AS177: =STDEV(AM177:AQ177) -> 0 | AT177: 0 | AU177: 0 | AV177: 0 | AW177: 0 | AX177: 0 | AY177: =AVERAGE(AT177:AX177) -> 0 | AZ177: =STDEV(AT177:AX177) -> 0 | BA177: 0 | BB177: 0 | BC177: 0 | BD177: 0 | BE177: 0 | BF177: =AVERAGE(BA177:BE177) -> 0 | BG177: =STDEV(BA177:BE177) -> 0
B178: 3 | D178: 114 | E178: 100 | F178: 94 | G178: 96 | H178: 92 | I178: =AVERAGE(D178:H178) -> 99 | J178: =STDEV(D178:H178) -> 9 | K178: 19 | L178: 19 | M178: 19 | N178: 19 | O178: 16 | P178: =AVERAGE(K178:O178) -> 18 | Q178: =STDEV(K178:O178) -> 1 | R178: 2 | S178: 4 | T178: 2 | U178: 0 | V178: 2 | W178: =AVERAGE(R178:V178) -> 2 | X178: =STDEV(R178:V178) -> 1 | Y178: 0 | Z178: 0 | AA178: 0 | AB178: 0 | AC178: 0 | AD178: =AVERAGE(Y178:AC178) -> 0 | AE178: =STDEV(Y178:AC178) -> 0 | AF178: 0 | AG178: 0 | AH178: 0 | AI178: 0 | AJ178: 0 | AK178: =AVERAGE(AF178:AJ178) -> 0 | AL178: =STDEV(AF178:AJ178) -> 0 | AM178: 0 | AN178: 0 | AO178: 0 | AP178: 0 | AQ178: 0 | AR178: =AVERAGE(AM178:AQ178) -> 0 | AS178: =STDEV(AM178:AQ178) -> 0 | AT178: 0 | AU178: 0 | AV178: 0 | AW178: 0 | AX178: 0 | AY178: =AVERAGE(AT178:AX178) -> 0 | AZ178: =STDEV(AT178:AX178) -> 0 | BA178: 0 | BB178: 0 | BC178: 0 | BD178: 0 | BE178: 0 | BF178: =AVERAGE(BA178:BE178) -> 0 | BG178: =STDEV(BA178:BE178) -> 0
A179: average | I179: =AVERAGE(I176:I178) ->  | P179: =AVERAGE(P176:P178) -> 23 | W179: =AVERAGE(W176:W178) -> 3 | AD179: =AVERAGE(AD176:AD178) -> 0 | AK179: =AVERAGE(AK176:AK178) -> 0 | AR179: =AVERAGE(AR176:AR178) -> 0 | AY179: =AVERAGE(AY176:AY178) -> 0 | BF179: =AVERAGE(BF176:BF178) -> 0
A180: stdev | I180: =SUM(J176:J178) ->  | P180: =SUM(Q176:Q178) -> 8 | W180: =SUM(X176:X178) -> 4 | AD180: =SUM(AE176:AE178) -> 1 | AK180: =SUM(AL176:AL178) -> 0 | AR180: =SUM(AS176:AS178) -> 0 | AY180: =SUM(AZ176:AZ178) -> 0 | BF180: =SUM(BG176:BG178) -> 0
A181: pS2213 A | B181: 1 | D181: 93 | E181: 97 | F181: 88 | G181: 93 | H181: 89 | I181: =AVERAGE(D181:H181) -> 92 | J181: =STDEV(D181:H181) -> 4 | K181: 6 | L181: 12 | M181: 8 | N181: 8 | O181: 8 | P181: =AVERAGE(K181:O181) -> 8 | Q181: =STDEV(K181:O181) -> 2 | R181: 0 | S181: 1 | T181: 0 | U181: 3 | V181: 1 | W181: =AVERAGE(R181:V181) -> 1 | X181: =STDEV(R181:V181) -> 1 | Y181: 0 | Z181: 0 | AA181: 0 | AB181: 0 | AC181: 0 | AD181: =AVERAGE(Y181:AC181) -> 0 | AE181: =STDEV(Y181:AC181) -> 0 | AF181: 0 | AG181: 0 | AH181: 0 | AI181: 0 | AJ181: 0 | AK181: =AVERAGE(AF181:AJ181) -> 0 | AL181: =STDEV(AF181:AJ181) -> 0 | AM181: 0 | AN181: 0 | AO181: 0 | AP181: 0 | AQ181: 0 | AR181: =AVERAGE(AM181:AQ181) -> 0 | AS181: =STDEV(AM181:AQ181) -> 0 | AT181: 0 | AU181: 0 | AV181: 0 | AW181: 0 | AX181: 0 | AY181: =AVERAGE(AT181:AX181) -> 0 | AZ181: =STDEV(AT181:AX181) -> 0 | BA181: 0 | BB181: 0 | BC181: 0 | BD181: 0 | BE181: 0 | BF181: =AVERAGE(BA181:BE181) -> 0 | BG181: =STDEV(BA181:BE181) -> 0
A182: p+0 | B182: 2 | D182: NA | E182: NA | F182: NA | G182: NA | H182: NA | I182: =AVERAGE(D182:H182) ->  | J182: =STDEV(D182:H182) ->  | K182: 87 | L182: 78 | M182: 60 | N182: 73 | O182: 69 | P182: =AVERAGE(K182:O182) -> 73 | Q182: =STDEV(K182:O182) -> 10 | R182: 11 | S182: 10 | T182: 8 | U182: 17 | V182: 10 | W182: =AVERAGE(R182:V182) -> 11 | X182: =STDEV(R182:V182) -> 3 | Y182: 1 | Z182: 0 | AA182: 1 | AB182: 0 | AC182: 0 | AD182: =AVERAGE(Y182:AC182) -> 0 | AE182: =STDEV(Y182:AC182) -> 1 | AF182: 0 | AG182: 0 | AH182: 0 | AI182: 0 | AJ182: 0 | AK182: =AVERAGE(AF182:AJ182) -> 0 | AL182: =STDEV(AF182:AJ182) -> 0 | AM182: 0 | AN182: 0 | AO182: 0 | AP182: 0 | AQ182: 0 | AR182: =AVERAGE(AM182:AQ182) -> 0 | AS182: =STDEV(AM182:AQ182) -> 0 | AT182: 0 | AU182: 0 | AV182: 0 | AW182: 0 | AX182: 0 | AY182: =AVERAGE(AT182:AX182) -> 0 | AZ182: =STDEV(AT182:AX182) -> 0 | BA182: 0 | BB182: 0 | BC182: 0 | BD182: 0 | BE182: 0 | BF182: =AVERAGE(BA182:BE182) -> 0 | BG182: =STDEV(BA182:BE182) -> 0
B183: 3 | D183: NA | E183: NA | F183: NA | G183: NA | H183: NA | I183: =AVERAGE(D183:H183) ->  | J183: =STDEV(D183:H183) ->  | K183: 64 | L183: 53 | M183: 52 | N183: 57 | O183: 37 | P183: =AVERAGE(K183:O183) -> 53 | Q183: =STDEV(K183:O183) -> 10 | R183: 6 | S183: 7 | T183: 5 | U183: 4 | V183: 4 | W183: =AVERAGE(R183:V183) -> 5 | X183: =STDEV(R183:V183) -> 1 | Y183: 0 | Z183: 1 | AA183: 1 | AB183: 0 | AC183: 0 | AD183: =AVERAGE(Y183:AC183) -> 0 | AE183: =STDEV(Y183:AC183) -> 1 | AF183: 0 | AG183: 0 | AH183: 0 | AI183: 0 | AJ183: 0 | AK183: =AVERAGE(AF183:AJ183) -> 0 | AL183: =STDEV(AF183:AJ183) -> 0 | AM183: 0 | AN183: 0 | AO183: 0 | AP183: 0 | AQ183: 0 | AR183: =AVERAGE(AM183:AQ183) -> 0 | AS183: =STDEV(AM183:AQ183) -> 0 | AT183: 0 | AU183: 0 | AV183: 0 | AW183: 0 | AX183: 0 | AY183: =AVERAGE(AT183:AX183) -> 0 | AZ183: =STDEV(AT183:AX183) -> 0 | BA183: 0 | BB183: 0 | BC183: 0 | BD183: 0 | BE183: 0 | BF183: =AVERAGE(BA183:BE183) -> 0 | BG183: =STDEV(BA183:BE183) -> 0
A184: average | I184: =AVERAGE(I181:I183) ->  | P184: =AVERAGE(P181:P183) -> 45 | W184: =AVERAGE(W181:W183) -> 6 | AD184: =AVERAGE(AD181:AD183) -> 0 | AK184: =AVERAGE(AK181:AK183) -> 0 | AR184: =AVERAGE(AR181:AR183) -> 0 | AY184: =AVERAGE(AY181:AY183) -> 0 | BF184: =AVERAGE(BF181:BF183) -> 0
A185: stdev | I185: =SUM(J181:J183) ->  | P185: =SUM(Q181:Q183) -> 22 | W185: =SUM(X181:X183) -> 6 | AD185: =SUM(AE181:AE183) -> 1 | AK185: =SUM(AL181:AL183) -> 0 | AR185: =SUM(AS181:AS183) -> 0 | AY185: =SUM(AZ181:AZ183) -> 0 | BF185: =SUM(BG181:BG183) -> 0
A186: p+3 | B186: 1 | D186: 29 | E186: 32 | F186: 20 | G186: 31 | H186: 39 | I186: =AVERAGE(D186:H186) -> 30.2 | J186: =STDEV(D186:H186) -> 6.833739825 | K186: 9 | L186: 5 | M186: 6 | N186: 10 | O186: 10 | P186: =AVERAGE(K186:O186) -> 8 | Q186: =STDEV(K186:O186) -> 2.34520788 | R186: 1 | S186: 1 | T186: 0 | U186: 3 | V186: 1 | W186: =AVERAGE(R186:V186) -> 1.2 | X186: =STDEV(R186:V186) -> 1.095445115 | Y186: 1 | Z186: 0 | AA186: 0 | AB186: 1 | AC186: 0 | AD186: =AVERAGE(Y186:AC186) -> 0.4 | AE186: =STDEV(Y186:AC186) -> 0.5477225575 | AF186: 0 | AG186: 0 | AH186: 0 | AI186: 0 | AJ186: 0 | AK186: =AVERAGE(AF186:AJ186) -> 0 | AL186: =STDEV(AF186:AJ186) -> 0 | AM186: 0 | AN186: 0 | AO186: 0 | AP186: 0 | AQ186: 0 | AR186: =AVERAGE(AM186:AQ186) -> 0 | AS186: =STDEV(AM186:AQ186) -> 0 | AT186: 0 | AU186: 0 | AV186: 0 | AW186: 0 | AX186: 0 | AY186: =AVERAGE(AT186:AX186) -> 0 | AZ186: =STDEV(AT186:AX186) -> 0 | BA186: 0 | BB186: 0 | BC186: 0 | BD186: 0 | BE186: 0 | BF186: =AVERAGE(BA186:BE186) -> 0 | BG186: =STDEV(BA186:BE186) -> 0
B187: 2 | D187: NA | E187: NA | F187: NA | G187: NA | H187: NA | I187: =AVERAGE(D187:H187) ->  | J187: =STDEV(D187:H187) ->  | K187: 39 | L187: 26 | M187: 26 | N187: 34 | O187: 33 | P187: =AVERAGE(K187:O187) -> 31.6 | Q187: =STDEV(K187:O187) -> 5.594640292 | R187: 4 | S187: 4 | T187: 6 | U187: 3 | V187: 4 | W187: =AVERAGE(R187:V187) -> 4.2 | X187: =STDEV(R187:V187) -> 1.095445115 | Y187: 0 | Z187: 0 | AA187: 1 | AB187: 0 | AC187: 0 | AD187: =AVERAGE(Y187:AC187) -> 0.2 | AE187: =STDEV(Y187:AC187) -> 0.4472135955 | AF187: 0 | AG187: 0 | AH187: 0 | AI187: 0 | AJ187: 0 | AK187: =AVERAGE(AF187:AJ187) -> 0 | AL187: =STDEV(AF187:AJ187) -> 0 | AM187: 0 | AN187: 0 | AO187: 0 | AP187: 0 | AQ187: 0 | AR187: =AVERAGE(AM187:AQ187) -> 0 | AS187: =STDEV(AM187:AQ187) -> 0 | AT187: 0 | AU187: 0 | AV187: 0 | AW187: 0 | AX187: 0 | AY187: =AVERAGE(AT187:AX187) -> 0 | AZ187: =STDEV(AT187:AX187) -> 0 | BA187: 0 | BB187: 0 | BC187: 0 | BD187: 0 | BE187: 0 | BF187: =AVERAGE(BA187:BE187) -> 0 | BG187: =STDEV(BA187:BE187) -> 0
B188: 3 | D188: NA | E188: NA | F188: NA | G188: NA | H188: NA | I188: =AVERAGE(D188:H188) ->  | J188: =STDEV(D188:H188) ->  | K188: 33 | L188: 45 | M188: 53 | N188: 46 | O188: 46 | P188: =AVERAGE(K188:O188) -> 45 | Q188: =STDEV(K188:O188) -> 7 | R188: 4 | S188: 6 | T188: 6 | U188: 6 | V188: 5 | W188: =AVERAGE(R188:V188) -> 5 | X188: =STDEV(R188:V188) -> 1 | Y188: 1 | Z188: 0 | AA188: 0 | AB188: 1 | AC188: 1 | AD188: =AVERAGE(Y188:AC188) -> 1 | AE188: =STDEV(Y188:AC188) -> 1 | AF188: 0 | AG188: 0 | AH188: 0 | AI188: 0 | AJ188: 0 | AK188: =AVERAGE(AF188:AJ188) -> 0 | AL188: =STDEV(AF188:AJ188) -> 0 | AM188: 0 | AN188: 0 | AO188: 0 | AP188: 0 | AQ188: 0 | AR188: =AVERAGE(AM188:AQ188) -> 0 | AS188: =STDEV(AM188:AQ188) -> 0 | AT188: 0 | AU188: 0 | AV188: 0 | AW188: 0 | AX188: 0 | AY188: =AVERAGE(AT188:AX188) -> 0 | AZ188: =STDEV(AT188:AX188) -> 0 | BA188: 0 | BB188: 0 | BC188: 0 | BD188: 0 | BE188: 0 | BF188: =AVERAGE(BA188:BE188) -> 0 | BG188: =STDEV(BA188:BE188) -> 0
A189: average | I189: =AVERAGE(I186:I188) ->  | P189: =AVERAGE(P186:P188) -> 28 | W189: =AVERAGE(W186:W188) -> 4 | AD189: =AVERAGE(AD186:AD188) -> 0 | AK189: =AVERAGE(AK186:AK188) -> 0 | AR189: =AVERAGE(AR186:AR188) -> 0 | AY189: =AVERAGE(AY186:AY188) -> 0 | BF189: =AVERAGE(BF186:BF188) -> 0
A190: stdev | I190: =SUM(J186:J188) ->  | P190: =SUM(Q186:Q188) -> 15 | W190: =SUM(X186:X188) -> 3 | AD190: =SUM(AE186:AE188) -> 2 | AK190: =SUM(AL186:AL188) -> 0 | AR190: =SUM(AS186:AS188) -> 0 | AY190: =SUM(AZ186:AZ188) -> 0 | BF190: =SUM(BG186:BG188) -> 0
A191: pS2213 APR | B191: 1 | D191: NA | E191: NA | F191: NA | G191: NA | H191: NA | I191: =AVERAGE(D191:H191) ->  | J191: =STDEV(D191:H191) ->  | K191: 41 | L191: 20 | M191: 33 | N191: 22 | O191: 35 | P191: =AVERAGE(K191:O191) -> 30 | Q191: =STDEV(K191:O191) -> 9 | R191: 3 | S191: 3 | T191: 3 | U191: 1 | V191: 4 | W191: =AVERAGE(R191:V191) -> 3 | X191: =STDEV(R191:V191) -> 1 | Y191: 1 | Z191: 0 | AA191: 0 | AB191: 0 | AC191: 0 | AD191: =AVERAGE(Y191:AC191) -> 0 | AE191: =STDEV(Y191:AC191) -> 0 | AF191: 0 | AG191: 0 | AH191: 0 | AI191: 0 | AJ191: 0 | AK191: =AVERAGE(AF191:AJ191) -> 0 | AL191: =STDEV(AF191:AJ191) -> 0 | AM191: 0 | AN191: 0 | AO191: 0 | AP191: 0 | AQ191: 0 | AR191: =AVERAGE(AM191:AQ191) -> 0 | AS191: =STDEV(AM191:AQ191) -> 0 | AT191: 0 | AU191: 0 | AV191: 0 | AW191: 0 | AX191: 0 | AY191: =AVERAGE(AT191:AX191) -> 0 | AZ191: =STDEV(AT191:AX191) -> 0 | BA191: 0 | BB191: 0 | BC191: 0 | BD191: 0 | BE191: 0 | BF191: =AVERAGE(BA191:BE191) -> 0 | BG191: =STDEV(BA191:BE191) -> 0
A192: p+0 | B192: 2 | D192: NA | E192: NA | F192: NA | G192: NA | H192: NA | I192: =AVERAGE(D192:H192) ->  | J192: =STDEV(D192:H192) ->  | K192: 58 | L192: 64 | M192: 71 | N192: 65 | O192: 61 | P192: =AVERAGE(K192:O192) -> 64 | Q192: =STDEV(K192:O192) -> 5 | R192: 9 | S192: 16 | T192: 8 | U192: 14 | V192: 8 | W192: =AVERAGE(R192:V192) -> 11 | X192: =STDEV(R192:V192) -> 4 | Y192: 1 | Z192: 1 | AA192: 2 | AB192: 1 | AC192: 1 | AD192: =AVERAGE(Y192:AC192) -> 1 | AE192: =STDEV(Y192:AC192) -> 0 | AF192: 0 | AG192: 0 | AH192: 0 | AI192: 0 | AJ192: 0 | AK192: =AVERAGE(AF192:AJ192) -> 0 | AL192: =STDEV(AF192:AJ192) -> 0 | AM192: 0 | AN192: 0 | AO192: 0 | AP192: 0 | AQ192: 0 | AR192: =AVERAGE(AM192:AQ192) -> 0 | AS192: =STDEV(AM192:AQ192) -> 0 | AT192: 0 | AU192: 0 | AV192: 0 | AW192: 0 | AX192: 0 | AY192: =AVERAGE(AT192:AX192) -> 0 | AZ192: =STDEV(AT192:AX192) -> 0 | BA192: 0 | BB192: 0 | BC192: 0 | BD192: 0 | BE192: 0 | BF192: =AVERAGE(BA192:BE192) -> 0 | BG192: =STDEV(BA192:BE192) -> 0
B193: 3 | D193: 39 | E193: 40 | F193: 61 | G193: 36 | H193: 51 | I193: =AVERAGE(D193:H193) -> 45 | J193: =STDEV(D193:H193) -> 10 | K193: 1 | L193: 1 | M193: 2 | N193: 3 | O193: 3 | P193: =AVERAGE(K193:O193) -> 2 | Q193: =STDEV(K193:O193) -> 1 | R193: 0 | S193: 0 | T193: 1 | U193: 0 | V193: 0 | W193: =AVERAGE(R193:V193) -> 0 | X193: =STDEV(R193:V193) -> 0 | Y193: 0 | Z193: 0 | AA193: 0 | AB193: 0 | AC193: 0 | AD193: =AVERAGE(Y193:AC193) -> 0 | AE193: =STDEV(Y193:AC193) -> 0 | AF193: 0 | AG193: 0 | AH193: 0 | AI193: 0 | AJ193: 0 | AK193: =AVERAGE(AF193:AJ193) -> 0 | AL193: =STDEV(AF193:AJ193) -> 0 | AM193: 0 | AN193: 0 | AO193: 0 | AP193: 0 | AQ193: 0 | AR193: =AVERAGE(AM193:AQ193) -> 0 | AS193: =STDEV(AM193:AQ193) -> 0 | AT193: 0 | AU193: 0 | AV193: 0 | AW193: 0 | AX193: 0 | AY193: =AVERAGE(AT193:AX193) -> 0 | AZ193: =STDEV(AT193:AX193) -> 0 | BA193: 0 | BB193: 0 | BC193: 0 | BD193: 0 | BE193: 0 | BF193: =AVERAGE(BA193:BE193) -> 0 | BG193: =STDEV(BA193:BE193) -> 0
A194: average | I194: =AVERAGE(I191:I193) ->  | P194: =AVERAGE(P191:P193) -> 32 | W194: =AVERAGE(W191:W193) -> 5 | AD194: =AVERAGE(AD191:AD193) -> 0 | AK194: =AVERAGE(AK191:AK193) -> 0 | AR194: =AVERAGE(AR191:AR193) -> 0 | AY194: =AVERAGE(AY191:AY193) -> 0 | BF194: =AVERAGE(BF191:BF193) -> 0
A195: stdev | I195: =SUM(J191:J193) ->  | P195: =SUM(Q191:Q193) -> 15 | W195: =SUM(X191:X193) -> 5 | AD195: =SUM(AE191:AE193) -> 1 | AK195: =SUM(AL191:AL193) -> 0 | AR195: =SUM(AS191:AS193) -> 0 | AY195: =SUM(AZ191:AZ193) -> 0 | BF195: =SUM(BG191:BG193) -> 0
A196: p+3 | B196: 1 | D196: NA | E196: NA | F196: NA | G196: NA | H196: NA | I196: =AVERAGE(D196:H196) ->  | J196: =STDEV(D196:H196) ->  | K196: 10 | L196: 4 | M196: 10 | N196: 11 | O196: 10 | P196: =AVERAGE(K196:O196) -> 9 | Q196: =STDEV(K196:O196) -> 2.828427125 | R196: 2 | S196: 1 | T196: 1 | U196: 1 | V196: 1 | W196: =AVERAGE(R196:V196) -> 1.2 | X196: =STDEV(R196:V196) -> 0.4472135955 | Y196: 0 | Z196: 0 | AA196: 1 | AB196: 0 | AC196: 0 | AD196: =AVERAGE(Y196:AC196) -> 0.2 | AE196: =STDEV(Y196:AC196) -> 0.4472135955 | AF196: 0 | AG196: 0 | AH196: 0 | AI196: 0 | AJ196: 0 | AK196: =AVERAGE(AF196:AJ196) -> 0 | AL196: =STDEV(AF196:AJ196) -> 0 | AM196: 0 | AN196: 0 | AO196: 0 | AP196: 0 | AQ196: 0 | AR196: =AVERAGE(AM196:AQ196) -> 0 | AS196: =STDEV(AM196:AQ196) -> 0 | AT196: 0 | AU196: 0 | AV196: 0 | AW196: 0 | AX196: 0 | AY196: =AVERAGE(AT196:AX196) -> 0 | AZ196: =STDEV(AT196:AX196) -> 0 | BA196: 0 | BB196: 0 | BC196: 0 | BD196: 0 | BE196: 0 | BF196: =AVERAGE(BA196:BE196) -> 0 | BG196: =STDEV(BA196:BE196) -> 0
B197: 2 | D197: NA | E197: NA | F197: NA | G197: NA | H197: NA | I197: =AVERAGE(D197:H197) ->  | J197: =STDEV(D197:H197) ->  | K197: 35 | L197: 28 | M197: 28 | N197: 35 | O197: 33 | P197: =AVERAGE(K197:O197) -> 31.8 | Q197: =STDEV(K197:O197) -> 3.563705936 | R197: 4 | S197: 4 | T197: 4 | U197: 2 | V197: 0 | W197: =AVERAGE(R197:V197) -> 2.8 | X197: =STDEV(R197:V197) -> 1.788854382 | Y197: 0 | Z197: 0 | AA197: 0 | AB197: 0 | AC197: 0 | AD197: =AVERAGE(Y197:AC197) -> 0 | AE197: =STDEV(Y197:AC197) -> 0 | AF197: 0 | AG197: 0 | AH197: 0 | AI197: 0 | AJ197: 0 | AK197: =AVERAGE(AF197:AJ197) -> 0 | AL197: =STDEV(AF197:AJ197) -> 0 | AM197: 0 | AN197: 0 | AO197: 0 | AP197: 0 | AQ197: 0 | AR197: =AVERAGE(AM197:AQ197) -> 0 | AS197: =STDEV(AM197:AQ197) -> 0 | AT197: 0 | AU197: 0 | AV197: 0 | AW197: 0 | AX197: 0 | AY197: =AVERAGE(AT197:AX197) -> 0 | AZ197: =STDEV(AT197:AX197) -> 0 | BA197: 0 | BB197: 0 | BC197: 0 | BD197: 0 | BE197: 0 | BF197: =AVERAGE(BA197:BE197) -> 0 | BG197: =STDEV(BA197:BE197) -> 0
B198: 3 | D198: NA | E198: NA | F198: NA | G198: NA | H198: NA | I198: =AVERAGE(D198:H198) ->  | J198: =STDEV(D198:H198) ->  | K198: 30 | L198: 32 | M198: 28 | N198: 37 | O198: 38 | P198: =AVERAGE(K198:O198) -> 33 | Q198: =STDEV(K198:O198) -> 4 | R198: 3 | S198: 2 | T198: 7 | U198: 5 | V198: 2 | W198: =AVERAGE(R198:V198) -> 4 | X198: =STDEV(R198:V198) -> 2 | Y198: 0 | Z198: 0 | AA198: 1 | AB198: 0 | AC198: 0 | AD198: =AVERAGE(Y198:AC198) -> 0 | AE198: =STDEV(Y198:AC198) -> 0 | AF198: 0 | AG198: 0 | AH198: 0 | AI198: 0 | AJ198: 0 | AK198: =AVERAGE(AF198:AJ198) -> 0 | AL198: =STDEV(AF198:AJ198) -> 0 | AM198: 0 | AN198: 0 | AO198: 0 | AP198: 0 | AQ198: 0 | AR198: =AVERAGE(AM198:AQ198) -> 0 | AS198: =STDEV(AM198:AQ198) -> 0 | AT198: 0 | AU198: 0 | AV198: 0 | AW198: 0 | AX198: 0 | AY198: =AVERAGE(AT198:AX198) -> 0 | AZ198: =STDEV(AT198:AX198) -> 0 | BA198: 0 | BB198: 0 | BC198: 0 | BD198: 0 | BE198: 0 | BF198: =AVERAGE(BA198:BE198) -> 0 | BG198: =STDEV(BA198:BE198) -> 0
A199: average | I199: =AVERAGE(I196:I198) ->  | P199: =AVERAGE(P196:P198) -> 25 | W199: =AVERAGE(W196:W198) -> 3 | AD199: =AVERAGE(AD196:AD198) -> 0 | AK199: =AVERAGE(AK196:AK198) -> 0 | AR199: =AVERAGE(AR196:AR198) -> 0 | AY199: =AVERAGE(AY196:AY198) -> 0 | BF199: =AVERAGE(BF196:BF198) -> 0
A200: stdev | I200: =SUM(J196:J198) ->  | P200: =SUM(Q196:Q198) -> 11 | W200: =SUM(X196:X198) -> 4 | AD200: =SUM(AE196:AE198) -> 1 | AK200: =SUM(AL196:AL198) -> 0 | AR200: =SUM(AS196:AS198) -> 0 | AY200: =SUM(AZ196:AZ198) -> 0 | BF200: =SUM(BG196:BG198) -> 0
I201: =SUM(#REF!) ->  | P201: =SUM(#REF!) ->  | W201: =SUM(#REF!) ->  | AD201: =SUM(#REF!) ->  | AK201: =SUM(#REF!) ->  | AR201: =SUM(#REF!) ->  | AY201: =SUM(#REF!) ->  | BF201: =SUM(#REF!) -> 
A203: T18
A204: Sample | B204: Dilution: | D204: 10^0 | I204: AVERAGE | J204: STDEV | K204: 10^-1 | P204: AVERAGE | Q204: STDEV | R204: 10^-2 | W204: AVERAGE | X204: STDEV | Y204: 10^-3 | AD204: AVERAGE | AE204: STDEV | AF204: 10^-4 | AK204: AVERAGE | AL204: STDEV | AM204: 10^-5 | AR204: AVERAGE | AS204: STDEV | AT204: 10^-6 | AY204: AVERAGE | AZ204: STDEV | BA204: 10^-7 | BF204: AVERAGE | BG204: STDEV
A205: Blank | B205: 1 | D205: 0 | E205: 0 | F205: 0 | G205: 0 | H205: 0 | I205: =AVERAGE(D205:H205) -> 0 | J205: =STDEV(D205:H205) -> 0 | K205: 0 | L205: 0 | M205: 0 | N205: 0 | O205: 0 | P205: =AVERAGE(K205:O205) -> 0 | Q205: =STDEV(K205:O205) -> 0 | R205: 0 | S205: 0 | T205: 0 | U205: 0 | V205: 0 | W205: =AVERAGE(R205:V205) -> 0 | X205: =STDEV(R205:V205) -> 0 | Y205: 0 | Z205: 0 | AA205: 0 | AB205: 0 | AC205: 0 | AD205: =AVERAGE(Y205:AC205) -> 0 | AE205: =STDEV(Y205:AC205) -> 0 | AF205: 0 | AG205: 0 | AH205: 0 | AI205: 0 | AJ205: 0 | AK205: =AVERAGE(AF205:AJ205) -> 0 | AL205: =STDEV(AF205:AJ205) -> 0 | AM205: 0 | AN205: 0 | AO205: 0 | AP205: 0 | AQ205: 0 | AR205: =AVERAGE(AM205:AQ205) -> 0 | AS205: =STDEV(AM205:AQ205) -> 0 | AT205: 0 | AU205: 0 | AV205: 0 | AW205: 0 | AX205: 0 | AY205: =AVERAGE(AT205:AX205) -> 0 | AZ205: =STDEV(AT205:AX205) -> 0 | BA205: 0 | BB205: 0 | BC205: 0 | BD205: 0 | BE205: 0 | BF205: =AVERAGE(BA205:BE205) -> 0 | BG205: =STDEV(BA205:BE205) -> 0
B206: 2 | D206: 0 | E206: 0 | F206: 0 | G206: 0 | H206: 0 | I206: =AVERAGE(D206:H206) -> 0 | J206: =STDEV(D206:H206) -> 0 | K206: 0 | L206: 0 | M206: 0 | N206: 0 | O206: 0 | P206: =AVERAGE(K206:O206) -> 0 | Q206: =STDEV(K206:O206) -> 0 | R206: 0 | S206: 0 | T206: 0 | U206: 0 | V206: 0 | W206: =AVERAGE(R206:V206) -> 0 | X206: =STDEV(R206:V206) -> 0 | Y206: 0 | Z206: 0 | AA206: 0 | AB206: 0 | AC206: 0 | AD206: =AVERAGE(Y206:AC206) -> 0 | AE206: =STDEV(Y206:AC206) -> 0 | AF206: 0 | AG206: 0 | AH206: 0 | AI206: 0 | AJ206: 0 | AK206: =AVERAGE(AF206:AJ206) -> 0 | AL206: =STDEV(AF206:AJ206) -> 0 | AM206: 0 | AN206: 0 | AO206: 0 | AP206: 0 | AQ206: 0 | AR206: =AVERAGE(AM206:AQ206) -> 0 | AS206: =STDEV(AM206:AQ206) -> 0 | AT206: 0 | AU206: 0 | AV206: 0 | AW206: 0 | AX206: 0 | AY206: =AVERAGE(AT206:AX206) -> 0 | AZ206: =STDEV(AT206:AX206) -> 0 | BA206: 0 | BB206: 0 | BC206: 0 | BD206: 0 | BE206: 0 | BF206: =AVERAGE(BA206:BE206) -> 0 | BG206: =STDEV(BA206:BE206) -> 0
B207: 3 | D207: 0 | E207: 0 | F207: 0 | G207: 0 | H207: 0 | I207: =AVERAGE(D207:H207) -> 0 | J207: =STDEV(D207:H207) -> 0 | K207: 0 | L207: 0 | M207: 0 | N207: 0 | O207: 0 | P207: =AVERAGE(K207:O207) -> 0 | Q207: =STDEV(K207:O207) -> 0 | R207: 0 | S207: 0 | T207: 0 | U207: 0 | V207: 0 | W207: =AVERAGE(R207:V207) -> 0 | X207: =STDEV(R207:V207) -> 0 | Y207: 0 | Z207: 0 | AA207: 0 | AB207: 0 | AC207: 0 | AD207: =AVERAGE(Y207:AC207) -> 0 | AE207: =STDEV(Y207:AC207) -> 0 | AF207: 0 | AG207: 0 | AH207: 0 | AI207: 0 | AJ207: 0 | AK207: =AVERAGE(AF207:AJ207) -> 0 | AL207: =STDEV(AF207:AJ207) -> 0 | AM207: 0 | AN207: 0 | AO207: 0 | AP207: 0 | AQ207: 0 | AR207: =AVERAGE(AM207:AQ207) -> 0 | AS207: =STDEV(AM207:AQ207) -> 0 | AT207: 0 | AU207: 0 | AV207: 0 | AW207: 0 | AX207: 0 | AY207: =AVERAGE(AT207:AX207) -> 0 | AZ207: =STDEV(AT207:AX207) -> 0 | BA207: 0 | BB207: 0 | BC207: 0 | BD207: 0 | BE207: 0 | BF207: =AVERAGE(BA207:BE207) -> 0 | BG207: =STDEV(BA207:BE207) -> 0
I208: =AVERAGE(I205:I207) -> 0 | P208: =AVERAGE(P205:P207) -> 0 | W208: =AVERAGE(W205:W207) -> 0 | AD208: =AVERAGE(AD205:AD207) -> 0 | AK208: =AVERAGE(AK205:AK207) -> 0 | AR208: =AVERAGE(AR205:AR207) -> 0 | AY208: =AVERAGE(AY205:AY207) -> 0 | BF208: =AVERAGE(BF205:BF207) -> 0
... 31 more rows

Sheet Survivalexp vitmix results
A1: Survival experiment
A2: Subject: | C2: Anaerobic survival after aerobic inoculation of recombinant strains
C3: DeBont+Gluconic Acid - Kanamycin only in 2213-/A/APR
A4: Inoculation date | C4: 2017-10-22
A5: Inoculated | C5: Blank | D5: BW25113 2213F - | E5: 2213F - | G5: 2213F A | I5: 2213F APR
D6: dilution
D7: T1 | N7: T4 | X7: T7 | AH7: T11 | AR7: T14 | BB7: T18
C8: Sample | D8: =10^0 -> 1E+00 | E8: =10^-1 -> 1E-01 | F8: =10^-2 -> 1E-02 | G8: =10^-3 -> 1E-03 | H8: =10^-4 -> 1E-04 | I8: =10^-5 -> 1E-05 | J8: =10^-6 -> 1E-06 | K8: =10^-7 -> 1E-07 | L8: Average nr of bacteria | M8: stdev | N8: =10^0 -> 1E+00 | O8: =10^-1 -> 1E-01 | P8: =10^-2 -> 1E-02 | Q8: =10^-3 -> 1E-03 | R8: =10^-4 -> 1E-04 | S8: =10^-5 -> 1E-05 | T8: =10^-6 -> 1E-06 | U8: =10^-7 -> 1E-07 | V8: Average nr of bacteria | W8: stdev | X8: =10^0 -> 1E+00 | Y8: =10^-1 -> 1E-01 | Z8: =10^-2 -> 1E-02 | AA8: =10^-3 -> 1E-03 | AB8: =10^-4 -> 1E-04 | AC8: =10^-5 -> 1E-05 | AD8: =10^-6 -> 1E-06 | AE8: =10^-7 -> 1E-07 | AF8: Average nr of bacteria | AG8: stdev | AH8: =10^0 -> 1E+00 | AI8: =10^-1 -> 1E-01 | AJ8: =10^-2 -> 1E-02 | AK8: =10^-3 -> 1E-03 | AL8: =10^-4 -> 1E-04 | AM8: =10^-5 -> 1E-05 | AN8: =10^-6 -> 1E-06 | AO8: =10^-7 -> 1E-07 | AP8: Average nr of bacteria | AQ8: stdev | AR8: =10^0 -> 1E+00 | AS8: =10^-1 -> 1E-01 | AT8: =10^-2 -> 1E-02 | AU8: =10^-3 -> 1E-03 | AV8: =10^-4 -> 1E-04 | AW8: =10^-5 -> 1E-05 | AX8: =10^-6 -> 1E-06 | AY8: =10^-7 -> 1E-07 | AZ8: Average nr of bacteria | BA8: stdev | BB8: =10^0 -> 1E+00 | BC8: =10^-1 -> 1E-01 | BD8: =10^-2 -> 1E-02 | BE8: =10^-3 -> 1E-03 | BF8: =10^-4 -> 1E-04 | BG8: =10^-5 -> 1E-05 | BH8: =10^-6 -> 1E-06 | BI8: =10^-7 -> 1E-07 | BJ8: Average nr of bacteria | BK8: stdev
C9: Blank | D9: ='Survivalexp vitmix RAW Feb 2018'!I13 -> 0 | E9: ='Survivalexp vitmix RAW Feb 2018'!P13 -> 0 | F9: ='Survivalexp vitmix RAW Feb 2018'!W13 -> 0 | G9: ='Survivalexp vitmix RAW Feb 2018'!AD13 -> 0 | H9: ='Survivalexp vitmix RAW Feb 2018'!AK13 -> 0 | I9: ='Survivalexp vitmix RAW Feb 2018'!AR13 -> 0 | J9: ='Survivalexp vitmix RAW Feb 2018'!AY13 -> 0 | K9: ='Survivalexp vitmix RAW Feb 2018'!BF13 -> 0 | N9: ='Survivalexp vitmix RAW Feb 2018'!I52 -> 0 | O9: ='Survivalexp vitmix RAW Feb 2018'!P52 -> 0 | P9: ='Survivalexp vitmix RAW Feb 2018'!W52 -> 0 | Q9: ='Survivalexp vitmix RAW Feb 2018'!AD52 -> 0 | R9: ='Survivalexp vitmix RAW Feb 2018'!AK52 -> 0 | S9: ='Survivalexp vitmix RAW Feb 2018'!AR52 -> 0 | T9: ='Survivalexp vitmix RAW Feb 2018'!AY52 -> 0 | U9: ='Survivalexp vitmix RAW Feb 2018'!BF52 -> 0 | X9: ='Survivalexp vitmix RAW Feb 2018'!I91 -> 0 | Y9: ='Survivalexp vitmix RAW Feb 2018'!P91 -> 0 | Z9: ='Survivalexp vitmix RAW Feb 2018'!W91 -> 0 | AA9: ='Survivalexp vitmix RAW Feb 2018'!AD91 -> 0 | AB9: ='Survivalexp vitmix RAW Feb 2018'!AK91 -> 0 | AC9: ='Survivalexp vitmix RAW Feb 2018'!AR91 -> 0 | AD9: ='Survivalexp vitmix RAW Feb 2018'!AY91 -> 0 | AE9: ='Survivalexp vitmix RAW Feb 2018'!BF91 -> 0 | AH9: ='Survivalexp vitmix RAW Feb 2018'!I130 -> 0 | AI9: ='Survivalexp vitmix RAW Feb 2018'!P130 -> 0 | AJ9: ='Survivalexp vitmix RAW Feb 2018'!W130 -> 0 | AK9: ='Survivalexp vitmix RAW Feb 2018'!AD130 -> 0 | AL9: ='Survivalexp vitmix RAW Feb 2018'!AK130 -> 0 | AM9: ='Survivalexp vitmix RAW Feb 2018'!AR130 -> 0 | AN9: ='Survivalexp vitmix RAW Feb 2018'!AY130 -> 0 | AO9: ='Survivalexp vitmix RAW Feb 2018'!BF130 -> 0 | AR9: ='Survivalexp vitmix RAW Feb 2018'!S169 -> 0 | AS9: ='Survivalexp vitmix RAW Feb 2018'!Z169 -> 0 | AT9: ='Survivalexp vitmix RAW Feb 2018'!AG169 -> 0 | AU9: ='Survivalexp vitmix RAW Feb 2018'!AN169 -> 0 | AV9: ='Survivalexp vitmix RAW Feb 2018'!AU169 -> 0 | AW9: ='Survivalexp vitmix RAW Feb 2018'!BB169 -> 0 | AX9: ='Survivalexp vitmix RAW Feb 2018'!BI169 -> 0 | AY9: ='Survivalexp vitmix RAW Feb 2018'!BP169 -> 0 | BB9: ='Survivalexp vitmix RAW Feb 2018'!I208 -> 0 | BC9: ='Survivalexp vitmix RAW Feb 2018'!P208 -> 0 | BD9: ='Survivalexp vitmix RAW Feb 2018'!W208 -> 0 | BE9: ='Survivalexp vitmix RAW Feb 2018'!AD208 -> 0 | BF9: ='Survivalexp vitmix RAW Feb 2018'!AK208 -> 0 | BG9: ='Survivalexp vitmix RAW Feb 2018'!AR208 -> 0 | BH9: ='Survivalexp vitmix RAW Feb 2018'!AY208 -> 0 | BI9: ='Survivalexp vitmix RAW Feb 2018'!BF208 -> 0
C10: stdev | D10: ='Survivalexp vitmix RAW Feb 2018'!I14 -> 0 | E10: ='Survivalexp vitmix RAW Feb 2018'!P14 -> 0 | F10: ='Survivalexp vitmix RAW Feb 2018'!W14 -> 0 | G10: ='Survivalexp vitmix RAW Feb 2018'!AD14 -> 0 | H10: ='Survivalexp vitmix RAW Feb 2018'!AK14 -> 0 | I10: ='Survivalexp vitmix RAW Feb 2018'!AR14 -> 0 | J10: ='Survivalexp vitmix RAW Feb 2018'!AY14 -> 0 | K10: ='Survivalexp vitmix RAW Feb 2018'!BF14 -> 0 | N10: ='Survivalexp vitmix RAW Feb 2018'!I53 -> 0 | O10: ='Survivalexp vitmix RAW Feb 2018'!P53 -> 0 | P10: ='Survivalexp vitmix RAW Feb 2018'!W53 -> 0 | Q10: ='Survivalexp vitmix RAW Feb 2018'!AD53 -> 0 | R10: ='Survivalexp vitmix RAW Feb 2018'!AK53 -> 0 | S10: ='Survivalexp vitmix RAW Feb 2018'!AR53 -> 0 | T10: ='Survivalexp vitmix RAW Feb 2018'!AY53 -> 0 | U10: ='Survivalexp vitmix RAW Feb 2018'!BF53 -> 0 | X10: ='Survivalexp vitmix RAW Feb 2018'!I92 -> 0 | Y10: ='Survivalexp vitmix RAW Feb 2018'!P92 -> 0 | Z10: ='Survivalexp vitmix RAW Feb 2018'!W92 -> 0 | AA10: ='Survivalexp vitmix RAW Feb 2018'!AD92 -> 0 | AB10: ='Survivalexp vitmix RAW Feb 2018'!AK92 -> 0 | AC10: ='Survivalexp vitmix RAW Feb 2018'!AR92 -> 0 | AD10: ='Survivalexp vitmix RAW Feb 2018'!AY92 -> 0 | AE10: ='Survivalexp vitmix RAW Feb 2018'!BF92 -> 0 | AH10: ='Survivalexp vitmix RAW Feb 2018'!I131 -> 0 | AI10: ='Survivalexp vitmix RAW Feb 2018'!P131 -> 0 | AJ10: ='Survivalexp vitmix RAW Feb 2018'!W131 -> 0 | AK10: ='Survivalexp vitmix RAW Feb 2018'!AD131 -> 0 | AL10: ='Survivalexp vitmix RAW Feb 2018'!AK131 -> 0 | AM10: ='Survivalexp vitmix RAW Feb 2018'!AR131 -> 0 | AN10: ='Survivalexp vitmix RAW Feb 2018'!AY131 -> 0 | AO10: ='Survivalexp vitmix RAW Feb 2018'!BF131 -> 0 | AR10: ='Survivalexp vitmix RAW Feb 2018'!S170 -> 0 | AS10: ='Survivalexp vitmix RAW Feb 2018'!Z170 -> 0 | AT10: ='Survivalexp vitmix RAW Feb 2018'!AG170 -> 0 | AU10: ='Survivalexp vitmix RAW Feb 2018'!AN170 -> 0 | AV10: ='Survivalexp vitmix RAW Feb 2018'!AU170 -> 0 | AW10: ='Survivalexp vitmix RAW Feb 2018'!BB170 -> 0 | AX10: ='Survivalexp vitmix RAW Feb 2018'!BI170 -> 0 | AY10: ='Survivalexp vitmix RAW Feb 2018'!BP170 -> 0 | BB10: ='Survivalexp vitmix RAW Feb 2018'!I209 -> 0 | BC10: ='Survivalexp vitmix RAW Feb 2018'!P209 -> 0 | BD10: ='Survivalexp vitmix RAW Feb 2018'!W209 -> 0 | BE10: ='Survivalexp vitmix RAW Feb 2018'!AD209 -> 0 | BF10: ='Survivalexp vitmix RAW Feb 2018'!AK209 -> 0 | BG10: ='Survivalexp vitmix RAW Feb 2018'!AR209 -> 0 | BH10: ='Survivalexp vitmix RAW Feb 2018'!AY209 -> 0 | BI10: ='Survivalexp vitmix RAW Feb 2018'!BF209 -> 0
B11: est. nr of bacteria | D11: =D9/$D$8 -> 0 | E11: =E9/$E$8 -> 0 | F11: =F9/$F$8 -> 0 | G11: =G9/$G$8 -> 0 | H11: =H9/$H$8 -> 0 | I11: =I9/$I$8 -> 0 | J11: =J9/$J$8 -> 0 | K11: =K9/$K$8 -> 0E+00 | L11: =G11 -> 0 | M11: =G12 -> 0 | N11: =N9/$D$8 -> 0 | O11: =O9/$E$8 -> 0 | P11: =P9/$F$8 -> 0 | Q11: =Q9/$G$8 -> 0 | R11: =R9/$H$8 -> 0 | S11: =S9/$I$8 -> 0 | T11: =T9/$J$8 -> 0 | U11: =U9/$K$8 -> 0 | V11: =P11 -> 0 | W11: =P12 -> 0 | X11: =X9/$D$8 -> 0 | Y11: =Y9/$E$8 -> 0 | Z11: =Z9/$F$8 -> 0 | AA11: =AA9/$G$8 -> 0 | AB11: =AB9/$H$8 -> 0 | AC11: =AC9/$I$8 -> 0 | AD11: =AD9/$J$8 -> 0 | AE11: =AE9/$K$8 -> 0 | AF11: =AE11 -> 0 | AG11: =AE12 -> 0 | AH11: =AH9/$D$8 -> 0 | AI11: =AI9/$E$8 -> 0 | AJ11: =AJ9/$F$8 -> 0 | AK11: =AK9/$G$8 -> 0 | AL11: =AL9/$H$8 -> 0 | AM11: =AM9/$I$8 -> 0 | AN11: =AN9/$J$8 -> 0 | AO11: =AO9/$K$8 -> 0 | AP11: =AL11 -> 0 | AQ11: =AL12 -> 0 | AR11: =AR9/$D$8 -> 0 | AS11: =AS9/$E$8 -> 0 | AT11: =AT9/$F$8 -> 0 | AU11: =AU9/$G$8 -> 0 | AV11: =AV9/$H$8 -> 0 | AW11: =AW9/$I$8 -> 0 | AX11: =AX9/$J$8 -> 0 | AY11: =AY9/$K$8 -> 0 | AZ11: =AV11 -> 0 | BA11: =AV12 -> 0 | BB11: =BB9/$D$8 -> 0 | BC11: =BC9/$E$8 -> 0 | BD11: =BD9/$F$8 -> 0 | BE11: =BE9/$G$8 -> 0 | BF11: =BF9/$H$8 -> 0 | BG11: =BG9/$I$8 -> 0 | BH11: =BH9/$J$8 -> 0 | BI11: =BI9/$K$8 -> 0 | BJ11: =BF11 -> 0 | BK11: =BF12 -> 0
C12: stdev | D12: =D10/$D$8 -> 0 | E12: =E10/$E$8 -> 0 | F12: =F10/$F$8 -> 0 | G12: =G10/$G$8 -> 0 | H12: =H10/$H$8 -> 0 | I12: =I10/$I$8 -> 0 | J12: =J10/$J$8 -> 0 | K12: =K10/$K$8 -> 0 | N12: =N10/$D$8 -> 0 | O12: =O10/$E$8 -> 0 | P12: =P10/$F$8 -> 0 | Q12: =Q10/$G$8 -> 0 | R12: =R10/$H$8 -> 0 | S12: =S10/$I$8 -> 0 | T12: =T10/$J$8 -> 0 | U12: =U10/$K$8 -> 0 | X12: =X10/$D$8 -> 0 | Y12: =Y10/$E$8 -> 0 | Z12: =Z10/$F$8 -> 0 | AA12: =AA10/$G$8 -> 0 | AB12: =AB10/$H$8 -> 0 | AC12: =AC10/$I$8 -> 0 | AD12: =AD10/$J$8 -> 0 | AE12: =AE10/$K$8 -> 0 | AH12: =AH10/$D$8 -> 0 | AI12: =AI10/$E$8 -> 0 | AJ12: =AJ10/$F$8 -> 0 | AK12: =AK10/$G$8 -> 0 | AL12: =AL10/$H$8 -> 0 | AM12: =AM10/$I$8 -> 0 | AN12: =AN10/$J$8 -> 0 | AO12: =AO10/$K$8 -> 0 | AR12: =AR10/$D$8 -> 0 | AS12: =AS10/$E$8 -> 0 | AT12: =AT10/$F$8 -> 0 | AU12: =AU10/$G$8 -> 0 | AV12: =AV10/$H$8 -> 0 | AW12: =AW10/$I$8 -> 0 | AX12: =AX10/$J$8 -> 0 | AY12: =AY10/$K$8 -> 0 | BB12: =BB10/$D$8 -> 0 | BC12: =BC10/$E$8 -> 0 | BD12: =BD10/$F$8 -> 0 | BE12: =BE10/$G$8 -> 0 | BF12: =BF10/$H$8 -> 0 | BG12: =BG10/$I$8 -> 0 | BH12: =BH10/$J$8 -> 0 | BI12: =BI10/$K$8 -> 0
B13: BW25113 | C13: 2213 - | D13: ='Survivalexp vitmix RAW Feb 2018'!I18 ->  | E13: ='Survivalexp vitmix RAW Feb 2018'!P18 ->  | F13: ='Survivalexp vitmix RAW Feb 2018'!W18 ->  | G13: ='Survivalexp vitmix RAW Feb 2018'!AD18 ->  | H13: ='Survivalexp vitmix RAW Feb 2018'!AK18 ->  | I13: ='Survivalexp vitmix RAW Feb 2018'!AR18 -> 39 | J13: ='Survivalexp vitmix RAW Feb 2018'!AY18 -> 5 | K13: ='Survivalexp vitmix RAW Feb 2018'!BF18 -> 0 | N13: ='Survivalexp vitmix RAW Feb 2018'!I57 ->  | O13: ='Survivalexp vitmix RAW Feb 2018'!P57 ->  | P13: ='Survivalexp vitmix RAW Feb 2018'!W57 ->  | Q13: ='Survivalexp vitmix RAW Feb 2018'!AD57 ->  | R13: ='Survivalexp vitmix RAW Feb 2018'!AK57 ->  | S13: ='Survivalexp vitmix RAW Feb 2018'!AR57 ->  | T13: ='Survivalexp vitmix RAW Feb 2018'!AY57 -> 30 | U13: ='Survivalexp vitmix RAW Feb 2018'!BF57 -> 7 | X13: ='Survivalexp vitmix RAW Feb 2018'!I96 ->  | Y13: ='Survivalexp vitmix RAW Feb 2018'!P96 ->  | Z13: ='Survivalexp vitmix RAW Feb 2018'!W96 ->  | AA13: ='Survivalexp vitmix RAW Feb 2018'!AD96 ->  | AB13: ='Survivalexp vitmix RAW Feb 2018'!AK96 ->  | AC13: ='Survivalexp vitmix RAW Feb 2018'!AR96 -> 65 | AD13: ='Survivalexp vitmix RAW Feb 2018'!AY96 -> 2 | AE13: ='Survivalexp vitmix RAW Feb 2018'!BF96 -> 0 | AH13: ='Survivalexp vitmix RAW Feb 2018'!I135 ->  | AI13: ='Survivalexp vitmix RAW Feb 2018'!P135 ->  | AJ13: ='Survivalexp vitmix RAW Feb 2018'!W135 ->  | AK13: ='Survivalexp vitmix RAW Feb 2018'!AD135 ->  | AL13: ='Survivalexp vitmix RAW Feb 2018'!AK135 -> 219 | AM13: ='Survivalexp vitmix RAW Feb 2018'!AR135 -> 33 | AN13: ='Survivalexp vitmix RAW Feb 2018'!AY135 -> 3 | AO13: ='Survivalexp vitmix RAW Feb 2018'!BF135 -> 0 | AR13: ='Survivalexp vitmix RAW Feb 2018'!I174 ->  | AS13: ='Survivalexp vitmix RAW Feb 2018'!P174 ->  | AT13: ='Survivalexp vitmix RAW Feb 2018'!W174 ->  | AU13: ='Survivalexp vitmix RAW Feb 2018'!AD174 ->  | AV13: ='Survivalexp vitmix RAW Feb 2018'!AK174 ->  | AW13: ='Survivalexp vitmix RAW Feb 2018'!AR174 -> 37 | AX13: ='Survivalexp vitmix RAW Feb 2018'!AY174 -> 4 | AY13: ='Survivalexp vitmix RAW Feb 2018'!BF174 -> 0 | BB13: ='Survivalexp vitmix RAW Feb 2018'!I213 ->  | BC13: ='Survivalexp vitmix RAW Feb 2018'!P213 ->  | BD13: ='Survivalexp vitmix RAW Feb 2018'!W213 ->  | BE13: ='Survivalexp vitmix RAW Feb 2018'!AD213 ->  | BF13: ='Survivalexp vitmix RAW Feb 2018'!AK213 ->  | BG13: ='Survivalexp vitmix RAW Feb 2018'!AR213 -> 0 | BH13: ='Survivalexp vitmix RAW Feb 2018'!AY213 -> 0 | BI13: ='Survivalexp vitmix RAW Feb 2018'!BF213 -> 0
C14: stdev | D14: ='Survivalexp vitmix RAW Feb 2018'!I19 ->  | E14: ='Survivalexp vitmix RAW Feb 2018'!P19 ->  | F14: ='Survivalexp vitmix RAW Feb 2018'!W19 ->  | G14: ='Survivalexp vitmix RAW Feb 2018'!AD19 ->  | H14: ='Survivalexp vitmix RAW Feb 2018'!AK19 ->  | I14: ='Survivalexp vitmix RAW Feb 2018'!AR19 -> 15 | J14: ='Survivalexp vitmix RAW Feb 2018'!AY19 -> 6 | K14: ='Survivalexp vitmix RAW Feb 2018'!BF19 -> 2 | N14: ='Survivalexp vitmix RAW Feb 2018'!I58 ->  | O14: ='Survivalexp vitmix RAW Feb 2018'!P58 ->  | P14: ='Survivalexp vitmix RAW Feb 2018'!W58 ->  | Q14: ='Survivalexp vitmix RAW Feb 2018'!AD58 ->  | R14: ='Survivalexp vitmix RAW Feb 2018'!AK58 ->  | S14: ='Survivalexp vitmix RAW Feb 2018'!AR58 ->  | T14: ='Survivalexp vitmix RAW Feb 2018'!AY58 -> 20 | U14: ='Survivalexp vitmix RAW Feb 2018'!BF58 -> 5 | X14: ='Survivalexp vitmix RAW Feb 2018'!I97 ->  | Y14: ='Survivalexp vitmix RAW Feb 2018'!P97 ->  | Z14: ='Survivalexp vitmix RAW Feb 2018'!W97 ->  | AA14: ='Survivalexp vitmix RAW Feb 2018'!AD97 ->  | AB14: ='Survivalexp vitmix RAW Feb 2018'!AK97 ->  | AC14: ='Survivalexp vitmix RAW Feb 2018'!AR97 ->  | AD14: ='Survivalexp vitmix RAW Feb 2018'!AY97 -> 6 | AE14: ='Survivalexp vitmix RAW Feb 2018'!BF97 -> 0 | AH14: ='Survivalexp vitmix RAW Feb 2018'!I136 ->  | AI14: ='Survivalexp vitmix RAW Feb 2018'!P136 ->  | AJ14: ='Survivalexp vitmix RAW Feb 2018'!W136 ->  | AK14: ='Survivalexp vitmix RAW Feb 2018'!AD136 ->  | AL14: ='Survivalexp vitmix RAW Feb 2018'!AK136 -> 25 | AM14: ='Survivalexp vitmix RAW Feb 2018'!AR136 -> 12 | AN14: ='Survivalexp vitmix RAW Feb 2018'!AY136 -> 6 | AO14: ='Survivalexp vitmix RAW Feb 2018'!BF136 -> 1 | AR14: ='Survivalexp vitmix RAW Feb 2018'!I175 ->  | AS14: ='Survivalexp vitmix RAW Feb 2018'!P175 ->  | AT14: ='Survivalexp vitmix RAW Feb 2018'!W175 ->  | AU14: ='Survivalexp vitmix RAW Feb 2018'!AD175 ->  | AV14: ='Survivalexp vitmix RAW Feb 2018'!AK175 ->  | AW14: ='Survivalexp vitmix RAW Feb 2018'!AR175 -> 19 | AX14: ='Survivalexp vitmix RAW Feb 2018'!AY175 -> 5 | AY14: ='Survivalexp vitmix RAW Feb 2018'!BF175 -> 2 | BB14: ='Survivalexp vitmix RAW Feb 2018'!I214 ->  | BC14: ='Survivalexp vitmix RAW Feb 2018'!P214 ->  | BD14: ='Survivalexp vitmix RAW Feb 2018'!W214 ->  | BE14: ='Survivalexp vitmix RAW Feb 2018'!AD214 ->  | BF14: ='Survivalexp vitmix RAW Feb 2018'!AK214 ->  | BG14: ='Survivalexp vitmix RAW Feb 2018'!AR214 -> 0 | BH14: ='Survivalexp vitmix RAW Feb 2018'!AY214 -> 0 | BI14: ='Survivalexp vitmix RAW Feb 2018'!BF214 -> 0
B15: est. nr of bacteria | D15: =D13/$D$8 ->  | E15: =E13/$E$8 ->  | F15: =F13/$F$8 ->  | G15: =G13/$G$8 ->  | H15: =H13/$H$8 ->  | I15: =I13/$I$8 -> 3946666.667 | J15: =J13/$J$8 -> 5000000 | K15: =K13/$K$8 -> 5E+06 | L15: =I15 -> 3946667 | M15: =I16 -> 1498235.303 | N15: =N13/$D$8 ->  | O15: =O13/$E$8 ->  | P15: =P13/$F$8 ->  | Q15: =Q13/$G$8 ->  | R15: =R13/$H$8 ->  | S15: =S13/$I$8 ->  | T15: =T13/$J$8 -> 30266666.67 | U15: =U13/$K$8 -> 72666666.67 | V15: =T15 -> 30266666.67 | W15: =T16 -> 20420891.47 | X15: =X13/$D$8 ->  | Y15: =Y13/$E$8 ->  | Z15: =Z13/$F$8 ->  | AA15: =AA13/$G$8 ->  | AB15: =AB13/$H$8 ->  | AC15: =AC13/$I$8 -> 6453333.333 | AD15: =AD13/$J$8 -> 2400000 | AE15: =AE13/$K$8 -> 0 | AF15: =AD15 -> 2400000 | AG15: =AD16 -> 5828845.191 | AH15: =AH13/$D$8 ->  | AI15: =AI13/$E$8 ->  | AJ15: =AJ13/$F$8 ->  | AK15: =AK13/$G$8 ->  | AL15: =AL13/$H$8 -> 2194000 | AM15: =AM13/$I$8 -> 3253333.333 | AN15: =AN13/$J$8 -> 3400000 | AO15: =AO13/$K$8 -> 2666666.667 | AP15: =AL15 -> 2194000 | AQ15: =AL16 -> 247055.6745 | AR15: =AR13/$D$8 ->  | AS15: =AS13/$E$8 ->  | AT15: =AT13/$F$8 ->  | AU15: =AU13/$G$8 ->  | AV15: =AV13/$H$8 ->  | AW15: =AW13/$I$8 -> 3666666.667 | AX15: =AX13/$J$8 -> 4E+06 | AY15: =AY13/$K$8 -> 4000000 | AZ15: =AW15 -> 3666666.667 | BA15: =AW16 -> 1866880.899 | BB15: =BB13/$D$8 ->  | BC15: =BC13/$E$8 ->  | BD15: =BD13/$F$8 ->  | BE15: =BE13/$G$8 ->  | BF15: =BF13/$H$8 ->  | BG15: =BG13/$I$8 -> 0 | BH15: =BH13/$J$8 -> 0 | BI15: =BI13/$K$8 -> 0 | BJ15: =BE15 ->  | BK15: =BE16 -> 
C16: stdev | D16: =D14/$D$8 ->  | E16: =E14/$E$8 ->  | F16: =F14/$F$8 ->  | G16: =G14/$G$8 ->  | H16: =H14/$H$8 ->  | I16: =I14/$I$8 -> 1498235.303 | J16: =J14/$J$8 -> 5978619.943 | K16: =K14/$K$8 -> 16431676.73 | N16: =N14/$D$8 ->  | O16: =O14/$E$8 ->  | P16: =P14/$F$8 ->  | Q16: =Q14/$G$8 ->  | R16: =R14/$H$8 ->  | S16: =S14/$I$8 ->  | T16: =T14/$J$8 -> 20420891.47 | U16: =U14/$K$8 -> 50346026.16 | X16: =X14/$D$8 ->  | Y16: =Y14/$E$8 ->  | Z16: =Z14/$F$8 ->  | AA16: =AA14/$G$8 ->  | AB16: =AB14/$H$8 ->  | AC16: =AC14/$I$8 ->  | AD16: =AD14/$J$8 -> 5828845.191 | AE16: =AE14/$K$8 -> 0 | AH16: =AH14/$D$8 ->  | AI16: =AI14/$E$8 ->  | AJ16: =AJ14/$F$8 ->  | AK16: =AK14/$G$8 ->  | AL16: =AL14/$H$8 -> 247055.6745 | AM16: =AM14/$I$8 -> 1243187.857 | AN16: =AN14/$J$8 -> 5690912.933 | AO16: =AO14/$K$8 -> 9949361.53 | AR16: =AR14/$D$8 ->  | AS16: =AS14/$E$8 ->  | AT16: =AT14/$F$8 ->  | AU16: =AU14/$G$8 ->  | AV16: =AV14/$H$8 ->  | AW16: =AW14/$I$8 -> 1866880.899 | AX16: 5240026.132 | AY16: =AY14/$K$8 -> 19898723.06 | BB16: =BB14/$D$8 ->  | BC16: =BC14/$E$8 ->  | BD16: =BD14/$F$8 ->  | BE16: =BE14/$G$8 ->  | BF16: =BF14/$H$8 ->  | BG16: =BG14/$I$8 -> 0 | BH16: =BH14/$J$8 -> 0 | BI16: =BI14/$K$8 -> 0
B17: 2213F - | C17: p+0 | D17: ='Survivalexp vitmix RAW Feb 2018'!I23 ->  | E17: ='Survivalexp vitmix RAW Feb 2018'!P23 ->  | F17: ='Survivalexp vitmix RAW Feb 2018'!W23 ->  | G17: ='Survivalexp vitmix RAW Feb 2018'!AD23 ->  | H17: ='Survivalexp vitmix RAW Feb 2018'!AK23 ->  | I17: ='Survivalexp vitmix RAW Feb 2018'!AR23 -> 58 | J17: ='Survivalexp vitmix RAW Feb 2018'!AY23 -> 7 | K17: ='Survivalexp vitmix RAW Feb 2018'!BF23 -> 1 | N17: ='Survivalexp vitmix RAW Feb 2018'!I62 ->  | O17: ='Survivalexp vitmix RAW Feb 2018'!P62 ->  | P17: ='Survivalexp vitmix RAW Feb 2018'!W62 ->  | Q17: ='Survivalexp vitmix RAW Feb 2018'!AD62 -> 101 | R17: ='Survivalexp vitmix RAW Feb 2018'!AK62 -> 11 | S17: ='Survivalexp vitmix RAW Feb 2018'!AR62 -> 1 | T17: ='Survivalexp vitmix RAW Feb 2018'!AY62 -> 0 | U17: ='Survivalexp vitmix RAW Feb 2018'!BF62 -> 0 | X17: ='Survivalexp vitmix RAW Feb 2018'!I101 ->  | Y17: ='Survivalexp vitmix RAW Feb 2018'!P101 -> 121 | Z17: ='Survivalexp vitmix RAW Feb 2018'!W101 -> 22 | AA17: ='Survivalexp vitmix RAW Feb 2018'!AD101 -> 3 | AB17: ='Survivalexp vitmix RAW Feb 2018'!AK101 -> 0 | AC17: ='Survivalexp vitmix RAW Feb 2018'!AR101 -> 0 | AD17: ='Survivalexp vitmix RAW Feb 2018'!AY101 -> 0 | AE17: ='Survivalexp vitmix RAW Feb 2018'!BF101 -> 0 | AH17: ='Survivalexp vitmix RAW Feb 2018'!I140 ->  | AI17: ='Survivalexp vitmix RAW Feb 2018'!P140 -> 26 | AJ17: ='Survivalexp vitmix RAW Feb 2018'!W140 -> 10 | AK17: ='Survivalexp vitmix RAW Feb 2018'!AD140 -> 1 | AL17: ='Survivalexp vitmix RAW Feb 2018'!AK140 -> 0 | AM17: ='Survivalexp vitmix RAW Feb 2018'!AR140 -> 0 | AN17: ='Survivalexp vitmix RAW Feb 2018'!AY140 -> 0 | AO17: ='Survivalexp vitmix RAW Feb 2018'!BF140 -> 0 | AR17: ='Survivalexp vitmix RAW Feb 2018'!I179 ->  | AS17: ='Survivalexp vitmix RAW Feb 2018'!P179 -> 23 | AT17: ='Survivalexp vitmix RAW Feb 2018'!W179 -> 3 | AU17: ='Survivalexp vitmix RAW Feb 2018'!AD179 -> 0 | AV17: ='Survivalexp vitmix RAW Feb 2018'!AK179 -> 0 | AW17: ='Survivalexp vitmix RAW Feb 2018'!AR179 -> 0 | AX17: ='Survivalexp vitmix RAW Feb 2018'!AY179 -> 0 | AY17: ='Survivalexp vitmix RAW Feb 2018'!BF179 -> 0 | BB17: ='Survivalexp vitmix RAW Feb 2018'!I218 ->  | BC17: ='Survivalexp vitmix RAW Feb 2018'!P218 ->  | BD17: ='Survivalexp vitmix RAW Feb 2018'!W218 ->  | BE17: ='Survivalexp vitmix RAW Feb 2018'!AD218 ->  | BF17: ='Survivalexp vitmix RAW Feb 2018'!AK218 ->  | BG17: ='Survivalexp vitmix RAW Feb 2018'!AR218 -> 0 | BH17: ='Survivalexp vitmix RAW Feb 2018'!AY218 -> 0 | BI17: ='Survivalexp vitmix RAW Feb 2018'!BF218 -> 0
C18: stdev | D18: ='Survivalexp vitmix RAW Feb 2018'!I24 ->  | E18: ='Survivalexp vitmix RAW Feb 2018'!P24 ->  | F18: ='Survivalexp vitmix RAW Feb 2018'!W24 ->  | G18: ='Survivalexp vitmix RAW Feb 2018'!AD24 ->  | H18: ='Survivalexp vitmix RAW Feb 2018'!AK24 ->  | I18: ='Survivalexp vitmix RAW Feb 2018'!AR24 -> 13 | J18: ='Survivalexp vitmix RAW Feb 2018'!AY24 -> 6 | K18: ='Survivalexp vitmix RAW Feb 2018'!BF24 -> 2 | N18: ='Survivalexp vitmix RAW Feb 2018'!I63 ->  | O18: ='Survivalexp vitmix RAW Feb 2018'!P63 ->  | P18: ='Survivalexp vitmix RAW Feb 2018'!W63 ->  | Q18: ='Survivalexp vitmix RAW Feb 2018'!AD63 -> 25 | R18: ='Survivalexp vitmix RAW Feb 2018'!AK63 -> 13 | S18: ='Survivalexp vitmix RAW Feb 2018'!AR63 -> 3 | T18: ='Survivalexp vitmix RAW Feb 2018'!AY63 -> 0 | U18: ='Survivalexp vitmix RAW Feb 2018'!BF63 -> 0 | X18: ='Survivalexp vitmix RAW Feb 2018'!I102 ->  | Y18: ='Survivalexp vitmix RAW Feb 2018'!P102 -> 35 | Z18: ='Survivalexp vitmix RAW Feb 2018'!W102 -> 15 | AA18: ='Survivalexp vitmix RAW Feb 2018'!AD102 -> 6 | AB18: ='Survivalexp vitmix RAW Feb 2018'!AK102 -> 0 | AC18: ='Survivalexp vitmix RAW Feb 2018'!AR102 -> 0 | AD18: ='Survivalexp vitmix RAW Feb 2018'!AY102 -> 0 | AE18: ='Survivalexp vitmix RAW Feb 2018'!BF102 -> 0 | AH18: ='Survivalexp vitmix RAW Feb 2018'!I141 ->  | AI18: ='Survivalexp vitmix RAW Feb 2018'!P141 -> 12 | AJ18: ='Survivalexp vitmix RAW Feb 2018'!W141 -> 4 | AK18: ='Survivalexp vitmix RAW Feb 2018'!AD141 -> 4 | AL18: ='Survivalexp vitmix RAW Feb 2018'!AK141 -> 0 | AM18: ='Survivalexp vitmix RAW Feb 2018'!AR141 -> 0 | AN18: ='Survivalexp vitmix RAW Feb 2018'!AY141 -> 0 | AO18: ='Survivalexp vitmix RAW Feb 2018'!BF141 -> 0 | AR18: ='Survivalexp vitmix RAW Feb 2018'!I180 ->  | AS18: ='Survivalexp vitmix RAW Feb 2018'!P180 -> 8 | AT18: ='Survivalexp vitmix RAW Feb 2018'!W180 -> 4 | AU18: ='Survivalexp vitmix RAW Feb 2018'!AD180 -> 1 | AV18: ='Survivalexp vitmix RAW Feb 2018'!AK180 -> 0 | AW18: ='Survivalexp vitmix RAW Feb 2018'!AR180 -> 0 | AX18: ='Survivalexp vitmix RAW Feb 2018'!AY180 -> 0 | AY18: ='Survivalexp vitmix RAW Feb 2018'!BF180 -> 0 | BB18: ='Survivalexp vitmix RAW Feb 2018'!I219 ->  | BC18: ='Survivalexp vitmix RAW Feb 2018'!P219 ->  | BD18: ='Survivalexp vitmix RAW Feb 2018'!W219 ->  | BE18: ='Survivalexp vitmix RAW Feb 2018'!AD219 ->  | BF18: ='Survivalexp vitmix RAW Feb 2018'!AK219 ->  | BG18: ='Survivalexp vitmix RAW Feb 2018'!AR219 -> 0 | BH18: ='Survivalexp vitmix RAW Feb 2018'!AY219 -> 0 | BI18: ='Survivalexp vitmix RAW Feb 2018'!BF219 -> 0
B19: est. nr of bacteria | D19: =D17/$D$8 ->  | E19: =E17/$E$8 ->  | F19: =F17/$F$8 ->  | G19: =G17/$G$8 ->  | H19: =H17/$H$8 ->  | I19: =I17/$I$8 -> 5820000 | J19: =J17/$J$8 -> 6533333.333 | K19: =K17/$K$8 -> 5333333.333 | L19: =I19 -> 5820000 | M19: =I20 -> 1280534.335 | N19: =N17/$D$8 ->  | O19: =O17/$E$8 ->  | P19: =P17/$F$8 ->  | Q19: =Q17/$G$8 -> 101000 | R19: =R17/$H$8 -> 106000 | S19: =S17/$I$8 -> 113333.3333 | T19: =T17/$J$8 -> 0 | U19: =U17/$K$8 -> 0 | V19: =AVERAGE(Q19) -> 101000 | W19: =Q20 -> 24529.30319 | X19: =X17/$D$8 ->  | Y19: =Y17/$E$8 -> 1208.496933 | Z19: =Z17/$F$8 -> 2193.961333 | AA19: =AA17/$G$8 -> 2666.693333 | AB19: =AB17/$H$8 -> 0 | AC19: =AC17/$I$8 -> 0 | AD19: =AD17/$J$8 -> 0 | AE19: =AE17/$K$8 -> 0 | AF19: =Y19 -> 1208.496933 | AG19: =Y20 -> 345.6692697 | AH19: =AH17/$D$8 ->  | AI19: =AI17/$E$8 -> 262.6666667 | AJ19: =AJ17/$F$8 -> 1046.666667 | AK19: =AK17/$G$8 -> 1266.666667 | AL19: =AL17/$H$8 -> 666.6666667 | AM19: =AM17/$I$8 -> 0 | AN19: =AN17/$J$8 -> 0 | AO19: =AO17/$K$8 -> 0 | AP19: =AI19 -> 262.6666667 | AQ19: =AI20 -> 119.2738245 | AR19: =AR17/$D$8 ->  | AS19: =AS17/$E$8 -> 231.3333333 | AT19: =AT17/$F$8 -> 306.6666667 | AU19: =AU17/$G$8 -> 266.6666667 | AV19: =AV17/$H$8 -> 0 | AW19: =AW17/$I$8 -> 0E+00 | AX19: =AX17/$J$8 -> 0 | AY19: =AY17/$K$8 -> 0 | AZ19: =AS19 -> 231.3333333 | BA19: =AS20 -> 83.07944424 | BB19: =BB17/$D$8 ->  | BC19: =BC17/$E$8 ->  | BD19: =BD17/$F$8 ->  | BE19: =BE17/$G$8 ->  | BF19: =BF17/$H$8 ->  | BG19: =BG17/$I$8 -> 0 | BH19: =BH17/$J$8 -> 0 | BI19: =BI17/$K$8 -> 0 | BJ19: =BE19 ->  | BK19: =BE20 -> 
C20: stdev | D20: =D18/$D$8 ->  | E20: =E18/$E$8 ->  | F20: =F18/$F$8 ->  | G20: =G18/$G$8 ->  | H20: =H18/$H$8 ->  | I20: =I18/$I$8 -> 1280534.335 | J20: 6074717.95 | K20: =K18/$K$8 -> 22788097.75 | N20: =N18/$D$8 ->  | O20: =O18/$E$8 ->  | P20: =P18/$F$8 ->  | Q20: =Q18/$G$8 -> 24529.30319 | R20: =R18/$H$8 -> 125039.2736 | S20: =S18/$I$8 -> 256774.7244 | T20: 0 | U20: =U18/$K$8 -> 0 | X20: =X18/$D$8 ->  | Y20: =Y18/$E$8 -> 345.6692697 | Z20: =Z18/$F$8 -> 1465.728783 | AA20: =AA18/$G$8 -> 6027.562347 | AB20: =AB18/$H$8 -> 0 | AC20: =AC18/$I$8 -> 0 | AD20: 0 | AE20: =AE18/$K$8 -> 0 | AH20: =AH18/$D$8 ->  | AI20: =AI18/$E$8 -> 119.2738245 | AJ20: =AJ18/$F$8 -> 427.0670594 | AK20: =AK18/$G$8 -> 4013.919674 | AL20: =AL18/$H$8 -> 4472.135955 | AM20: =AM18/$I$8 -> 0 | AN20: 0 | AO20: =AO18/$K$8 -> 0 | AR20: =AR18/$D$8 ->  | AS20: =AS18/$E$8 -> 83.07944424 | AT20: =AT18/$F$8 -> 424.228697 | AU20: =AU18/$G$8 -> 836.6600265 | AV20: =AV18/$H$8 -> 0 | AW20: =AW18/$I$8 -> 0 | AX20: 0 | AY20: =AY18/$K$8 -> 0 | BB20: =BB18/$D$8 ->  | BC20: =BC18/$E$8 ->  | BD20: =BD18/$F$8 ->  | BE20: =BE18/$G$8 ->  | BF20: =BF18/$H$8 ->  | BG20: =BG18/$I$8 -> 0 | BH20: 0 | BI20: =BI18/$K$8 -> 0
B21: 2213F A | C21: p+0 | D21: ='Survivalexp vitmix RAW Feb 2018'!I28 ->  | E21: ='Survivalexp vitmix RAW Feb 2018'!P28 ->  | F21: ='Survivalexp vitmix RAW Feb 2018'!W28 ->  | G21: ='Survivalexp vitmix RAW Feb 2018'!AD28 ->  | H21: ='Survivalexp vitmix RAW Feb 2018'!AK28 ->  | I21: ='Survivalexp vitmix RAW Feb 2018'!AR28 -> 44 | J21: ='Survivalexp vitmix RAW Feb 2018'!AY28 -> 5 | K21: ='Survivalexp vitmix RAW Feb 2018'!BF28 -> 0 | N21: ='Survivalexp vitmix RAW Feb 2018'!I67 ->  | O21: ='Survivalexp vitmix RAW Feb 2018'!P67 ->  | P21: ='Survivalexp vitmix RAW Feb 2018'!W67 ->  | Q21: ='Survivalexp vitmix RAW Feb 2018'!AD67 -> 50 | R21: ='Survivalexp vitmix RAW Feb 2018'!AK67 -> 4 | S21: ='Survivalexp vitmix RAW Feb 2018'!AR67 -> 0 | T21: ='Survivalexp vitmix RAW Feb 2018'!AY67 -> 0 | U21: ='Survivalexp vitmix RAW Feb 2018'!BF67 -> 0 | X21: ='Survivalexp vitmix RAW Feb 2018'!I106 ->  | Y21: ='Survivalexp vitmix RAW Feb 2018'!P106 -> 104 | Z21: ='Survivalexp vitmix RAW Feb 2018'!W106 -> 13 | AA21: ='Survivalexp vitmix RAW Feb 2018'!AD106 -> 1 | AB21: ='Survivalexp vitmix RAW Feb 2018'!AK106 -> 0 | AC21: ='Survivalexp vitmix RAW Feb 2018'!AR106 -> 0 | AD21: ='Survivalexp vitmix RAW Feb 2018'!AY106 -> 0 | AE21: ='Survivalexp vitmix RAW Feb 2018'!BF106 -> 0 | AH21: ='Survivalexp vitmix RAW Feb 2018'!I145 ->  | AI21: ='Survivalexp vitmix RAW Feb 2018'!P145 -> 45 | AJ21: ='Survivalexp vitmix RAW Feb 2018'!W145 -> 6 | AK21: ='Survivalexp vitmix RAW Feb 2018'!AD145 -> 0 | AL21: ='Survivalexp vitmix RAW Feb 2018'!AK145 -> 0 | AM21: ='Survivalexp vitmix RAW Feb 2018'!AR145 -> 0 | AN21: ='Survivalexp vitmix RAW Feb 2018'!AY145 -> 0 | AO21: ='Survivalexp vitmix RAW Feb 2018'!BF145 -> 0 | AR21: ='Survivalexp vitmix RAW Feb 2018'!I184 ->  | AS21: ='Survivalexp vitmix RAW Feb 2018'!P184 -> 45 | AT21: ='Survivalexp vitmix RAW Feb 2018'!W184 -> 6 | AU21: ='Survivalexp vitmix RAW Feb 2018'!AD184 -> 0 | AV21: ='Survivalexp vitmix RAW Feb 2018'!AK184 -> 0 | AW21: ='Survivalexp vitmix RAW Feb 2018'!AR184 -> 0 | AX21: ='Survivalexp vitmix RAW Feb 2018'!AY184 -> 0 | AY21: ='Survivalexp vitmix RAW Feb 2018'!BF184 -> 0 | BB21: ='Survivalexp vitmix RAW Feb 2018'!I223 ->  | BC21: ='Survivalexp vitmix RAW Feb 2018'!P223 ->  | BD21: ='Survivalexp vitmix RAW Feb 2018'!W223 ->  | BE21: ='Survivalexp vitmix RAW Feb 2018'!AD223 ->  | BF21: ='Survivalexp vitmix RAW Feb 2018'!AK223 ->  | BG21: ='Survivalexp vitmix RAW Feb 2018'!AR223 -> 0 | BH21: ='Survivalexp vitmix RAW Feb 2018'!AY223 -> 0 | BI21: ='Survivalexp vitmix RAW Feb 2018'!BF223 -> 0
C22: stdev | D22: ='Survivalexp vitmix RAW Feb 2018'!I29 ->  | E22: ='Survivalexp vitmix RAW Feb 2018'!P29 ->  | F22: ='Survivalexp vitmix RAW Feb 2018'!W29 ->  | G22: ='Survivalexp vitmix RAW Feb 2018'!AD29 ->  | H22: ='Survivalexp vitmix RAW Feb 2018'!AK29 ->  | I22: ='Survivalexp vitmix RAW Feb 2018'!AR29 -> 14 | J22: ='Survivalexp vitmix RAW Feb 2018'!AY29 -> 5 | K22: ='Survivalexp vitmix RAW Feb 2018'!BF29 -> 1 | N22: ='Survivalexp vitmix RAW Feb 2018'!I68 ->  | O22: ='Survivalexp vitmix RAW Feb 2018'!P68 ->  | P22: ='Survivalexp vitmix RAW Feb 2018'!W68 ->  | Q22: ='Survivalexp vitmix RAW Feb 2018'!AD68 -> 16 | R22: ='Survivalexp vitmix RAW Feb 2018'!AK68 -> 5 | S22: ='Survivalexp vitmix RAW Feb 2018'!AR68 -> 2 | T22: ='Survivalexp vitmix RAW Feb 2018'!AY68 -> 1 | U22: ='Survivalexp vitmix RAW Feb 2018'!BF68 -> 0 | X22: ='Survivalexp vitmix RAW Feb 2018'!I107 ->  | Y22: ='Survivalexp vitmix RAW Feb 2018'!P107 -> 32 | Z22: ='Survivalexp vitmix RAW Feb 2018'!W107 -> 10 | AA22: ='Survivalexp vitmix RAW Feb 2018'!AD107 -> 4 | AB22: ='Survivalexp vitmix RAW Feb 2018'!AK107 -> 0 | AC22: ='Survivalexp vitmix RAW Feb 2018'!AR107 -> 0 | AD22: ='Survivalexp vitmix RAW Feb 2018'!AY107 -> 0 | AE22: ='Survivalexp vitmix RAW Feb 2018'!BF107 -> 0 | AH22: ='Survivalexp vitmix RAW Feb 2018'!I146 ->  | AI22: ='Survivalexp vitmix RAW Feb 2018'!P146 -> 18 | AJ22: ='Survivalexp vitmix RAW Feb 2018'!W146 -> 6 | AK22: ='Survivalexp vitmix RAW Feb 2018'!AD146 -> 2 | AL22: ='Survivalexp vitmix RAW Feb 2018'!AK146 -> 0 | AM22: ='Survivalexp vitmix RAW Feb 2018'!AR146 -> 0 | AN22: ='Survivalexp vitmix RAW Feb 2018'!AY146 -> 0 | AO22: ='Survivalexp vitmix RAW Feb 2018'!BF146 -> 0 | AR22: ='Survivalexp vitmix RAW Feb 2018'!I185 ->  | AS22: ='Survivalexp vitmix RAW Feb 2018'!P185 -> 22 | AT22: ='Survivalexp vitmix RAW Feb 2018'!W185 -> 6 | AU22: ='Survivalexp vitmix RAW Feb 2018'!AD185 -> 1 | AV22: ='Survivalexp vitmix RAW Feb 2018'!AK185 -> 0 | AW22: ='Survivalexp vitmix RAW Feb 2018'!AR185 -> 0 | AX22: ='Survivalexp vitmix RAW Feb 2018'!AY185 -> 0 | AY22: ='Survivalexp vitmix RAW Feb 2018'!BF185 -> 0 | BB22: ='Survivalexp vitmix RAW Feb 2018'!I224 ->  | BC22: ='Survivalexp vitmix RAW Feb 2018'!P224 ->  | BD22: ='Survivalexp vitmix RAW Feb 2018'!W224 ->  | BE22: ='Survivalexp vitmix RAW Feb 2018'!AD224 ->  | BF22: ='Survivalexp vitmix RAW Feb 2018'!AK224 ->  | BG22: ='Survivalexp vitmix RAW Feb 2018'!AR224 -> 0 | BH22: ='Survivalexp vitmix RAW Feb 2018'!AY224 -> 0 | BI22: ='Survivalexp vitmix RAW Feb 2018'!BF224 -> 0
B23: est. nr of bacteria | D23: =D21/$D$8 ->  | E23: =E21/$E$8 ->  | F23: =F21/$F$8 ->  | G23: =G21/$G$8 ->  | H23: =H21/$H$8 ->  | I23: =I21/$I$8 -> 4446666.667 | J23: =J21/$J$8 -> 4666666.667 | K23: =K21/$K$8 -> 2666666.667 | L23: =I23 -> 4446666.667 | M23: =I24 -> 1439758.206 | N23: =N21/$D$8 ->  | O23: =O21/$E$8 ->  | P23: =P21/$F$8 ->  | Q23: =Q21/$G$8 -> 50200 | R23: =R21/$H$8 -> 38666.66667 | S23: =S21/$I$8 -> 33333.33333 | T23: =T21/$J$8 -> 133333.3333 | U23: =U21/$K$8 -> 0 | V23: =Q23 -> 50200 | W23: =Q24 -> 16298.19435 | X23: =X21/$D$8 ->  | Y23: =Y21/$E$8 -> 1035.161867 | Z23: =Z21/$F$8 -> 1260.618667 | AA23: =AA21/$G$8 -> 969.7066667 | AB23: =AB21/$H$8 -> 0 | AC23: =AC21/$I$8 -> 0 | AD23: =AD21/$J$8 -> 0 | AE23: =AE21/$K$8 -> 0 | AF23: =Y23 -> 1035.161867 | AG23: =Y24 -> 317.8488592 | AH23: =AH21/$D$8 ->  | AI23: =AI21/$E$8 -> 446 | AJ23: =AJ21/$F$8 -> 593.3333333 | AK23: =AK21/$G$8 -> 400 | AL23: =AL21/$H$8 -> 666.6666667 | AM23: =AM21/$I$8 -> 0 | AN23: =AN21/$J$8 -> 0 | AO23: =AO21/$K$8 -> 0 | AP23: =AI23 -> 446 | AQ23: =AI24 -> 176.0122043 | AR23: =AR21/$D$8 ->  | AS23: =AS21/$E$8 -> 448 | AT23: =AT21/$F$8 -> 580 | AU23: =AU21/$G$8 -> 266.6666667 | AV23: =AV21/$H$8 -> 0 | AW23: =AW21/$I$8 -> 0 | AX23: =AX21/$J$8 -> 0 | AY23: =AY21/$K$8 -> 0 | AZ23: =AS23 -> 448 | BA23: =AS24 -> 221.7031599 | BB23: =BB21/$D$8 ->  | BC23: =BC21/$E$8 ->  | BD23: =BD21/$F$8 ->  | BE23: =BE21/$G$8 ->  | BF23: =BF21/$H$8 ->  | BG23: =BG21/$I$8 -> 0 | BH23: =BH21/$J$8 -> 0 | BI23: =BI21/$K$8 -> 0 | BJ23: =BE23 ->  | BK23: =BE24 -> 
C24: stdev | D24: =D22/$D$8 ->  | E24: =E22/$E$8 ->  | F24: =F22/$F$8 ->  | G24: =G22/$G$8 ->  | H24: =H22/$H$8 ->  | I24: =I22/$I$8 -> 1439758.206 | J24: =J22/$J$8 -> 4937020.906 | K24: =K22/$K$8 -> 13416407.86 | N24: =N22/$D$8 ->  | O24: =O22/$E$8 ->  | P24: =P22/$F$8 ->  | Q24: =Q22/$G$8 -> 16298.19435 | R24: =R22/$H$8 -> 50853.74561 | S24: =S22/$I$8 -> 154265.8711 | T24: =T22/$J$8 -> 894427.191 | U24: =U22/$K$8 -> 0 | X24: =X22/$D$8 ->  | Y24: =Y22/$E$8 -> 317.8488592 | Z24: =Z22/$F$8 -> 978.2675678 | AA24: =AA22/$G$8 -> 3512.953568 | AB24: =AB22/$H$8 -> 0 | AC24: =AC22/$I$8 -> 0 | AD24: =AD22/$J$8 -> 0 | AE24: =AE22/$K$8 -> 0 | AH24: =AH22/$D$8 ->  | AI24: =AI22/$E$8 -> 176.0122043 | AJ24: =AJ22/$F$8 -> 646.6195143 | AK24: =AK22/$G$8 -> 1989.872306 | AL24: =AL22/$H$8 -> 4472.135955 | AM24: =AM22/$I$8 -> 0 | AN24: =AN22/$J$8 -> 0 | AO24: =AO22/$K$8 -> 0 | AR24: =AR22/$D$8 ->  | AS24: =AS22/$E$8 -> 221.7031599 | AT24: =AT22/$F$8 -> 594.9111628 | AU24: =AU22/$G$8 -> 1095.445115 | AV24: =AV22/$H$8 -> 0 | AW24: =AW22/$I$8 -> 0 | AX24: =AX22/$J$8 -> 0 | AY24: =AY22/$K$8 -> 0 | BB24: =BB22/$D$8 ->  | BC24: =BC22/$E$8 ->  | BD24: =BD22/$F$8 ->  | BE24: =BE22/$G$8 ->  | BF24: =BF22/$H$8 ->  | BG24: =BG22/$I$8 -> 0 | BH24: =BH22/$J$8 -> 0 | BI24: =BI22/$K$8 -> 0
C25: p+3 | D25: ='Survivalexp vitmix RAW Feb 2018'!I33 ->  | E25: ='Survivalexp vitmix RAW Feb 2018'!P33 ->  | F25: ='Survivalexp vitmix RAW Feb 2018'!W33 ->  | G25: ='Survivalexp vitmix RAW Feb 2018'!AD33 ->  | H25: ='Survivalexp vitmix RAW Feb 2018'!AK33 ->  | I25: ='Survivalexp vitmix RAW Feb 2018'!AR33 -> 46 | J25: ='Survivalexp vitmix RAW Feb 2018'!AY33 -> 6 | K25: ='Survivalexp vitmix RAW Feb 2018'!BF33 -> 0 | N25: ='Survivalexp vitmix RAW Feb 2018'!I72 ->  | O25: ='Survivalexp vitmix RAW Feb 2018'!P72 ->  | P25: ='Survivalexp vitmix RAW Feb 2018'!W72 ->  | Q25: ='Survivalexp vitmix RAW Feb 2018'!AD72 -> 40 | R25: ='Survivalexp vitmix RAW Feb 2018'!AK72 -> 4 | S25: ='Survivalexp vitmix RAW Feb 2018'!AR72 -> 1 | T25: ='Survivalexp vitmix RAW Feb 2018'!AY72 -> 0 | U25: ='Survivalexp vitmix RAW Feb 2018'!BF72 -> 0 | X25: ='Survivalexp vitmix RAW Feb 2018'!I111 ->  | Y25: ='Survivalexp vitmix RAW Feb 2018'!P111 -> 65 | Z25: ='Survivalexp vitmix RAW Feb 2018'!W111 -> 5 | AA25: ='Survivalexp vitmix RAW Feb 2018'!AD111 -> 1 | AB25: ='Survivalexp vitmix RAW Feb 2018'!AK111 -> 0 | AC25: ='Survivalexp vitmix RAW Feb 2018'!AR111 -> 0 | AD25: ='Survivalexp vitmix RAW Feb 2018'!AY111 -> 0 | AE25: ='Survivalexp vitmix RAW Feb 2018'!BF111 -> 0 | AH25: ='Survivalexp vitmix RAW Feb 2018'!I150 ->  | AI25: ='Survivalexp vitmix RAW Feb 2018'!P150 -> 34 | AJ25: ='Survivalexp vitmix RAW Feb 2018'!W150 -> 5 | AK25: ='Survivalexp vitmix RAW Feb 2018'!AD150 -> 0 | AL25: ='Survivalexp vitmix RAW Feb 2018'!AK150 -> 0 | AM25: ='Survivalexp vitmix RAW Feb 2018'!AR150 -> 0 | AN25: ='Survivalexp vitmix RAW Feb 2018'!AY150 -> 0 | AO25: ='Survivalexp vitmix RAW Feb 2018'!BF150 -> 0 | AR25: ='Survivalexp vitmix RAW Feb 2018'!I189 ->  | AS25: ='Survivalexp vitmix RAW Feb 2018'!P189 -> 28 | AT25: ='Survivalexp vitmix RAW Feb 2018'!W189 -> 4 | AU25: ='Survivalexp vitmix RAW Feb 2018'!AD189 -> 0 | AV25: ='Survivalexp vitmix RAW Feb 2018'!AK189 -> 0 | AW25: ='Survivalexp vitmix RAW Feb 2018'!AR189 -> 0 | AX25: ='Survivalexp vitmix RAW Feb 2018'!AY189 -> 0 | AY25: ='Survivalexp vitmix RAW Feb 2018'!BF189 -> 0 | BB25: ='Survivalexp vitmix RAW Feb 2018'!I228 ->  | BC25: ='Survivalexp vitmix RAW Feb 2018'!P228 ->  | BD25: ='Survivalexp vitmix RAW Feb 2018'!W228 ->  | BE25: ='Survivalexp vitmix RAW Feb 2018'!AD228 ->  | BF25: ='Survivalexp vitmix RAW Feb 2018'!AK228 ->  | BG25: ='Survivalexp vitmix RAW Feb 2018'!AR228 -> 0 | BH25: ='Survivalexp vitmix RAW Feb 2018'!AY228 -> 0 | BI25: ='Survivalexp vitmix RAW Feb 2018'!BF228 -> 0
C26: stdev | D26: ='Survivalexp vitmix RAW Feb 2018'!I34 ->  | E26: ='Survivalexp vitmix RAW Feb 2018'!P34 ->  | F26: ='Survivalexp vitmix RAW Feb 2018'!W34 ->  | G26: ='Survivalexp vitmix RAW Feb 2018'!AD34 ->  | H26: ='Survivalexp vitmix RAW Feb 2018'!AK34 ->  | I26: ='Survivalexp vitmix RAW Feb 2018'!AR34 -> 16 | J26: ='Survivalexp vitmix RAW Feb 2018'!AY34 -> 7 | K26: ='Survivalexp vitmix RAW Feb 2018'!BF34 -> 1 | N26: ='Survivalexp vitmix RAW Feb 2018'!I73 ->  | O26: ='Survivalexp vitmix RAW Feb 2018'!P73 ->  | P26: ='Survivalexp vitmix RAW Feb 2018'!W73 ->  | Q26: ='Survivalexp vitmix RAW Feb 2018'!AD73 -> 9 | R26: ='Survivalexp vitmix RAW Feb 2018'!AK73 -> 4 | S26: ='Survivalexp vitmix RAW Feb 2018'!AR73 -> 3 | T26: ='Survivalexp vitmix RAW Feb 2018'!AY73 -> 0 | U26: ='Survivalexp vitmix RAW Feb 2018'!BF73 -> 0 | X26: ='Survivalexp vitmix RAW Feb 2018'!I112 ->  | Y26: ='Survivalexp vitmix RAW Feb 2018'!P112 -> 30 | Z26: ='Survivalexp vitmix RAW Feb 2018'!W112 -> 8 | AA26: ='Survivalexp vitmix RAW Feb 2018'!AD112 -> 4 | AB26: ='Survivalexp vitmix RAW Feb 2018'!AK112 -> 0 | AC26: ='Survivalexp vitmix RAW Feb 2018'!AR112 -> 0 | AD26: ='Survivalexp vitmix RAW Feb 2018'!AY112 -> 0 | AE26: ='Survivalexp vitmix RAW Feb 2018'!BF112 -> 0 | AH26: ='Survivalexp vitmix RAW Feb 2018'!I151 ->  | AI26: ='Survivalexp vitmix RAW Feb 2018'!P151 -> 24 | AJ26: ='Survivalexp vitmix RAW Feb 2018'!W151 -> 7 | AK26: ='Survivalexp vitmix RAW Feb 2018'!AD151 -> 2 | AL26: ='Survivalexp vitmix RAW Feb 2018'!AK151 -> 0 | AM26: ='Survivalexp vitmix RAW Feb 2018'!AR151 -> 0 | AN26: ='Survivalexp vitmix RAW Feb 2018'!AY151 -> 0 | AO26: ='Survivalexp vitmix RAW Feb 2018'!BF151 -> 0 | AR26: ='Survivalexp vitmix RAW Feb 2018'!I190 ->  | AS26: ='Survivalexp vitmix RAW Feb 2018'!P190 -> 15 | AT26: ='Survivalexp vitmix RAW Feb 2018'!W190 -> 3 | AU26: ='Survivalexp vitmix RAW Feb 2018'!AD190 -> 2 | AV26: ='Survivalexp vitmix RAW Feb 2018'!AK190 -> 0 | AW26: ='Survivalexp vitmix RAW Feb 2018'!AR190 -> 0 | AX26: ='Survivalexp vitmix RAW Feb 2018'!AY190 -> 0 | AY26: ='Survivalexp vitmix RAW Feb 2018'!BF190 -> 0 | BB26: ='Survivalexp vitmix RAW Feb 2018'!I229 ->  | BC26: ='Survivalexp vitmix RAW Feb 2018'!P229 ->  | BD26: ='Survivalexp vitmix RAW Feb 2018'!W229 ->  | BE26: ='Survivalexp vitmix RAW Feb 2018'!AD229 ->  | BF26: ='Survivalexp vitmix RAW Feb 2018'!AK229 ->  | BG26: ='Survivalexp vitmix RAW Feb 2018'!AR229 -> 0 | BH26: ='Survivalexp vitmix RAW Feb 2018'!AY229 -> 0 | BI26: ='Survivalexp vitmix RAW Feb 2018'!BF229 -> 0
B27: est. nr of bacteria | D27: =D25/$D$8 ->  | E27: =E25/$E$8 ->  | F27: =F25/$F$8 ->  | G27: =G25/$G$8 ->  | H27: =H25/$H$8 ->  | I27: =I25/$I$8 -> 4640000 | J27: =J25/$J$8 -> 5600000 | K27: =K25/$K$8 -> 4000000 | L27: =I27 -> 4640000 | M27: =I28 -> 1637695.487 | N27: =N25/$D$8 ->  | O27: =O25/$E$8 ->  | P27: =P25/$F$8 ->  | Q27: =Q25/$G$8 -> 40066.66667 | R27: =R25/$H$8 -> 43333.33333 | S27: =S25/$I$8 -> 66666.66667 | T27: =T25/$J$8 -> 0 | U27: =U25/$K$8 -> 0 | V27: =Q27 -> 40066.66667 | W27: =Q28 -> 9310.585136 | X27: =X25/$D$8 ->  | Y27: =Y25/$E$8 -> 653.3398667 | Z27: =Z25/$F$8 -> 545.46 | AA27: =AA25/$G$8 -> 969.7066667 | AB27: =AB25/$H$8 -> 0 | AC27: =AC25/$I$8 -> 0 | AD27: =AD25/$J$8 -> 0 | AE27: =AE25/$K$8 -> 0 | AF27: =Y27 -> 653.3398667 | AG27: =Y28 -> 300.5183802 | AH27: =AH25/$D$8 ->  | AI27: =AI25/$E$8 -> 338.6666667 | AJ27: =AJ25/$F$8 -> 466.6666667 | AK27: =AK25/$G$8 -> 466.6666667 | AL27: =AL25/$H$8 -> 666.6666667 | AM27: =AM25/$I$8 -> 0 | AN27: =AN25/$J$8 -> 0 | AO27: =AO25/$K$8 -> 0 | AP27: =AI27 -> 338.6666667 | AQ27: =AI28 -> 238.4120671 | AR27: =AR25/$D$8 ->  | AS27: =AS25/$E$8 -> 280.6666667 | AT27: =AT25/$F$8 -> 360 | AU27: =AU25/$G$8 -> 400 | AV27: =AV25/$H$8 -> 0 | AW27: =AW25/$I$8 -> 0 | AX27: =AX25/$J$8 -> 0 | AY27: =AY25/$K$8 -> 0 | AZ27: =AS27 -> 280.6666667 | BA27: =AS28 -> 151.7172206 | BB27: =BB25/$D$8 ->  | BC27: =BC25/$E$8 ->  | BD27: =BD25/$F$8 ->  | BE27: =BE25/$G$8 ->  | BF27: =BF25/$H$8 ->  | BG27: =BG25/$I$8 -> 0 | BH27: =BH25/$J$8 -> 0 | BI27: =BI25/$K$8 -> 0 | BJ27: =BE27 ->  | BK27: =BE28 -> 
C28: stdev | D28: =D26/$D$8 ->  | E28: =E26/$E$8 ->  | F28: =F26/$F$8 ->  | G28: =G26/$G$8 ->  | H28: =H26/$H$8 ->  | I28: =I26/$I$8 -> 1637695.487 | J28: =J26/$J$8 -> 7302376.073 | K28: =K26/$K$8 -> 13843825.84 | N28: =N26/$D$8 ->  | O28: =O26/$E$8 ->  | P28: =P26/$F$8 ->  | Q28: =Q26/$G$8 -> 9310.585136 | R28: =R26/$H$8 -> 43087.03276 | S28: =S26/$I$8 -> 264548.1268 | T28: =T26/$J$8 -> 0 | U28: =U26/$K$8 -> 0 | X28: =X26/$D$8 ->  | Y28: =Y26/$E$8 -> 300.5183802 | Z28: =Z26/$F$8 -> 836.2598322 | AA28: =AA26/$G$8 -> 4035.824039 | AB28: =AB26/$H$8 -> 0 | AC28: =AC26/$I$8 -> 0 | AD28: =AD26/$J$8 -> 0 | AE28: =AE26/$K$8 -> 0 | AH28: =AH26/$D$8 ->  | AI28: =AI26/$E$8 -> 238.4120671 | AJ28: =AJ26/$F$8 -> 659.2743913 | AK28: =AK26/$G$8 -> 1831.59618 | AL28: =AL26/$H$8 -> 4472.135955 | AM28: =AM26/$I$8 -> 0 | AN28: =AN26/$J$8 -> 0 | AO28: =AO26/$K$8 -> 0 | AR28: =AR26/$D$8 ->  | AS28: =AS26/$E$8 -> 151.7172206 | AT28: =AT26/$F$8 -> 308.5317421 | AU28: =AU26/$G$8 -> 1542.658711 | AV28: =AV26/$H$8 -> 0 | AW28: =AW26/$I$8 -> 0 | AX28: =AX26/$J$8 -> 0 | AY28: =AY26/$K$8 -> 0 | BB28: =BB26/$D$8 ->  | BC28: =BC26/$E$8 ->  | BD28: =BD26/$F$8 ->  | BE28: =BE26/$G$8 ->  | BF28: =BF26/$H$8 ->  | BG28: =BG26/$I$8 -> 0 | BH28: =BH26/$J$8 -> 0 | BI28: =BI26/$K$8 -> 0
B29: 2213F APR | C29: p+0 | D29: ='Survivalexp vitmix RAW Feb 2018'!I38 ->  | E29: ='Survivalexp vitmix RAW Feb 2018'!P38 ->  | F29: ='Survivalexp vitmix RAW Feb 2018'!W38 ->  | G29: ='Survivalexp vitmix RAW Feb 2018'!AD38 ->  | H29: ='Survivalexp vitmix RAW Feb 2018'!AK38 ->  | I29: ='Survivalexp vitmix RAW Feb 2018'!AR38 -> 51 | J29: ='Survivalexp vitmix RAW Feb 2018'!AY38 -> 6 | K29: ='Survivalexp vitmix RAW Feb 2018'!BF38 -> 1 | N29: ='Survivalexp vitmix RAW Feb 2018'!I77 ->  | O29: ='Survivalexp vitmix RAW Feb 2018'!P77 ->  | P29: ='Survivalexp vitmix RAW Feb 2018'!W77 ->  | Q29: ='Survivalexp vitmix RAW Feb 2018'!AD77 ->  | R29: ='Survivalexp vitmix RAW Feb 2018'!AK77 -> 42 | S29: ='Survivalexp vitmix RAW Feb 2018'!AR77 -> 5 | T29: ='Survivalexp vitmix RAW Feb 2018'!AY77 -> 0 | U29: ='Survivalexp vitmix RAW Feb 2018'!BF77 -> 0 | X29: ='Survivalexp vitmix RAW Feb 2018'!I116 ->  | Y29: ='Survivalexp vitmix RAW Feb 2018'!P116 ->  | Z29: ='Survivalexp vitmix RAW Feb 2018'!W116 -> 26 | AA29: ='Survivalexp vitmix RAW Feb 2018'!AD116 -> 2 | AB29: ='Survivalexp vitmix RAW Feb 2018'!AK116 -> 0 | AC29: ='Survivalexp vitmix RAW Feb 2018'!AR116 -> 0 | AD29: ='Survivalexp vitmix RAW Feb 2018'!AY116 -> 0 | AE29: ='Survivalexp vitmix RAW Feb 2018'!BF116 -> 0 | AH29: ='Survivalexp vitmix RAW Feb 2018'!I155 ->  | AI29: ='Survivalexp vitmix RAW Feb 2018'!P155 -> 56 | AJ29: ='Survivalexp vitmix RAW Feb 2018'!W155 -> 7 | AK29: ='Survivalexp vitmix RAW Feb 2018'!AD155 -> 0 | AL29: ='Survivalexp vitmix RAW Feb 2018'!AK155 -> 0 | AM29: ='Survivalexp vitmix RAW Feb 2018'!AR155 -> 0 | AN29: ='Survivalexp vitmix RAW Feb 2018'!AY155 -> 0 | AO29: ='Survivalexp vitmix RAW Feb 2018'!BF155 -> 0 | AR29: ='Survivalexp vitmix RAW Feb 2018'!I194 ->  | AS29: ='Survivalexp vitmix RAW Feb 2018'!P194 -> 32 | AT29: ='Survivalexp vitmix RAW Feb 2018'!W194 -> 5 | AU29: ='Survivalexp vitmix RAW Feb 2018'!AD194 -> 0 | AV29: ='Survivalexp vitmix RAW Feb 2018'!AK194 -> 0 | AW29: ='Survivalexp vitmix RAW Feb 2018'!AR194 -> 0 | AX29: ='Survivalexp vitmix RAW Feb 2018'!AY194 -> 0 | AY29: ='Survivalexp vitmix RAW Feb 2018'!BF194 -> 0 | BB29: ='Survivalexp vitmix RAW Feb 2018'!I233 ->  | BC29: ='Survivalexp vitmix RAW Feb 2018'!P233 ->  | BD29: ='Survivalexp vitmix RAW Feb 2018'!W233 ->  | BE29: ='Survivalexp vitmix RAW Feb 2018'!AD233 ->  | BF29: ='Survivalexp vitmix RAW Feb 2018'!AK233 ->  | BG29: ='Survivalexp vitmix RAW Feb 2018'!AR233 -> 0 | BH29: ='Survivalexp vitmix RAW Feb 2018'!AY233 -> 0 | BI29: ='Survivalexp vitmix RAW Feb 2018'!BF233 -> 0
C30: stdev | D30: ='Survivalexp vitmix RAW Feb 2018'!I39 ->  | E30: ='Survivalexp vitmix RAW Feb 2018'!P39 ->  | F30: ='Survivalexp vitmix RAW Feb 2018'!W39 ->  | G30: ='Survivalexp vitmix RAW Feb 2018'!AD39 ->  | H30: ='Survivalexp vitmix RAW Feb 2018'!AK39 ->  | I30: ='Survivalexp vitmix RAW Feb 2018'!AR39 -> 17 | J30: ='Survivalexp vitmix RAW Feb 2018'!AY39 -> 8 | K30: ='Survivalexp vitmix RAW Feb 2018'!BF39 -> 2 | N30: ='Survivalexp vitmix RAW Feb 2018'!I78 ->  | O30: ='Survivalexp vitmix RAW Feb 2018'!P78 ->  | P30: ='Survivalexp vitmix RAW Feb 2018'!W78 ->  | Q30: ='Survivalexp vitmix RAW Feb 2018'!AD78 ->  | R30: ='Survivalexp vitmix RAW Feb 2018'!AK78 -> 20 | S30: ='Survivalexp vitmix RAW Feb 2018'!AR78 -> 5 | T30: ='Survivalexp vitmix RAW Feb 2018'!AY78 -> 2 | U30: ='Survivalexp vitmix RAW Feb 2018'!BF78 -> 1 | X30: ='Survivalexp vitmix RAW Feb 2018'!I117 ->  | Y30: ='Survivalexp vitmix RAW Feb 2018'!P117 ->  | Z30: ='Survivalexp vitmix RAW Feb 2018'!W117 -> 12 | AA30: ='Survivalexp vitmix RAW Feb 2018'!AD117 -> 7 | AB30: ='Survivalexp vitmix RAW Feb 2018'!AK117 -> 0 | AC30: ='Survivalexp vitmix RAW Feb 2018'!AR117 -> 0 | AD30: ='Survivalexp vitmix RAW Feb 2018'!AY117 -> 0 | AE30: ='Survivalexp vitmix RAW Feb 2018'!BF117 -> 0 | AH30: ='Survivalexp vitmix RAW Feb 2018'!I156 ->  | AI30: ='Survivalexp vitmix RAW Feb 2018'!P156 -> 14 | AJ30: ='Survivalexp vitmix RAW Feb 2018'!W156 -> 9 | AK30: ='Survivalexp vitmix RAW Feb 2018'!AD156 -> 2 | AL30: ='Survivalexp vitmix RAW Feb 2018'!AK156 -> 0 | AM30: ='Survivalexp vitmix RAW Feb 2018'!AR156 -> 0 | AN30: ='Survivalexp vitmix RAW Feb 2018'!AY156 -> 0 | AO30: ='Survivalexp vitmix RAW Feb 2018'!BF156 -> 0 | AR30: ='Survivalexp vitmix RAW Feb 2018'!I195 ->  | AS30: ='Survivalexp vitmix RAW Feb 2018'!P195 -> 15 | AT30: ='Survivalexp vitmix RAW Feb 2018'!W195 -> 5 | AU30: ='Survivalexp vitmix RAW Feb 2018'!AD195 -> 1 | AV30: ='Survivalexp vitmix RAW Feb 2018'!AK195 -> 0 | AW30: ='Survivalexp vitmix RAW Feb 2018'!AR195 -> 0 | AX30: ='Survivalexp vitmix RAW Feb 2018'!AY195 -> 0 | AY30: ='Survivalexp vitmix RAW Feb 2018'!BF195 -> 0 | BB30: ='Survivalexp vitmix RAW Feb 2018'!I234 ->  | BC30: ='Survivalexp vitmix RAW Feb 2018'!P234 ->  | BD30: ='Survivalexp vitmix RAW Feb 2018'!W234 ->  | BE30: ='Survivalexp vitmix RAW Feb 2018'!AD234 ->  | BF30: ='Survivalexp vitmix RAW Feb 2018'!AK234 ->  | BG30: ='Survivalexp vitmix RAW Feb 2018'!AR234 -> 0 | BH30: ='Survivalexp vitmix RAW Feb 2018'!AY234 -> 0 | BI30: ='Survivalexp vitmix RAW Feb 2018'!BF234 -> 0
B31: est. nr of bacteria | D31: =D29/$D$8 ->  | E31: =E29/$E$8 ->  | F31: =F29/$F$8 ->  | G31: =G29/$G$8 ->  | H31: =H29/$H$8 ->  | I31: =I29/$I$8 -> 5126666.667 | J31: =J29/$J$8 -> 6066666.667 | K31: =K29/$K$8 -> 5333333.333 | L31: =I31 -> 5126666.667 | M31: =I32 -> 1687322.829 | N31: =N29/$D$8 ->  | O31: =O29/$E$8 ->  | P31: =P29/$F$8 ->  | Q31: =Q29/$G$8 ->  | R31: =R29/$H$8 -> 424666.6667 | S31: =S29/$I$8 -> 486666.6667 | T31: =T29/$J$8 -> 466666.6667 | U31: =U29/$K$8 -> 1333333.333 | V31: =R31 -> 424666.6667 | W31: =R32 -> 203425.3342 | X31: =X29/$D$8 ->  | Y31: =Y29/$E$8 ->  | Z31: =Z29/$F$8 -> 2569.722667 | AA31: =AA29/$G$8 -> 2303.053333 | AB31: =AB29/$H$8 -> 0 | AC31: =AC29/$I$8 -> 0 | AD31: =AD29/$J$8 -> 0 | AE31: =AE29/$K$8 -> 0 | AF31: =Z31 -> 2569.722667 | AG31: =Z32 -> 1244.717312 | AH31: =AH29/$D$8 ->  | AI31: =AI29/$E$8 -> 556.6666667 | AJ31: =AJ29/$F$8 -> 746.6666667 | AK31: =AK29/$G$8 -> 466.6666667 | AL31: =AL29/$H$8 -> 0 | AM31: =AM29/$I$8 -> 0 | AN31: =AN29/$J$8 -> 0 | AO31: =AO29/$K$8 -> 0 | AP31: =AI31 -> 556.6666667 | AQ31: =AI32 -> 144.8590757 | AR31: =AR29/$D$8 ->  | AS31: =AS29/$E$8 -> 320 | AT31: =AT29/$F$8 -> 466.6666667 | AU31: =AU29/$G$8 -> 466.6666667 | AV31: =AV29/$H$8 -> 0 | AW31: =AW29/$I$8 -> 0 | AX31: =AX29/$J$8 -> 0 | AY31: =AY29/$K$8 -> 0 | AZ31: =AS31 -> 320 | BA31: =AS32 -> 147.9575023 | BB31: =BB29/$D$8 ->  | BC31: =BC29/$E$8 ->  | BD31: =BD29/$F$8 ->  | BE31: =BE29/$G$8 ->  | BF31: =BF29/$H$8 ->  | BG31: =BG29/$I$8 -> 0 | BH31: =BH29/$J$8 -> 0 | BI31: =BI29/$K$8 -> 0 | BJ31: =BE31 ->  | BK31: =BE32 -> 
C32: stdev | D32: =D30/$D$8 ->  | E32: =E30/$E$8 ->  | F32: =F30/$F$8 ->  | G32: =G30/$G$8 ->  | H32: =H30/$H$8 ->  | I32: =I30/$I$8 -> 1687322.829 | J32: =J30/$J$8 -> 8479854.583 | K32: =K30/$K$8 -> 23365769.4 | N32: =N30/$D$8 ->  | O32: =O30/$E$8 ->  | P32: =P30/$F$8 ->  | Q32: =Q30/$G$8 ->  | R32: =R30/$H$8 -> 203425.3342 | S32: =S30/$I$8 -> 478708.0178 | T32: =T30/$J$8 -> 2336576.94 | U32: =U30/$K$8 -> 5477225.575 | X32: =X30/$D$8 ->  | Y32: =Y30/$E$8 ->  | Z32: =Z30/$F$8 -> 1244.717312 | AA32: =AA30/$G$8 -> 6687.735469 | AB32: =AB30/$H$8 -> 0 | AC32: =AC30/$I$8 -> 0 | AD32: =AD30/$J$8 -> 0 | AE32: =AE30/$K$8 -> 0 | AH32: =AH30/$D$8 ->  | AI32: =AI30/$E$8 -> 144.8590757 | AJ32: =AJ30/$F$8 -> 850.9103882 | AK32: =AK30/$G$8 -> 2308.640753 | AL32: =AL30/$H$8 -> 0 | AM32: =AM30/$I$8 -> 0 | AN32: =AN30/$J$8 -> 0 | AO32: =AO30/$K$8 -> 0 | AR32: =AR30/$D$8 ->  | AS32: =AS30/$E$8 -> 147.9575023 | AT32: =AT30/$F$8 -> 528.4316097 | AU32: =AU30/$G$8 -> 894.427191 | AV32: =AV30/$H$8 -> 0 | AW32: =AW30/$I$8 -> 0 | AX32: =AX30/$J$8 -> 0 | AY32: =AY30/$K$8 -> 0 | BB32: =BB30/$D$8 ->  | BC32: =BC30/$E$8 ->  | BD32: =BD30/$F$8 ->  | BE32: =BE30/$G$8 ->  | BF32: =BF30/$H$8 ->  | BG32: =BG30/$I$8 -> 0 | BH32: =BH30/$J$8 -> 0 | BI32: =BI30/$K$8 -> 0
C33: p+3 | D33: ='Survivalexp vitmix RAW Feb 2018'!I43 ->  | E33: ='Survivalexp vitmix RAW Feb 2018'!P43 ->  | F33: ='Survivalexp vitmix RAW Feb 2018'!W43 ->  | G33: ='Survivalexp vitmix RAW Feb 2018'!AD43 ->  | H33: ='Survivalexp vitmix RAW Feb 2018'!AK43 ->  | I33: ='Survivalexp vitmix RAW Feb 2018'!AR43 -> 64 | J33: ='Survivalexp vitmix RAW Feb 2018'!AY43 -> 9 | K33: ='Survivalexp vitmix RAW Feb 2018'!BF43 -> 1 | N33: ='Survivalexp vitmix RAW Feb 2018'!I80 ->  | O33: ='Survivalexp vitmix RAW Feb 2018'!P80 ->  | P33: ='Survivalexp vitmix RAW Feb 2018'!W82 ->  | Q33: ='Survivalexp vitmix RAW Feb 2018'!AD82 -> 23 | R33: ='Survivalexp vitmix RAW Feb 2018'!AK82 -> 3 | S33: ='Survivalexp vitmix RAW Feb 2018'!AR82 -> 0 | T33: ='Survivalexp vitmix RAW Feb 2018'!AY82 -> 0 | U33: ='Survivalexp vitmix RAW Feb 2018'!BF82 -> 0 | X33: ='Survivalexp vitmix RAW Feb 2018'!I121 ->  | Y33: ='Survivalexp vitmix RAW Feb 2018'!P121 ->  | Z33: ='Survivalexp vitmix RAW Feb 2018'!W121 -> 44 | AA33: ='Survivalexp vitmix RAW Feb 2018'!AD121 -> 3 | AB33: ='Survivalexp vitmix RAW Feb 2018'!AK121 -> 0 | AC33: ='Survivalexp vitmix RAW Feb 2018'!AR121 -> 0 | AD33: ='Survivalexp vitmix RAW Feb 2018'!AY121 -> 0 | AE33: ='Survivalexp vitmix RAW Feb 2018'!BF121 -> 0 | AH33: ='Survivalexp vitmix RAW Feb 2018'!I160 ->  | AI33: ='Survivalexp vitmix RAW Feb 2018'!P160 -> 80 | AJ33: ='Survivalexp vitmix RAW Feb 2018'!W160 -> 11 | AK33: ='Survivalexp vitmix RAW Feb 2018'!AD160 -> 1 | AL33: ='Survivalexp vitmix RAW Feb 2018'!AK160 -> 0 | AM33: ='Survivalexp vitmix RAW Feb 2018'!AR160 -> 0 | AN33: ='Survivalexp vitmix RAW Feb 2018'!AY160 -> 0 | AO33: ='Survivalexp vitmix RAW Feb 2018'!BF160 -> 0 | AR33: ='Survivalexp vitmix RAW Feb 2018'!I199 ->  | AS33: ='Survivalexp vitmix RAW Feb 2018'!P199 -> 25 | AT33: ='Survivalexp vitmix RAW Feb 2018'!W199 -> 3 | AU33: ='Survivalexp vitmix RAW Feb 2018'!AD199 -> 0 | AV33: ='Survivalexp vitmix RAW Feb 2018'!AK199 -> 0 | AW33: ='Survivalexp vitmix RAW Feb 2018'!AR199 -> 0 | AX33: ='Survivalexp vitmix RAW Feb 2018'!AY199 -> 0 | AY33: ='Survivalexp vitmix RAW Feb 2018'!BF199 -> 0 | BB33: ='Survivalexp vitmix RAW Feb 2018'!I238 ->  | BC33: ='Survivalexp vitmix RAW Feb 2018'!P238 ->  | BD33: ='Survivalexp vitmix RAW Feb 2018'!W238 ->  | BE33: ='Survivalexp vitmix RAW Feb 2018'!AD238 ->  | BF33: ='Survivalexp vitmix RAW Feb 2018'!AK238 ->  | BG33: ='Survivalexp vitmix RAW Feb 2018'!AR238 -> 0 | BH33: ='Survivalexp vitmix RAW Feb 2018'!AY238 -> 0 | BI33: ='Survivalexp vitmix RAW Feb 2018'!BF238 -> 0
C34: stdev | D34: ='Survivalexp vitmix RAW Feb 2018'!I44 ->  | E34: ='Survivalexp vitmix RAW Feb 2018'!P44 ->  | F34: ='Survivalexp vitmix RAW Feb 2018'!W44 ->  | G34: ='Survivalexp vitmix RAW Feb 2018'!AD44 ->  | H34: ='Survivalexp vitmix RAW Feb 2018'!AK44 ->  | I34: ='Survivalexp vitmix RAW Feb 2018'!AR44 -> 26 | J34: ='Survivalexp vitmix RAW Feb 2018'!AY44 -> 8 | K34: ='Survivalexp vitmix RAW Feb 2018'!BF44 -> 2 | N34: ='Survivalexp vitmix RAW Feb 2018'!I81 ->  | O34: ='Survivalexp vitmix RAW Feb 2018'!P81 ->  | P34: ='Survivalexp vitmix RAW Feb 2018'!W83 ->  | Q34: ='Survivalexp vitmix RAW Feb 2018'!AD83 -> 26 | R34: ='Survivalexp vitmix RAW Feb 2018'!AK83 -> 4 | S34: ='Survivalexp vitmix RAW Feb 2018'!AR83 -> 1 | T34: ='Survivalexp vitmix RAW Feb 2018'!AY83 -> 0 | U34: ='Survivalexp vitmix RAW Feb 2018'!BF83 -> 0 | X34: ='Survivalexp vitmix RAW Feb 2018'!I122 ->  | Y34: ='Survivalexp vitmix RAW Feb 2018'!P122 ->  | Z34: ='Survivalexp vitmix RAW Feb 2018'!W122 -> 17 | AA34: ='Survivalexp vitmix RAW Feb 2018'!AD122 -> 7 | AB34: ='Survivalexp vitmix RAW Feb 2018'!AK122 -> 0 | AC34: ='Survivalexp vitmix RAW Feb 2018'!AR122 -> 0 | AD34: ='Survivalexp vitmix RAW Feb 2018'!AY122 -> 0 | AE34: ='Survivalexp vitmix RAW Feb 2018'!BF122 -> 0 | AH34: ='Survivalexp vitmix RAW Feb 2018'!I161 ->  | AI34: ='Survivalexp vitmix RAW Feb 2018'!P161 -> 21 | AJ34: ='Survivalexp vitmix RAW Feb 2018'!W161 -> 10 | AK34: ='Survivalexp vitmix RAW Feb 2018'!AD161 -> 2 | AL34: ='Survivalexp vitmix RAW Feb 2018'!AK161 -> 0 | AM34: ='Survivalexp vitmix RAW Feb 2018'!AR161 -> 0 | AN34: ='Survivalexp vitmix RAW Feb 2018'!AY161 -> 0 | AO34: ='Survivalexp vitmix RAW Feb 2018'!BF161 -> 0 | AR34: ='Survivalexp vitmix RAW Feb 2018'!I200 ->  | AS34: ='Survivalexp vitmix RAW Feb 2018'!P200 -> 11 | AT34: ='Survivalexp vitmix RAW Feb 2018'!W200 -> 4 | AU34: ='Survivalexp vitmix RAW Feb 2018'!AD200 -> 1 | AV34: ='Survivalexp vitmix RAW Feb 2018'!AK200 -> 0 | AW34: ='Survivalexp vitmix RAW Feb 2018'!AR200 -> 0 | AX34: ='Survivalexp vitmix RAW Feb 2018'!AY200 -> 0 | AY34: ='Survivalexp vitmix RAW Feb 2018'!BF200 -> 0 | BB34: ='Survivalexp vitmix RAW Feb 2018'!I239 ->  | BC34: ='Survivalexp vitmix RAW Feb 2018'!P239 ->  | BD34: ='Survivalexp vitmix RAW Feb 2018'!W239 ->  | BE34: ='Survivalexp vitmix RAW Feb 2018'!AD239 ->  | BF34: ='Survivalexp vitmix RAW Feb 2018'!AK239 ->  | BG34: ='Survivalexp vitmix RAW Feb 2018'!AR239 -> 0 | BH34: ='Survivalexp vitmix RAW Feb 2018'!AY239 -> 0 | BI34: ='Survivalexp vitmix RAW Feb 2018'!BF239 -> 0
B35: est. nr of bacteria | D35: =D33/$D$8 ->  | E35: =E33/$E$8 ->  | F35: =F33/$F$8 ->  | G35: =G33/$G$8 ->  | H35: =H33/$H$8 ->  | I35: =I33/$I$8 -> 6440000 | J35: =J33/$J$8 -> 9133333.333 | K35: =K33/$K$8 -> 11333333.33 | L35: =I35 -> 6440000 | M35: =I36 -> 2620179.526 | N35: =N33/$D$8 ->  | O35: =O33/$E$8 ->  | P35: =P33/$F$8 ->  | Q35: =Q33/$G$8 -> 23400 | R35: =R33/$H$8 -> 31333.33333 | S35: =S33/$I$8 -> 26666.66667 | T35: =T33/$J$8 -> 0 | U35: =U33/$K$8 -> 0 | V35: =Q35 -> 23400 | W35: =Q36 -> 25772.09216 | X35: =X33/$D$8 ->  | Y35: =Y33/$E$8 ->  | Z35: =Z33/$F$8 -> 4448.529333 | AA35: =AA33/$G$8 -> 3272.76 | AB35: =AB33/$H$8 -> 0 | AC35: =AC33/$I$8 -> 0 | AD35: =AD33/$J$8 -> 0 | AE35: =AE33/$K$8 -> 0 | AF35: =Z35 -> 4448.529333 | AG35: =Z36 -> 1694.960526 | AH35: =AH33/$D$8 ->  | AI35: =AI33/$E$8 -> 798.6666667 | AJ35: =AJ33/$F$8 -> 1106.666667 | AK35: =AK33/$G$8 -> 666.6666667 | AL35: =AL33/$H$8 -> 0 | AM35: =AM33/$I$8 -> 0 | AN35: =AN33/$J$8 -> 0 | AO35: =AO33/$K$8 -> 0 | AP35: =AI35 -> 798.6666667 | AQ35: =AI36 -> 207.7055636 | AR35: =AR33/$D$8 ->  | AS35: =AS33/$E$8 -> 246 | AT35: =AT33/$F$8 -> 260 | AU35: =AU33/$G$8 -> 133.3333333 | AV35: =AV33/$H$8 -> 0 | AW35: =AW33/$I$8 -> 0 | AX35: =AX33/$J$8 -> 0 | AY35: =AY33/$K$8 -> 0 | AZ35: =AS35 -> 246 | BA35: =AS36 -> 107.51032 | BB35: =BB33/$D$8 ->  | BC35: =BC33/$E$8 ->  | BD35: =BD33/$F$8 ->  | BE35: =BE33/$G$8 ->  | BF35: =BF33/$H$8 ->  | BG35: =BG33/$I$8 -> 0 | BH35: =BH33/$J$8 -> 0 | BI35: =BI33/$K$8 -> 0 | BJ35: =BE35 ->  | BK35: =BE36 -> 
C36: stdev | D36: =D34/$D$8 ->  | E36: =E34/$E$8 ->  | F36: =F34/$F$8 ->  | G36: =G34/$G$8 ->  | H36: =H34/$H$8 ->  | I36: =I34/$I$8 -> 2620179.526 | J36: =J34/$J$8 -> 8210608.16 | K36: =K34/$K$8 -> 24755660.21 | N36: =N34/$D$8 ->  | O36: =O34/$E$8 ->  | P36: =P34/$F$8 ->  | Q36: =Q34/$G$8 -> 25772.09216 | R36: =R34/$H$8 -> 37004.12946 | S36: =S34/$I$8 -> 83666.00265 | T36: =T34/$J$8 -> 0 | U36: =U34/$K$8 -> 0 | X36: =X34/$D$8 ->  | Y36: =Y34/$E$8 ->  | Z36: =Z34/$F$8 -> 1694.960526 | AA36: =AA34/$G$8 -> 6760.269238 | AB36: =AB34/$H$8 -> 0 | AC36: =AC34/$I$8 -> 0 | AD36: =AD34/$J$8 -> 0 | AE36: =AE34/$K$8 -> 0 | AH36: =AH34/$D$8 ->  | AI36: =AI34/$E$8 -> 207.7055636 | AJ36: =AJ34/$F$8 -> 1043.014579 | AK36: =AK34/$G$8 -> 2236.067977 | AL36: =AL34/$H$8 -> 0 | AM36: =AM34/$I$8 -> 0 | AN36: =AN34/$J$8 -> 0 | AO36: =AO34/$K$8 -> 0 | AR36: =AR34/$D$8 ->  | AS36: =AS34/$E$8 -> 107.51032 | AT36: =AT34/$F$8 -> 440.4016316 | AU36: =AU34/$G$8 -> 894.427191 | AV36: =AV34/$H$8 -> 0 | AW36: =AW34/$I$8 -> 0 | AX36: =AX34/$J$8 -> 0 | AY36: =AY34/$K$8 -> 0 | BB36: =BB34/$D$8 ->  | BC36: =BC34/$E$8 ->  | BD36: =BD34/$F$8 ->  | BE36: =BE34/$G$8 ->  | BF36: =BF34/$H$8 ->  | BG36: =BG34/$I$8 -> 0 | BH36: =BH34/$J$8 -> 0 | BI36: =BI34/$K$8 -> 0
E42: 0 | F42: 4 | G42: 7 | H42: 11 | I42: 14 | J42: 18 | O42: STDEV | Q42: 0 | R42: 4 | S42: 7 | T42: 11 | U42: 14 | V42: 18
C43: Numbers | D43: Blank | E43: =$L$11 -> 0.0 | F43: =$V$11 -> 0.0 | G43: =$AF$11 -> 0.0 | H43: =AP11 -> 0.0 | I43: =$AP$11 -> 0.0 | J43: =$AZ$11 -> 0.0 | O43: Numbers | P43: Blank | Q43: =$M$11 -> 0.0 | R43: =$W$11 -> 0.0 | S43: =$AG$11 -> 0.0 | T43: =AQ11 -> 0.0 | U43: =$AQ$11 -> 0.0 | V43: =$BA$11 -> 0.0
D44: BW25113 - | E44: =$L$15 -> 3946666.7 | F44: =$V$15 -> 30266666.7 | G44: =$AF$15 -> 2400000.0 | H44: =AP15 -> 2194000.0 | I44: =$AP$15 -> 2194000.0 | J44: =$AZ$15 -> 3666666.7 | P44: BW25113 2213F - | Q44: =$M$15 -> 1498235.3 | R44: =$W$15 -> 20420891.5 | S44: =$AG$15 -> 5828845.2 | T44: =AQ15 -> 247055.7 | U44: =$AQ$15 -> 247055.7 | V44: =BA15 -> 1866880.9
D45: 2213F - p+0 | E45: =$L$19 -> 5820000.0 | F45: =$V$19 -> 101000.0 | G45: =$AF$19 -> 1208.5 | H45: =AP19 -> 262.7 | I45: =$AP$19 -> 262.7 | J45: =$AZ$19 -> 231.3 | P45: 2213F - p+0 | Q45: =$M$19 -> 1280534.3 | R45: =$W$19 -> 24529.3 | S45: =$AG$19 -> 345.7 | T45: =AQ19 -> 119.3 | U45: =$AQ$19 -> 119.3 | V45: =BA19 -> 83.1
D46: 2213F A p+0 | E46: =$L$23 -> 4446666.7 | F46: =$V$23 -> 50200.0 | G46: =$AF$23 -> 1035.2 | H46: =AP23 -> 446.0 | I46: =$AP$23 -> 446.0 | J46: =$AZ$23 -> 448.0 | P46: 2213F A p+0 | Q46: =$M$23 -> 1439758.2 | R46: =$W$23 -> 16298.2 | S46: =$AG$23 -> 317.8 | T46: =AQ23 -> 176.0 | U46: =$AQ$23 -> 176.0 | V46: =BA23 -> 221.7
D47: 2213F A p+3 | E47: =$L$27 -> 4640000.0 | F47: =$V$27 -> 40066.7 | G47: =$AF$27 -> 653.3 | H47: =AP27 -> 338.7 | I47: =$AP$27 -> 338.7 | J47: =$AZ$27 -> 280.7 | P47: 2213F A p+3 | Q47: =$M$27 -> 1637695.5 | R47: =$W$27 -> 9310.6 | S47: =$AG$27 -> 300.5 | T47: =AQ27 -> 238.4 | U47: =$AQ$27 -> 238.4 | V47: =BA27 -> 151.7
D48: 2213F APR p+0 | E48: =$L$31 -> 5126666.7 | F48: =$V$31 -> 424666.7 | G48: =$AF$31 -> 2569.7 | H48: =AP31 -> 556.7 | I48: =$AP$31 -> 556.7 | J48: =$AZ$31 -> 320.0 | P48: 2213F APR p+0 | Q48: =$M$31 -> 1687322.8 | R48: =$W$31 -> 203425.3 | S48: =$AG$31 -> 1244.7 | T48: =AQ31 -> 144.9 | U48: =$AQ$31 -> 144.9 | V48: =BA31 -> 148.0
D49: 2213F APR p+3 | E49: =$L$35 -> 6440000.0 | F49: =$V$35 -> 23400.0 | G49: =$AF$35 -> 4448.5 | H49: =AP35 -> 798.7 | I49: =$AP$35 -> 798.7 | J49: =$AZ$35 -> 246.0 | P49: 2213F APR p+3 | Q49: =$M$35 -> 2620179.5 | R49: =$W$35 -> 25772.1 | S49: =$AG$35 -> 1695.0 | T49: =AQ35 -> 207.7 | U49: =$AQ$35 -> 207.7 | V49: =BA35 -> 107.5
E52: 0 | F52: 4 | G52: 7 | H52: 11 | I52: 14 | J52: 18 | O52: STDEV | Q52: 0 | R52: 4 | S52: 7 | T52: 11 | U52: 14 | V52: 18
C53: Percentages | D53: Blank | E53: 0 | F53: 0 | G53: 0 | H53: 0 | I53: 0 | J53: 0 | O53: Percentages | P53: Blank | Q53: 0.0 | R53: 0.0 | S53: 0.0 | T53: 0.0 | U53: 0.0 | V53: 0.0
D54: BW25113 - | E54: =E44/$E$44*100 -> 100.0 | F54: =(F44/$E$44)*100 -> 766.9 | G54: =G44/$E$44*100 -> 60.8 | H54: =H44/$E$44*100 -> 55.6 | I54: =I44/$E$44*100 -> 55.6 | J54: =J44/$E$44*100 -> 92.9 | P54: BW25113 2213F - | Q54: =Q44/$E$44*100 -> 38.0 | R54: =R44/$E$44*100 -> 517.4 | S54: =S44/$E$44*100 -> 147.7 | T54: =T44/$E$44*100 -> 6.3 | U54: =U44/$E$44*100 -> 6.3 | V54: =V44/$E44*100 -> 47.3
D55: 2213F - p+0 | E55: =E45/$E$45*100 -> 100.0000 | F55: =F45/$E$45*100 -> 1.7354 | G55: =G45/$E$45*100 -> 0.0208 | H55: =H45/$E$45*100 -> 0.0045 | I55: =I45/$E$45*100 -> 0.0 | J55: =J45/$E$44*100 -> 0.0 | P55: 2213F - p+0 | Q55: =Q45/$E$45*100 -> 22.0 | R55: =R45/$E$45*100 -> 0.4 | S55: 0.0 | T55: =T45/$E$45*100 -> 0.0 | U55: =U45/$E$45*100 -> 0.0 | V55: 0.0
D56: 2213F A p+0 | E56: =E46/$E$46*100 -> 100.0000 | F56: =F46/$E$46*100 -> 1.1289 | G56: =G46/$E$46*100 -> 0.0233 | H56: =H46/$E$46*100 -> 0.0100 | I56: =I46/$E$46*100 -> 0.0 | J56: =J46/$E$44*100 -> 0.0 | P56: 2213F A p+0 | Q56: =Q46/$E$46*100 -> 32.4 | R56: =R46/$E$46*100 -> 0.4 | S56: =S46/$E$46*100 -> 0.0 | T56: =T46/$E$46*100 -> 0.0 | U56: =U46/$E$46*100 -> 0.0 | V56: 0.0
D57: 2213F A p+3 | E57: =E47/$E$47*100 -> 100.0000 | F57: =F47/$E$47*100 -> 0.8635 | G57: =G47/$E$47*100 -> 0.0141 | H57: =H47/$E$47*100 -> 0.0073 | I57: =I47/$E$47*100 -> 0.0 | J57: =J47/$E$44*100 -> 0.0 | P57: 2213F A p+3 | Q57: =Q47/$E$47*100 -> 35.3 | R57: =R47/$E$47*100 -> 0.2 | S57: =S47/$E$47*100 -> 0.0 | T57: =T47/$E$47*100 -> 0.0 | U57: =U47/$E$47*100 -> 0.0 | V57: 0.0
D58: 2213F APR p+0 | E58: =E48/$E$48*100 -> 100.0000 | F58: =F48/$E$48*100 -> 8.2835 | G58: =G48/$E$48*100 -> 0.0501 | H58: =H48/$E$48*100 -> 0.0109 | I58: =I48/$E$48*100 -> 0.0 | J58: =J48/$E$44*100 -> 0.0 | P58: 2213F APR p+0 | Q58: =Q48/$E$48*100 -> 32.9 | R58: =R48/$E$48*100 -> 4.0 | S58: =S48/$E$48*100 -> 0.0 | T58: =T48/$E$48*100 -> 0.0 | U58: =U48/$E$48*100 -> 0.0 | V58: 0.0
D59: 2213F APR p+3 | E59: =E49/$E$49*100 -> 100.0000 | F59: =F49/$E$49*100 -> 0.3634 | G59: =G49/$E$49*100 -> 0.0691 | H59: =H49/$E$49*100 -> 0.0124 | I59: =I49/$E$49*100 -> 0.0 | J59: =J49/$E$44*100 -> 0.0 | P59: 2213F APR p+3 | Q59: =Q49/$E$49*100 -> 40.7 | R59: =R49/$E$49*100 -> 0.4 | S59: =S49/$E$49*100 -> 0.0 | T59: =T49/$E$49*100 -> 0.0 | U59: =U49/$E$49*100 -> 0.0 | V59: 0.0

Sheet Survivalexp novitmix RAW feb18
A1: Survival experiment | L1: Averages/Stdev Technical replicates
A2: Subject: | C2: Anaerobic survival after aerobic inoculation of recombinant strains | L2: Averages/stdev Biological replicates
C3: DeBont+ 6g/l Gluconic Acid - Kanamycin
A4: Inoculation date | C4: 07-02-2018
A5: Inoculation OD600 | C5: 0.1 | D5: BW25113 2213F -
A6: Inoculated | D6: Blank | E6: 2213F - | G6: 2213F A | I6: 2213F APR
E7: p+0 | F7: p+3 | G7: p+0 | H7: p+3 | I7: p+0 | K7: p+3
A8: T0 | B8: 2017-10-30
A9: Sample | B9: Dilution: | D9: 10^0 | I9: AVERAGE | J9: STDEV | K9: 10^-1 | P9: AVERAGE | Q9: STDEV | R9: 10^-2 | W9: AVERAGE | X9: STDEV | Y9: 10^-3 | AD9: AVERAGE | AE9: STDEV | AF9: 10^-4 | AK9: AVERAGE | AL9: STDEV | AM9: 10^-5 | AR9: AVERAGE | AS9: STDEV | AT9: 10^-6 | AY9: AVERAGE | AZ9: STDEV | BA9: 10^-7 | BF9: AVERAGE | BG9: STDEV
A10: Blank | B10: 1 | D10: 0 | E10: 0 | F10: 0 | G10: 0 | H10: 0 | I10: =AVERAGE(D10:H10) -> 0 | J10: =STDEV(D10:H10) -> 0 | K10: 0 | L10: 0 | M10: 0 | N10: 0 | O10: 0 | P10: =AVERAGE(K10:O10) -> 0 | Q10: =STDEV(K10:O10) -> 0 | R10: 0 | S10: 0 | T10: 0 | U10: 0 | V10: 0 | W10: =AVERAGE(R10:V10) -> 0 | X10: =STDEV(R10:V10) -> 0 | Y10: 0 | Z10: 0 | AA10: 0 | AB10: 0 | AC10: 0 | AD10: =AVERAGE(Y10:AC10) -> 0 | AE10: =STDEV(Y10:AC10) -> 0 | AF10: 0 | AG10: 0 | AH10: 0 | AI10: 0 | AJ10: 0 | AK10: =AVERAGE(AF10:AJ10) -> 0 | AL10: =STDEV(AF10:AJ10) -> 0 | AM10: 0 | AN10: 0 | AO10: 0 | AP10: 0 | AQ10: 0 | AR10: =AVERAGE(AM10:AQ10) -> 0 | AS10: =STDEV(AM10:AQ10) -> 0 | AT10: 0 | AU10: 0 | AV10: 0 | AW10: 0 | AX10: 0 | AY10: =AVERAGE(AT10:AX10) -> 0 | AZ10: =STDEV(AT10:AX10) -> 0 | BA10: 0 | BB10: 0 | BC10: 0 | BD10: 0 | BE10: 0 | BF10: =AVERAGE(BA10:BE10) -> 0 | BG10: =STDEV(BA10:BE10) -> 0
B11: 2 | D11: 0 | E11: 0 | F11: 0 | G11: 0 | H11: 0 | I11: =AVERAGE(D11:H11) -> 0 | J11: =STDEV(D11:H11) -> 0 | K11: 0 | L11: 0 | M11: 0 | N11: 0 | O11: 0 | P11: =AVERAGE(K11:O11) -> 0 | Q11: =STDEV(K11:O11) -> 0 | R11: 0 | S11: 0 | T11: 0 | U11: 0 | V11: 0 | W11: =AVERAGE(R11:V11) -> 0 | X11: =STDEV(R11:V11) -> 0 | Y11: 0 | Z11: 0 | AA11: 0 | AB11: 0 | AC11: 0 | AD11: =AVERAGE(Y11:AC11) -> 0 | AE11: =STDEV(Y11:AC11) -> 0 | AF11: 0 | AG11: 0 | AH11: 0 | AI11: 0 | AJ11: 0 | AK11: =AVERAGE(AF11:AJ11) -> 0 | AL11: =STDEV(AF11:AJ11) -> 0 | AM11: 0 | AN11: 0 | AO11: 0 | AP11: 0 | AQ11: 0 | AR11: =AVERAGE(AM11:AQ11) -> 0 | AS11: =STDEV(AM11:AQ11) -> 0 | AT11: 0 | AU11: 0 | AV11: 0 | AW11: 0 | AX11: 0 | AY11: =AVERAGE(AT11:AX11) -> 0 | AZ11: =STDEV(AT11:AX11) -> 0 | BA11: 0 | BB11: 0 | BC11: 0 | BD11: 0 | BE11: 0 | BF11: =AVERAGE(BA11:BE11) -> 0 | BG11: =STDEV(BA11:BE11) -> 0
B12: 3 | D12: 0 | E12: 0 | F12: 0 | G12: 0 | H12: 0 | I12: =AVERAGE(D12:H12) -> 0 | J12: =STDEV(D12:H12) -> 0 | K12: 0 | L12: 0 | M12: 0 | N12: 0 | O12: 0 | P12: =AVERAGE(K12:O12) -> 0 | Q12: =STDEV(K12:O12) -> 0 | R12: 0 | S12: 0 | T12: 0 | U12: 0 | V12: 0 | W12: =AVERAGE(R12:V12) -> 0 | X12: =STDEV(R12:V12) -> 0 | Y12: 0 | Z12: 0 | AA12: 0 | AB12: 0 | AC12: 0 | AD12: =AVERAGE(Y12:AC12) -> 0 | AE12: =STDEV(Y12:AC12) -> 0 | AF12: 0 | AG12: 0 | AH12: 0 | AI12: 0 | AJ12: 0 | AK12: =AVERAGE(AF12:AJ12) -> 0 | AL12: =STDEV(AF12:AJ12) -> 0 | AM12: 0 | AN12: 0 | AO12: 0 | AP12: 0 | AQ12: 0 | AR12: =AVERAGE(AM12:AQ12) -> 0 | AS12: =STDEV(AM12:AQ12) -> 0 | AT12: 0 | AU12: 0 | AV12: 0 | AW12: 0 | AX12: 0 | AY12: =AVERAGE(AT12:AX12) -> 0 | AZ12: =STDEV(AT12:AX12) -> 0 | BA12: 0 | BB12: 0 | BC12: 0 | BD12: 0 | BE12: 0 | BF12: =AVERAGE(BA12:BE12) -> 0 | BG12: =STDEV(BA12:BE12) -> 0
I13: =AVERAGE(I10:I12) -> 0 | P13: =AVERAGE(P10:P12) -> 0 | W13: =AVERAGE(W10:W12) -> 0 | AD13: =AVERAGE(AD10:AD12) -> 0 | AK13: =AVERAGE(AK10:AK12) -> 0 | AR13: =AVERAGE(AR10:AR12) -> 0 | AY13: =AVERAGE(AY10:AY12) -> 0 | BF13: =AVERAGE(BF10:BF12) -> 0
I14: =SUM(J10:J12) -> 0 | P14: =SUM(Q10:Q12) -> 0 | W14: =SUM(X10:X12) -> 0 | AD14: =SUM(AE10:AE12) -> 0 | AK14: =SUM(AL10:AL12) -> 0 | AR14: =SUM(AS10:AS12) -> 0 | AY14: =SUM(AZ10:AZ12) -> 0 | BF14: =SUM(BG10:BG12) -> 0
A15: BW25113 - | B15: 1 | D15: NA | E15: NA | F15: NA | G15: NA | H15: NA | I15: =AVERAGE(D15:H15) ->  | J15: =STDEV(D15:H15) ->  | K15: NA | L15: NA | M15: NA | N15: NA | O15: NA | P15: =AVERAGE(K15:O15) ->  | Q15: =STDEV(K15:O15) ->  | R15: NA | S15: NA | T15: NA | U15: NA | V15: NA | W15: =AVERAGE(R15:V15) ->  | X15: =STDEV(R15:V15) ->  | Y15: NA | Z15: NA | AA15: NA | AB15: NA | AC15: NA | AD15: =AVERAGE(Y15:AC15) ->  | AE15: =STDEV(Y15:AC15) ->  | AF15: NA | AG15: NA | AH15: NA | AI15: NA | AJ15: NA | AK15: =AVERAGE(AF15:AJ15) ->  | AL15: =STDEV(AF15:AJ15) ->  | AM15: 57 | AN15: 51 | AO15: 65 | AP15: 67 | AQ15: 69 | AR15: =AVERAGE(AM15:AQ15) -> 62 | AS15: =STDEV(AM15:AQ15) -> 8 | AT15: 13 | AU15: 6 | AV15: 11 | AW15: 13 | AX15: 8 | AY15: =AVERAGE(AT15:AX15) -> 10 | AZ15: =STDEV(AT15:AX15) -> 3 | BA15: 2 | BB15: 0 | BC15: 0 | BD15: 0 | BE15: 1 | BF15: =AVERAGE(BA15:BE15) -> 1 | BG15: =STDEV(BA15:BE15) -> 1
A16: pS2213 - | B16: 2 | D16: NA | E16: NA | F16: NA | G16: NA | H16: NA | I16: =AVERAGE(D16:H16) ->  | J16: =STDEV(D16:H16) ->  | K16: NA | L16: NA | M16: NA | N16: NA | O16: NA | P16: =AVERAGE(K16:O16) ->  | Q16: =STDEV(K16:O16) ->  | R16: NA | S16: NA | T16: NA | U16: NA | V16: NA | W16: =AVERAGE(R16:V16) ->  | X16: =STDEV(R16:V16) ->  | Y16: NA | Z16: NA | AA16: NA | AB16: NA | AC16: NA | AD16: =AVERAGE(Y16:AC16) ->  | AE16: =STDEV(Y16:AC16) ->  | AF16: NA | AG16: NA | AH16: NA | AI16: NA | AJ16: NA | AK16: =AVERAGE(AF16:AJ16) ->  | AL16: =STDEV(AF16:AJ16) ->  | AM16: 78 | AN16: 89 | AO16: 92 | AP16: 87 | AQ16: 81 | AR16: =AVERAGE(AM16:AQ16) -> 85 | AS16: =STDEV(AM16:AQ16) -> 6 | AT16: 12 | AU16: 13 | AV16: 12 | AW16: 7 | AX16: 11 | AY16: =AVERAGE(AT16:AX16) -> 11 | AZ16: =STDEV(AT16:AX16) -> 2 | BA16: 2 | BB16: 2 | BC16: 1 | BD16: 1 | BE16: 2 | BF16: =AVERAGE(BA16:BE16) -> 2 | BG16: =STDEV(BA16:BE16) -> 1
B17: 3 | D17: NA | E17: NA | F17: NA | G17: NA | H17: NA | I17: =AVERAGE(D17:H17) ->  | J17: =STDEV(D17:H17) ->  | K17: NA | L17: NA | M17: NA | N17: NA | O17: NA | P17: =AVERAGE(K17:O17) ->  | Q17: =STDEV(K17:O17) ->  | R17: NA | S17: NA | T17: NA | U17: NA | V17: NA | W17: =AVERAGE(R17:V17) ->  | X17: =STDEV(R17:V17) ->  | Y17: NA | Z17: NA | AA17: NA | AB17: NA | AC17: NA | AD17: =AVERAGE(Y17:AC17) ->  | AE17: =STDEV(Y17:AC17) ->  | AF17: NA | AG17: NA | AH17: NA | AI17: NA | AJ17: NA | AK17: =AVERAGE(AF17:AJ17) ->  | AL17: =STDEV(AF17:AJ17) ->  | AM17: 60 | AN17: 51 | AO17: 65 | AP17: 56 | AQ17: 66 | AR17: =AVERAGE(AM17:AQ17) -> 60 | AS17: =STDEV(AM17:AQ17) -> 6 | AT17: 9 | AU17: 13 | AV17: 10 | AW17: 5 | AX17: 4 | AY17: =AVERAGE(AT17:AX17) -> 8 | AZ17: =STDEV(AT17:AX17) -> 4 | BA17: 1 | BB17: 1 | BC17: 1 | BD17: 0 | BE17: 0 | BF17: =AVERAGE(BA17:BE17) -> 1 | BG17: =STDEV(BA17:BE17) -> 1
A18: average | I18: =AVERAGE(I15:I17) ->  | P18: =AVERAGE(P15:P17) ->  | W18: =AVERAGE(W15:W17) ->  | AD18: =AVERAGE(AD15:AD17) ->  | AK18: =AVERAGE(AK15:AK17) ->  | AR18: =AVERAGE(AR15:AR17) -> 69 | AY18: =AVERAGE(AY15:AY17) -> 10 | BF18: =AVERAGE(BF15:BF17) -> 1
A19: stdev | I19: =SUM(J15:J17) ->  | P19: =SUM(Q15:Q17) ->  | W19: =SUM(X15:X17) ->  | AD19: =SUM(AE15:AE17) ->  | AK19: =SUM(AL15:AL17) ->  | AR19: =SUM(AS15:AS17) -> 20 | AY19: =SUM(AZ15:AZ17) -> 9 | BF19: =SUM(BG15:BG17) -> 2
A20: pS2213 - | B20: 1 | D20: NA | E20: NA | F20: NA | G20: NA | H20: NA | I20: =AVERAGE(D20:H20) ->  | J20: =STDEV(D20:H20) ->  | K20: NA | L20: NA | M20: NA | N20: NA | O20: NA | P20: =AVERAGE(K20:O20) ->  | Q20: =STDEV(K20:O20) ->  | R20: NA | S20: NA | T20: NA | U20: NA | V20: NA | W20: =AVERAGE(R20:V20) ->  | X20: =STDEV(R20:V20) ->  | Y20: NA | Z20: NA | AA20: NA | AB20: NA | AC20: NA | AD20: =AVERAGE(Y20:AC20) ->  | AE20: =STDEV(Y20:AC20) ->  | AF20: NA | AG20: NA | AH20: NA | AI20: NA | AJ20: NA | AK20: =AVERAGE(AF20:AJ20) ->  | AL20: =STDEV(AF20:AJ20) ->  | AM20: 69 | AN20: 55 | AO20: 45 | AP20: 48 | AQ20: 55 | AR20: =AVERAGE(AM20:AQ20) -> 54.4 | AS20: =STDEV(AM20:AQ20) -> 9.262828942 | AT20: 12 | AU20: 15 | AV20: 6 | AW20: 6 | AX20: 7 | AY20: =AVERAGE(AT20:AX20) -> 9.2 | AZ20: =STDEV(AT20:AX20) -> 4.086563348 | BA20: 3 | BB20: 1 | BC20: 1 | BD20: 2 | BE20: 0 | BF20: =AVERAGE(BA20:BE20) -> 1.4 | BG20: =STDEV(BA20:BE20) -> 1.140175425
A21: p+0 | B21: 2 | D21: NA | E21: NA | F21: NA | G21: NA | H21: NA | I21: =AVERAGE(D21:H21) ->  | J21: =STDEV(D21:H21) ->  | K21: NA | L21: NA | M21: NA | N21: NA | O21: NA | P21: =AVERAGE(K21:O21) ->  | Q21: =STDEV(K21:O21) ->  | R21: NA | S21: NA | T21: NA | U21: NA | V21: NA | W21: =AVERAGE(R21:V21) ->  | X21: =STDEV(R21:V21) ->  | Y21: NA | Z21: NA | AA21: NA | AB21: NA | AC21: NA | AD21: =AVERAGE(Y21:AC21) ->  | AE21: =STDEV(Y21:AC21) ->  | AF21: NA | AG21: NA | AH21: NA | AI21: NA | AJ21: NA | AK21: =AVERAGE(AF21:AJ21) ->  | AL21: =STDEV(AF21:AJ21) ->  | AM21: 87 | AN21: 73 | AO21: 67 | AP21: 71 | AQ21: 58 | AR21: =AVERAGE(AM21:AQ21) -> 71.2 | AS21: =STDEV(AM21:AQ21) -> 10.54514106 | AT21: 10 | AU21: 13 | AV21: 14 | AW21: 8 | AX21: 10 | AY21: =AVERAGE(AT21:AX21) -> 11 | AZ21: =STDEV(AT21:AX21) -> 2.449489743 | BA21: 3 | BB21: 1 | BC21: 4 | BD21: 0 | BE21: 2 | BF21: =AVERAGE(BA21:BE21) -> 2 | BG21: =STDEV(BA21:BE21) -> 1.58113883
B22: 3 | D22: NA | E22: NA | F22: NA | G22: NA | H22: NA | I22: =AVERAGE(D22:H22) ->  | J22: =STDEV(D22:H22) ->  | K22: NA | L22: NA | M22: NA | N22: NA | O22: NA | P22: =AVERAGE(K22:O22) ->  | Q22: =STDEV(K22:O22) ->  | R22: NA | S22: NA | T22: NA | U22: NA | V22: NA | W22: =AVERAGE(R22:V22) ->  | X22: =STDEV(R22:V22) ->  | Y22: NA | Z22: NA | AA22: NA | AB22: NA | AC22: NA | AD22: =AVERAGE(Y22:AC22) ->  | AE22: =STDEV(Y22:AC22) ->  | AF22: NA | AG22: NA | AH22: NA | AI22: NA | AJ22: NA | AK22: =AVERAGE(AF22:AJ22) ->  | AL22: =STDEV(AF22:AJ22) ->  | AM22: 49 | AN22: 55 | AO22: 50 | AP22: 52 | AQ22: 66 | AR22: =AVERAGE(AM22:AQ22) -> 54 | AS22: =STDEV(AM22:AQ22) -> 7 | AT22: 14 | AU22: 13 | AV22: 8 | AW22: 11 | AX22: 6 | AY22: =AVERAGE(AT22:AX22) -> 10 | AZ22: =STDEV(AT22:AX22) -> 3 | BA22: 0 | BB22: 1 | BC22: 0 | BD22: 0 | BE22: 2 | BF22: =AVERAGE(BA22:BE22) -> 1 | BG22: =STDEV(BA22:BE22) -> 1
A23: average | I23: =AVERAGE(I20:I22) ->  | P23: =AVERAGE(P20:P22) ->  | W23: =AVERAGE(W20:W22) ->  | AD23: =AVERAGE(AD20:AD22) ->  | AK23: =AVERAGE(AK20:AK22) ->  | AR23: =AVERAGE(AR20:AR22) -> 60 | AY23: =AVERAGE(AY20:AY22) -> 10 | BF23: =AVERAGE(BF20:BF22) -> 1
A24: stdev | I24: =SUM(J20:J22) ->  | P24: =SUM(Q20:Q22) ->  | W24: =SUM(X20:X22) ->  | AD24: =SUM(AE20:AE22) ->  | AK24: =SUM(AL20:AL22) ->  | AR24: =SUM(AS20:AS22) -> 27 | AY24: =SUM(AZ20:AZ22) -> 10 | BF24: =SUM(BG20:BG22) -> 4
A25: pS2213 A | B25: 1 | D25: NA | E25: NA | F25: NA | G25: NA | H25: NA | I25: =AVERAGE(D25:H25) ->  | J25: =STDEV(D25:H25) ->  | K25: NA | L25: NA | M25: NA | N25: NA | O25: NA | P25: =AVERAGE(K25:O25) ->  | Q25: =STDEV(K25:O25) ->  | R25: NA | S25: NA | T25: NA | U25: NA | V25: NA | W25: =AVERAGE(R25:V25) ->  | X25: =STDEV(R25:V25) ->  | Y25: NA | Z25: NA | AA25: NA | AB25: NA | AC25: NA | AD25: =AVERAGE(Y25:AC25) ->  | AE25: =STDEV(Y25:AC25) ->  | AF25: NA | AG25: NA | AH25: NA | AI25: NA | AJ25: NA | AK25: =AVERAGE(AF25:AJ25) ->  | AL25: =STDEV(AF25:AJ25) ->  | AM25: 60 | AN25: 60 | AO25: 72 | AP25: 61 | AQ25: 57 | AR25: =AVERAGE(AM25:AQ25) -> 62 | AS25: =STDEV(AM25:AQ25) -> 5.787918451 | AT25: 11 | AU25: 11 | AV25: 9 | AW25: 12 | AX25: 16 | AY25: =AVERAGE(AT25:AX25) -> 11.8 | AZ25: =STDEV(AT25:AX25) -> 2.588435821 | BA25: 1 | BB25: 1 | BC25: 1 | BD25: 0 | BE25: 2 | BF25: =AVERAGE(BA25:BE25) -> 1 | BG25: =STDEV(BA25:BE25) -> 0.7071067812
A26: p+0 | B26: 2 | D26: NA | E26: NA | F26: NA | G26: NA | H26: NA | I26: =AVERAGE(D26:H26) ->  | J26: =STDEV(D26:H26) ->  | K26: NA | L26: NA | M26: NA | N26: NA | O26: NA | P26: =AVERAGE(K26:O26) ->  | Q26: =STDEV(K26:O26) ->  | R26: NA | S26: NA | T26: NA | U26: NA | V26: NA | W26: =AVERAGE(R26:V26) ->  | X26: =STDEV(R26:V26) ->  | Y26: NA | Z26: NA | AA26: NA | AB26: NA | AC26: NA | AD26: =AVERAGE(Y26:AC26) ->  | AE26: =STDEV(Y26:AC26) ->  | AF26: NA | AG26: NA | AH26: NA | AI26: NA | AJ26: NA | AK26: =AVERAGE(AF26:AJ26) ->  | AL26: =STDEV(AF26:AJ26) ->  | AM26: 56 | AN26: 56 | AO26: 54 | AP26: 54 | AQ26: 57 | AR26: =AVERAGE(AM26:AQ26) -> 55.4 | AS26: =STDEV(AM26:AQ26) -> 1.341640786 | AT26: 6 | AU26: 8 | AV26: 11 | AW26: 8 | AX26: 6 | AY26: =AVERAGE(AT26:AX26) -> 7.8 | AZ26: =STDEV(AT26:AX26) -> 2.049390153 | BA26: 0 | BB26: 1 | BC26: 2 | BD26: 1 | BE26: 1 | BF26: =AVERAGE(BA26:BE26) -> 1 | BG26: =STDEV(BA26:BE26) -> 0.7071067812
B27: 3 | D27: NA | E27: NA | F27: NA | G27: NA | H27: NA | I27: =AVERAGE(D27:H27) ->  | J27: =STDEV(D27:H27) ->  | K27: NA | L27: NA | M27: NA | N27: NA | O27: NA | P27: =AVERAGE(K27:O27) ->  | Q27: =STDEV(K27:O27) ->  | R27: NA | S27: NA | T27: NA | U27: NA | V27: NA | W27: =AVERAGE(R27:V27) ->  | X27: =STDEV(R27:V27) ->  | Y27: NA | Z27: NA | AA27: NA | AB27: NA | AC27: NA | AD27: =AVERAGE(Y27:AC27) ->  | AE27: =STDEV(Y27:AC27) ->  | AF27: NA | AG27: NA | AH27: NA | AI27: NA | AJ27: NA | AK27: =AVERAGE(AF27:AJ27) ->  | AL27: =STDEV(AF27:AJ27) ->  | AM27: 38 | AN27: 46 | AO27: 51 | AP27: 57 | AQ27: 53 | AR27: =AVERAGE(AM27:AQ27) -> 49 | AS27: =STDEV(AM27:AQ27) -> 7 | AT27: 8 | AU27: 9 | AV27: 6 | AW27: 9 | AX27: 6 | AY27: =AVERAGE(AT27:AX27) -> 8 | AZ27: =STDEV(AT27:AX27) -> 2 | BA27: 1 | BB27: 0 | BC27: 2 | BD27: 0 | BE27: 0 | BF27: =AVERAGE(BA27:BE27) -> 1 | BG27: =STDEV(BA27:BE27) -> 1
A28: average | I28: =AVERAGE(I25:I27) ->  | P28: =AVERAGE(P25:P27) ->  | W28: =AVERAGE(W25:W27) ->  | AD28: =AVERAGE(AD25:AD27) ->  | AK28: =AVERAGE(AK25:AK27) ->  | AR28: =AVERAGE(AR25:AR27) -> 55 | AY28: =AVERAGE(AY25:AY27) -> 9 | BF28: =AVERAGE(BF25:BF27) -> 1
A29: stdev | I29: =SUM(J25:J27) ->  | P29: =SUM(Q25:Q27) ->  | W29: =SUM(X25:X27) ->  | AD29: =SUM(AE25:AE27) ->  | AK29: =SUM(AL25:AL27) ->  | AR29: =SUM(AS25:AS27) -> 14 | AY29: =SUM(AZ25:AZ27) -> 6 | BF29: =SUM(BG25:BG27) -> 2
A30: p+3 | B30: 1 | D30: NA | E30: NA | F30: NA | G30: NA | H30: NA | I30: =AVERAGE(D30:H30) ->  | J30: =STDEV(D30:H30) ->  | K30: NA | L30: NA | M30: NA | N30: NA | O30: NA | P30: =AVERAGE(K30:O30) ->  | Q30: =STDEV(K30:O30) ->  | R30: NA | S30: NA | T30: NA | U30: NA | V30: NA | W30: =AVERAGE(R30:V30) ->  | X30: =STDEV(R30:V30) ->  | Y30: NA | Z30: NA | AA30: NA | AB30: NA | AC30: NA | AD30: =AVERAGE(Y30:AC30) ->  | AE30: =STDEV(Y30:AC30) ->  | AF30: NA | AG30: NA | AH30: NA | AI30: NA | AJ30: NA | AK30: =AVERAGE(AF30:AJ30) ->  | AL30: =STDEV(AF30:AJ30) ->  | AM30: NA | AN30: NA | AO30: NA | AP30: NA | AQ30: NA | AR30: =AVERAGE(AM30:AQ30) ->  | AS30: =STDEV(AM30:AQ30) ->  | AT30: 31 | AU30: 40 | AV30: 30 | AW30: 29 | AX30: 22 | AY30: =AVERAGE(AT30:AX30) -> 30 | AZ30: =STDEV(AT30:AX30) -> 6 | BA30: 2 | BB30: 4 | BC30: 5 | BD30: 3 | BE30: 4 | BF30: =AVERAGE(BA30:BE30) -> 4 | BG30: =STDEV(BA30:BE30) -> 1
B31: 2 | D31: NA | E31: NA | F31: NA | G31: NA | H31: NA | I31: =AVERAGE(D31:H31) ->  | J31: =STDEV(D31:H31) ->  | K31: NA | L31: NA | M31: NA | N31: NA | O31: NA | P31: =AVERAGE(K31:O31) ->  | Q31: =STDEV(K31:O31) ->  | R31: NA | S31: NA | T31: NA | U31: NA | V31: NA | W31: =AVERAGE(R31:V31) ->  | X31: =STDEV(R31:V31) ->  | Y31: NA | Z31: NA | AA31: NA | AB31: NA | AC31: NA | AD31: =AVERAGE(Y31:AC31) ->  | AE31: =STDEV(Y31:AC31) ->  | AF31: NA | AG31: NA | AH31: NA | AI31: NA | AJ31: NA | AK31: =AVERAGE(AF31:AJ31) ->  | AL31: =STDEV(AF31:AJ31) ->  | AM31: 83 | AN31: 62 | AO31: 91 | AP31: 80 | AQ31: 74 | AR31: =AVERAGE(AM31:AQ31) -> 78 | AS31: =STDEV(AM31:AQ31) -> 11 | AT31: 13 | AU31: 13 | AV31: 12 | AW31: 10 | AX31: 14 | AY31: =AVERAGE(AT31:AX31) -> 12 | AZ31: =STDEV(AT31:AX31) -> 2 | BA31: 1 | BB31: 3 | BC31: 2 | BD31: 1 | BE31: 0 | BF31: =AVERAGE(BA31:BE31) -> 1 | BG31: =STDEV(BA31:BE31) -> 1
B32: 3 | D32: NA | E32: NA | F32: NA | G32: NA | H32: NA | I32: =AVERAGE(D32:H32) ->  | J32: =STDEV(D32:H32) ->  | K32: NA | L32: NA | M32: NA | N32: NA | O32: NA | P32: =AVERAGE(K32:O32) ->  | Q32: =STDEV(K32:O32) ->  | R32: NA | S32: NA | T32: NA | U32: NA | V32: NA | W32: =AVERAGE(R32:V32) ->  | X32: =STDEV(R32:V32) ->  | Y32: NA | Z32: NA | AA32: NA | AB32: NA | AC32: NA | AD32: =AVERAGE(Y32:AC32) ->  | AE32: =STDEV(Y32:AC32) ->  | AF32: NA | AG32: NA | AH32: NA | AI32: NA | AJ32: NA | AK32: =AVERAGE(AF32:AJ32) ->  | AL32: =STDEV(AF32:AJ32) ->  | AM32: 56 | AN32: 62 | AO32: 76 | AP32: 68 | AQ32: 75 | AR32: =AVERAGE(AM32:AQ32) -> 67 | AS32: =STDEV(AM32:AQ32) -> 9 | AT32: 7 | AU32: 11 | AV32: 8 | AW32: 9 | AX32: 7 | AY32: =AVERAGE(AT32:AX32) -> 8 | AZ32: =STDEV(AT32:AX32) -> 2 | BA32: 0 | BB32: 2 | BC32: 0 | BD32: 2 | BE32: 1 | BF32: =AVERAGE(BA32:BE32) -> 1 | BG32: =STDEV(BA32:BE32) -> 1
A33: average | I33: =AVERAGE(I30:I32) ->  | P33: =AVERAGE(P30:P32) ->  | W33: =AVERAGE(W30:W32) ->  | AD33: =AVERAGE(AD30:AD32) ->  | AK33: =AVERAGE(AK30:AK32) ->  | AR33: =AVERAGE(AR30:AR32) ->  | AY33: =AVERAGE(AY30:AY32) -> 17 | BF33: =AVERAGE(BF30:BF32) -> 2
A34: stdev | I34: =SUM(J30:J32) ->  | P34: =SUM(Q30:Q32) ->  | W34: =SUM(X30:X32) ->  | AD34: =SUM(AE30:AE32) ->  | AK34: =SUM(AL30:AL32) ->  | AR34: =SUM(AS30:AS32) ->  | AY34: =SUM(AZ30:AZ32) -> 10 | BF34: =SUM(BG30:BG32) -> 3
A35: pS2213 APR | B35: 1 | D35: NA | E35: NA | F35: NA | G35: NA | H35: NA | I35: =AVERAGE(D35:H35) ->  | J35: =STDEV(D35:H35) ->  | K35: NA | L35: NA | M35: NA | N35: NA | O35: NA | P35: =AVERAGE(K35:O35) ->  | Q35: =STDEV(K35:O35) ->  | R35: NA | S35: NA | T35: NA | U35: NA | V35: NA | W35: =AVERAGE(R35:V35) ->  | X35: =STDEV(R35:V35) ->  | Y35: NA | Z35: NA | AA35: NA | AB35: NA | AC35: NA | AD35: =AVERAGE(Y35:AC35) ->  | AE35: =STDEV(Y35:AC35) ->  | AF35: NA | AG35: NA | AH35: NA | AI35: NA | AJ35: NA | AK35: =AVERAGE(AF35:AJ35) ->  | AL35: =STDEV(AF35:AJ35) ->  | AM35: 51 | AN35: 36 | AO35: 45 | AP35: 54 | AQ35: 45 | AR35: =AVERAGE(AM35:AQ35) -> 46.2 | AS35: =STDEV(AM35:AQ35) -> 6.90651866 | AT35: 7 | AU35: 1 | AV35: 8 | AW35: 10 | AX35: 7 | AY35: =AVERAGE(AT35:AX35) -> 6.6 | AZ35: =STDEV(AT35:AX35) -> 3.361547263 | BA35: 2 | BB35: 0 | BC35: 1 | BD35: 0 | BE35: 1 | BF35: =AVERAGE(BA35:BE35) -> 0.8 | BG35: =STDEV(BA35:BE35) -> 0.8366600265
A36: p+0 | B36: 2 | D36: NA | E36: NA | F36: NA | G36: NA | H36: NA | I36: =AVERAGE(D36:H36) ->  | J36: =STDEV(D36:H36) ->  | L36: NA | M36: NA | N36: NA | O36: NA | P36: =AVERAGE(K36:O36) ->  | Q36: =STDEV(K36:O36) ->  | R36: NA | S36: NA | T36: NA | U36: NA | V36: NA | W36: =AVERAGE(R36:V36) ->  | X36: =STDEV(R36:V36) ->  | Y36: NA | Z36: NA | AA36: NA | AB36: NA | AC36: NA | AD36: =AVERAGE(Y36:AC36) ->  | AE36: =STDEV(Y36:AC36) ->  | AF36: NA | AG36: NA | AH36: NA | AI36: NA | AJ36: NA | AK36: =AVERAGE(AF36:AJ36) ->  | AL36: =STDEV(AF36:AJ36) ->  | AM36: 44 | AN36: 47 | AO36: 58 | AP36: 57 | AQ36: 46 | AR36: =AVERAGE(AM36:AQ36) -> 50.4 | AS36: =STDEV(AM36:AQ36) -> 6.580273551 | AT36: 7 | AU36: 11 | AV36: 7 | AW36: 5 | AX36: 4 | AY36: =AVERAGE(AT36:AX36) -> 6.8 | AZ36: =STDEV(AT36:AX36) -> 2.683281573 | BA36: 1 | BB36: 2 | BC36: 0 | BD36: 0 | BE36: 0 | BF36: =AVERAGE(BA36:BE36) -> 0.6 | BG36: =STDEV(BA36:BE36) -> 0.894427191
B37: 3 | D37: NA | E37: NA | F37: NA | G37: NA | H37: NA | I37: =AVERAGE(D37:H37) ->  | J37: =STDEV(D37:H37) ->  | K37: NA | L37: NA | M37: NA | N37: NA | O37: NA | P37: =AVERAGE(K37:O37) ->  | Q37: =STDEV(K37:O37) ->  | R37: NA | S37: NA | T37: NA | U37: NA | V37: NA | W37: =AVERAGE(R37:V37) ->  | X37: =STDEV(R37:V37) ->  | Y37: NA | Z37: NA | AA37: NA | AB37: NA | AC37: NA | AD37: =AVERAGE(Y37:AC37) ->  | AE37: =STDEV(Y37:AC37) ->  | AF37: NA | AG37: NA | AH37: NA | AI37: NA | AJ37: NA | AK37: =AVERAGE(AF37:AJ37) ->  | AL37: =STDEV(AF37:AJ37) ->  | AM37: 66 | AN37: 70 | AO37: 58 | AP37: 48 | AQ37: 63 | AR37: =AVERAGE(AM37:AQ37) -> 61 | AS37: =STDEV(AM37:AQ37) -> 8 | AT37: 8 | AU37: 6 | AV37: 9 | AW37: 9 | AX37: 8 | AY37: =AVERAGE(AT37:AX37) -> 8 | AZ37: =STDEV(AT37:AX37) -> 1 | BA37: 1 | BB37: 0 | BC37: 2 | BD37: 0 | BE37: 0 | BF37: =AVERAGE(BA37:BE37) -> 1 | BG37: =STDEV(BA37:BE37) -> 1
A38: average | I38: =AVERAGE(I35:I37) ->  | P38: =AVERAGE(P35:P37) ->  | W38: =AVERAGE(W35:W37) ->  | AD38: =AVERAGE(AD35:AD37) ->  | AK38: =AVERAGE(AK35:AK37) ->  | AR38: =AVERAGE(AR35:AR37) -> 53 | AY38: =AVERAGE(AY35:AY37) -> 7 | BF38: =AVERAGE(BF35:BF37) -> 1
A39: stdev | I39: =SUM(J35:J37) ->  | P39: =SUM(Q35:Q37) ->  | W39: =SUM(X35:X37) ->  | AD39: =SUM(AE35:AE37) ->  | AK39: =SUM(AL35:AL37) ->  | AR39: =SUM(AS35:AS37) -> 22 | AY39: =SUM(AZ35:AZ37) -> 7 | BF39: =SUM(BG35:BG37) -> 3
A40: p+3 | B40: 1 | D40: NA | E40: NA | F40: NA | G40: NA | H40: NA | I40: =AVERAGE(D40:H40) ->  | J40: =STDEV(D40:H40) ->  | K40: NA | L40: NA | M40: NA | N40: NA | O40: NA | P40: =AVERAGE(K40:O40) ->  | Q40: =STDEV(K40:O40) ->  | R40: NA | S40: NA | T40: NA | U40: NA | V40: NA | W40: =AVERAGE(R40:V40) ->  | X40: =STDEV(R40:V40) ->  | Y40: NA | Z40: NA | AA40: NA | AB40: NA | AC40: NA | AD40: =AVERAGE(Y40:AC40) ->  | AE40: =STDEV(Y40:AC40) ->  | AF40: NA | AG40: NA | AH40: NA | AI40: NA | AJ40: NA | AK40: =AVERAGE(AF40:AJ40) ->  | AL40: =STDEV(AF40:AJ40) ->  | AM40: 94 | AN40: 84 | AO40: 93 | AP40: 96 | AQ40: 100 | AR40: =AVERAGE(AM40:AQ40) -> 93 | AS40: =STDEV(AM40:AQ40) -> 6 | AT40: 17 | AU40: 15 | AV40: 15 | AW40: 8 | AX40: 6 | AY40: =AVERAGE(AT40:AX40) -> 12 | AZ40: =STDEV(AT40:AX40) -> 5 | BA40: 3 | BB40: 1 | BC40: 3 | BD40: 3 | BE40: 2 | BF40: =AVERAGE(BA40:BE40) -> 2 | BG40: =STDEV(BA40:BE40) -> 1
B41: 2 | D41: NA | E41: NA | F41: NA | G41: NA | H41: NA | I41: =AVERAGE(D41:H41) ->  | J41: =STDEV(D41:H41) ->  | K41: NA | L41: NA | M41: NA | N41: NA | O41: NA | P41: =AVERAGE(K41:O41) ->  | Q41: =STDEV(K41:O41) ->  | R41: NA | S41: NA | T41: NA | U41: NA | V41: NA | W41: =AVERAGE(R41:V41) ->  | X41: =STDEV(R41:V41) ->  | Y41: NA | Z41: NA | AA41: NA | AB41: NA | AC41: NA | AD41: =AVERAGE(Y41:AC41) ->  | AE41: =STDEV(Y41:AC41) ->  | AF41: NA | AG41: NA | AH41: NA | AI41: NA | AJ41: NA | AK41: =AVERAGE(AF41:AJ41) ->  | AL41: =STDEV(AF41:AJ41) ->  | AM41: 46 | AN41: 46 | AO41: 41 | AP41: 31 | AQ41: 38 | AR41: =AVERAGE(AM41:AQ41) -> 40 | AS41: =STDEV(AM41:AQ41) -> 6 | AT41: 5 | AU41: 6 | AV41: 4 | AW41: 2 | AX41: 4 | AY41: =AVERAGE(AT41:AX41) -> 4 | AZ41: =STDEV(AT41:AX41) -> 1 | BA41: 0 | BB41: 0 | BC41: 0 | BD41: 0 | BE41: 0 | BF41: =AVERAGE(BA41:BE41) -> 0 | BG41: =STDEV(BA41:BE41) -> 0
B42: 3 | D42: NA | E42: NA | F42: NA | G42: NA | H42: NA | I42: =AVERAGE(D42:H42) ->  | J42: =STDEV(D42:H42) ->  | K42: NA | L42: NA | M42: NA | N42: NA | O42: NA | P42: =AVERAGE(K42:O42) ->  | Q42: =STDEV(K42:O42) ->  | R42: NA | S42: NA | T42: NA | U42: NA | V42: NA | W42: =AVERAGE(R42:V42) ->  | X42: =STDEV(R42:V42) ->  | Y42: NA | Z42: NA | AA42: NA | AB42: NA | AC42: NA | AD42: =AVERAGE(Y42:AC42) ->  | AE42: =STDEV(Y42:AC42) ->  | AF42: NA | AG42: NA | AH42: NA | AI42: NA | AJ42: NA | AK42: =AVERAGE(AF42:AJ42) ->  | AL42: =STDEV(AF42:AJ42) ->  | AM42: 56 | AN42: 63 | AO42: 55 | AP42: 63 | AQ42: 46 | AR42: =AVERAGE(AM42:AQ42) -> 57 | AS42: =STDEV(AM42:AQ42) -> 7 | AT42: 6 | AU42: 3 | AV42: 8 | AW42: 9 | AX42: 10 | AY42: =AVERAGE(AT42:AX42) -> 7 | AZ42: =STDEV(AT42:AX42) -> 3 | BA42: 0 | BB42: 3 | BC42: 0 | BD42: 1 | BE42: 1 | BF42: =AVERAGE(BA42:BE42) -> 1 | BG42: =STDEV(BA42:BE42) -> 1
A43: average | I43: =AVERAGE(I40:I42) ->  | P43: =AVERAGE(P40:P42) ->  | W43: =AVERAGE(W40:W42) ->  | AD43: =AVERAGE(AD40:AD42) ->  | AK43: =AVERAGE(AK40:AK42) ->  | AR43: =AVERAGE(AR40:AR42) -> 63 | AY43: =AVERAGE(AY40:AY42) -> 8 | BF43: =AVERAGE(BF40:BF42) -> 1
A44: stdev | I44: =SUM(J40:J42) ->  | P44: =SUM(Q40:Q42) ->  | W44: =SUM(X40:X42) ->  | AD44: =SUM(AE40:AE42) ->  | AK44: =SUM(AL40:AL42) ->  | AR44: =SUM(AS40:AS42) -> 19 | AY44: =SUM(AZ40:AZ42) -> 9 | BF44: =SUM(BG40:BG42) -> 2
A47: T4 | B47: 2018-02-12
A48: Sample | B48: Dilution: | D48: 10^0 | I48: AVERAGE | J48: STDEV | K48: 10^-1 | P48: AVERAGE | Q48: STDEV | R48: 10^-2 | W48: AVERAGE | X48: STDEV | Y48: 10^-3 | AD48: AVERAGE | AE48: STDEV | AF48: 10^-4 | AK48: AVERAGE | AL48: STDEV | AM48: 10^-5 | AR48: AVERAGE | AS48: STDEV | AT48: 10^-6 | AY48: AVERAGE | AZ48: STDEV | BA48: 10^-7 | BF48: AVERAGE | BG48: STDEV
A49: Blank | B49: 1 | D49: 0 | E49: 0 | F49: 0 | G49: 0 | H49: 0 | I49: =AVERAGE(D49:H49) -> 0 | J49: =STDEV(D49:H49) -> 0 | K49: 0 | L49: 0 | M49: 0 | N49: 0 | O49: 0 | P49: =AVERAGE(K49:O49) -> 0 | Q49: =STDEV(K49:O49) -> 0 | R49: 0 | S49: 0 | T49: 0 | U49: 0 | V49: 0 | W49: =AVERAGE(R49:V49) -> 0 | X49: =STDEV(R49:V49) -> 0 | Y49: 0 | Z49: 0 | AA49: 0 | AB49: 0 | AC49: 0 | AD49: =AVERAGE(Y49:AC49) -> 0 | AE49: =STDEV(Y49:AC49) -> 0 | AF49: 0 | AG49: 0 | AH49: 0 | AI49: 0 | AJ49: 0 | AK49: =AVERAGE(AF49:AJ49) -> 0 | AL49: =STDEV(AF49:AJ49) -> 0 | AM49: 0 | AN49: 0 | AO49: 0 | AP49: 0 | AQ49: 0 | AR49: =AVERAGE(AM49:AQ49) -> 0 | AS49: =STDEV(AM49:AQ49) -> 0 | AT49: 0 | AU49: 0 | AV49: 0 | AW49: 0 | AX49: 0 | AY49: =AVERAGE(AT49:AX49) -> 0 | AZ49: =STDEV(AT49:AX49) -> 0 | BA49: 0 | BB49: 0 | BC49: 0 | BD49: 0 | BE49: 0 | BF49: =AVERAGE(BA49:BE49) -> 0 | BG49: =STDEV(BA49:BE49) -> 0
B50: 2 | D50: 0 | E50: 0 | F50: 0 | G50: 0 | H50: 0 | I50: =AVERAGE(D50:H50) -> 0 | J50: =STDEV(D50:H50) -> 0 | K50: 0 | L50: 0 | M50: 0 | N50: 0 | O50: 0 | P50: =AVERAGE(K50:O50) -> 0 | Q50: =STDEV(K50:O50) -> 0 | R50: 0 | S50: 0 | T50: 0 | U50: 0 | V50: 0 | W50: =AVERAGE(R50:V50) -> 0 | X50: =STDEV(R50:V50) -> 0 | Y50: 0 | Z50: 0 | AA50: 0 | AB50: 0 | AC50: 0 | AD50: =AVERAGE(Y50:AC50) -> 0 | AE50: =STDEV(Y50:AC50) -> 0 | AF50: 0 | AG50: 0 | AH50: 0 | AI50: 0 | AJ50: 0 | AK50: =AVERAGE(AF50:AJ50) -> 0 | AL50: =STDEV(AF50:AJ50) -> 0 | AM50: 0 | AN50: 0 | AO50: 0 | AP50: 0 | AQ50: 0 | AR50: =AVERAGE(AM50:AQ50) -> 0 | AS50: =STDEV(AM50:AQ50) -> 0 | AT50: 0 | AU50: 0 | AV50: 0 | AW50: 0 | AX50: 0 | AY50: =AVERAGE(AT50:AX50) -> 0 | AZ50: =STDEV(AT50:AX50) -> 0 | BA50: 0 | BB50: 0 | BC50: 0 | BD50: 0 | BE50: 0 | BF50: =AVERAGE(BA50:BE50) -> 0 | BG50: =STDEV(BA50:BE50) -> 0
B51: 3 | D51: 0 | E51: 0 | F51: 0 | G51: 0 | H51: 0 | I51: =AVERAGE(D51:H51) -> 0 | J51: =STDEV(D51:H51) -> 0 | K51: 0 | L51: 0 | M51: 0 | N51: 0 | O51: 0 | P51: =AVERAGE(K51:O51) -> 0 | Q51: =STDEV(K51:O51) -> 0 | R51: 0 | S51: 0 | T51: 0 | U51: 0 | V51: 0 | W51: =AVERAGE(R51:V51) -> 0 | X51: =STDEV(R51:V51) -> 0 | Y51: 0 | Z51: 0 | AA51: 0 | AB51: 0 | AC51: 0 | AD51: =AVERAGE(Y51:AC51) -> 0 | AE51: =STDEV(Y51:AC51) -> 0 | AF51: 0 | AG51: 0 | AH51: 0 | AI51: 0 | AJ51: 0 | AK51: =AVERAGE(AF51:AJ51) -> 0 | AL51: =STDEV(AF51:AJ51) -> 0 | AM51: 0 | AN51: 0 | AO51: 0 | AP51: 0 | AQ51: 0 | AR51: =AVERAGE(AM51:AQ51) -> 0 | AS51: =STDEV(AM51:AQ51) -> 0 | AT51: 0 | AU51: 0 | AV51: 0 | AW51: 0 | AX51: 0 | AY51: =AVERAGE(AT51:AX51) -> 0 | AZ51: =STDEV(AT51:AX51) -> 0 | BA51: 0 | BB51: 0 | BC51: 0 | BD51: 0 | BE51: 0 | BF51: =AVERAGE(BA51:BE51) -> 0 | BG51: =STDEV(BA51:BE51) -> 0
I52: =AVERAGE(I49:I51) -> 0 | P52: =AVERAGE(P49:P51) -> 0 | W52: =AVERAGE(W49:W51) -> 0 | AD52: =AVERAGE(AD49:AD51) -> 0 | AK52: =AVERAGE(AK49:AK51) -> 0 | AR52: =AVERAGE(AR49:AR51) -> 0 | AY52: =AVERAGE(AY49:AY51) -> 0 | BF52: =AVERAGE(BF49:BF51) -> 0
I53: =SUM(J49:J51) -> 0 | P53: =SUM(Q49:Q51) -> 0 | W53: =SUM(X49:X51) -> 0 | AD53: =SUM(AE49:AE51) -> 0 | AK53: =SUM(AL49:AL51) -> 0 | AR53: =SUM(AS49:AS51) -> 0 | AY53: =SUM(AZ49:AZ51) -> 0 | BF53: =SUM(BG49:BG51) -> 0
A54: BW25113 - | B54: 1 | D54: NA | E54: NA | F54: NA | G54: NA | H54: NA | I54: =AVERAGE(D54:H54) ->  | J54: =STDEV(D54:H54) ->  | K54: NA | L54: NA | M54: NA | N54: NA | O54: NA | P54: =AVERAGE(K54:O54) ->  | Q54: =STDEV(K54:O54) ->  | R54: NA | S54: NA | T54: NA | U54: NA | V54: NA | W54: =AVERAGE(R54:V54) ->  | X54: =STDEV(R54:V54) ->  | Y54: NA | Z54: NA | AA54: NA | AB54: NA | AC54: NA | AD54: =AVERAGE(Y54:AC54) ->  | AE54: =STDEV(Y54:AC54) ->  | AF54: NA | AG54: NA | AH54: NA | AI54: NA | AJ54: NA | AK54: =AVERAGE(AF54:AJ54) ->  | AL54: =STDEV(AF54:AJ54) ->  | AM54: 42 | AN54: 43 | AO54: 57 | AP54: 44 | AQ54: 50 | AR54: =AVERAGE(AM54:AQ54) -> 47 | AS54: =STDEV(AM54:AQ54) -> 6 | AT54: 8 | AU54: 3 | AV54: 1 | AW54: 6 | AX54: 4 | AY54: =AVERAGE(AT54:AX54) -> 4 | AZ54: =STDEV(AT54:AX54) -> 3 | BA54: 2 | BB54: 2 | BC54: 0 | BD54: 0 | BE54: 1 | BF54: =AVERAGE(BA54:BE54) -> 1 | BG54: =STDEV(BA54:BE54) -> 1
A55: pS2213 - | B55: 2 | D55: NA | E55: NA | F55: NA | G55: NA | H55: NA | I55: =AVERAGE(D55:H55) ->  | J55: =STDEV(D55:H55) ->  | K55: NA | L55: NA | M55: NA | N55: NA | O55: NA | P55: =AVERAGE(K55:O55) ->  | Q55: =STDEV(K55:O55) ->  | R55: NA | S55: NA | T55: NA | U55: NA | V55: NA | W55: =AVERAGE(R55:V55) ->  | X55: =STDEV(R55:V55) ->  | Y55: NA | Z55: NA | AA55: NA | AB55: NA | AC55: NA | AD55: =AVERAGE(Y55:AC55) ->  | AE55: =STDEV(Y55:AC55) ->  | AF55: NA | AG55: NA | AH55: NA | AI55: NA | AJ55: NA | AK55: =AVERAGE(AF55:AJ55) ->  | AL55: =STDEV(AF55:AJ55) ->  | AM55: 58 | AN55: 55 | AO55: 49 | AP55: 50 | AQ55: 49 | AR55: =AVERAGE(AM55:AQ55) -> 52 | AS55: =STDEV(AM55:AQ55) -> 4 | AT55: 2 | AU55: 7 | AV55: 1 | AW55: 5 | AX55: 6 | AY55: =AVERAGE(AT55:AX55) -> 4 | AZ55: =STDEV(AT55:AX55) -> 3 | BA55: 2 | BB55: 0 | BC55: 0 | BD55: 0 | BE55: 0 | BF55: =AVERAGE(BA55:BE55) -> 0 | BG55: =STDEV(BA55:BE55) -> 1
B56: 3 | D56: NA | E56: NA | F56: NA | G56: NA | H56: NA | I56: =AVERAGE(D56:H56) ->  | J56: =STDEV(D56:H56) ->  | K56: NA | L56: NA | M56: NA | N56: NA | O56: NA | P56: =AVERAGE(K56:O56) ->  | Q56: =STDEV(K56:O56) ->  | R56: NA | S56: NA | T56: NA | U56: NA | V56: NA | W56: =AVERAGE(R56:V56) ->  | X56: =STDEV(R56:V56) ->  | Y56: NA | Z56: NA | AA56: NA | AB56: NA | AC56: NA | AD56: =AVERAGE(Y56:AC56) ->  | AE56: =STDEV(Y56:AC56) ->  | AF56: NA | AG56: NA | AH56: NA | AI56: NA | AJ56: NA | AK56: =AVERAGE(AF56:AJ56) ->  | AL56: =STDEV(AF56:AJ56) ->  | AM56: 31 | AN56: 40 | AO56: 32 | AP56: 45 | AQ56: 44 | AR56: =AVERAGE(AM56:AQ56) -> 38 | AS56: =STDEV(AM56:AQ56) -> 7 | AT56: 3 | AU56: 7 | AV56: 4 | AW56: 7 | AX56: 8 | AY56: =AVERAGE(AT56:AX56) -> 6 | AZ56: =STDEV(AT56:AX56) -> 2 | BA56: 0 | BB56: 2 | BC56: 0 | BD56: 2 | BE56: 2 | BF56: =AVERAGE(BA56:BE56) -> 1 | BG56: =STDEV(BA56:BE56) -> 1
A57: average | I57: =AVERAGE(I54:I56) ->  | P57: =AVERAGE(P54:P56) ->  | W57: =AVERAGE(W54:W56) ->  | AD57: =AVERAGE(AD54:AD56) ->  | AK57: =AVERAGE(AK54:AK56) ->  | AR57: =AVERAGE(AR54:AR56) -> 46 | AY57: =AVERAGE(AY54:AY56) -> 5 | BF57: =AVERAGE(BF54:BF56) -> 1
A58: stdev | I58: =SUM(J54:J56) ->  | P58: =SUM(Q54:Q56) ->  | W58: =SUM(X54:X56) ->  | AD58: =SUM(AE54:AE56) ->  | AK58: =SUM(AL54:AL56) ->  | AR58: =SUM(AS54:AS56) -> 17 | AY58: =SUM(AZ54:AZ56) -> 7 | BF58: =SUM(BG54:BG56) -> 3
A59: pS2213 - | B59: 1 | D59: NA | E59: NA | F59: NA | G59: NA | H59: NA | I59: =AVERAGE(D59:H59) ->  | J59: =STDEV(D59:H59) ->  | K59: NA | L59: NA | M59: NA | N59: NA | O59: NA | P59: =AVERAGE(K59:O59) ->  | Q59: =STDEV(K59:O59) ->  | R59: NA | S59: NA | T59: NA | U59: NA | V59: NA | W59: =AVERAGE(R59:V59) ->  | X59: =STDEV(R59:V59) ->  | Y59: NA | Z59: NA | AA59: NA | AB59: NA | AC59: NA | AD59: =AVERAGE(Y59:AC59) ->  | AE59: =STDEV(Y59:AC59) ->  | AF59: 15 | AG59: 12 | AH59: 15 | AI59: 10 | AJ59: 11 | AK59: =AVERAGE(AF59:AJ59) -> 12.6 | AL59: =STDEV(AF59:AJ59) -> 2.302172887 | AM59: 0 | AN59: 3 | AO59: 2 | AP59: 1 | AQ59: 0 | AR59: =AVERAGE(AM59:AQ59) -> 1.2 | AS59: =STDEV(AM59:AQ59) -> 1.303840481 | AT59: 0 | AU59: 0 | AV59: 1 | AW59: 0 | AX59: 0 | AY59: =AVERAGE(AT59:AX59) -> 0.2 | AZ59: =STDEV(AT59:AX59) -> 0.4472135955 | BA59: 0 | BB59: 0 | BC59: 0 | BD59: 0 | BE59: 0 | BF59: =AVERAGE(BA59:BE59) -> 0 | BG59: =STDEV(BA59:BE59) -> 0
A60: p+0 | B60: 2 | D60: NA | E60: NA | F60: NA | G60: NA | H60: NA | I60: =AVERAGE(D60:H60) ->  | J60: =STDEV(D60:H60) ->  | K60: NA | L60: NA | M60: NA | N60: NA | O60: NA | P60: =AVERAGE(K60:O60) ->  | Q60: =STDEV(K60:O60) ->  | R60: NA | S60: NA | T60: NA | U60: NA | V60: NA | W60: =AVERAGE(R60:V60) ->  | X60: =STDEV(R60:V60) ->  | Y60: NA | Z60: NA | AA60: NA | AB60: NA | AC60: NA | AD60: =AVERAGE(Y60:AC60) ->  | AE60: =STDEV(Y60:AC60) ->  | AF60: 62 | AG60: 65 | AH60: 73 | AI60: 55 | AJ60: 60 | AK60: =AVERAGE(AF60:AJ60) -> 63 | AL60: =STDEV(AF60:AJ60) -> 6.670832032 | AM60: 13 | AN60: 12 | AO60: 11 | AP60: 7 | AQ60: 9 | AR60: =AVERAGE(AM60:AQ60) -> 10.4 | AS60: =STDEV(AM60:AQ60) -> 2.408318916 | AT60: 2 | AU60: 1 | AV60: 2 | AW60: 0 | AX60: 1 | AY60: =AVERAGE(AT60:AX60) -> 1.2 | AZ60: =STDEV(AT60:AX60) -> 0.8366600265 | BA60: 0 | BB60: 0 | BC60: 0 | BD60: 0 | BE60: 0 | BF60: =AVERAGE(BA60:BE60) -> 0 | BG60: =STDEV(BA60:BE60) -> 0
B61: 3 | D61: NA | E61: NA | F61: NA | G61: NA | H61: NA | I61: =AVERAGE(D61:H61) ->  | J61: =STDEV(D61:H61) ->  | K61: NA | L61: NA | M61: NA | N61: NA | O61: NA | P61: =AVERAGE(K61:O61) ->  | Q61: =STDEV(K61:O61) ->  | R61: NA | S61: NA | T61: NA | U61: NA | V61: NA | W61: =AVERAGE(R61:V61) ->  | X61: =STDEV(R61:V61) ->  | Y61: 39 | Z61: 47 | AA61: 53 | AB61: 29 | AC61: 39 | AD61: =AVERAGE(Y61:AC61) -> 41 | AE61: =STDEV(Y61:AC61) -> 9 | AF61: 1 | AG61: 0 | AH61: 3 | AI61: 3 | AJ61: 3 | AK61: =AVERAGE(AF61:AJ61) -> 2 | AL61: =STDEV(AF61:AJ61) -> 1 | AM61: 0 | AN61: 1 | AO61: 1 | AP61: 0 | AQ61: 1 | AR61: =AVERAGE(AM61:AQ61) -> 1 | AS61: =STDEV(AM61:AQ61) -> 1 | AT61: 0 | AU61: 0 | AV61: 0 | AW61: 0 | AX61: 0 | AY61: =AVERAGE(AT61:AX61) -> 0 | AZ61: =STDEV(AT61:AX61) -> 0 | BA61: 0 | BB61: 0 | BC61: 0 | BD61: 0 | BE61: 0 | BF61: =AVERAGE(BA61:BE61) -> 0 | BG61: =STDEV(BA61:BE61) -> 0
A62: average | I62: =AVERAGE(I59:I61) ->  | P62: =AVERAGE(P59:P61) ->  | W62: =AVERAGE(W59:W61) ->  | AD62: =AVERAGE(AD59:AD61) ->  | AK62: =AVERAGE(AK59:AK61) -> 26 | AR62: =AVERAGE(AR59:AR61) -> 4 | AY62: =AVERAGE(AY59:AY61) -> 0 | BF62: =AVERAGE(BF59:BF61) -> 0
A63: stdev | I63: =SUM(J59:J61) ->  | P63: =SUM(Q59:Q61) ->  | W63: =SUM(X59:X61) ->  | AD63: =SUM(AE59:AE61) ->  | AK63: =SUM(AL59:AL61) -> 10 | AR63: =SUM(AS59:AS61) -> 4 | AY63: =SUM(AZ59:AZ61) -> 1 | BF63: =SUM(BG59:BG61) -> 0
A64: pS2213 A | B64: 1 | D64: NA | E64: NA | F64: NA | G64: NA | H64: NA | I64: =AVERAGE(D64:H64) ->  | J64: =STDEV(D64:H64) ->  | K64: NA | L64: NA | M64: NA | N64: NA | O64: NA | P64: =AVERAGE(K64:O64) ->  | Q64: =STDEV(K64:O64) ->  | R64: NA | S64: NA | T64: NA | U64: NA | V64: NA | W64: =AVERAGE(R64:V64) ->  | X64: =STDEV(R64:V64) ->  | Y64: 18 | Z64: 24 | AA64: 11 | AB64: 18 | AC64: 14 | AD64: =AVERAGE(Y64:AC64) -> 17 | AE64: =STDEV(Y64:AC64) -> 4.898979486 | AF64: 0 | AG64: 1 | AH64: 3 | AI64: 2 | AJ64: 1 | AK64: =AVERAGE(AF64:AJ64) -> 1.4 | AL64: =STDEV(AF64:AJ64) -> 1.140175425 | AM64: 0 | AN64: 0 | AO64: 0 | AP64: 0 | AQ64: 0 | AR64: =AVERAGE(AM64:AQ64) -> 0 | AS64: =STDEV(AM64:AQ64) -> 0 | AT64: 0 | AU64: 0 | AV64: 0 | AW64: 0 | AX64: 0 | AY64: =AVERAGE(AT64:AX64) -> 0 | AZ64: =STDEV(AT64:AX64) -> 0 | BA64: 0 | BB64: 0 | BC64: 0 | BD64: 0 | BE64: 0 | BF64: =AVERAGE(BA64:BE64) -> 0 | BG64: =STDEV(BA64:BE64) -> 0
A65: p+0 | B65: 2 | D65: NA | E65: NA | F65: NA | G65: NA | H65: NA | I65: =AVERAGE(D65:H65) ->  | J65: =STDEV(D65:H65) ->  | K65: NA | L65: NA | M65: NA | N65: NA | O65: NA | P65: =AVERAGE(K65:O65) ->  | Q65: =STDEV(K65:O65) ->  | R65: NA | S65: NA | T65: NA | U65: NA | V65: NA | W65: =AVERAGE(R65:V65) ->  | X65: =STDEV(R65:V65) ->  | Y65: NA | Z65: NA | AA65: NA | AB65: NA | AC65: NA | AD65: =AVERAGE(Y65:AC65) ->  | AE65: =STDEV(Y65:AC65) ->  | AF65: NA | AG65: NA | AH65: NA | AI65: NA | AJ65: NA | AK65: =AVERAGE(AF65:AJ65) ->  | AL65: =STDEV(AF65:AJ65) ->  | AM65: 23 | AN65: 25 | AO65: 25 | AP65: 24 | AQ65: 21 | AR65: =AVERAGE(AM65:AQ65) -> 23.6 | AS65: =STDEV(AM65:AQ65) -> 1.673320053 | AT65: 4 | AU65: 3 | AV65: 5 | AW65: 6 | AX65: 2 | AY65: =AVERAGE(AT65:AX65) -> 4 | AZ65: =STDEV(AT65:AX65) -> 1.58113883 | BA65: 1 | BB65: 0 | BC65: 0 | BD65: 0 | BE65: 0 | BF65: =AVERAGE(BA65:BE65) -> 0.2 | BG65: =STDEV(BA65:BE65) -> 0.4472135955
B66: 3 | D66: NA | E66: NA | F66: NA | G66: NA | H66: NA | I66: =AVERAGE(D66:H66) ->  | J66: =STDEV(D66:H66) ->  | K66: NA | L66: NA | M66: NA | N66: NA | O66: NA | P66: =AVERAGE(K66:O66) ->  | Q66: =STDEV(K66:O66) ->  | R66: NA | S66: NA | T66: NA | U66: NA | V66: NA | W66: =AVERAGE(R66:V66) ->  | X66: =STDEV(R66:V66) ->  | Y66: 54 | Z66: 54 | AA66: 58 | AB66: 56 | AC66: 47 | AD66: =AVERAGE(Y66:AC66) -> 54 | AE66: =STDEV(Y66:AC66) -> 4 | AF66: 3 | AG66: NA | AH66: 3 | AI66: 2 | AJ66: 6 | AK66: =AVERAGE(AF66:AJ66) -> 4 | AL66: =STDEV(AF66:AJ66) -> 2 | AM66: 0 | AN66: 0 | AO66: 0 | AP66: 2 | AQ66: 1 | AR66: =AVERAGE(AM66:AQ66) -> 1 | AS66: =STDEV(AM66:AQ66) -> 1 | AT66: 0 | AU66: 0 | AV66: 0 | AW66: 0 | AX66: 1 | AY66: =AVERAGE(AT66:AX66) -> 0 | AZ66: =STDEV(AT66:AX66) -> 0 | BA66: 0 | BB66: 0 | BC66: 0 | BD66: 0 | BE66: 0 | BF66: =AVERAGE(BA66:BE66) -> 0 | BG66: =STDEV(BA66:BE66) -> 0
A67: average | I67: =AVERAGE(I64:I66) ->  | P67: =AVERAGE(P64:P66) ->  | W67: =AVERAGE(W64:W66) ->  | AD67: =AVERAGE(AD64:AD66) ->  | AK67: =AVERAGE(AK64:AK66) ->  | AR67: =AVERAGE(AR64:AR66) -> 8 | AY67: =AVERAGE(AY64:AY66) -> 1 | BF67: =AVERAGE(BF64:BF66) -> 0
A68: stdev | I68: =SUM(J64:J66) ->  | P68: =SUM(Q64:Q66) ->  | W68: =SUM(X64:X66) ->  | AD68: =SUM(AE64:AE66) ->  | AK68: =SUM(AL64:AL66) ->  | AR68: =SUM(AS64:AS66) -> 3 | AY68: =SUM(AZ64:AZ66) -> 2 | BF68: =SUM(BG64:BG66) -> 0
A69: p+3 | B69: 1 | D69: NA | E69: NA | F69: NA | G69: NA | H69: NA | I69: =AVERAGE(D69:H69) ->  | J69: =STDEV(D69:H69) ->  | K69: NA | L69: NA | M69: NA | N69: NA | O69: NA | P69: =AVERAGE(K69:O69) ->  | Q69: =STDEV(K69:O69) ->  | R69: 45 | S69: 49 | T69: 42 | U69: 55 | V69: 54 | W69: =AVERAGE(R69:V69) -> 49 | X69: =STDEV(R69:V69) -> 6 | Y69: 9 | Z69: 4 | AA69: 5 | AB69: 5 | AC69: 2 | AD69: =AVERAGE(Y69:AC69) -> 5 | AE69: =STDEV(Y69:AC69) -> 3 | AF69: 0 | AG69: 0 | AH69: 0 | AI69: 3 | AJ69: 1 | AK69: =AVERAGE(AF69:AJ69) -> 1 | AL69: =STDEV(AF69:AJ69) -> 1 | AM69: 1 | AN69: 0 | AO69: 0 | AP69: 0 | AQ69: 0 | AR69: =AVERAGE(AM69:AQ69) -> 0 | AS69: =STDEV(AM69:AQ69) -> 0 | AT69: 0 | AU69: 0 | AV69: 0 | AW69: 0 | AX69: 0 | AY69: =AVERAGE(AT69:AX69) -> 0 | AZ69: =STDEV(AT69:AX69) -> 0 | BA69: 0 | BB69: 0 | BC69: 0 | BD69: 0 | BE69: 0 | BF69: =AVERAGE(BA69:BE69) -> 0 | BG69: =STDEV(BA69:BE69) -> 0
B70: 2 | D70: NA | E70: NA | F70: NA | G70: NA | H70: NA | I70: =AVERAGE(D70:H70) ->  | J70: =STDEV(D70:H70) ->  | K70: NA | L70: NA | M70: NA | N70: NA | O70: NA | P70: =AVERAGE(K70:O70) ->  | Q70: =STDEV(K70:O70) ->  | R70: 36 | S70: 20 | T70: 25 | U70: 31 | V70: 32 | W70: =AVERAGE(R70:V70) -> 29 | X70: =STDEV(R70:V70) -> 6 | Y70: 1 | Z70: 0 | AA70: 3 | AB70: 3 | AC70: 4 | AD70: =AVERAGE(Y70:AC70) -> 2 | AE70: =STDEV(Y70:AC70) -> 2 | AF70: 0 | AG70: 0 | AH70: 0 | AI70: 0 | AJ70: 0 | AK70: =AVERAGE(AF70:AJ70) -> 0 | AL70: =STDEV(AF70:AJ70) -> 0 | AM70: 0 | AN70: 0 | AO70: 0 | AP70: 0 | AQ70: 0 | AR70: =AVERAGE(AM70:AQ70) -> 0 | AS70: =STDEV(AM70:AQ70) -> 0 | AT70: 0 | AU70: 0 | AV70: 0 | AW70: 0 | AX70: 0 | AY70: =AVERAGE(AT70:AX70) -> 0 | AZ70: =STDEV(AT70:AX70) -> 0 | BA70: 0 | BB70: 0 | BC70: 0 | BD70: 0 | BE70: 0 | BF70: =AVERAGE(BA70:BE70) -> 0 | BG70: =STDEV(BA70:BE70) -> 0
B71: 3 | D71: NA | E71: NA | F71: NA | G71: NA | H71: NA | I71: =AVERAGE(D71:H71) ->  | J71: =STDEV(D71:H71) ->  | K71: NA | L71: NA | M71: NA | N71: NA | O71: NA | P71: =AVERAGE(K71:O71) ->  | Q71: =STDEV(K71:O71) ->  | R71: NA | S71: NA | T71: NA | U71: NA | V71: NA | W71: =AVERAGE(R71:V71) ->  | X71: =STDEV(R71:V71) ->  | Y71: NA | Z71: NA | AA71: NA | AB71: NA | AC71: NA | AD71: =AVERAGE(Y71:AC71) ->  | AE71: =STDEV(Y71:AC71) ->  | AF71: 79 | AG71: 92 | AH71: 85 | AI71: 86 | AJ71: 90 | AK71: =AVERAGE(AF71:AJ71) -> 86 | AL71: =STDEV(AF71:AJ71) -> 5 | AM71: 17 | AN71: 10 | AO71: 12 | AP71: 9 | AQ71: 12 | AR71: =AVERAGE(AM71:AQ71) -> 12 | AS71: =STDEV(AM71:AQ71) -> 3 | AT71: 0 | AU71: 0 | AV71: 0 | AW71: 1 | AX71: 0 | AY71: =AVERAGE(AT71:AX71) -> 0 | AZ71: =STDEV(AT71:AX71) -> 0 | BA71: 0 | BB71: 0 | BC71: 0 | BD71: 1 | BE71: 0 | BF71: =AVERAGE(BA71:BE71) -> 0 | BG71: =STDEV(BA71:BE71) -> 0
A72: average | I72: =AVERAGE(I69:I71) ->  | P72: =AVERAGE(P69:P71) ->  | W72: =AVERAGE(W69:W71) ->  | AD72: =AVERAGE(AD69:AD71) ->  | AK72: =AVERAGE(AK69:AK71) -> 29 | AR72: =AVERAGE(AR69:AR71) -> 4 | AY72: =AVERAGE(AY69:AY71) -> 0 | BF72: =AVERAGE(BF69:BF71) -> 0
A73: stdev | I73: =SUM(J69:J71) ->  | P73: =SUM(Q69:Q71) ->  | W73: =SUM(X69:X71) ->  | AD73: =SUM(AE69:AE71) ->  | AK73: =SUM(AL69:AL71) -> 6 | AR73: =SUM(AS69:AS71) -> 4 | AY73: =SUM(AZ69:AZ71) -> 0 | BF73: =SUM(BG69:BG71) -> 0
A74: pS2213 APR | B74: 1 | D74: NA | E74: NA | F74: NA | G74: NA | H74: NA | I74: =AVERAGE(D74:H74) ->  | J74: =STDEV(D74:H74) ->  | K74: NA | L74: NA | M74: NA | N74: NA | O74: NA | P74: =AVERAGE(K74:O74) ->  | Q74: =STDEV(K74:O74) ->  | R74: NA | S74: NA | T74: NA | U74: NA | V74: NA | W74: =AVERAGE(R74:V74) ->  | X74: =STDEV(R74:V74) ->  | Y74: NA | Z74: NA | AA74: NA | AB74: NA | AC74: NA | AD74: =AVERAGE(Y74:AC74) ->  | AE74: =STDEV(Y74:AC74) ->  | AF74: 10 | AG74: 17 | AH74: 11 | AI74: 13 | AJ74: 14 | AK74: =AVERAGE(AF74:AJ74) -> 13 | AL74: =STDEV(AF74:AJ74) -> 2.738612788 | AM74: 2 | AN74: 3 | AO74: 3 | AP74: 4 | AQ74: 1 | AR74: =AVERAGE(AM74:AQ74) -> 2.6 | AS74: =STDEV(AM74:AQ74) -> 1.140175425 | AT74: 0 | AU74: 1 | AV74: 0 | AW74: 0 | AX74: 0 | AY74: =AVERAGE(AT74:AX74) -> 0.2 | AZ74: =STDEV(AT74:AX74) -> 0.4472135955 | BA74: 0 | BB74: 0 | BC74: 0 | BD74: 0 | BE74: 0 | BF74: =AVERAGE(BA74:BE74) -> 0 | BG74: =STDEV(BA74:BE74) -> 0
A75: p+0 | B75: 2 | D75: NA | E75: NA | F75: NA | G75: NA | H75: NA | I75: =AVERAGE(D75:H75) ->  | J75: =STDEV(D75:H75) ->  | K75: NA | L75: NA | M75: NA | N75: NA | O75: NA | P75: =AVERAGE(K75:O75) ->  | Q75: =STDEV(K75:O75) ->  | R75: NA | S75: NA | T75: NA | U75: NA | V75: NA | W75: =AVERAGE(R75:V75) ->  | X75: =STDEV(R75:V75) ->  | Y75: 18 | Z75: 17 | AA75: 16 | AB75: 20 | AC75: 16 | AD75: =AVERAGE(Y75:AC75) -> 17.4 | AE75: =STDEV(Y75:AC75) -> 1.673320053 | AF75: 1 | AG75: 2 | AH75: 4 | AI75: 2 | AJ75: 4 | AK75: =AVERAGE(AF75:AJ75) -> 2.6 | AL75: =STDEV(AF75:AJ75) -> 1.341640786 | AM75: 0 | AN75: 1 | AO75: 0 | AP75: 0 | AQ75: 0 | AR75: =AVERAGE(AM75:AQ75) -> 0.2 | AS75: =STDEV(AM75:AQ75) -> 0.4472135955 | AT75: 0 | AU75: 0 | AV75: 0 | AW75: 0 | AX75: 0 | AY75: =AVERAGE(AT75:AX75) -> 0 | AZ75: =STDEV(AT75:AX75) -> 0 | BA75: 0 | BB75: 0 | BC75: 0 | BD75: 0 | BE75: 0 | BF75: =AVERAGE(BA75:BE75) -> 0 | BG75: =STDEV(BA75:BE75) -> 0
B76: 3 | D76: NA | E76: NA | F76: NA | G76: NA | H76: NA | I76: =AVERAGE(D76:H76) ->  | J76: =STDEV(D76:H76) ->  | K76: NA | L76: NA | M76: NA | N76: NA | O76: NA | P76: =AVERAGE(K76:O76) ->  | Q76: =STDEV(K76:O76) ->  | R76: NA | S76: NA | T76: NA | U76: NA | V76: NA | W76: =AVERAGE(R76:V76) ->  | X76: =STDEV(R76:V76) ->  | Y76: NA | Z76: NA | AA76: NA | AB76: NA | AC76: NA | AD76: =AVERAGE(Y76:AC76) ->  | AE76: =STDEV(Y76:AC76) ->  | AF76: 28 | AG76: 33 | AH76: 28 | AI76: 31 | AJ76: 27 | AK76: =AVERAGE(AF76:AJ76) -> 29 | AL76: =STDEV(AF76:AJ76) -> 3 | AM76: 7 | AN76: 4 | AO76: 5 | AP76: 5 | AQ76: 4 | AR76: =AVERAGE(AM76:AQ76) -> 5 | AS76: =STDEV(AM76:AQ76) -> 1 | AT76: 0 | AU76: 0 | AV76: 1 | AW76: 0 | AX76: 0 | AY76: =AVERAGE(AT76:AX76) -> 0 | AZ76: =STDEV(AT76:AX76) -> 0 | BA76: 0 | BB76: 0 | BC76: 0 | BD76: 0 | BE76: 0 | BF76: =AVERAGE(BA76:BE76) -> 0 | BG76: =STDEV(BA76:BE76) -> 0
A77: average | I77: =AVERAGE(I74:I76) ->  | P77: =AVERAGE(P74:P76) ->  | W77: =AVERAGE(W74:W76) ->  | AD77: =AVERAGE(AD74:AD76) ->  | AK77: =AVERAGE(AK74:AK76) -> 15 | AR77: =AVERAGE(AR74:AR76) -> 3 | AY77: =AVERAGE(AY74:AY76) -> 0 | BF77: =AVERAGE(BF74:BF76) -> 0
A78: stdev | I78: =SUM(J74:J76) ->  | P78: =SUM(Q74:Q76) ->  | W78: =SUM(X74:X76) ->  | AD78: =SUM(AE74:AE76) ->  | AK78: =SUM(AL74:AL76) -> 7 | AR78: =SUM(AS74:AS76) -> 3 | AY78: =SUM(AZ74:AZ76) -> 1 | BF78: =SUM(BG74:BG76) -> 0
A79: p+3 | B79: 1 | D79: NA | E79: NA | F79: NA | G79: NA | H79: NA | I79: =AVERAGE(D79:H79) ->  | J79: =STDEV(D79:H79) ->  | K79: NA | L79: NA | M79: NA | N79: NA | O79: NA | P79: =AVERAGE(K79:O79) ->  | Q79: =STDEV(K79:O79) ->  | R79: NA | S79: NA | T79: NA | U79: NA | V79: NA | W79: =AVERAGE(R79:V79) ->  | X79: =STDEV(R79:V79) ->  | Y79: NA | Z79: NA | AA79: NA | AB79: NA | AC79: NA | AD79: =AVERAGE(Y79:AC79) ->  | AE79: =STDEV(Y79:AC79) ->  | AF79: 18 | AG79: 11 | AH79: 21 | AI79: 15 | AJ79: 13 | AK79: =AVERAGE(AF79:AJ79) -> 16 | AL79: =STDEV(AF79:AJ79) -> 4 | AM79: 2 | AN79: 2 | AO79: 4 | AP79: 3 | AQ79: 2 | AR79: =AVERAGE(AM79:AQ79) -> 3 | AS79: =STDEV(AM79:AQ79) -> 1 | AT79: 0 | AU79: 2 | AV79: 0 | AW79: 1 | AX79: 0 | AY79: =AVERAGE(AT79:AX79) -> 1 | AZ79: =STDEV(AT79:AX79) -> 1 | BA79: 0 | BB79: 0 | BC79: 0 | BD79: 0 | BE79: 1 | BF79: =AVERAGE(BA79:BE79) -> 0 | BG79: =STDEV(BA79:BE79) -> 0
B80: 2 | D80: NA | E80: NA | F80: NA | G80: NA | H80: NA | I80: =AVERAGE(D80:H80) ->  | J80: =STDEV(D80:H80) ->  | K80: NA | L80: NA | M80: NA | N80: NA | O80: NA | P80: =AVERAGE(K80:O80) ->  | Q80: =STDEV(K80:O80) ->  | R80: NA | S80: NA | T80: NA | U80: NA | V80: NA | W80: =AVERAGE(R80:V80) ->  | X80: =STDEV(R80:V80) ->  | Y80: 54 | Z80: 48 | AA80: 51 | AB80: 53 | AC80: 54 | AD80: =AVERAGE(Y80:AC80) -> 52 | AE80: =STDEV(Y80:AC80) -> 3 | AF80: 1 | AG80: NA | AH80: 2 | AI80: 4 | AJ80: 1 | AK80: =AVERAGE(AF80:AJ80) -> 2 | AL80: =STDEV(AF80:AJ80) -> 1 | AM80: 2 | AN80: 0 | AO80: 0 | AP80: 0 | AQ80: 0 | AR80: =AVERAGE(AM80:AQ80) -> 0 | AS80: =STDEV(AM80:AQ80) -> 1 | AT80: 0 | AU80: 0 | AV80: 0 | AW80: 0 | AX80: 0 | AY80: =AVERAGE(AT80:AX80) -> 0 | AZ80: =STDEV(AT80:AX80) -> 0 | BA80: 0 | BB80: 0 | BC80: 0 | BD80: 0 | BE80: 0 | BF80: =AVERAGE(BA80:BE80) -> 0 | BG80: =STDEV(BA80:BE80) -> 0
B81: 3 | D81: NA | E81: NA | F81: NA | G81: NA | H81: NA | I81: =AVERAGE(D81:H81) ->  | J81: =STDEV(D81:H81) ->  | K81: NA | L81: NA | M81: NA | N81: NA | O81: NA | P81: =AVERAGE(K81:O81) ->  | Q81: =STDEV(K81:O81) ->  | R81: NA | S81: NA | T81: NA | U81: NA | V81: NA | W81: =AVERAGE(R81:V81) ->  | X81: =STDEV(R81:V81) ->  | Y81: 23 | Z81: 25 | AA81: 31 | AB81: 25 | AC81: 26 | AD81: =AVERAGE(Y81:AC81) -> 26 | AE81: =STDEV(Y81:AC81) -> 3 | AF81: 3 | AG81: 1 | AH81: 1 | AI81: 3 | AJ81: 3 | AK81: =AVERAGE(AF81:AJ81) -> 2 | AL81: =STDEV(AF81:AJ81) -> 1 | AM81: 0 | AN81: 0 | AO81: 0 | AP81: 1 | AQ81: 0 | AR81: =AVERAGE(AM81:AQ81) -> 0 | AS81: =STDEV(AM81:AQ81) -> 0 | AT81: 0 | AU81: 0 | AV81: 0 | AW81: 0 | AX81: 0 | AY81: =AVERAGE(AT81:AX81) -> 0 | AZ81: =STDEV(AT81:AX81) -> 0 | BA81: 0 | BB81: 0 | BC81: 0 | BD81: 0 | BE81: 0 | BF81: =AVERAGE(BA81:BE81) -> 0 | BG81: =STDEV(BA81:BE81) -> 0
A82: average | I82: =AVERAGE(I79:I81) ->  | P82: =AVERAGE(P79:P81) ->  | W82: =AVERAGE(W79:W81) ->  | AD82: =AVERAGE(AD79:AD81) ->  | AK82: =AVERAGE(AK79:AK81) -> 7 | AR82: =AVERAGE(AR79:AR81) -> 1 | AY82: =AVERAGE(AY79:AY81) -> 0 | BF82: =AVERAGE(BF79:BF81) -> 0
A83: stdev | I83: =SUM(J79:J81) ->  | P83: =SUM(Q79:Q81) ->  | W83: =SUM(X79:X81) ->  | AD83: =SUM(AE79:AE81) ->  | AK83: =SUM(AL79:AL81) -> 6 | AR83: =SUM(AS79:AS81) -> 2 | AY83: =SUM(AZ79:AZ81) -> 1 | BF83: =SUM(BG79:BG81) -> 0
A86: T7 | B86: 2018-02-15
A87: Sample | B87: Dilution: | D87: 10^0 | I87: AVERAGE | J87: STDEV | K87: 10^-1 | P87: AVERAGE | Q87: STDEV | R87: 10^-2 | W87: AVERAGE | X87: STDEV | Y87: 10^-3 | AD87: AVERAGE | AE87: STDEV | AF87: 10^-4 | AK87: AVERAGE | AL87: STDEV | AM87: 10^-5 | AR87: AVERAGE | AS87: STDEV | AT87: 10^-6 | AY87: AVERAGE | AZ87: STDEV | BA87: 10^-7 | BF87: AVERAGE | BG87: STDEV
A88: Blank | B88: 1 | D88: 0 | E88: 0 | F88: 0 | G88: 0 | H88: 0 | I88: =AVERAGE(D88:H88) -> 0 | J88: =STDEV(D88:H88) -> 0 | K88: 0 | L88: 0 | M88: 0 | N88: 0 | O88: 0 | P88: =AVERAGE(K88:O88) -> 0 | Q88: =STDEV(K88:O88) -> 0 | R88: 0 | S88: 0 | T88: 0 | U88: 0 | V88: 0 | W88: =AVERAGE(R88:V88) -> 0 | X88: =STDEV(R88:V88) -> 0 | Y88: 0 | Z88: 0 | AA88: 0 | AB88: 0 | AC88: 0 | AD88: =AVERAGE(Y88:AC88) -> 0 | AE88: =STDEV(Y88:AC88) -> 0 | AF88: 0 | AG88: 0 | AH88: 0 | AI88: 0 | AJ88: 0 | AK88: =AVERAGE(AF88:AJ88) -> 0 | AL88: =STDEV(AF88:AJ88) -> 0 | AM88: 0 | AN88: 0 | AO88: 0 | AP88: 0 | AQ88: 0 | AR88: =AVERAGE(AM88:AQ88) -> 0 | AS88: =STDEV(AM88:AQ88) -> 0 | AT88: 0 | AU88: 0 | AV88: 0 | AW88: 0 | AX88: 0 | AY88: =AVERAGE(AT88:AX88) -> 0 | AZ88: =STDEV(AT88:AX88) -> 0 | BA88: 0 | BB88: 0 | BC88: 0 | BD88: 0 | BE88: 0 | BF88: =AVERAGE(BA88:BE88) -> 0 | BG88: =STDEV(BA88:BE88) -> 0
B89: 2 | D89: 0 | E89: 0 | F89: 0 | G89: 0 | H89: 0 | I89: =AVERAGE(D89:H89) -> 0 | J89: =STDEV(D89:H89) -> 0 | K89: 0 | L89: 0 | M89: 0 | N89: 0 | O89: 0 | P89: =AVERAGE(K89:O89) -> 0 | Q89: =STDEV(K89:O89) -> 0 | R89: 0 | S89: 0 | T89: 0 | U89: 0 | V89: 0 | W89: =AVERAGE(R89:V89) -> 0 | X89: =STDEV(R89:V89) -> 0 | Y89: 0 | Z89: 0 | AA89: 0 | AB89: 0 | AC89: 0 | AD89: =AVERAGE(Y89:AC89) -> 0 | AE89: =STDEV(Y89:AC89) -> 0 | AF89: 0 | AG89: 0 | AH89: 0 | AI89: 0 | AJ89: 0 | AK89: =AVERAGE(AF89:AJ89) -> 0 | AL89: =STDEV(AF89:AJ89) -> 0 | AM89: 0 | AN89: 0 | AO89: 0 | AP89: 0 | AQ89: 0 | AR89: =AVERAGE(AM89:AQ89) -> 0 | AS89: =STDEV(AM89:AQ89) -> 0 | AT89: 0 | AU89: 0 | AV89: 0 | AW89: 0 | AX89: 0 | AY89: =AVERAGE(AT89:AX89) -> 0 | AZ89: =STDEV(AT89:AX89) -> 0 | BA89: 0 | BB89: 0 | BC89: 0 | BD89: 0 | BE89: 0 | BF89: =AVERAGE(BA89:BE89) -> 0 | BG89: =STDEV(BA89:BE89) -> 0
B90: 3 | D90: 0 | E90: 0 | F90: 0 | G90: 0 | H90: 0 | I90: =AVERAGE(D90:H90) -> 0 | J90: =STDEV(D90:H90) -> 0 | K90: 0 | L90: 0 | M90: 0 | N90: 0 | O90: 0 | P90: =AVERAGE(K90:O90) -> 0 | Q90: =STDEV(K90:O90) -> 0 | R90: 0 | S90: 0 | T90: 0 | U90: 0 | V90: 0 | W90: =AVERAGE(R90:V90) -> 0 | X90: =STDEV(R90:V90) -> 0 | Y90: 0 | Z90: 0 | AA90: 0 | AB90: 0 | AC90: 0 | AD90: =AVERAGE(Y90:AC90) -> 0 | AE90: =STDEV(Y90:AC90) -> 0 | AF90: 0 | AG90: 0 | AH90: 0 | AI90: 0 | AJ90: 0 | AK90: =AVERAGE(AF90:AJ90) -> 0 | AL90: =STDEV(AF90:AJ90) -> 0 | AM90: 0 | AN90: 0 | AO90: 0 | AP90: 0 | AQ90: 0 | AR90: =AVERAGE(AM90:AQ90) -> 0 | AS90: =STDEV(AM90:AQ90) -> 0 | AT90: 0 | AU90: 0 | AV90: 0 | AW90: 0 | AX90: 0 | AY90: =AVERAGE(AT90:AX90) -> 0 | AZ90: =STDEV(AT90:AX90) -> 0 | BA90: 0 | BB90: 0 | BC90: 0 | BD90: 0 | BE90: 0 | BF90: =AVERAGE(BA90:BE90) -> 0 | BG90: =STDEV(BA90:BE90) -> 0
I91: =AVERAGE(I88:I90) -> 0 | P91: =AVERAGE(P88:P90) -> 0 | W91: =AVERAGE(W88:W90) -> 0 | AD91: =AVERAGE(AD88:AD90) -> 0 | AK91: =AVERAGE(AK88:AK90) -> 0 | AR91: =AVERAGE(AR88:AR90) -> 0 | AY91: =AVERAGE(AY88:AY90) -> 0 | BF91: =AVERAGE(BF88:BF90) -> 0
I92: =SUM(J88:J90) -> 0 | P92: =SUM(Q88:Q90) -> 0 | W92: =SUM(X88:X90) -> 0 | AD92: =SUM(AE88:AE90) -> 0 | AK92: =SUM(AL88:AL90) -> 0 | AR92: =SUM(AS88:AS90) -> 0 | AY92: =SUM(AZ88:AZ90) -> 0 | BF92: =SUM(BG88:BG90) -> 0
A93: BW25113 - | B93: 1 | D93: NA | E93: NA | F93: NA | G93: NA | H93: NA | I93: =AVERAGE(D93:H93) ->  | J93: =STDEV(D93:H93) ->  | K93: NA | L93: NA | M93: NA | N93: NA | O93: NA | P93: =AVERAGE(K93:O93) ->  | Q93: =STDEV(K93:O93) ->  | R93: NA | S93: NA | T93: NA | U93: NA | V93: NA | W93: =AVERAGE(R93:V93) ->  | X93: =STDEV(R93:V93) ->  | Y93: NA | Z93: NA | AA93: NA | AB93: NA | AC93: NA | AD93: =AVERAGE(Y93:AC93) ->  | AE93: =STDEV(Y93:AC93) ->  | AF93: 245 | AG93: 240 | AH93: 273 | AI93: 258 | AJ93: 223 | AK93: =AVERAGE(AF93:AJ93) -> 248 | AL93: =STDEV(AF93:AJ93) -> 19 | AM93: 32 | AN93: 41 | AO93: 52 | AP93: 62 | AQ93: 42 | AR93: =AVERAGE(AM93:AQ93) -> 46 | AS93: =STDEV(AM93:AQ93) -> 11 | AT93: 3 | AU93: 5 | AV93: 6 | AW93: 8 | AX93: 4 | AY93: =AVERAGE(AT93:AX93) -> 5 | AZ93: =STDEV(AT93:AX93) -> 2 | BA93: 0 | BB93: 0 | BC93: 0 | BD93: 0 | BE93: 0 | BF93: =AVERAGE(BA93:BE93) -> 0 | BG93: =STDEV(BA93:BE93) -> 0
A94: pS2213 - | B94: 2 | D94: NA | E94: NA | F94: NA | G94: NA | H94: NA | I94: =AVERAGE(D94:H94) ->  | J94: =STDEV(D94:H94) ->  | K94: NA | L94: NA | M94: NA | N94: NA | O94: NA | P94: =AVERAGE(K94:O94) ->  | Q94: =STDEV(K94:O94) ->  | R94: NA | S94: NA | T94: NA | U94: NA | V94: NA | W94: =AVERAGE(R94:V94) ->  | X94: =STDEV(R94:V94) ->  | Y94: NA | Z94: NA | AA94: NA | AB94: NA | AC94: NA | AD94: =AVERAGE(Y94:AC94) ->  | AE94: =STDEV(Y94:AC94) ->  | AF94: 257 | AG94: 201 | AH94: 196 | AI94: 220 | AJ94: 208 | AK94: =AVERAGE(AF94:AJ94) -> 216 | AL94: =STDEV(AF94:AJ94) -> 24 | AM94: 45 | AN94: 45 | AO94: 31 | AP94: 38 | AQ94: 41 | AR94: =AVERAGE(AM94:AQ94) -> 40 | AS94: =STDEV(AM94:AQ94) -> 6 | AT94: 2 | AU94: 2 | AV94: 10 | AW94: 5 | AX94: 2 | AY94: =AVERAGE(AT94:AX94) -> 4 | AZ94: =STDEV(AT94:AX94) -> 3 | BA94: 1 | BB94: 0 | BC94: 1 | BD94: 0 | BE94: 0 | BF94: =AVERAGE(BA94:BE94) -> 0 | BG94: =STDEV(BA94:BE94) -> 1
B95: 3 | D95: NA | E95: NA | F95: NA | G95: NA | H95: NA | I95: =AVERAGE(D95:H95) ->  | J95: =STDEV(D95:H95) ->  | K95: NA | L95: NA | M95: NA | N95: NA | O95: NA | P95: =AVERAGE(K95:O95) ->  | Q95: =STDEV(K95:O95) ->  | R95: NA | S95: NA | T95: NA | U95: NA | V95: NA | W95: =AVERAGE(R95:V95) ->  | X95: =STDEV(R95:V95) ->  | Y95: NA | Z95: NA | AA95: NA | AB95: NA | AC95: NA | AD95: =AVERAGE(Y95:AC95) ->  | AE95: =STDEV(Y95:AC95) ->  | AF95: 262 | AG95: NA | AH95: NA | AI95: NA | AJ95: NA | AK95: =AVERAGE(AF95:AJ95) -> 262 | AL95: =STDEV(AF95:AJ95) ->  | AM95: 44 | AN95: 58 | AO95: 48 | AP95: 45 | AQ95: 44 | AR95: =AVERAGE(AM95:AQ95) -> 48 | AS95: =STDEV(AM95:AQ95) -> 6 | AT95: 8 | AU95: 6 | AV95: 3 | AW95: 9 | AX95: 5 | AY95: =AVERAGE(AT95:AX95) -> 6 | AZ95: =STDEV(AT95:AX95) -> 2 | BA95: 1 | BB95: 1 | BC95: 0 | BD95: 0 | BE95: 1 | BF95: =AVERAGE(BA95:BE95) -> 1 | BG95: =STDEV(BA95:BE95) -> 1
A96: average | I96: =AVERAGE(I93:I95) ->  | P96: =AVERAGE(P93:P95) ->  | W96: =AVERAGE(W93:W95) ->  | AD96: =AVERAGE(AD93:AD95) ->  | AK96: =AVERAGE(AK93:AK95) -> 242 | AR96: =AVERAGE(AR93:AR95) -> 45 | AY96: =AVERAGE(AY93:AY95) -> 5 | BF96: =AVERAGE(BF93:BF95) -> 0
A97: stdev | I97: =SUM(J93:J95) ->  | P97: =SUM(Q93:Q95) ->  | W97: =SUM(X93:X95) ->  | AD97: =SUM(AE93:AE95) ->  | AK97: =SUM(AL93:AL95) ->  | AR97: =SUM(AS93:AS95) -> 23 | AY97: =SUM(AZ93:AZ95) -> 8 | BF97: =SUM(BG93:BG95) -> 1
A98: pS2213 - | B98: 1 | D98: NA | E98: NA | F98: NA | G98: NA | H98: NA | I98: =AVERAGE(D98:H98) ->  | J98: =STDEV(D98:H98) ->  | K98: NA | L98: NA | M98: NA | N98: NA | O98: NA | P98: =AVERAGE(K98:O98) ->  | Q98: =STDEV(K98:O98) ->  | R98: 45 | S98: 44 | T98: 37 | U98: 48 | V98: 45 | W98: =AVERAGE(R98:V98) -> 43.8 | X98: =STDEV(R98:V98) -> 4.086563348 | Y98: 2 | Z98: 8 | AA98: 6 | AB98: 10 | AC98: 9 | AD98: =AVERAGE(Y98:AC98) -> 7 | AE98: =STDEV(Y98:AC98) -> 3.16227766 | AF98: 0 | AG98: 0 | AH98: 0 | AI98: 1 | AJ98: 1 | AK98: =AVERAGE(AF98:AJ98) -> 0.4 | AL98: =STDEV(AF98:AJ98) -> 0.5477225575 | AM98: 0 | AN98: 0 | AO98: 0 | AP98: 0 | AQ98: 0 | AR98: =AVERAGE(AM98:AQ98) -> 0 | AS98: =STDEV(AM98:AQ98) -> 0 | AT98: 0 | AU98: 0 | AV98: 0 | AW98: 0 | AX98: 0 | AY98: =AVERAGE(AT98:AX98) -> 0 | AZ98: =STDEV(AT98:AX98) -> 0 | BA98: 0 | BB98: 0 | BC98: 0 | BD98: 0 | BE98: 0 | BF98: =AVERAGE(BA98:BE98) -> 0 | BG98: =STDEV(BA98:BE98) -> 0
A99: p+0 | B99: 2 | D99: NA | E99: NA | F99: NA | G99: NA | H99: NA | I99: =AVERAGE(D99:H99) ->  | J99: =STDEV(D99:H99) ->  | K99: NA | L99: NA | M99: NA | N99: NA | O99: NA | P99: =AVERAGE(K99:O99) ->  | Q99: =STDEV(K99:O99) ->  | R99: 41 | S99: 46 | T99: 26 | U99: 37 | V99: 31 | W99: =AVERAGE(R99:V99) -> 36.2 | X99: =STDEV(R99:V99) -> 7.918333158 | Y99: 2 | Z99: 3 | AA99: 1 | AB99: 1 | AC99: 2 | AD99: =AVERAGE(Y99:AC99) -> 1.8 | AE99: =STDEV(Y99:AC99) -> 0.8366600265 | AF99: 2 | AG99: 0 | AH99: 0 | AI99: 0 | AJ99: 0 | AK99: =AVERAGE(AF99:AJ99) -> 0.4 | AL99: =STDEV(AF99:AJ99) -> 0.894427191 | AM99: 0 | AN99: 0 | AO99: 0 | AP99: 0 | AQ99: 0 | AR99: =AVERAGE(AM99:AQ99) -> 0 | AS99: =STDEV(AM99:AQ99) -> 0 | AT99: 0 | AU99: 0 | AV99: 0 | AW99: 0 | AX99: 0 | AY99: =AVERAGE(AT99:AX99) -> 0 | AZ99: =STDEV(AT99:AX99) -> 0 | BA99: 0 | BB99: 0 | BC99: 0 | BD99: 0 | BE99: 0 | BF99: =AVERAGE(BA99:BE99) -> 0 | BG99: =STDEV(BA99:BE99) -> 0
B100: 3 | D100: NA | E100: NA | F100: NA | G100: NA | H100: NA | I100: =AVERAGE(D100:H100) ->  | J100: =STDEV(D100:H100) ->  | K100: 159 | L100: 170 | M100: NA | N100: NA | O100: NA | P100: =AVERAGE(K100:O100) -> 165 | Q100: =STDEV(K100:O100) -> 8 | R100: 27 | S100: 26 | T100: 30 | U100: 21 | V100: 35 | W100: =AVERAGE(R100:V100) -> 28 | X100: =STDEV(R100:V100) -> 5 | Y100: 1 | Z100: 5 | AA100: 2 | AB100: 3 | AC100: 1 | AD100: =AVERAGE(Y100:AC100) -> 2 | AE100: =STDEV(Y100:AC100) -> 2 | AF100: 0 | AG100: 0 | AH100: 0 | AI100: 0 | AJ100: 0 | AK100: =AVERAGE(AF100:AJ100) -> 0 | AL100: =STDEV(AF100:AJ100) -> 0 | AM100: 0 | AN100: 0 | AO100: 0 | AP100: 0 | AQ100: 0 | AR100: =AVERAGE(AM100:AQ100) -> 0 | AS100: =STDEV(AM100:AQ100) -> 0 | AT100: 0 | AU100: 0 | AV100: 0 | AW100: 0 | AX100: 0 | AY100: =AVERAGE(AT100:AX100) -> 0 | AZ100: =STDEV(AT100:AX100) -> 0 | BA100: 0 | BB100: 0 | BC100: 0 | BD100: 0 | BE100: 0 | BF100: =AVERAGE(BA100:BE100) -> 0 | BG100: =STDEV(BA100:BE100) -> 0
A101: average | I101: =AVERAGE(I98:I100) ->  | P101: =AVERAGE(P98:P100) ->  | W101: =AVERAGE(W98:W100) -> 36 | AD101: =AVERAGE(AD98:AD100) -> 4 | AK101: =AVERAGE(AK98:AK100) -> 0 | AR101: =AVERAGE(AR98:AR100) -> 0 | AY101: =AVERAGE(AY98:AY100) -> 0 | BF101: =AVERAGE(BF98:BF100) -> 0
A102: stdev | I102: =SUM(J98:J100) ->  | P102: =SUM(Q98:Q100) ->  | W102: =SUM(X98:X100) -> 17 | AD102: =SUM(AE98:AE100) -> 6 | AK102: =SUM(AL98:AL100) -> 1 | AR102: =SUM(AS98:AS100) -> 0 | AY102: =SUM(AZ98:AZ100) -> 0 | BF102: =SUM(BG98:BG100) -> 0
A103: pS2213 A | B103: 1 | D103: NA | E103: NA | F103: NA | G103: NA | H103: NA | I103: =AVERAGE(D103:H103) ->  | J103: =STDEV(D103:H103) ->  | K103: 71 | L103: 64 | M103: 62 | N103: 64 | O103: 62 | P103: =AVERAGE(K103:O103) -> 64.6 | Q103: =STDEV(K103:O103) -> 3.714835124 | R103: 7 | S103: 5 | T103: 8 | U103: 5 | V103: 4 | W103: =AVERAGE(R103:V103) -> 5.8 | X103: =STDEV(R103:V103) -> 1.643167673 | Y103: 0 | Z103: 1 | AA103: 0 | AB103: 0 | AC103: 3 | AD103: =AVERAGE(Y103:AC103) -> 0.8 | AE103: =STDEV(Y103:AC103) -> 1.303840481 | AF103: 0 | AG103: 0 | AH103: 0 | AI103: 0 | AJ103: 0 | AK103: =AVERAGE(AF103:AJ103) -> 0 | AL103: =STDEV(AF103:AJ103) -> 0 | AM103: 0 | AN103: 0 | AO103: 0 | AP103: 0 | AQ103: 0 | AR103: =AVERAGE(AM103:AQ103) -> 0 | AS103: =STDEV(AM103:AQ103) -> 0 | AT103: 0 | AU103: 0 | AV103: 0 | AW103: 0 | AX103: 0 | AY103: =AVERAGE(AT103:AX103) -> 0 | AZ103: =STDEV(AT103:AX103) -> 0 | BA103: 0 | BB103: 0 | BC103: 0 | BD103: 0 | BE103: 0 | BF103: =AVERAGE(BA103:BE103) -> 0 | BG103: =STDEV(BA103:BE103) -> 0
A104: p+0 | B104: 2 | D104: NA | E104: NA | F104: NA | G104: NA | H104: NA | I104: =AVERAGE(D104:H104) ->  | J104: =STDEV(D104:H104) ->  | K104: NA | L104: NA | M104: NA | N104: NA | O104: NA | P104: =AVERAGE(K104:O104) ->  | Q104: =STDEV(K104:O104) ->  | R104: 32 | S104: 30 | T104: 38 | U104: 33 | V104: 43 | W104: =AVERAGE(R104:V104) -> 35.2 | X104: =STDEV(R104:V104) -> 5.263078947 | Y104: 5 | Z104: 4 | AA104: 3 | AB104: 5 | AC104: 5 | AD104: =AVERAGE(Y104:AC104) -> 4.4 | AE104: =STDEV(Y104:AC104) -> 0.894427191 | AF104: 0 | AG104: 0 | AH104: 0 | AI104: 0 | AJ104: 0 | AK104: =AVERAGE(AF104:AJ104) -> 0 | AL104: =STDEV(AF104:AJ104) -> 0 | AM104: 0 | AN104: 0 | AO104: 0 | AP104: 0 | AQ104: 0 | AR104: =AVERAGE(AM104:AQ104) -> 0 | AS104: =STDEV(AM104:AQ104) -> 0 | AT104: 0 | AU104: 0 | AV104: 0 | AW104: 0 | AX104: 0 | AY104: =AVERAGE(AT104:AX104) -> 0 | AZ104: =STDEV(AT104:AX104) -> 0 | BA104: 0 | BB104: 0 | BC104: 0 | BD104: 0 | BE104: 0 | BF104: =AVERAGE(BA104:BE104) -> 0 | BG104: =STDEV(BA104:BE104) -> 0
B105: 3 | D105: NA | E105: NA | F105: NA | G105: NA | H105: NA | I105: =AVERAGE(D105:H105) ->  | J105: =STDEV(D105:H105) ->  | K105: 88 | L105: 88 | M105: 83 | N105: 90 | O105: 101 | P105: =AVERAGE(K105:O105) -> 90 | Q105: =STDEV(K105:O105) -> 7 | R105: 15 | S105: 13 | T105: 19 | U105: 13 | V105: 14 | W105: =AVERAGE(R105:V105) -> 15 | X105: =STDEV(R105:V105) -> 2 | Y105: 1 | Z105: 1 | AA105: 3 | AB105: 7 | AC105: 4 | AD105: =AVERAGE(Y105:AC105) -> 3 | AE105: =STDEV(Y105:AC105) -> 2 | AF105: 0 | AG105: 0 | AH105: 0 | AI105: 0 | AJ105: 0 | AK105: =AVERAGE(AF105:AJ105) -> 0 | AL105: =STDEV(AF105:AJ105) -> 0 | AM105: 0 | AN105: 0 | AO105: 0 | AP105: 0 | AQ105: 0 | AR105: =AVERAGE(AM105:AQ105) -> 0 | AS105: =STDEV(AM105:AQ105) -> 0 | AT105: 0 | AU105: 0 | AV105: 0 | AW105: 0 | AX105: 0 | AY105: =AVERAGE(AT105:AX105) -> 0 | AZ105: =STDEV(AT105:AX105) -> 0 | BA105: 0 | BB105: 0 | BC105: 0 | BD105: 0 | BE105: 0 | BF105: =AVERAGE(BA105:BE105) -> 0 | BG105: =STDEV(BA105:BE105) -> 0
A106: average | I106: =AVERAGE(I103:I105) ->  | P106: =AVERAGE(P103:P105) ->  | W106: =AVERAGE(W103:W105) -> 19 | AD106: =AVERAGE(AD103:AD105) -> 3 | AK106: =AVERAGE(AK103:AK105) -> 0 | AR106: =AVERAGE(AR103:AR105) -> 0 | AY106: =AVERAGE(AY103:AY105) -> 0 | BF106: =AVERAGE(BF103:BF105) -> 0
A107: stdev | I107: =SUM(J103:J105) ->  | P107: =SUM(Q103:Q105) ->  | W107: =SUM(X103:X105) -> 9 | AD107: =SUM(AE103:AE105) -> 5 | AK107: =SUM(AL103:AL105) -> 0 | AR107: =SUM(AS103:AS105) -> 0 | AY107: =SUM(AZ103:AZ105) -> 0 | BF107: =SUM(BG103:BG105) -> 0
A108: p+3 | B108: 1 | D108: 44 | E108: 44 | F108: 42 | G108: 53 | H108: 42 | I108: =AVERAGE(D108:H108) -> 45 | J108: =STDEV(D108:H108) -> 5 | K108: 8 | L108: 4 | M108: 4 | N108: 6 | O108: 5 | P108: =AVERAGE(K108:O108) -> 5 | Q108: =STDEV(K108:O108) -> 2 | R108: 1 | S108: 0 | T108: 0 | U108: 0 | V108: 1 | W108: =AVERAGE(R108:V108) -> 0 | X108: =STDEV(R108:V108) -> 1 | Y108: 0 | Z108: 0 | AA108: 0 | AB108: 0 | AC108: 0 | AD108: =AVERAGE(Y108:AC108) -> 0 | AE108: =STDEV(Y108:AC108) -> 0 | AF108: 0 | AG108: 0 | AH108: 0 | AI108: 0 | AJ108: 0 | AK108: =AVERAGE(AF108:AJ108) -> 0 | AL108: =STDEV(AF108:AJ108) -> 0 | AM108: 0 | AN108: 0 | AO108: 0 | AP108: 0 | AQ108: 0 | AR108: =AVERAGE(AM108:AQ108) -> 0 | AS108: =STDEV(AM108:AQ108) -> 0 | AT108: 0 | AU108: 0 | AV108: 0 | AW108: 0 | AX108: 0 | AY108: =AVERAGE(AT108:AX108) -> 0 | AZ108: =STDEV(AT108:AX108) -> 0 | BA108: 0 | BB108: 0 | BC108: 0 | BD108: 0 | BE108: 0 | BF108: =AVERAGE(BA108:BE108) -> 0 | BG108: =STDEV(BA108:BE108) -> 0
B109: 2 | D109: NA | E109: NA | F109: NA | G109: NA | H109: NA | I109: =AVERAGE(D109:H109) ->  | J109: =STDEV(D109:H109) ->  | K109: 141 | L109: 147 | M109: 156 | N109: 122 | O109: 141 | P109: =AVERAGE(K109:O109) -> 141 | Q109: =STDEV(K109:O109) -> 12 | R109: 17 | S109: 18 | T109: 28 | U109: 28 | V109: 28 | W109: =AVERAGE(R109:V109) -> 24 | X109: =STDEV(R109:V109) -> 6 | Y109: 3 | Z109: 1 | AA109: 2 | AB109: 2 | AC109: 2 | AD109: =AVERAGE(Y109:AC109) -> 2 | AE109: =STDEV(Y109:AC109) -> 1 | AF109: 0 | AG109: 0 | AH109: 0 | AI109: 0 | AJ109: 0 | AK109: =AVERAGE(AF109:AJ109) -> 0 | AL109: =STDEV(AF109:AJ109) -> 0 | AM109: 0 | AN109: 0 | AO109: 0 | AP109: 0 | AQ109: 0 | AR109: =AVERAGE(AM109:AQ109) -> 0 | AS109: =STDEV(AM109:AQ109) -> 0 | AT109: 0 | AU109: 0 | AV109: 0 | AW109: 0 | AX109: 0 | AY109: =AVERAGE(AT109:AX109) -> 0 | AZ109: =STDEV(AT109:AX109) -> 0 | BA109: 0 | BB109: 0 | BC109: 0 | BD109: 0 | BE109: 0 | BF109: =AVERAGE(BA109:BE109) -> 0 | BG109: =STDEV(BA109:BE109) -> 0
B110: 3 | D110: NA | E110: NA | F110: NA | G110: NA | H110: NA | I110: =AVERAGE(D110:H110) ->  | J110: =STDEV(D110:H110) ->  | K110: 161 | L110: 150 | M110: 134 | N110: 133 | O110: 150 | P110: =AVERAGE(K110:O110) -> 146 | Q110: =STDEV(K110:O110) -> 12 | R110: 20 | S110: 22 | T110: 22 | U110: 27 | V110: 15 | W110: =AVERAGE(R110:V110) -> 21 | X110: =STDEV(R110:V110) -> 4 | Y110: 5 | Z110: 7 | AA110: 3 | AB110: 4 | AC110: 0 | AD110: =AVERAGE(Y110:AC110) -> 4 | AE110: =STDEV(Y110:AC110) -> 3 | AF110: 0 | AG110: 0 | AH110: 1 | AI110: 0 | AJ110: 0 | AK110: =AVERAGE(AF110:AJ110) -> 0 | AL110: =STDEV(AF110:AJ110) -> 0 | AM110: 0 | AN110: 0 | AO110: 0 | AP110: 0 | AQ110: 0 | AR110: =AVERAGE(AM110:AQ110) -> 0 | AS110: =STDEV(AM110:AQ110) -> 0 | AT110: 0 | AU110: 0 | AV110: 0 | AW110: 0 | AX110: 0 | AY110: =AVERAGE(AT110:AX110) -> 0 | AZ110: =STDEV(AT110:AX110) -> 0 | BA110: 0 | BB110: 0 | BC110: 0 | BD110: 0 | BE110: 0 | BF110: =AVERAGE(BA110:BE110) -> 0 | BG110: =STDEV(BA110:BE110) -> 0
A111: average | I111: =AVERAGE(I108:I110) ->  | P111: =AVERAGE(P108:P110) -> 97 | W111: =AVERAGE(W108:W110) -> 15 | AD111: =AVERAGE(AD108:AD110) -> 2 | AK111: =AVERAGE(AK108:AK110) -> 0 | AR111: =AVERAGE(AR108:AR110) -> 0 | AY111: =AVERAGE(AY108:AY110) -> 0 | BF111: =AVERAGE(BF108:BF110) -> 0
A112: stdev | I112: =SUM(J108:J110) ->  | P112: =SUM(Q108:Q110) -> 26 | W112: =SUM(X108:X110) -> 11 | AD112: =SUM(AE108:AE110) -> 3 | AK112: =SUM(AL108:AL110) -> 0 | AR112: =SUM(AS108:AS110) -> 0 | AY112: =SUM(AZ108:AZ110) -> 0 | BF112: =SUM(BG108:BG110) -> 0
A113: pS2213 APR | B113: 1 | D113: NA | E113: NA | F113: NA | G113: NA | H113: NA | I113: =AVERAGE(D113:H113) ->  | J113: =STDEV(D113:H113) ->  | K113: 160 | L113: 158 | M113: 135 | N113: 133 | O113: 131 | P113: =AVERAGE(K113:O113) -> 143.4 | Q113: =STDEV(K113:O113) -> 14.32829369 | R113: 23 | S113: 30 | T113: 24 | U113: 17 | V113: 13 | W113: =AVERAGE(R113:V113) -> 21.4 | X113: =STDEV(R113:V113) -> 6.580273551 | Y113: 1 | Z113: 2 | AA113: 2 | AB113: 3 | AC113: 2 | AD113: =AVERAGE(Y113:AC113) -> 2 | AE113: =STDEV(Y113:AC113) -> 0.7071067812 | AF113: 0 | AG113: 0 | AH113: 0 | AI113: 0 | AJ113: 0 | AK113: =AVERAGE(AF113:AJ113) -> 0 | AL113: =STDEV(AF113:AJ113) -> 0 | AM113: 0 | AN113: 0 | AO113: 0 | AP113: 0 | AQ113: 0 | AR113: =AVERAGE(AM113:AQ113) -> 0 | AS113: =STDEV(AM113:AQ113) -> 0 | AT113: 0 | AU113: 0 | AV113: 0 | AW113: 0 | AX113: 0 | AY113: =AVERAGE(AT113:AX113) -> 0 | AZ113: =STDEV(AT113:AX113) -> 0 | BA113: 0 | BB113: 0 | BC113: 0 | BD113: 0 | BE113: 0 | BF113: =AVERAGE(BA113:BE113) -> 0 | BG113: =STDEV(BA113:BE113) -> 0
A114: p+0 | B114: 2 | D114: NA | E114: NA | F114: NA | G114: NA | H114: NA | I114: =AVERAGE(D114:H114) ->  | J114: =STDEV(D114:H114) ->  | K114: 93 | L114: 92 | M114: 69 | N114: 70 | O114: 86 | P114: =AVERAGE(K114:O114) -> 82 | Q114: =STDEV(K114:O114) -> 11.7260394 | R114: 10 | S114: 13 | T114: 6 | U114: 9 | V114: 14 | W114: =AVERAGE(R114:V114) -> 10.4 | X114: =STDEV(R114:V114) -> 3.209361307 | Y114: 1 | Z114: 0 | AA114: 0 | AB114: 0 | AC114: 0 | AD114: =AVERAGE(Y114:AC114) -> 0.2 | AE114: =STDEV(Y114:AC114) -> 0.4472135955 | AF114: 0 | AG114: 0 | AH114: 0 | AI114: 0 | AJ114: 0 | AK114: =AVERAGE(AF114:AJ114) -> 0 | AL114: =STDEV(AF114:AJ114) -> 0 | AM114: 0 | AN114: 0 | AO114: 0 | AP114: 0 | AQ114: 0 | AR114: =AVERAGE(AM114:AQ114) -> 0 | AS114: =STDEV(AM114:AQ114) -> 0 | AT114: 0 | AU114: 0 | AV114: 0 | AW114: 0 | AX114: 0 | AY114: =AVERAGE(AT114:AX114) -> 0 | AZ114: =STDEV(AT114:AX114) -> 0 | BA114: 0 | BB114: 0 | BC114: 0 | BD114: 0 | BE114: 0 | BF114: =AVERAGE(BA114:BE114) -> 0 | BG114: =STDEV(BA114:BE114) -> 0
B115: 3 | D115: NA | E115: NA | F115: NA | G115: NA | H115: NA | I115: =AVERAGE(D115:H115) ->  | J115: =STDEV(D115:H115) ->  | K115: NA | L115: NA | M115: NA | N115: NA | O115: NA | P115: =AVERAGE(K115:O115) ->  | Q115: =STDEV(K115:O115) ->  | R115: 32 | S115: 32 | T115: 22 | U115: 23 | V115: 25 | W115: =AVERAGE(R115:V115) -> 27 | X115: =STDEV(R115:V115) -> 5 | Y115: 2 | Z115: 2 | AA115: 1 | AB115: 3 | AC115: 1 | AD115: =AVERAGE(Y115:AC115) -> 2 | AE115: =STDEV(Y115:AC115) -> 1 | AF115: 2 | AG115: 0 | AH115: 0 | AI115: 0 | AJ115: 1 | AK115: =AVERAGE(AF115:AJ115) -> 1 | AL115: =STDEV(AF115:AJ115) -> 1 | AM115: 0 | AN115: 0 | AO115: 0 | AP115: 0 | AQ115: 0 | AR115: =AVERAGE(AM115:AQ115) -> 0 | AS115: =STDEV(AM115:AQ115) -> 0 | AT115: 0 | AU115: 0 | AV115: 0 | AW115: 0 | AX115: 0 | AY115: =AVERAGE(AT115:AX115) -> 0 | AZ115: =STDEV(AT115:AX115) -> 0 | BA115: 0 | BB115: 0 | BC115: 0 | BD115: 0 | BE115: 0 | BF115: =AVERAGE(BA115:BE115) -> 0 | BG115: =STDEV(BA115:BE115) -> 0
A116: average | I116: =AVERAGE(I113:I115) ->  | P116: =AVERAGE(P113:P115) ->  | W116: =AVERAGE(W113:W115) -> 20 | AD116: =AVERAGE(AD113:AD115) -> 1 | AK116: =AVERAGE(AK113:AK115) -> 0 | AR116: =AVERAGE(AR113:AR115) -> 0 | AY116: =AVERAGE(AY113:AY115) -> 0 | BF116: =AVERAGE(BF113:BF115) -> 0
A117: stdev | I117: =SUM(J113:J115) ->  | P117: =SUM(Q113:Q115) ->  | W117: =SUM(X113:X115) -> 15 | AD117: =SUM(AE113:AE115) -> 2 | AK117: =SUM(AL113:AL115) -> 1 | AR117: =SUM(AS113:AS115) -> 0 | AY117: =SUM(AZ113:AZ115) -> 0 | BF117: =SUM(BG113:BG115) -> 0
A118: p+3 | B118: 1 | D118: NA | E118: NA | F118: NA | G118: NA | H118: NA | I118: =AVERAGE(D118:H118) ->  | J118: =STDEV(D118:H118) ->  | K118: 76 | L118: 74 | M118: 66 | N118: 67 | O118: 73 | P118: =AVERAGE(K118:O118) -> 71 | Q118: =STDEV(K118:O118) -> 4 | R118: 8 | S118: 8 | T118: 6 | U118: 11 | V118: 8 | W118: =AVERAGE(R118:V118) -> 8 | X118: =STDEV(R118:V118) -> 2 | Y118: 0 | Z118: 2 | AA118: 1 | AB118: 2 | AC118: 0 | AD118: =AVERAGE(Y118:AC118) -> 1 | AE118: =STDEV(Y118:AC118) -> 1 | AF118: 0 | AG118: 0 | AH118: 0 | AI118: 0 | AJ118: 0 | AK118: =AVERAGE(AF118:AJ118) -> 0 | AL118: =STDEV(AF118:AJ118) -> 0 | AM118: 0 | AN118: 0 | AO118: 0 | AP118: 0 | AQ118: 0 | AR118: =AVERAGE(AM118:AQ118) -> 0 | AS118: =STDEV(AM118:AQ118) -> 0 | AT118: 0 | AU118: 0 | AV118: 0 | AW118: 0 | AX118: 0 | AY118: =AVERAGE(AT118:AX118) -> 0 | AZ118: =STDEV(AT118:AX118) -> 0 | BA118: 0 | BB118: 0 | BC118: 0 | BD118: 0 | BE118: 0 | BF118: =AVERAGE(BA118:BE118) -> 0 | BG118: =STDEV(BA118:BE118) -> 0
B119: 2 | D119: NA | E119: NA | F119: NA | G119: NA | H119: NA | I119: =AVERAGE(D119:H119) ->  | J119: =STDEV(D119:H119) ->  | K119: NA | L119: NA | M119: NA | N119: NA | O119: NA | P119: =AVERAGE(K119:O119) ->  | Q119: =STDEV(K119:O119) ->  | R119: 78 | S119: 74 | T119: 76 | U119: 70 | V119: 73 | W119: =AVERAGE(R119:V119) -> 74 | X119: =STDEV(R119:V119) -> 3 | Y119: 4 | Z119: 5 | AA119: 6 | AB119: 5 | AC119: 8 | AD119: =AVERAGE(Y119:AC119) -> 6 | AE119: =STDEV(Y119:AC119) -> 2 | AF119: 0 | AG119: 0 | AH119: 0 | AI119: 0 | AJ119: 0 | AK119: =AVERAGE(AF119:AJ119) -> 0 | AL119: =STDEV(AF119:AJ119) -> 0 | AM119: 0 | AN119: 0 | AO119: 0 | AP119: 0 | AQ119: 0 | AR119: =AVERAGE(AM119:AQ119) -> 0 | AS119: =STDEV(AM119:AQ119) -> 0 | AT119: 0 | AU119: 0 | AV119: 0 | AW119: 0 | AX119: 0 | AY119: =AVERAGE(AT119:AX119) -> 0 | AZ119: =STDEV(AT119:AX119) -> 0 | BA119: 0 | BB119: 0 | BC119: 0 | BD119: 0 | BE119: 0 | BF119: =AVERAGE(BA119:BE119) -> 0 | BG119: =STDEV(BA119:BE119) -> 0
B120: 3 | D120: NA | E120: NA | F120: NA | G120: NA | H120: NA | I120: =AVERAGE(D120:H120) ->  | J120: =STDEV(D120:H120) ->  | K120: 88 | L120: 81 | M120: 72 | N120: 90 | O120: 86 | P120: =AVERAGE(K120:O120) -> 83 | Q120: =STDEV(K120:O120) -> 7 | R120: 15 | S120: 11 | T120: 14 | U120: 15 | V120: 15 | W120: =AVERAGE(R120:V120) -> 14 | X120: =STDEV(R120:V120) -> 2 | Y120: 3 | Z120: 0 | AA120: 0 | AB120: 0 | AC120: 1 | AD120: =AVERAGE(Y120:AC120) -> 1 | AE120: =STDEV(Y120:AC120) -> 1 | AF120: 0 | AG120: 0 | AH120: 0 | AI120: 0 | AJ120: 0 | AK120: =AVERAGE(AF120:AJ120) -> 0 | AL120: =STDEV(AF120:AJ120) -> 0 | AM120: 0 | AN120: 0 | AO120: 0 | AP120: 0 | AQ120: 0 | AR120: =AVERAGE(AM120:AQ120) -> 0 | AS120: =STDEV(AM120:AQ120) -> 0 | AT120: 0 | AU120: 0 | AV120: 0 | AW120: 0 | AX120: 0 | AY120: =AVERAGE(AT120:AX120) -> 0 | AZ120: =STDEV(AT120:AX120) -> 0 | BA120: 0 | BB120: 0 | BC120: 0 | BD120: 0 | BE120: 0 | BF120: =AVERAGE(BA120:BE120) -> 0 | BG120: =STDEV(BA120:BE120) -> 0
A121: average | I121: =AVERAGE(I118:I120) ->  | P121: =AVERAGE(P118:P120) ->  | W121: =AVERAGE(W118:W120) -> 32 | AD121: =AVERAGE(AD118:AD120) -> 2 | AK121: =AVERAGE(AK118:AK120) -> 0 | AR121: =AVERAGE(AR118:AR120) -> 0 | AY121: =AVERAGE(AY118:AY120) -> 0 | BF121: =AVERAGE(BF118:BF120) -> 0
A122: stdev | I122: =SUM(J118:J120) ->  | P122: =SUM(Q118:Q120) ->  | W122: =SUM(X118:X120) -> 7 | AD122: =SUM(AE118:AE120) -> 4 | AK122: =SUM(AL118:AL120) -> 0 | AR122: =SUM(AS118:AS120) -> 0 | AY122: =SUM(AZ118:AZ120) -> 0 | BF122: =SUM(BG118:BG120) -> 0
A125: T11 | B125: 2018-02-19
A126: Sample | B126: Dilution: | D126: 10^0 | I126: AVERAGE | J126: STDEV | K126: 10^-1 | P126: AVERAGE | Q126: STDEV | R126: 10^-2 | W126: AVERAGE | X126: STDEV | Y126: 10^-3 | AD126: AVERAGE | AE126: STDEV | AF126: 10^-4 | AK126: AVERAGE | AL126: STDEV | AM126: 10^-5 | AR126: AVERAGE | AS126: STDEV | AT126: 10^-6 | AY126: AVERAGE | AZ126: STDEV | BA126: 10^-7 | BF126: AVERAGE | BG126: STDEV
A127: Blank | B127: 1 | D127: 0 | E127: 0 | F127: 0 | G127: 0 | H127: 0 | I127: =AVERAGE(D127:H127) -> 0 | J127: =STDEV(D127:H127) -> 0 | K127: 0 | L127: 0 | M127: 0 | N127: 0 | O127: 0 | P127: =AVERAGE(K127:O127) -> 0 | Q127: =STDEV(K127:O127) -> 0 | R127: 0 | S127: 0 | T127: 0 | U127: 0 | V127: 0 | W127: =AVERAGE(R127:V127) -> 0 | X127: =STDEV(R127:V127) -> 0 | Y127: 0 | Z127: 0 | AA127: 0 | AB127: 0 | AC127: 0 | AD127: =AVERAGE(Y127:AC127) -> 0 | AE127: =STDEV(Y127:AC127) -> 0 | AF127: 0 | AG127: 0 | AH127: 0 | AI127: 0 | AJ127: 0 | AK127: =AVERAGE(AF127:AJ127) -> 0 | AL127: =STDEV(AF127:AJ127) -> 0 | AM127: 0 | AN127: 0 | AO127: 0 | AP127: 0 | AQ127: 0 | AR127: =AVERAGE(AM127:AQ127) -> 0 | AS127: =STDEV(AM127:AQ127) -> 0 | AT127: 0 | AU127: 0 | AV127: 0 | AW127: 0 | AX127: 0 | AY127: =AVERAGE(AT127:AX127) -> 0 | AZ127: =STDEV(AT127:AX127) -> 0 | BA127: 0 | BB127: 0 | BC127: 0 | BD127: 0 | BE127: 0 | BF127: =AVERAGE(BA127:BE127) -> 0 | BG127: =STDEV(BA127:BE127) -> 0
B128: 2 | D128: 0 | E128: 0 | F128: 0 | G128: 0 | H128: 0 | I128: =AVERAGE(D128:H128) -> 0 | J128: =STDEV(D128:H128) -> 0 | K128: 0 | L128: 0 | M128: 0 | N128: 0 | O128: 0 | P128: =AVERAGE(K128:O128) -> 0 | Q128: =STDEV(K128:O128) -> 0 | R128: 0 | S128: 0 | T128: 0 | U128: 0 | V128: 0 | W128: =AVERAGE(R128:V128) -> 0 | X128: =STDEV(R128:V128) -> 0 | Y128: 0 | Z128: 0 | AA128: 0 | AB128: 0 | AC128: 0 | AD128: =AVERAGE(Y128:AC128) -> 0 | AE128: =STDEV(Y128:AC128) -> 0 | AF128: 0 | AG128: 0 | AH128: 0 | AI128: 0 | AJ128: 0 | AK128: =AVERAGE(AF128:AJ128) -> 0 | AL128: =STDEV(AF128:AJ128) -> 0 | AM128: 0 | AN128: 0 | AO128: 0 | AP128: 0 | AQ128: 0 | AR128: =AVERAGE(AM128:AQ128) -> 0 | AS128: =STDEV(AM128:AQ128) -> 0 | AT128: 0 | AU128: 0 | AV128: 0 | AW128: 0 | AX128: 0 | AY128: =AVERAGE(AT128:AX128) -> 0 | AZ128: =STDEV(AT128:AX128) -> 0 | BA128: 0 | BB128: 0 | BC128: 0 | BD128: 0 | BE128: 0 | BF128: =AVERAGE(BA128:BE128) -> 0 | BG128: =STDEV(BA128:BE128) -> 0
B129: 3 | D129: 0 | E129: 0 | F129: 0 | G129: 0 | H129: 0 | I129: =AVERAGE(D129:H129) -> 0 | J129: =STDEV(D129:H129) -> 0 | K129: 0 | L129: 0 | M129: 0 | N129: 0 | O129: 0 | P129: =AVERAGE(K129:O129) -> 0 | Q129: =STDEV(K129:O129) -> 0 | R129: 0 | S129: 0 | T129: 0 | U129: 0 | V129: 0 | W129: =AVERAGE(R129:V129) -> 0 | X129: =STDEV(R129:V129) -> 0 | Y129: 0 | Z129: 0 | AA129: 0 | AB129: 0 | AC129: 0 | AD129: =AVERAGE(Y129:AC129) -> 0 | AE129: =STDEV(Y129:AC129) -> 0 | AF129: 0 | AG129: 0 | AH129: 0 | AI129: 0 | AJ129: 0 | AK129: =AVERAGE(AF129:AJ129) -> 0 | AL129: =STDEV(AF129:AJ129) -> 0 | AM129: 0 | AN129: 0 | AO129: 0 | AP129: 0 | AQ129: 0 | AR129: =AVERAGE(AM129:AQ129) -> 0 | AS129: =STDEV(AM129:AQ129) -> 0 | AT129: 0 | AU129: 0 | AV129: 0 | AW129: 0 | AX129: 0 | AY129: =AVERAGE(AT129:AX129) -> 0 | AZ129: =STDEV(AT129:AX129) -> 0 | BA129: 0 | BB129: 0 | BC129: 0 | BD129: 0 | BE129: 0 | BF129: =AVERAGE(BA129:BE129) -> 0 | BG129: =STDEV(BA129:BE129) -> 0
I130: =AVERAGE(I127:I129) -> 0 | P130: =AVERAGE(P127:P129) -> 0 | W130: =AVERAGE(W127:W129) -> 0 | AD130: =AVERAGE(AD127:AD129) -> 0 | AK130: =AVERAGE(AK127:AK129) -> 0 | AR130: =AVERAGE(AR127:AR129) -> 0 | AY130: =AVERAGE(AY127:AY129) -> 0 | BF130: =AVERAGE(BF127:BF129) -> 0
I131: =SUM(J127:J129) -> 0 | P131: =SUM(Q127:Q129) -> 0 | W131: =SUM(X127:X129) -> 0 | AD131: =SUM(AE127:AE129) -> 0 | AK131: =SUM(AL127:AL129) -> 0 | AR131: =SUM(AS127:AS129) -> 0 | AY131: =SUM(AZ127:AZ129) -> 0 | BF131: =SUM(BG127:BG129) -> 0
A132: BW25113 - | B132: 1 | D132: NA | E132: NA | F132: NA | G132: NA | H132: NA | I132: =AVERAGE(D132:H132) ->  | J132: =STDEV(D132:H132) ->  | K132: NA | L132: NA | M132: NA | N132: NA | O132: NA | P132: =AVERAGE(K132:O132) ->  | Q132: =STDEV(K132:O132) ->  | R132: NA | S132: NA | T132: NA | U132: NA | V132: NA | W132: =AVERAGE(R132:V132) ->  | X132: =STDEV(R132:V132) ->  | Y132: NA | Z132: NA | AA132: NA | AB132: NA | AC132: NA | AD132: =AVERAGE(Y132:AC132) ->  | AE132: =STDEV(Y132:AC132) ->  | AF132: 242 | AG132: 277 | AH132: 268 | AI132: 272 | AJ132: 260 | AK132: =AVERAGE(AF132:AJ132) -> 264 | AL132: =STDEV(AF132:AJ132) -> 14 | AM132: 65 | AN132: 46 | AO132: 50 | AP132: 60 | AQ132: 52 | AR132: =AVERAGE(AM132:AQ132) -> 55 | AS132: =STDEV(AM132:AQ132) -> 8 | AT132: 8 | AU132: 3 | AV132: 2 | AW132: 0 | AX132: 0 | AY132: =AVERAGE(AT132:AX132) -> 3 | AZ132: =STDEV(AT132:AX132) -> 3 | BA132: 0 | BB132: 1 | BC132: 0 | BD132: 1 | BE132: 0 | BF132: =AVERAGE(BA132:BE132) -> 0 | BG132: =STDEV(BA132:BE132) -> 1
A133: pS2213 - | B133: 2 | D133: NA | E133: NA | F133: NA | G133: NA | H133: NA | I133: =AVERAGE(D133:H133) ->  | J133: =STDEV(D133:H133) ->  | K133: NA | L133: NA | M133: NA | N133: NA | O133: NA | P133: =AVERAGE(K133:O133) ->  | Q133: =STDEV(K133:O133) ->  | R133: NA | S133: NA | T133: NA | U133: NA | V133: NA | W133: =AVERAGE(R133:V133) ->  | X133: =STDEV(R133:V133) ->  | Y133: NA | Z133: NA | AA133: NA | AB133: NA | AC133: NA | AD133: =AVERAGE(Y133:AC133) ->  | AE133: =STDEV(Y133:AC133) ->  | AF133: 212 | AG133: 250 | AH133: 244 | AI133: 293 | AJ133: 222 | AK133: =AVERAGE(AF133:AJ133) -> 244 | AL133: =STDEV(AF133:AJ133) -> 31 | AM133: 47 | AN133: 58 | AO133: 57 | AP133: 58 | AQ133: 57 | AR133: =AVERAGE(AM133:AQ133) -> 55 | AS133: =STDEV(AM133:AQ133) -> 5 | AT133: 4 | AU133: 9 | AV133: 8 | AW133: 6 | AX133: 4 | AY133: =AVERAGE(AT133:AX133) -> 6 | AZ133: =STDEV(AT133:AX133) -> 2 | BA133: 1 | BB133: 1 | BC133: 1 | BD133: 0 | BE133: 1 | BF133: =AVERAGE(BA133:BE133) -> 1 | BG133: =STDEV(BA133:BE133) -> 0
B134: 3 | D134: NA | E134: NA | F134: NA | G134: NA | H134: NA | I134: =AVERAGE(D134:H134) ->  | J134: =STDEV(D134:H134) ->  | K134: NA | L134: NA | M134: NA | N134: NA | O134: NA | P134: =AVERAGE(K134:O134) ->  | Q134: =STDEV(K134:O134) ->  | R134: NA | S134: NA | T134: NA | U134: NA | V134: NA | W134: =AVERAGE(R134:V134) ->  | X134: =STDEV(R134:V134) ->  | Y134: NA | Z134: NA | AA134: NA | AB134: NA | AC134: NA | AD134: =AVERAGE(Y134:AC134) ->  | AE134: =STDEV(Y134:AC134) ->  | AF134: 274 | AG134: 328 | AH134: 257 | AI134: 293 | AJ134: 242 | AK134: =AVERAGE(AF134:AJ134) -> 279 | AL134: =STDEV(AF134:AJ134) -> 33 | AM134: 45 | AN134: 51 | AO134: 58 | AP134: 72 | AQ134: 61 | AR134: =AVERAGE(AM134:AQ134) -> 57 | AS134: =STDEV(AM134:AQ134) -> 10 | AT134: 7 | AU134: 6 | AV134: 2 | AW134: 3 | AX134: 5 | AY134: =AVERAGE(AT134:AX134) -> 5 | AZ134: =STDEV(AT134:AX134) -> 2 | BA134: 0 | BB134: 0 | BC134: 0 | BD134: 0 | BE134: 2 | BF134: =AVERAGE(BA134:BE134) -> 0 | BG134: =STDEV(BA134:BE134) -> 1
A135: average | I135: =AVERAGE(I132:I134) ->  | P135: =AVERAGE(P132:P134) ->  | W135: =AVERAGE(W132:W134) ->  | AD135: =AVERAGE(AD132:AD134) ->  | AK135: =AVERAGE(AK132:AK134) -> 262 | AR135: =AVERAGE(AR132:AR134) -> 56 | AY135: =AVERAGE(AY132:AY134) -> 4 | BF135: =AVERAGE(BF132:BF134) -> 1
A136: stdev | I136: =SUM(J132:J134) ->  | P136: =SUM(Q132:Q134) ->  | W136: =SUM(X132:X134) ->  | AD136: =SUM(AE132:AE134) ->  | AK136: =SUM(AL132:AL134) -> 79 | AR136: =SUM(AS132:AS134) -> 23 | AY136: =SUM(AZ132:AZ134) -> 8 | BF136: =SUM(BG132:BG134) -> 2
A137: pS2213 - | B137: 1 | D137: NA | E137: NA | F137: NA | G137: NA | H137: NA | I137: =AVERAGE(D137:H137) ->  | J137: =STDEV(D137:H137) ->  | K137: 86 | L137: 84 | M137: 91 | N137: 74 | O137: 78 | P137: =AVERAGE(K137:O137) -> 82.6 | Q137: =STDEV(K137:O137) -> 6.693280212 | R137: 7 | S137: 10 | T137: 12 | U137: 15 | V137: 9 | W137: =AVERAGE(R137:V137) -> 10.6 | X137: =STDEV(R137:V137) -> 3.049590136 | Y137: 1 | Z137: 0 | AA137: 0 | AB137: 2 | AC137: 3 | AD137: =AVERAGE(Y137:AC137) -> 1.2 | AE137: =STDEV(Y137:AC137) -> 1.303840481 | AF137: 0 | AG137: 0 | AH137: 0 | AI137: 0 | AJ137: 0 | AK137: =AVERAGE(AF137:AJ137) -> 0 | AL137: =STDEV(AF137:AJ137) -> 0 | AM137: 0 | AN137: 0 | AO137: 0 | AP137: 0 | AQ137: 0 | AR137: =AVERAGE(AM137:AQ137) -> 0 | AS137: =STDEV(AM137:AQ137) -> 0 | AT137: 0 | AU137: 0 | AV137: 0 | AW137: 0 | AX137: 0 | AY137: =AVERAGE(AT137:AX137) -> 0 | AZ137: =STDEV(AT137:AX137) -> 0 | BA137: 0 | BB137: 0 | BC137: 0 | BD137: 0 | BE137: 0 | BF137: =AVERAGE(BA137:BE137) -> 0 | BG137: =STDEV(BA137:BE137) -> 0
A138: p+0 | B138: 2 | D138: NA | E138: NA | F138: NA | G138: NA | H138: NA | I138: =AVERAGE(D138:H138) ->  | J138: =STDEV(D138:H138) ->  | K138: 63 | L138: NA | M138: NA | N138: 84 | O138: 69 | P138: =AVERAGE(K138:O138) -> 72 | Q138: =STDEV(K138:O138) -> 10.81665383 | R138: 7 | S138: 4 | T138: 14 | U138: 8 | V138: 7 | W138: =AVERAGE(R138:V138) -> 8 | X138: =STDEV(R138:V138) -> 3.674234614 | Y138: 0 | Z138: 0 | AA138: 0 | AB138: 0 | AC138: 0 | AD138: =AVERAGE(Y138:AC138) -> 0 | AE138: =STDEV(Y138:AC138) -> 0 | AF138: 0 | AG138: 0 | AH138: 0 | AI138: 0 | AJ138: 0 | AK138: =AVERAGE(AF138:AJ138) -> 0 | AL138: =STDEV(AF138:AJ138) -> 0 | AM138: 0 | AN138: 0 | AO138: 0 | AP138: 0 | AQ138: 0 | AR138: =AVERAGE(AM138:AQ138) -> 0 | AS138: =STDEV(AM138:AQ138) -> 0 | AT138: 0 | AU138: 0 | AV138: 0 | AW138: 0 | AX138: 0 | AY138: =AVERAGE(AT138:AX138) -> 0 | AZ138: =STDEV(AT138:AX138) -> 0 | BA138: 0 | BB138: 0 | BC138: 0 | BD138: 0 | BE138: 0 | BF138: =AVERAGE(BA138:BE138) -> 0 | BG138: =STDEV(BA138:BE138) -> 0
B139: 3 | D139: NA | E139: NA | F139: NA | G139: NA | H139: NA | I139: =AVERAGE(D139:H139) ->  | J139: =STDEV(D139:H139) ->  | K139: 65 | L139: 53 | M139: 53 | N139: 55 | O139: 44 | P139: =AVERAGE(K139:O139) -> 54 | Q139: =STDEV(K139:O139) -> 7 | R139: 7 | S139: 12 | T139: 8 | U139: 5 | V139: 4 | W139: =AVERAGE(R139:V139) -> 7 | X139: =STDEV(R139:V139) -> 3 | Y139: 0 | Z139: 1 | AA139: 0 | AB139: 0 | AC139: 0 | AD139: =AVERAGE(Y139:AC139) -> 0 | AE139: =STDEV(Y139:AC139) -> 0 | AF139: 0 | AG139: 0 | AH139: 0 | AI139: 0 | AJ139: 0 | AK139: =AVERAGE(AF139:AJ139) -> 0 | AL139: =STDEV(AF139:AJ139) -> 0 | AM139: 0 | AN139: 0 | AO139: 0 | AP139: 0 | AQ139: 0 | AR139: =AVERAGE(AM139:AQ139) -> 0 | AS139: =STDEV(AM139:AQ139) -> 0 | AT139: 0 | AU139: 0 | AV139: 0 | AW139: 0 | AX139: 0 | AY139: =AVERAGE(AT139:AX139) -> 0 | AZ139: =STDEV(AT139:AX139) -> 0 | BA139: 0 | BB139: 0 | BC139: 0 | BD139: 0 | BE139: 0 | BF139: =AVERAGE(BA139:BE139) -> 0 | BG139: =STDEV(BA139:BE139) -> 0
A140: average | I140: =AVERAGE(I137:I139) ->  | P140: =AVERAGE(P137:P139) -> 70 | W140: =AVERAGE(W137:W139) -> 9 | AD140: =AVERAGE(AD137:AD139) -> 0 | AK140: =AVERAGE(AK137:AK139) -> 0 | AR140: =AVERAGE(AR137:AR139) -> 0 | AY140: =AVERAGE(AY137:AY139) -> 0 | BF140: =AVERAGE(BF137:BF139) -> 0
A141: stdev | I141: =SUM(J137:J139) ->  | P141: =SUM(Q137:Q139) -> 25 | W141: =SUM(X137:X139) -> 10 | AD141: =SUM(AE137:AE139) -> 2 | AK141: =SUM(AL137:AL139) -> 0 | AR141: =SUM(AS137:AS139) -> 0 | AY141: =SUM(AZ137:AZ139) -> 0 | BF141: =SUM(BG137:BG139) -> 0
A142: pS2213 A | B142: 1 | D142: NA | E142: NA | F142: NA | G142: NA | H142: NA | I142: =AVERAGE(D142:H142) ->  | J142: =STDEV(D142:H142) ->  | K142: 26 | L142: 17 | M142: 24 | N142: 19 | O142: 27 | P142: =AVERAGE(K142:O142) -> 22.6 | Q142: =STDEV(K142:O142) -> 4.393176527 | R142: 2 | S142: 1 | T142: 3 | U142: 1 | V142: 3 | W142: =AVERAGE(R142:V142) -> 2 | X142: =STDEV(R142:V142) -> 1 | Y142: 1 | Z142: 0 | AA142: 0 | AB142: 0 | AC142: 0 | AD142: =AVERAGE(Y142:AC142) -> 0.2 | AE142: =STDEV(Y142:AC142) -> 0.4472135955 | AF142: 0 | AG142: 0 | AH142: 0 | AI142: 0 | AJ142: 0 | AK142: =AVERAGE(AF142:AJ142) -> 0 | AL142: =STDEV(AF142:AJ142) -> 0 | AM142: 0 | AN142: 0 | AO142: 0 | AP142: 0 | AQ142: 0 | AR142: =AVERAGE(AM142:AQ142) -> 0 | AS142: =STDEV(AM142:AQ142) -> 0 | AT142: 0 | AU142: 0 | AV142: 0 | AW142: 0 | AX142: 0 | AY142: =AVERAGE(AT142:AX142) -> 0 | AZ142: =STDEV(AT142:AX142) -> 0 | BA142: 0 | BB142: 0 | BC142: 0 | BD142: 0 | BE142: 0 | BF142: =AVERAGE(BA142:BE142) -> 0 | BG142: =STDEV(BA142:BE142) -> 0
A143: p+0 | B143: 2 | D143: NA | E143: NA | F143: NA | G143: NA | H143: NA | I143: =AVERAGE(D143:H143) ->  | J143: =STDEV(D143:H143) ->  | K143: 133 | L143: 110 | M143: 129 | N143: 125 | O143: 133 | P143: =AVERAGE(K143:O143) -> 126 | Q143: =STDEV(K143:O143) -> 9.539392014 | R143: 17 | S143: 23 | T143: 15 | U143: 26 | V143: 17 | W143: =AVERAGE(R143:V143) -> 19.6 | X143: =STDEV(R143:V143) -> 4.669047012 | Y143: 2 | Z143: 3 | AA143: 1 | AB143: 2 | AC143: 2 | AD143: =AVERAGE(Y143:AC143) -> 2 | AE143: =STDEV(Y143:AC143) -> 0.7071067812 | AF143: 0 | AG143: 1 | AH143: 0 | AI143: 1 | AJ143: 0 | AK143: =AVERAGE(AF143:AJ143) -> 0.4 | AL143: =STDEV(AF143:AJ143) -> 0.5477225575 | AM143: 0 | AN143: 0 | AO143: 1 | AP143: 0 | AQ143: 0 | AR143: =AVERAGE(AM143:AQ143) -> 0.2 | AS143: =STDEV(AM143:AQ143) -> 0.4472135955 | AT143: 0 | AU143: 0 | AV143: 0 | AW143: 0 | AX143: 0 | AY143: =AVERAGE(AT143:AX143) -> 0 | AZ143: =STDEV(AT143:AX143) -> 0 | BA143: 0 | BB143: 0 | BC143: 0 | BD143: 0 | BE143: 0 | BF143: =AVERAGE(BA143:BE143) -> 0 | BG143: =STDEV(BA143:BE143) -> 0
B144: 3 | D144: NA | E144: NA | F144: NA | G144: NA | H144: NA | I144: =AVERAGE(D144:H144) ->  | J144: =STDEV(D144:H144) ->  | K144: 25 | L144: NA | M144: NA | N144: NA | O144: 21 | P144: =AVERAGE(K144:O144) -> 23 | Q144: =STDEV(K144:O144) -> 3 | R144: 1 | S144: 1 | T144: 1 | U144: 0 | V144: 1 | W144: =AVERAGE(R144:V144) -> 1 | X144: =STDEV(R144:V144) -> 0 | Y144: 0 | Z144: 1 | AA144: 0 | AB144: 0 | AC144: 0 | AD144: =AVERAGE(Y144:AC144) -> 0 | AE144: =STDEV(Y144:AC144) -> 0 | AF144: 0 | AG144: 0 | AH144: 0 | AI144: 0 | AJ144: 0 | AK144: =AVERAGE(AF144:AJ144) -> 0 | AL144: =STDEV(AF144:AJ144) -> 0 | AM144: 0 | AN144: 0 | AO144: 0 | AP144: 0 | AQ144: 0 | AR144: =AVERAGE(AM144:AQ144) -> 0 | AS144: =STDEV(AM144:AQ144) -> 0 | AT144: 0 | AU144: 0 | AV144: 0 | AW144: 0 | AX144: 0 | AY144: =AVERAGE(AT144:AX144) -> 0 | AZ144: =STDEV(AT144:AX144) -> 0 | BA144: 0 | BB144: 0 | BC144: 0 | BD144: 0 | BE144: 0 | BF144: =AVERAGE(BA144:BE144) -> 0 | BG144: =STDEV(BA144:BE144) -> 0
A145: average | I145: =AVERAGE(I142:I144) ->  | P145: =AVERAGE(P142:P144) -> 57 | W145: =AVERAGE(W142:W144) -> 7 | AD145: =AVERAGE(AD142:AD144) -> 1 | AK145: =AVERAGE(AK142:AK144) -> 0 | AR145: =AVERAGE(AR142:AR144) -> 0 | AY145: =AVERAGE(AY142:AY144) -> 0 | BF145: =AVERAGE(BF142:BF144) -> 0
A146: stdev | I146: =SUM(J142:J144) ->  | P146: =SUM(Q142:Q144) -> 17 | W146: =SUM(X142:X144) -> 6 | AD146: =SUM(AE142:AE144) -> 2 | AK146: =SUM(AL142:AL144) -> 1 | AR146: =SUM(AS142:AS144) -> 0 | AY146: =SUM(AZ142:AZ144) -> 0 | BF146: =SUM(BG142:BG144) -> 0
A147: p+3 | B147: 1 | D147: 7 | E147: 7 | F147: 5 | G147: 19 | H147: 10 | I147: =AVERAGE(D147:H147) -> 10 | J147: =STDEV(D147:H147) -> 6 | K147: 1 | L147: 1 | M147: 1 | N147: 2 | O147: 1 | P147: =AVERAGE(K147:O147) -> 1 | Q147: =STDEV(K147:O147) -> 0 | R147: 0 | S147: 0 | T147: 0 | U147: 0 | V147: 0 | W147: =AVERAGE(R147:V147) -> 0 | X147: =STDEV(R147:V147) -> 0 | Y147: 0 | Z147: 0 | AA147: 0 | AB147: 0 | AC147: 0 | AD147: =AVERAGE(Y147:AC147) -> 0 | AE147: =STDEV(Y147:AC147) -> 0 | AF147: 0 | AG147: 0 | AH147: 0 | AI147: 0 | AJ147: 0 | AK147: =AVERAGE(AF147:AJ147) -> 0 | AL147: =STDEV(AF147:AJ147) -> 0 | AM147: 0 | AN147: 0 | AO147: 0 | AP147: 0 | AQ147: 0 | AR147: =AVERAGE(AM147:AQ147) -> 0 | AS147: =STDEV(AM147:AQ147) -> 0 | AT147: 0 | AU147: 0 | AV147: 0 | AW147: 0 | AX147: 0 | AY147: =AVERAGE(AT147:AX147) -> 0 | AZ147: =STDEV(AT147:AX147) -> 0 | BA147: 0 | BB147: 0 | BC147: 0 | BD147: 0 | BE147: 0 | BF147: =AVERAGE(BA147:BE147) -> 0 | BG147: =STDEV(BA147:BE147) -> 0
B148: 2 | D148: 152 | E148: 193 | F148: 183 | G148: 196 | H148: 211 | I148: =AVERAGE(D148:H148) -> 187 | J148: =STDEV(D148:H148) -> 22 | K148: 42 | L148: 45 | M148: 43 | N148: 31 | O148: 27 | P148: =AVERAGE(K148:O148) -> 38 | Q148: =STDEV(K148:O148) -> 8 | R148: 4 | S148: 2 | T148: 2 | U148: 5 | V148: 5 | W148: =AVERAGE(R148:V148) -> 4 | X148: =STDEV(R148:V148) -> 2 | Y148: 0 | Z148: 0 | AA148: 0 | AB148: 0 | AC148: 0 | AD148: =AVERAGE(Y148:AC148) -> 0 | AE148: =STDEV(Y148:AC148) -> 0 | AF148: 0 | AG148: 0 | AH148: 0 | AI148: 0 | AJ148: 0 | AK148: =AVERAGE(AF148:AJ148) -> 0 | AL148: =STDEV(AF148:AJ148) -> 0 | AM148: 0 | AN148: 0 | AO148: 0 | AP148: 0 | AQ148: 0 | AR148: =AVERAGE(AM148:AQ148) -> 0 | AS148: =STDEV(AM148:AQ148) -> 0 | AT148: 0 | AU148: 0 | AV148: 0 | AW148: 0 | AX148: 0 | AY148: =AVERAGE(AT148:AX148) -> 0 | AZ148: =STDEV(AT148:AX148) -> 0 | BA148: 0 | BB148: 0 | BC148: 0 | BD148: 0 | BE148: 0 | BF148: =AVERAGE(BA148:BE148) -> 0 | BG148: =STDEV(BA148:BE148) -> 0
B149: 3 | D149: NA | E149: NA | F149: NA | G149: NA | H149: NA | I149: =AVERAGE(D149:H149) ->  | J149: =STDEV(D149:H149) ->  | K149: 50 | L149: 33 | M149: 42 | N149: 32 | O149: 31 | P149: =AVERAGE(K149:O149) -> 38 | Q149: =STDEV(K149:O149) -> 8 | R149: 4 | S149: 5 | T149: 3 | U149: 3 | V149: 2 | W149: =AVERAGE(R149:V149) -> 3 | X149: =STDEV(R149:V149) -> 1 | Y149: 0 | Z149: 0 | AA149: 0 | AB149: 0 | AC149: 0 | AD149: =AVERAGE(Y149:AC149) -> 0 | AE149: =STDEV(Y149:AC149) -> 0 | AF149: 0 | AG149: 0 | AH149: 0 | AI149: 0 | AJ149: 0 | AK149: =AVERAGE(AF149:AJ149) -> 0 | AL149: =STDEV(AF149:AJ149) -> 0 | AM149: 0 | AN149: 0 | AO149: 0 | AP149: 0 | AQ149: 0 | AR149: =AVERAGE(AM149:AQ149) -> 0 | AS149: =STDEV(AM149:AQ149) -> 0 | AT149: 0 | AU149: 0 | AV149: 0 | AW149: 0 | AX149: 0 | AY149: =AVERAGE(AT149:AX149) -> 0 | AZ149: =STDEV(AT149:AX149) -> 0 | BA149: 0 | BB149: 0 | BC149: 0 | BD149: 0 | BE149: 0 | BF149: =AVERAGE(BA149:BE149) -> 0 | BG149: =STDEV(BA149:BE149) -> 0
A150: average | I150: =AVERAGE(I147:I149) ->  | P150: =AVERAGE(P147:P149) -> 25 | W150: =AVERAGE(W147:W149) -> 2 | AD150: =AVERAGE(AD147:AD149) -> 0 | AK150: =AVERAGE(AK147:AK149) -> 0 | AR150: =AVERAGE(AR147:AR149) -> 0 | AY150: =AVERAGE(AY147:AY149) -> 0 | BF150: =AVERAGE(BF147:BF149) -> 0
A151: stdev | I151: =SUM(J147:J149) ->  | P151: =SUM(Q147:Q149) -> 17 | W151: =SUM(X147:X149) -> 3 | AD151: =SUM(AE147:AE149) -> 0 | AK151: =SUM(AL147:AL149) -> 0 | AR151: =SUM(AS147:AS149) -> 0 | AY151: =SUM(AZ147:AZ149) -> 0 | BF151: =SUM(BG147:BG149) -> 0
A152: pS2213 APR | B152: 1 | D152: 188 | E152: 151 | F152: 122 | G152: 171 | H152: 160 | I152: =AVERAGE(D152:H152) -> 158.4 | J152: =STDEV(D152:H152) -> 24.58251411 | K152: 22 | L152: 25 | M152: 37 | N152: 28 | O152: 17 | P152: =AVERAGE(K152:O152) -> 25.8 | Q152: =STDEV(K152:O152) -> 7.463243263 | R152: 6 | S152: 3 | T152: 6 | U152: 1 | V152: 3 | W152: =AVERAGE(R152:V152) -> 3.8 | X152: =STDEV(R152:V152) -> 2.167948339 | Y152: 0 | Z152: 0 | AA152: 0 | AB152: 0 | AC152: 0 | AD152: =AVERAGE(Y152:AC152) -> 0 | AE152: =STDEV(Y152:AC152) -> 0 | AF152: 0 | AG152: 0 | AH152: 1 | AI152: 0 | AJ152: 0 | AK152: =AVERAGE(AF152:AJ152) -> 0.2 | AL152: =STDEV(AF152:AJ152) -> 0.4472135955 | AM152: 0 | AN152: 0 | AO152: 0 | AP152: 0 | AQ152: 0 | AR152: =AVERAGE(AM152:AQ152) -> 0 | AS152: =STDEV(AM152:AQ152) -> 0 | AT152: 0 | AU152: 0 | AV152: 0 | AW152: 0 | AX152: 0 | AY152: =AVERAGE(AT152:AX152) -> 0 | AZ152: =STDEV(AT152:AX152) -> 0 | BA152: 0 | BB152: 0 | BC152: 0 | BD152: 0 | BE152: 0 | BF152: =AVERAGE(BA152:BE152) -> 0 | BG152: =STDEV(BA152:BE152) -> 0
A153: p+0 | B153: 2 | D153: 156 | E153: 144 | F153: 135 | G153: 152 | H153: 138 | I153: =AVERAGE(D153:H153) -> 145 | J153: =STDEV(D153:H153) -> 8.94427191 | K153: 21 | L153: 12 | M153: 11 | N153: 12 | O153: 10 | P153: =AVERAGE(K153:O153) -> 13.2 | Q153: =STDEV(K153:O153) -> 4.438468204 | R153: 1 | S153: 0 | T153: 0 | U153: 0 | V153: 0 | W153: =AVERAGE(R153:V153) -> 0.2 | X153: =STDEV(R153:V153) -> 0.4472135955 | Y153: 0 | Z153: 0 | AA153: 0 | AB153: 0 | AC153: 0 | AD153: =AVERAGE(Y153:AC153) -> 0 | AE153: =STDEV(Y153:AC153) -> 0 | AF153: 0 | AG153: 0 | AH153: 0 | AI153: 0 | AJ153: 0 | AK153: =AVERAGE(AF153:AJ153) -> 0 | AL153: =STDEV(AF153:AJ153) -> 0 | AM153: 0 | AN153: 0 | AO153: 0 | AP153: 0 | AQ153: 0 | AR153: =AVERAGE(AM153:AQ153) -> 0 | AS153: =STDEV(AM153:AQ153) -> 0 | AT153: 0 | AU153: 0 | AV153: 0 | AW153: 0 | AX153: 0 | AY153: =AVERAGE(AT153:AX153) -> 0 | AZ153: =STDEV(AT153:AX153) -> 0 | BA153: 0 | BB153: 0 | BC153: 0 | BD153: 0 | BE153: 0 | BF153: =AVERAGE(BA153:BE153) -> 0 | BG153: =STDEV(BA153:BE153) -> 0
B154: 3 | D154: NA | E154: NA | F154: NA | G154: NA | H154: NA | I154: =AVERAGE(D154:H154) ->  | J154: =STDEV(D154:H154) ->  | K154: 31 | L154: 43 | M154: 25 | N154: 36 | O154: 39 | P154: =AVERAGE(K154:O154) -> 35 | Q154: =STDEV(K154:O154) -> 7 | R154: 1 | S154: 2 | T154: 3 | U154: 6 | V154: 3 | W154: =AVERAGE(R154:V154) -> 3 | X154: =STDEV(R154:V154) -> 2 | Y154: 0 | Z154: 0 | AA154: 0 | AB154: 0 | AC154: 1 | AD154: =AVERAGE(Y154:AC154) -> 0 | AE154: =STDEV(Y154:AC154) -> 0 | AF154: 0 | AG154: 0 | AH154: 0 | AI154: 0 | AJ154: 1 | AK154: =AVERAGE(AF154:AJ154) -> 0 | AL154: =STDEV(AF154:AJ154) -> 0 | AM154: 0 | AN154: 0 | AO154: 0 | AP154: 0 | AQ154: 0 | AR154: =AVERAGE(AM154:AQ154) -> 0 | AS154: =STDEV(AM154:AQ154) -> 0 | AT154: 0 | AU154: 0 | AV154: 0 | AW154: 0 | AX154: 0 | AY154: =AVERAGE(AT154:AX154) -> 0 | AZ154: =STDEV(AT154:AX154) -> 0 | BA154: 0 | BB154: 0 | BC154: 0 | BD154: 0 | BE154: 0 | BF154: =AVERAGE(BA154:BE154) -> 0 | BG154: =STDEV(BA154:BE154) -> 0
A155: average | I155: =AVERAGE(I152:I154) ->  | P155: =AVERAGE(P152:P154) -> 25 | W155: =AVERAGE(W152:W154) -> 2 | AD155: =AVERAGE(AD152:AD154) -> 0 | AK155: =AVERAGE(AK152:AK154) -> 0 | AR155: =AVERAGE(AR152:AR154) -> 0 | AY155: =AVERAGE(AY152:AY154) -> 0 | BF155: =AVERAGE(BF152:BF154) -> 0
A156: stdev | I156: =SUM(J152:J154) ->  | P156: =SUM(Q152:Q154) -> 19 | W156: =SUM(X152:X154) -> 4 | AD156: =SUM(AE152:AE154) -> 0 | AK156: =SUM(AL152:AL154) -> 1 | AR156: =SUM(AS152:AS154) -> 0 | AY156: =SUM(AZ152:AZ154) -> 0 | BF156: =SUM(BG152:BG154) -> 0
A157: p+3 | B157: 1 | D157: 215 | E157: NA | F157: NA | G157: NA | H157: NA | I157: =AVERAGE(D157:H157) -> 215 | J157: =STDEV(D157:H157) ->  | K157: 19 | L157: 14 | M157: 15 | N157: 12 | O157: 21 | P157: =AVERAGE(K157:O157) -> 16 | Q157: =STDEV(K157:O157) -> 4 | R157: 3 | S157: 3 | T157: 2 | U157: 2 | V157: 3 | W157: =AVERAGE(R157:V157) -> 3 | X157: =STDEV(R157:V157) -> 1 | Y157: 0 | Z157: 0 | AA157: 0 | AB157: 1 | AC157: 0 | AD157: =AVERAGE(Y157:AC157) -> 0 | AE157: =STDEV(Y157:AC157) -> 0 | AF157: 0 | AG157: 0 | AH157: 0 | AI157: 0 | AJ157: 0 | AK157: =AVERAGE(AF157:AJ157) -> 0 | AL157: =STDEV(AF157:AJ157) -> 0 | AM157: 0 | AN157: 0 | AO157: 0 | AP157: 0 | AQ157: 0 | AR157: =AVERAGE(AM157:AQ157) -> 0 | AS157: =STDEV(AM157:AQ157) -> 0 | AT157: 0 | AU157: 0 | AV157: 0 | AW157: 0 | AX157: 0 | AY157: =AVERAGE(AT157:AX157) -> 0 | AZ157: =STDEV(AT157:AX157) -> 0 | BA157: 0 | BB157: 0 | BC157: 0 | BD157: 0 | BE157: 0 | BF157: =AVERAGE(BA157:BE157) -> 0 | BG157: =STDEV(BA157:BE157) -> 0
B158: 2 | D158: NA | E158: NA | F158: NA | G158: NA | H158: NA | I158: =AVERAGE(D158:H158) ->  | J158: =STDEV(D158:H158) ->  | K158: 51 | L158: 47 | M158: 32 | N158: 30 | O158: 47 | P158: =AVERAGE(K158:O158) -> 41 | Q158: =STDEV(K158:O158) -> 10 | R158: 6 | S158: 4 | T158: 3 | U158: 1 | V158: 4 | W158: =AVERAGE(R158:V158) -> 4 | X158: =STDEV(R158:V158) -> 2 | Y158: 0 | Z158: 0 | AA158: 0 | AB158: 0 | AC158: 0 | AD158: =AVERAGE(Y158:AC158) -> 0 | AE158: =STDEV(Y158:AC158) -> 0 | AF158: 0 | AG158: 0 | AH158: 0 | AI158: 0 | AJ158: 0 | AK158: =AVERAGE(AF158:AJ158) -> 0 | AL158: =STDEV(AF158:AJ158) -> 0 | AM158: 0 | AN158: 0 | AO158: 0 | AP158: 0 | AQ158: 0 | AR158: =AVERAGE(AM158:AQ158) -> 0 | AS158: =STDEV(AM158:AQ158) -> 0 | AT158: 0 | AU158: 0 | AV158: 0 | AW158: 0 | AX158: 0 | AY158: =AVERAGE(AT158:AX158) -> 0 | AZ158: =STDEV(AT158:AX158) -> 0 | BA158: 0 | BB158: 0 | BC158: 0 | BD158: 0 | BE158: 0 | BF158: =AVERAGE(BA158:BE158) -> 0 | BG158: =STDEV(BA158:BE158) -> 0
B159: 3 | D159: 123 | E159: 106 | F159: 112 | G159: 112 | H159: 109 | I159: =AVERAGE(D159:H159) -> 112 | J159: =STDEV(D159:H159) -> 6 | K159: 14 | L159: 14 | M159: 8 | N159: 6 | O159: 20 | P159: =AVERAGE(K159:O159) -> 12 | Q159: =STDEV(K159:O159) -> 6 | R159: 2 | S159: 1 | T159: 1 | U159: 0 | V159: 2 | W159: =AVERAGE(R159:V159) -> 1 | X159: =STDEV(R159:V159) -> 1 | Y159: 0 | Z159: 0 | AA159: 0 | AB159: 0 | AC159: 0 | AD159: =AVERAGE(Y159:AC159) -> 0 | AE159: =STDEV(Y159:AC159) -> 0 | AF159: 0 | AG159: 0 | AH159: 0 | AI159: 0 | AJ159: 0 | AK159: =AVERAGE(AF159:AJ159) -> 0 | AL159: =STDEV(AF159:AJ159) -> 0 | AM159: 0 | AN159: 0 | AO159: 0 | AP159: 0 | AQ159: 0 | AR159: =AVERAGE(AM159:AQ159) -> 0 | AS159: =STDEV(AM159:AQ159) -> 0 | AT159: 0 | AU159: 0 | AV159: 0 | AW159: 0 | AX159: 0 | AY159: =AVERAGE(AT159:AX159) -> 0 | AZ159: =STDEV(AT159:AX159) -> 0 | BA159: 0 | BB159: 0 | BC159: 0 | BD159: 0 | BE159: 0 | BF159: =AVERAGE(BA159:BE159) -> 0 | BG159: =STDEV(BA159:BE159) -> 0
A160: average | I160: =AVERAGE(I157:I159) ->  | P160: =AVERAGE(P157:P159) -> 23 | W160: =AVERAGE(W157:W159) -> 2 | AD160: =AVERAGE(AD157:AD159) -> 0 | AK160: =AVERAGE(AK157:AK159) -> 0 | AR160: =AVERAGE(AR157:AR159) -> 0 | AY160: =AVERAGE(AY157:AY159) -> 0 | BF160: =AVERAGE(BF157:BF159) -> 0
A161: stdev | I161: =SUM(J157:J159) ->  | P161: =SUM(Q157:Q159) -> 19 | W161: =SUM(X157:X159) -> 3 | AD161: =SUM(AE157:AE159) -> 0 | AK161: =SUM(AL157:AL159) -> 0 | AR161: =SUM(AS157:AS159) -> 0 | AY161: =SUM(AZ157:AZ159) -> 0 | BF161: =SUM(BG157:BG159) -> 0
A164: T14 | B164: 2018-02-22
A165: Sample | B165: Dilution: | D165: 10^0 | I165: AVERAGE | J165: STDEV | K165: 10^-1 | P165: AVERAGE | Q165: STDEV | R165: 10^-2 | W165: AVERAGE | X165: STDEV | Y165: 10^-3 | AD165: AVERAGE | AE165: STDEV | AF165: 10^-4 | AK165: AVERAGE | AL165: STDEV | AM165: 10^-5 | AR165: AVERAGE | AS165: STDEV | AT165: 10^-6 | AY165: AVERAGE | AZ165: STDEV | BA165: 10^-7 | BF165: AVERAGE | BG165: STDEV
A166: Blank | B166: 1 | D166: 0 | E166: 0 | F166: 0 | G166: 0 | H166: 0 | I166: =AVERAGE(D166:H166) -> 0 | J166: =STDEV(D166:H166) -> 0 | K166: 0 | L166: 0 | M166: 0 | N166: 0 | O166: 0 | P166: =AVERAGE(K166:O166) -> 0 | Q166: =STDEV(K166:O166) -> 0 | R166: 0 | S166: 0 | T166: 0 | U166: 0 | V166: 0 | W166: =AVERAGE(R166:V166) -> 0 | X166: =STDEV(R166:V166) -> 0 | Y166: 0 | Z166: 0 | AA166: 0 | AB166: 0 | AC166: 0 | AD166: =AVERAGE(Y166:AC166) -> 0 | AE166: =STDEV(Y166:AC166) -> 0 | AF166: 0 | AG166: 0 | AH166: 0 | AI166: 0 | AJ166: 0 | AK166: =AVERAGE(AF166:AJ166) -> 0 | AL166: =STDEV(AF166:AJ166) -> 0 | AM166: 0 | AN166: 0 | AO166: 0 | AP166: 0 | AQ166: 0 | AR166: =AVERAGE(AM166:AQ166) -> 0 | AS166: =STDEV(AM166:AQ166) -> 0 | AT166: 0 | AU166: 0 | AV166: 0 | AW166: 0 | AX166: 0 | AY166: =AVERAGE(AT166:AX166) -> 0 | AZ166: =STDEV(AT166:AX166) -> 0 | BA166: 0 | BB166: 0 | BC166: 0 | BD166: 0 | BE166: 0 | BF166: =AVERAGE(BA166:BE166) -> 0 | BG166: =STDEV(BA166:BE166) -> 0
B167: 2 | D167: 0 | E167: 0 | F167: 0 | G167: 0 | H167: 0 | I167: =AVERAGE(D167:H167) -> 0 | J167: =STDEV(D167:H167) -> 0 | K167: 0 | L167: 0 | M167: 0 | N167: 0 | O167: 0 | P167: =AVERAGE(K167:O167) -> 0 | Q167: =STDEV(K167:O167) -> 0 | R167: 0 | S167: 0 | T167: 0 | U167: 0 | V167: 0 | W167: =AVERAGE(R167:V167) -> 0 | X167: =STDEV(R167:V167) -> 0 | Y167: 0 | Z167: 0 | AA167: 0 | AB167: 0 | AC167: 0 | AD167: =AVERAGE(Y167:AC167) -> 0 | AE167: =STDEV(Y167:AC167) -> 0 | AF167: 0 | AG167: 0 | AH167: 0 | AI167: 0 | AJ167: 0 | AK167: =AVERAGE(AF167:AJ167) -> 0 | AL167: =STDEV(AF167:AJ167) -> 0 | AM167: 0 | AN167: 0 | AO167: 0 | AP167: 0 | AQ167: 0 | AR167: =AVERAGE(AM167:AQ167) -> 0 | AS167: =STDEV(AM167:AQ167) -> 0 | AT167: 0 | AU167: 0 | AV167: 0 | AW167: 0 | AX167: 0 | AY167: =AVERAGE(AT167:AX167) -> 0 | AZ167: =STDEV(AT167:AX167) -> 0 | BA167: 0 | BB167: 0 | BC167: 0 | BD167: 0 | BE167: 0 | BF167: =AVERAGE(BA167:BE167) -> 0 | BG167: =STDEV(BA167:BE167) -> 0
B168: 3 | D168: 0 | E168: 0 | F168: 0 | G168: 0 | H168: 0 | I168: =AVERAGE(D168:H168) -> 0 | J168: =STDEV(D168:H168) -> 0 | K168: 0 | L168: 0 | M168: 0 | N168: 0 | O168: 0 | P168: =AVERAGE(K168:O168) -> 0 | Q168: =STDEV(K168:O168) -> 0 | R168: 0 | S168: 0 | T168: 0 | U168: 0 | V168: 0 | W168: =AVERAGE(R168:V168) -> 0 | X168: =STDEV(R168:V168) -> 0 | Y168: 0 | Z168: 0 | AA168: 0 | AB168: 0 | AC168: 0 | AD168: =AVERAGE(Y168:AC168) -> 0 | AE168: =STDEV(Y168:AC168) -> 0 | AF168: 0 | AG168: 0 | AH168: 0 | AI168: 0 | AJ168: 0 | AK168: =AVERAGE(AF168:AJ168) -> 0 | AL168: =STDEV(AF168:AJ168) -> 0 | AM168: 0 | AN168: 0 | AO168: 0 | AP168: 0 | AQ168: 0 | AR168: =AVERAGE(AM168:AQ168) -> 0 | AS168: =STDEV(AM168:AQ168) -> 0 | AT168: 0 | AU168: 0 | AV168: 0 | AW168: 0 | AX168: 0 | AY168: =AVERAGE(AT168:AX168) -> 0 | AZ168: =STDEV(AT168:AX168) -> 0 | BA168: 0 | BB168: 0 | BC168: 0 | BD168: 0 | BE168: 0 | BF168: =AVERAGE(BA168:BE168) -> 0 | BG168: =STDEV(BA168:BE168) -> 0
I169: =AVERAGE(I166:I168) -> 0 | P169: =AVERAGE(P166:P168) -> 0 | W169: =AVERAGE(W166:W168) -> 0 | AD169: =AVERAGE(AD166:AD168) -> 0 | AK169: =AVERAGE(AK166:AK168) -> 0 | AR169: =AVERAGE(AR166:AR168) -> 0 | AY169: =AVERAGE(AY166:AY168) -> 0 | BF169: =AVERAGE(BF166:BF168) -> 0
I170: =SUM(J166:J168) -> 0 | P170: =SUM(Q166:Q168) -> 0 | W170: =SUM(X166:X168) -> 0 | AD170: =SUM(AE166:AE168) -> 0 | AK170: =SUM(AL166:AL168) -> 0 | AR170: =SUM(AS166:AS168) -> 0 | AY170: =SUM(AZ166:AZ168) -> 0 | BF170: =SUM(BG166:BG168) -> 0
A171: BW25113 - | B171: 1 | D171: NA | E171: NA | F171: NA | G171: NA | H171: NA | I171: =AVERAGE(D171:H171) ->  | J171: =STDEV(D171:H171) ->  | K171: NA | L171: NA | M171: NA | N171: NA | O171: NA | P171: =AVERAGE(K171:O171) ->  | Q171: =STDEV(K171:O171) ->  | R171: NA | S171: NA | T171: NA | U171: NA | V171: NA | W171: =AVERAGE(R171:V171) ->  | X171: =STDEV(R171:V171) ->  | Y171: NA | Z171: NA | AA171: NA | AB171: NA | AC171: NA | AD171: =AVERAGE(Y171:AC171) ->  | AE171: =STDEV(Y171:AC171) ->  | AF171: 254 | AG171: NA | AH171: NA | AI171: NA | AJ171: NA | AK171: =AVERAGE(AF171:AJ171) -> 254 | AL171: =STDEV(AF171:AJ171) ->  | AM171: 34 | AN171: 45 | AO171: 35 | AP171: 42 | AQ171: 47 | AR171: =AVERAGE(AM171:AQ171) -> 41 | AS171: =STDEV(AM171:AQ171) -> 6 | AT171: 3 | AU171: 7 | AV171: 8 | AW171: 9 | AX171: 12 | AY171: =AVERAGE(AT171:AX171) -> 8 | AZ171: =STDEV(AT171:AX171) -> 3 | BA171: 0 | BB171: 0 | BC171: 1 | BD171: 0 | BE171: 0 | BF171: =AVERAGE(BA171:BE171) -> 0 | BG171: =STDEV(BA171:BE171) -> 0
A172: pS2213 - | B172: 2 | D172: NA | E172: NA | F172: NA | G172: NA | H172: NA | I172: =AVERAGE(D172:H172) ->  | J172: =STDEV(D172:H172) ->  | K172: NA | L172: NA | M172: NA | N172: NA | O172: NA | P172: =AVERAGE(K172:O172) ->  | Q172: =STDEV(K172:O172) ->  | R172: NA | S172: NA | T172: NA | U172: NA | V172: NA | W172: =AVERAGE(R172:V172) ->  | X172: =STDEV(R172:V172) ->  | Y172: NA | Z172: NA | AA172: NA | AB172: NA | AC172: NA | AD172: =AVERAGE(Y172:AC172) ->  | AE172: =STDEV(Y172:AC172) ->  | AF172: NA | AG172: NA | AH172: NA | AI172: NA | AJ172: NA | AK172: =AVERAGE(AF172:AJ172) ->  | AL172: =STDEV(AF172:AJ172) ->  | AM172: 37 | AN172: 46 | AO172: 56 | AP172: 53 | AQ172: 53 | AR172: =AVERAGE(AM172:AQ172) -> 49 | AS172: =STDEV(AM172:AQ172) -> 8 | AT172: 8 | AU172: 9 | AV172: 5 | AW172: 5 | AX172: 12 | AY172: =AVERAGE(AT172:AX172) -> 8 | AZ172: =STDEV(AT172:AX172) -> 3 | BA172: 2 | BB172: 0 | BC172: 0 | BD172: 1 | BE172: 0 | BF172: =AVERAGE(BA172:BE172) -> 1 | BG172: =STDEV(BA172:BE172) -> 1
B173: 3 | D173: NA | E173: NA | F173: NA | G173: NA | H173: NA | I173: =AVERAGE(D173:H173) ->  | J173: =STDEV(D173:H173) ->  | K173: NA | L173: NA | M173: NA | N173: NA | O173: NA | P173: =AVERAGE(K173:O173) ->  | Q173: =STDEV(K173:O173) ->  | R173: NA | S173: NA | T173: NA | U173: NA | V173: NA | W173: =AVERAGE(R173:V173) ->  | X173: =STDEV(R173:V173) ->  | Y173: NA | Z173: NA | AA173: NA | AB173: NA | AC173: NA | AD173: =AVERAGE(Y173:AC173) ->  | AE173: =STDEV(Y173:AC173) ->  | AF173: NA | AG173: NA | AH173: NA | AI173: NA | AJ173: NA | AK173: =AVERAGE(AF173:AJ173) ->  | AL173: =STDEV(AF173:AJ173) ->  | AM173: 46 | AN173: 43 | AO173: 43 | AP173: 50 | AQ173: 39 | AR173: =AVERAGE(AM173:AQ173) -> 44 | AS173: =STDEV(AM173:AQ173) -> 4 | AT173: 8 | AU173: 5 | AV173: 5 | AW173: 4 | AX173: 4 | AY173: =AVERAGE(AT173:AX173) -> 5 | AZ173: =STDEV(AT173:AX173) -> 2 | BA173: 1 | BB173: 0 | BC173: 1 | BD173: 0 | BE173: 2 | BF173: =AVERAGE(BA173:BE173) -> 1 | BG173: =STDEV(BA173:BE173) -> 1
A174: average | I174: =AVERAGE(I171:I173) ->  | P174: =AVERAGE(P171:P173) ->  | W174: =AVERAGE(W171:W173) ->  | AD174: =AVERAGE(AD171:AD173) ->  | AK174: =AVERAGE(AK171:AK173) ->  | AR174: =AVERAGE(AR171:AR173) -> 45 | AY174: =AVERAGE(AY171:AY173) -> 7 | BF174: =AVERAGE(BF171:BF173) -> 1
A175: stdev | I175: =SUM(J171:J173) ->  | P175: =SUM(Q171:Q173) ->  | W175: =SUM(X171:X173) ->  | AD175: =SUM(AE171:AE173) ->  | AK175: =SUM(AL171:AL173) ->  | AR175: =SUM(AS171:AS173) -> 18 | AY175: =SUM(AZ171:AZ173) -> 8 | BF175: =SUM(BG171:BG173) -> 2
A176: pS2213 - | B176: 1 | D176: NA | E176: NA | F176: NA | G176: NA | H176: NA | I176: =AVERAGE(D176:H176) ->  | J176: =STDEV(D176:H176) ->  | K176: 28 | L176: 27 | M176: 31 | N176: 35 | O176: 22 | P176: =AVERAGE(K176:O176) -> 28.6 | Q176: =STDEV(K176:O176) -> 4.827007354 | R176: 3 | S176: 4 | T176: 6 | U176: 6 | V176: 3 | W176: =AVERAGE(R176:V176) -> 4.4 | X176: =STDEV(R176:V176) -> 1.516575089 | Y176: 1 | Z176: 0 | AA176: 1 | AB176: 0 | AC176: 0 | AD176: =AVERAGE(Y176:AC176) -> 0.4 | AE176: =STDEV(Y176:AC176) -> 0.5477225575 | AF176: 0 | AG176: 0 | AH176: 0 | AI176: 0 | AJ176: 0 | AK176: =AVERAGE(AF176:AJ176) -> 0 | AL176: =STDEV(AF176:AJ176) -> 0 | AM176: 0 | AN176: 0 | AO176: 0 | AP176: 0 | AQ176: 0 | AR176: =AVERAGE(AM176:AQ176) -> 0 | AS176: =STDEV(AM176:AQ176) -> 0 | AT176: 0 | AU176: 0 | AV176: 0 | AW176: 0 | AX176: 0 | AY176: =AVERAGE(AT176:AX176) -> 0 | AZ176: =STDEV(AT176:AX176) -> 0 | BA176: 0 | BB176: 0 | BC176: 0 | BD176: 0 | BE176: 0 | BF176: =AVERAGE(BA176:BE176) -> 0 | BG176: =STDEV(BA176:BE176) -> 0
A177: p+0 | B177: 2 | D177: NA | E177: NA | F177: NA | G177: NA | H177: NA | I177: =AVERAGE(D177:H177) ->  | J177: =STDEV(D177:H177) ->  | K177: NA | L177: NA | M177: NA | N177: NA | O177: NA | P177: =AVERAGE(K177:O177) ->  | Q177: =STDEV(K177:O177) ->  | R177: 0 | S177: 0 | T177: 0 | U177: 0 | V177: 0 | W177: =AVERAGE(R177:V177) -> 0 | X177: =STDEV(R177:V177) -> 0 | Y177: 0 | Z177: 0 | AA177: 0 | AB177: 0 | AC177: 0 | AD177: =AVERAGE(Y177:AC177) -> 0 | AE177: =STDEV(Y177:AC177) -> 0 | AF177: 0 | AG177: 0 | AH177: 0 | AI177: 0 | AJ177: 0 | AK177: =AVERAGE(AF177:AJ177) -> 0 | AL177: =STDEV(AF177:AJ177) -> 0 | AM177: 0 | AN177: 0 | AO177: 0 | AP177: 0 | AQ177: 0 | AR177: =AVERAGE(AM177:AQ177) -> 0 | AS177: =STDEV(AM177:AQ177) -> 0 | AT177: 0 | AU177: 0 | AV177: 0 | AW177: 0 | AX177: 0 | AY177: =AVERAGE(AT177:AX177) -> 0 | AZ177: =STDEV(AT177:AX177) -> 0 | BA177: 0 | BB177: 0 | BC177: 0 | BD177: 0 | BE177: 0 | BF177: =AVERAGE(BA177:BE177) -> 0 | BG177: =STDEV(BA177:BE177) -> 0
B178: 3 | D178: NA | E178: NA | F178: NA | G178: NA | H178: NA | I178: =AVERAGE(D178:H178) ->  | J178: =STDEV(D178:H178) ->  | K178: NA | L178: NA | M178: NA | N178: NA | O178: NA | P178: =AVERAGE(K178:O178) ->  | Q178: =STDEV(K178:O178) ->  | R178: 0 | S178: 0 | T178: 0 | U178: 0 | V178: 0 | W178: =AVERAGE(R178:V178) -> 0 | X178: =STDEV(R178:V178) -> 0 | Y178: 0 | Z178: 0 | AA178: 0 | AB178: 0 | AC178: 0 | AD178: =AVERAGE(Y178:AC178) -> 0 | AE178: =STDEV(Y178:AC178) -> 0 | AF178: 0 | AG178: 0 | AH178: 0 | AI178: 0 | AJ178: 0 | AK178: =AVERAGE(AF178:AJ178) -> 0 | AL178: =STDEV(AF178:AJ178) -> 0 | AM178: 0 | AN178: 0 | AO178: 0 | AP178: 0 | AQ178: 0 | AR178: =AVERAGE(AM178:AQ178) -> 0 | AS178: =STDEV(AM178:AQ178) -> 0 | AT178: 0 | AU178: 0 | AV178: 0 | AW178: 0 | AX178: 0 | AY178: =AVERAGE(AT178:AX178) -> 0 | AZ178: =STDEV(AT178:AX178) -> 0 | BA178: 0 | BB178: 0 | BC178: 0 | BD178: 0 | BE178: 0 | BF178: =AVERAGE(BA178:BE178) -> 0 | BG178: =STDEV(BA178:BE178) -> 0
A179: average | I179: =AVERAGE(I176:I178) ->  | P179: =AVERAGE(P176) -> 29 | W179: =AVERAGE(W176:W178) -> 1 | AD179: =AVERAGE(AD176:AD178) -> 0 | AK179: =AVERAGE(AK176:AK178) -> 0 | AR179: =AVERAGE(AR176:AR178) -> 0 | AY179: =AVERAGE(AY176:AY178) -> 0 | BF179: =AVERAGE(BF176:BF178) -> 0
A180: stdev | I180: =SUM(J176:J178) ->  | P180: =SUM(Q176) -> 5 | W180: =SUM(X176:X178) -> 2 | AD180: =SUM(AE176:AE178) -> 1 | AK180: =SUM(AL176:AL178) -> 0 | AR180: =SUM(AS176:AS178) -> 0 | AY180: =SUM(AZ176:AZ178) -> 0 | BF180: =SUM(BG176:BG178) -> 0
A181: pS2213 A | B181: 1 | D181: 80 | E181: 55 | F181: 60 | G181: 65 | H181: 71 | I181: =AVERAGE(D181:H181) -> 66 | J181: =STDEV(D181:H181) -> 10 | K181: 2 | L181: 8 | M181: 12 | N181: 11 | O181: 14 | P181: =AVERAGE(K181:O181) -> 9 | Q181: =STDEV(K181:O181) -> 5 | R181: 1 | S181: 0 | T181: 0 | U181: 0 | V181: 1 | W181: =AVERAGE(R181:V181) -> 0 | X181: =STDEV(R181:V181) -> 1 | Y181: 0 | Z181: 0 | AA181: 1 | AB181: 0 | AC181: 0 | AD181: =AVERAGE(Y181:AC181) -> 0 | AE181: =STDEV(Y181:AC181) -> 0 | AF181: 0 | AG181: 0 | AH181: 0 | AI181: 0 | AJ181: 0 | AK181: =AVERAGE(AF181:AJ181) -> 0 | AL181: =STDEV(AF181:AJ181) -> 0 | AM181: 0 | AN181: 0 | AO181: 0 | AP181: 0 | AQ181: 0 | AR181: =AVERAGE(AM181:AQ181) -> 0 | AS181: =STDEV(AM181:AQ181) -> 0 | AT181: 0 | AU181: 0 | AV181: 0 | AW181: 0 | AX181: 0 | AY181: =AVERAGE(AT181:AX181) -> 0 | AZ181: =STDEV(AT181:AX181) -> 0 | BA181: 0 | BB181: 0 | BC181: 0 | BD181: 0 | BE181: 0 | BF181: =AVERAGE(BA181:BE181) -> 0 | BG181: =STDEV(BA181:BE181) -> 0
A182: p+0 | B182: 2 | D182: NA | E182: NA | F182: NA | G182: NA | H182: NA | I182: =AVERAGE(D182:H182) ->  | J182: =STDEV(D182:H182) ->  | K182: 98 | L182: 116 | M182: 104 | N182: 75 | O182: 83 | P182: =AVERAGE(K182:O182) -> 95 | Q182: =STDEV(K182:O182) -> 16 | R182: 13 | S182: 18 | T182: 15 | U182: 10 | V182: 17 | W182: =AVERAGE(R182:V182) -> 15 | X182: =STDEV(R182:V182) -> 3 | Y182: 1 | Z182: 1 | AA182: 0 | AB182: 0 | AC182: 1 | AD182: =AVERAGE(Y182:AC182) -> 1 | AE182: =STDEV(Y182:AC182) -> 1 | AF182: 0 | AG182: 0 | AH182: 0 | AI182: 0 | AJ182: 0 | AK182: =AVERAGE(AF182:AJ182) -> 0 | AL182: =STDEV(AF182:AJ182) -> 0 | AM182: 0 | AN182: 0 | AO182: 0 | AP182: 0 | AQ182: 0 | AR182: =AVERAGE(AM182:AQ182) -> 0 | AS182: =STDEV(AM182:AQ182) -> 0 | AT182: 0 | AU182: 0 | AV182: 0 | AW182: 0 | AX182: 0 | AY182: =AVERAGE(AT182:AX182) -> 0 | AZ182: =STDEV(AT182:AX182) -> 0 | BA182: 0 | BB182: 0 | BC182: 0 | BD182: 0 | BE182: 0 | BF182: =AVERAGE(BA182:BE182) -> 0 | BG182: =STDEV(BA182:BE182) -> 0
